Workbook

Sheet CAPA
B1: SPARTA | C1: v17/04/2025 - ajuste aba balanco e financeiros | R1: DF | S1: Sudeste/Centro Oeste
B2: Helenístico LX | C2: 0.94 | M2: =C23 -> 120 | N2: =C22 -> 369
C3: Macro Ver.
C4: 5.08
B6: ERO | L6: CodigoSamp | M6: Empresa | N6: Nome Completo | O6: IdSgtAg | P6: CodigoSamp | Q6: Supridora/suprida | R6: Financeiro 243 (TUSD) | S6: Databse Fin. 243 | T6: Contrato de Concessão | U6: Data Aditivo (Cont Novo) | V6: Cidade Sede | W6: CNPJ | X6: Novo/Antigo | Y6: Coluna1
B7: =VLOOKUP(B6,TabEmpresas[],2,FALSE) -> Energisa Rondônia - Distribuidora de Energia S.A. | C7: Reajuste | G7: Últ. Atualização | L7: 7019 | M7: Amazonas Energia | N7: Amazonas Energia S.A. | O7: 102 | P7: 7019 | Q7: NÃO SUPRIDA | T7: 1/2019 | U7: 42579 | V7: Manaus - AM | W7: 02.341.467/0001-20 | X7: N
B8: CÓDIGO DA EMPRESA | C8: ="D" & TEXT(C23-100,"00") -> D20 | F8: Informações iniciais | G8: 2025-11-10T14:45:23 | L8: 31 | M8: CEA | N8: Companhia de Eletricidade do Amapá | O8: 107 | P8: 31 | Q8: NÃO SUPRIDA | T8: 01/2021 | U8: 42606 | V8: Macapá - AP | W8: 05.965.546/0001-09 | X8: N
B9: Data do Reajuste/Revisão Anterior | C9: 45639 | F9: Energia do ano anterior (CM compra, MWh Mercado, R$ Mercado) | L9: 5707 | M9: CEEE-D | N9: Companhia Estadual de Distribuição de Energia Elétrica | O9: 110 | P9: 5707 | Q9: NÃO SUPRIDA | T9: 81/1999 | U9: 42347 | V9: Porto Alegre - RS | W9: 08.467.115/0001-00 | X9: N
B10: Data de Reajuste/Revisão em Processamento | C10: 46004 | F10: Receita de Bandeira | L10: 5697 | M10: Celesc-Dis | N10: Celesc Distribuição S.A. | O10: 111 | P10: 5697 | Q10: NÃO SUPRIDA | T10: 56/1999 | U10: 42347 | V10: Florianópolis - SC | W10: 08.336.783/0001-90 | X10: N
F11: Perdas Regulatórias | L11: 4950 | M11: Cemig-D | N11: Cemig Distribuição S.A. | O11: 118 | P11: 4950 | Q11: NÃO SUPRIDA | T11: 3/1997 | U11: 42359 | V11: Belo Horizonte - MG | W11: 06.981.180/0001-16 | X11: N
F12: TUSDg ONS-RB | L12: 103 | M12: CHESP | N12: Companhia Hidroelétrica São Patrício | O12: 123 | P12: 103 | Q12: SUPRIDA | T12: 44/1999 | U12: 42347 | V12: Ceres - GO | W12: 01.377.555/0001-10 | X12: N
F13: Perda de RB | L13: 82 | M13: Cocel | N13: Companhia Campolarguense de Energia | O13: 128 | P13: 82 | Q13: SUPRIDA | T13: 27/1998 | U13: 42347 | V13: Campo Largo - PR | W13: 75.805.895/0001-30 | X13: N
F14: Perda DIT | L14: 2904 | M14: Cooperaliança | N14: Cooperativa Aliança | O14: 131 | P14: 2904 | Q14: SUPRIDA | T14: 145/2002 | U14: 42347 | V14: Iraça - SC | W14: 83.647.990/0001-81 | X14: N
B15: Período de Referencia final | C15: =DATE(YEAR($C$10),MONTH($C$10)-1,1) -> 45962 | F15: Encargos ano anterior (não RTE) | L15: 2866 | M15: Copel-Dis | N15: Copel Distribuição S.A. | O15: 132 | P15: 2866 | Q15: NÃO SUPRIDA | T15: 46/1999 | U15: 42347 | V15: Curitiba - PR | W15: 04.368.898/0001-06 | X15: N
B16: Período de Referencia inicial | C16: =DATE(YEAR($C$10)-1,MONTH($C$10),1) -> 45627 | F16: Dados da Revisão, Fator X e DecFec | L16: 63 | M16: CPFL Paulista | N16: Companhia Paulista de Força e Luz | O16: 136 | P16: 63 | Q16: NÃO SUPRIDA | T16: 14/1997 | V16: Campinas - SP | W16: 33.050.196/0001-88 | X16: A
B17: Índice IGPM na data Revisão/Reajuste | C17: =VLOOKUP(C15,Índices!$B$7:$F$500,2,FALSE) -> 1186.922 | F17: Previsão de Subsidios dos Processos Anteriores | L17: 2937 | M17: CPFL Piratininga | N17: Companhia Piratininga de Força e Luz | O17: 135 | P17: 2937 | Q17: NÃO SUPRIDA | T17: 9/2002 | V17: Sorocaba - SP | W17: 04.172.213/0001-51 | X17: A
B18: Índice IPCA na data Revisão/Reajuste | C18: =VLOOKUP(C15,Índices!$B$7:$F$500,3,FALSE) -> 7381.91 | F18: Conexão ano anterior | L18: 1000041 | M18: CPFL Santa Cruz | N18: Companhia Jaguari de Energia | O18: 166 | P18: 1000041 | Q18: NÃO SUPRIDA | T18: 15/1999 | U18: 42347 | V18: Jaguariúna - SP | W18: 53.859.112/0001-69 | X18: N
B19: IGPM para o período de Referência | C19: =VLOOKUP(DATE(YEAR($C$10),MONTH($C$10)-1,1),Índices!$B$7:$F$500,2,FALSE)/VLOOKUP(DATE(YEAR($C$9),MONTH($C$9)-1,1),Índices!$B$7:$F$500,2,FALSE)-1 -> 0.0003877073181 | F19: Financeiros | G19: 2025-11-26T12:13:17 | L19: 87 | M19: DCELT | N19: Distribuidora Catarinense de Energia Elétrica Ltda | O19: 158 | P19: 87 | Q19: NÃO SUPRIDA | T19: 50/1999 | U19: 42353 | V19: Xanxerê - SC | W19: 83.855.973/0001-30 | X19: N
B20: IPCA para o período de Referência | C20: =VLOOKUP(DATE(YEAR(C10),MONTH(C10)-1,1),Índices!$B$7:$F$500,3,FALSE)/VLOOKUP(DATE(YEAR($C$9),MONTH($C$9)-1,1),Índices!$B$7:$F$500,3,FALSE)-1 -> 0.04503827276 | F20: Financeiros ano anterior (CVA 5º dia útil, RTE restante) | L20: 95 | M20: Demei | N20: Departamento Municipal de Energia de Ijuí | O20: 138 | P20: 95 | Q20: SUPRIDA | T20: 85/2000 | U20: 42347 | V20: Ijuí - RS | W20: 95.289.500/0001-00 | X20: N
B21: Dados Gerenciais | F21: Garantias Financeiras | L21: 51 | M21: DME-D | N21: DME Distribuição S.A. | O21: 139 | P21: 51 | Q21: NÃO SUPRIDA | T21: 49/1999 | U21: 42347 | V21: Poços de Caldas - MG | W21: 23.664.303/0001-04 | X21: N
B22: IdAgente | C22: =VLOOKUP(B6,TabEmpresas[],4,FALSE) -> 369 | F22: Itens extraordinários REN1000/Covid/Escassez | L22: 26 | M22: EAC | N22: Energisa Acre - Distribuidora de Energia S.A | O22: 146 | P22: 26 | Q22: NÃO SUPRIDA | T22: 3/2018 | U22: 42579 | V22: Rio Branco - AC | W22: 04.065.033/0001-70 | X22: N
B23: ID Concessão | C23: =VLOOKUP(B6,TabEmpresas[],3,FALSE) -> 120 | F23: Energia (CCEAR, Bil., Itaipu) | G23: 2025-11-17T11:43:02 | L23: 6611 | M23: EBO | N23: Energisa Borborema - Distribuidora de Energia S.A | O23: 140 | P23: 6611 | Q23: NÃO SUPRIDA | T23: 8/2000 | V23: Campina Grande - PB | W23: 08.826.596/0001-95 | X23: A
F24: CCEAR | L24: 380 | M24: EDP ES | N24: EDP Espírito Santo Distribuição de Energia S.A. | O24: 154 | P24: 380 | Q24: NÃO SUPRIDA | T24: 1/1995 | V24: Vitória - ES | W24: 28.152.650/0001-71 | X24: A
B25: Quadro para vínculos | F25: GSF, PLD, Fator de Rateio de RH e MWm Repactuado | L25: 391 | M25: EDP SP | N25: EDP São Paulo Distribuição de Energia S.A. | O25: 104 | P25: 391 | Q25: NÃO SUPRIDA | T25: 202/1998 | V25: São Paulo - SP | W25: 02.302.100/0001-06 | X25: A
B26: Descrição | C26: valor | F26: Itaipu (Energia, Transporte, MUST) | L26: 86 | M26: EFLUL | N26: Empresa Força e Luz de Urussanga Ltda | O26: 144 | P26: 86 | Q26: SUPRIDA | T26: 25/1999 | U26: 42347 | V26: Urussanga - SC | W26: 86.531.175/0001-40 | X26: N
B27: Tipo de contrato | C27: =IF(VLOOKUP(B6,TabEmpresas[],12,FALSE)="A", "Antigo","Novo") -> Novo | F27: Cotas Lei/Angra | L27: 398 | M27: Eletrocar | N27: Centrais Elétricas de Carazinho S.A. | O27: 147 | P27: 398 | Q27: SUPRIDA | T27: 84/2000 | U27: 42347 | V27: Carazinho - RS | W27: 88.446.034/0001-55 | X27: N
B28: Contrato de concessão | C28: =VLOOKUP(B6,TabEmpresas[],8,FALSE) -> 2/2018 | F28: Encargos DRP | G28: 2025-11-10T14:49:28 | L28: 6585 | M28: EMG | N28: Energisa Minas Gerais - Distribuidora de Energia S.A. | O28: 150 | P28: 6585 | Q28: NÃO SUPRIDA | T28: 40/1999 | U28: 42347 | V28: Cataguases - MG | W28: 19.527.639/0001-58 | X28: N
B29: Número do Processo | C29: 48500.004004/2025-19 | F29: Indicadores Econômicos / Dólar | G29: 2025-11-17T11:14:12 | L29: 404 | M29: EMS | N29: Energisa Mato Grossodo Sul - Distribuidora de Energia S.A. | O29: 151 | P29: 404 | Q29: NÃO SUPRIDA | T29: 1/1997 | V29: Campo Grande - MS | W29: 15.413.826/0001-50 | X29: A
B30: Período de Referencia | C30: =TEXT(C16,"mmmm/aaaa")& " a "&TEXT(C15,"mmmm/aaaa") -> dezembro/2024 a novembro/2025 | F30: Tudo Mercado | G30: 2025-12-01T11:55:25 | L30: 405 | M30: EMT | N30: Energisa Mato Grosso - Distribuidora de Energia S.A. | O30: 117 | P30: 405 | Q30: NÃO SUPRIDA | T30: 3/1997 | V30: Cuibá - MT | W30: 03.467.321/0001-99 | X30: A
B31: Início da vigênica por extenso | C31: =DAY(LnkTxtDRPData)&" de "&TEXT(LnkTxtDRPData,"mmmmmm")&" de "&YEAR(LnkTxtDRPData) -> 13 de dezembro de 2025 | F31: SAMP_Fornecimento | L31: 39 | M31: ENEL CE | N31: Companhia Energética do Ceará | O31: 130 | P31: 39 | Q31: NÃO SUPRIDA | T31: 1/1998 | V31: Fortaleza - CE | W31: 07.047.251/0001-70 | X31: A
B32: CNPJ | C32: =VLOOKUP(B6,TabEmpresas[],11,FALSE) -> 05.914.650/0001-66 | F32: SAMP_balanco | L32: 6072 | M32: ENEL GO | N32: Enel Distribuição Goiás | O32: 112 | P32: 6072 | Q32: NÃO SUPRIDA | T32: 63/2000 | U32: 42367 | V32: Goiânia - GO | W32: 01.543.032/0001-04 | X32: N
B33: Período de competência de previsão de subsídios | C33: =TEXT(EDATE(Aj.Subsidio!G19,12),"mmmmmm")&"/"&TEXT(EDATE(Aj.Subsidio!G19,12),"aaaa")&" a "&TEXT(EDATE(Aj.Subsidio!R19,12),"mmmmmm")&"/"&TEXT(EDATE(Aj.Subsidio!R19,12),"aaaa") -> dezembro/2025 a novembro/2026 | F33: Subsídio concomitante Irrigante - Fonte incentivada | L33: 383 | M33: ENEL RJ | N33: Ampla Energia e Serviços S.A. | O33: 103 | P33: 383 | Q33: NÃO SUPRIDA | T33: 5/1996 | U33: 42808 | V33: Rio de Janeiro - RJ | W33: 33.050.071/0001-58 | X33: N
B34: Período de competência de ajuste de subsídios | C34: =TEXT(Aj.Subsidio!G19,"mmmmmm")&"/"&TEXT(Aj.Subsidio!G19,"aaaa")&" a "&TEXT(Aj.Subsidio!R19,"mmmmmm")&"/"&TEXT(Aj.Subsidio!R19,"aaaa") -> dezembro/2024 a novembro/2025 | F34: Rede Básica e Conexão | G34: 2025-12-01T11:58:17 | L34: 390 | M34: ENEL SP | N34: Eletropaulo Metropolitana Eletricidade de São Paulo S.A. | O34: 148 | P34: 390 | Q34: NÃO SUPRIDA | T34: 162/1998 | V34: São Paulo - SP | W34: 61.695.227/0001-93 | X34: A
B35: Cidade Sede | C35: =VLOOKUP(B6,TabEmpresas[],10,FALSE) -> Porto Velho - RO | F35: Histórico de Tarifas B1 Residencial | L35: 6612 | M35: ENF | N35: Energisa Nova Friburgo - Distribuidora de Energia S.A. | O35: 152 | P35: 6612 | Q35: SUPRIDA | T35: 42/1999 | U35: 42347 | V35: Nova Friburgo - RJ | W35: 33.249.046/0001-06 | X35: N
B36: Receita | C36: =IF(Mercado!D24>2000000000,ROUND(Mercado!D24/1000000000,2)&" bilhões",IF(Mercado!D24>1000000000,ROUND(Mercado!D24/1000000000,2)&" bilhão",IF(Mercado!D24>100000000,ROUND(Mercado!D24/1000000,0)&" milhões",IF(Mercado!D24>10000000,ROUND(Mercado!D24/1000000,1)&" milhões",IF(Mercado!D24>2000000,ROUND(Mercado!D24/1000000,2)&" milhões",IF(Mercado!D24>1000000,ROUND(Mercado!D24/1000000,2)&" milhão",ROUND(Mercado!D24/1000,0)&" mil")))))) -> 2,66 bilhões | F36: CVA | G36: 2025-12-01T11:59:36 | L36: 6600 | M36: EPB | N36: Energisa Paraíba - Distribuidora de Energia S.A. | O36: 153 | P36: 6600 | Q36: NÃO SUPRIDA | T36: 19/2001 | V36: João Pessoa - PB | W36: 09.095.183/0001-40 | X36: A
B37: Unidades Consumidoras | C37: =IF(Mercado!E38>2000000,ROUND(Mercado!E38/1000000,2)&" milhões",IF(Mercado!E38>1000000,ROUND(Mercado!E38/1000000,2)&" milhão",IF(Mercado!E38>100000,ROUND(Mercado!E38/1000,0)&" mil",IF(Mercado!E38>10000,ROUND(Mercado!E38/1000,1)&" mil",IF(Mercado!E38>1000,ROUND(Mercado!E38/1000,2)&" mil",Mercado!E38))))) -> 729 mil | F37: CUSD | G37: 2025-11-13T16:19:28 | L37: 44 | M37: Equatorial AL | N37: Equatorial Alagoas Distribuidora de Energia S.A. | O37: 108 | P37: 44 | Q37: NÃO SUPRIDA | T37: 2/2019 | U37: 42579 | V37: Maceió - AL | W37: 12.272.084/0001-00 | X37: N
B38: Data SAMP | C38: =TEXT(_xlfn.MAXIFS(Mercado_Receita!K:K,Mercado_Receita!B:B,"regular"),"mmmmmm")&"/"&YEAR(_xlfn.MAXIFS(Mercado_Receita!K:K,Mercado_Receita!B:B,"regular")) -> outubro/2025 | F38: Suprimento: Financeiro de Ultrapassagem e Sobrecontratação | G38: 2025-11-10T15:05:08 | L38: 37 | M38: Equatorial MA | N38: Equatorial Maranhão Distribuidora de Energia S.A. | O38: 116 | P38: 37 | Q38: NÃO SUPRIDA | T38: 60/2000 | V38: São Luís - MA | W38: 06.272.793/0001-84 | X38: A
B39: Classificação mercado próprio | C39: >700 | F39: UDEROR | G39: 2025-11-26T11:50:08 | L39: 371 | M39: Equatorial PA | N39: Equatorial Pará Distribuidora de Energia S.A. | O39: 113 | P39: 371 | Q39: NÃO SUPRIDA | T39: 182/1998 | V39: Belém - PA | W39: 04.895.728/0001-80 | X39: A
B40: Data Reunião Pública - RPO | C40: =IF(MOD(LnkTxtDRPData,7)>0,ROUNDDOWN(LnkTxtDRPData/7,0)*7+3,ROUNDDOWN(LnkTxtDRPData/7,0)*7-4)-7 -> 45993 | F40: BMP/RIT | G40: 2025-11-13T16:13:04 | L40: 38 | M40: Equatorial PI | N40: Equatorial Piauí Distribuidora de Energia S.A. | O40: 119 | P40: 38 | Q40: NÃO SUPRIDA | T40: 1/2018 | U40: 42579 | V40: Teresina - PI | W40: 06.840.748/0001-89 | X40: N
B41: Data limite Atualização Indicadores Econômicos (RPO-8) | C41: =C40-8 -> 45985 | F41: Componente Q do Fator X | G41: 2025-11-10T15:07:37 | L41: 369 | M41: ERO | N41: Energisa Rondônia - Distribuidora de Energia S.A. | O41: 120 | P41: 369 | Q41: NÃO SUPRIDA | T41: 2/2018 | U41: 42579 | V41: Porto Velho - RO | W41: 05.914.650/0001-66 | X41: N
B42: Resolução Homologatória (processo anterior) | C42: REH nº 3.424, de 10 de dezembro de 2024 | F42: GSF e PLD futuros (para previsão de efeito futuro) | G42: 2025-11-13T16:13:37 | L42: 6587 | M42: ESE | N42: Energisa Sergipe - Distribuidora de Energia S.A. | O42: 155 | P42: 6587 | Q42: NÃO SUPRIDA | T42: 7/1997 | V42: Aracajú - SE | W42: 13.017.462/0001-63 | X42: A
B43: Efeito médio do último processo tarifário | C43: 0.0303 | F43: DIC FIC | G43: 2025-11-13T16:14:25 | L43: 1000040 | M43: ESS | N43: Energisa Sul-Sudeste - Distribuidora de Energia S.A. | O43: 165 | P43: 1000040 | Q43: NÃO SUPRIDA | T43: 13/1999 | U43: 42347 | V43: Presidente Prudente - SP | W43: 07.282.377/0001-20 | X43: N
B44: Índice Inflacionário do contrato | C44: =IF(VLOOKUP(B6,TabEmpresas[#Data],12,FALSE)="N","IPCA","IGP-M") -> IPCA | L44: 32 | M44: ETO | N44: Energisa Tocantins Distribuidora de Energia S.A. | O44: 115 | P44: 32 | Q44: NÃO SUPRIDA | T44: 52/1999 | U44: 43805 | V44: Palmas - TO | W44: 25.086.034/0001-71 | X44: N
B45: Variação do Índice Inflacionário (12 meses) | C45: =IF(VLOOKUP(B6,TabEmpresas[#Data],12,FALSE)="N",LnkTxtIPCA,LnkTxtIGPM) -> 0.04503827276 | L45: 83 | M45: Forcel | N45: Força e Luz Coronel Vivida Ltda. | O45: 156 | P45: 83 | Q45: SUPRIDA | T45: 69/1999 | U45: 42347 | V45: Coronel Vivida - PR | W45: 79.850.574/0001-09 | X45: N
B46: Resoluções Homologatórias da RAP e TUST | C46: REH nº 3.481 e 3.482, ambas de 15 de julho de 2025 | L46: 399 | M46: Hidropan | N46: Hidropan Distribuição de Energia S.A. | O46: 157 | P46: 399 | Q46: SUPRIDA | T46: 86/2000 | U46: 42347 | V46: Panambi - RS | W46: 91.982.348/0001-87 | X46: N
B47: Deslocar mercado | C47: Não | L47: 88 | M47: João Cesa | N47: Empresa Força e Luz João Cesa Ltda. | O47: 143 | P47: 88 | Q47: SUPRIDA | T47: 26/1999 | U47: 42347 | V47: Siderópolis - SC | W47: 86.301.124/0001-22 | X47: N
B48: Data de processamento em simulação | L48: 382 | M48: Light | N48: Light Serviços de Eletricidade S.A. | O48: 160 | P48: 382 | Q48: NÃO SUPRIDA | T48: 1/1996 | U48: 42803 | V48: Rio de Janeiro - RJ | W48: 60.444.437/0001-46 | X48: N
L49: 401 | M49: Mux Energia | N49: Muxfeldt Marin E Cia Ltda | O49: 161 | P49: 401 | Q49: SUPRIDA | T49: 87/2000 | U49: 42347 | V49: Tapejara - RS | W49: 97.578.090/0001-34 | X49: N
L50: 5160 | M50: Neoenergia Brasília | N50: Neoenergia Distribuição Brasília S.A. | O50: 109 | P50: 5160 | Q50: NÃO SUPRIDA | T50: 66/1999 | U50: 42347 | V50: Brasília - DF | W50: 07.522.669/0001-92 | X50: N
L51: 47 | M51: Neoenergia Coelba | N51: Companhia de Eletricidadedo Estado da Bahia | O51: 129 | P51: 47 | Q51: NÃO SUPRIDA | T51: 10/1997 | V51: Salvador - BA | W51: 15.139.629/0001-94 | X51: A
L52: 40 | M52: Neoenergia Cosern | N52: Companhia Energetica do Rio Grande do Norte | O52: 133 | P52: 40 | Q52: NÃO SUPRIDA | T52: 8/1997 | V52: Natal - RN | W52: 08.324.196/0001-81 | X52: A
L53: 385 | M53: Neoenergia Elektro | N53: Elektro Redes S.A. | O53: 145 | P53: 385 | Q53: NÃO SUPRIDA | T53: 187/1998 | V53: Campinas - SP | W53: 02.328.280/0001-97 | X53: A
L54: 43 | M54: Neoenergia Pernambuco | N54: Companhia Energética de Pernambuco | O54: 114 | P54: 43 | Q54: NÃO SUPRIDA | T54: 26/2000 | V54: Recife - PE | W54: 10.835.932/0001-08 | X54: A
L55: 400 | M55: Nova Palma | N55: Nova Palma Energia Ltda. | O55: 164 | P55: 400 | Q55: SUPRIDA | T55: 107/2001 | U55: 42347 | V55: Faxinal do Soturno - RS | W55: 89.889.604/0001-44 | X55: N
L56: 1000042 | M56: RGE | N56: RGE Sul Distribuidora de Energia S.A. | O56: 167 | P56: 1000042 | Q56: NÃO SUPRIDA | T56: 12/1997 | V56: São Leopoldo - RS | W56: 02.016.440/0001-62 | X56: A
L57: 370 | M57: Roraima Energia | N57: Roraima Energia S.A. | O57: 105 | P57: 370 | Q57: NÃO SUPRIDA | T57: 4/2018 | U57: 42579 | V57: Boa Vista - RR | W57: 02.341.470/0001-44 | X57: N
L58: 381 | M58: Santa Maria | N58: Empresa Luz e Força Santa Maria S/A | O58: 149 | P58: 381 | Q58: SUPRIDA | T58: 20/1999 | U58: 42347 | V58: Colatina - ES | W58: 27.485.069/0001-09 | X58: N
L59: 46 | M59: Sulgipe | N59: Companhia Sul Sergipana de Eletricidade | O59: 163 | P59: 46 | Q59: SUPRIDA | T59: 91/1999 | U59: 42347 | V59: Estância - SE | W59: 13.255.658/0001-96 | X59: N

Sheet Multas Geradores
A1: Considerar | B1: Ato Legal | D1: Produto | E1: Valor nominal das multas | F1: Valor atualizado das multas | G1: Valor atualizado já revertido à modicidade | H1: Diferença a ser revertida
A2: S | B2: Desp. nº 4.863/2023 | C2: Goiânia II | D2: 2009-T15 | E2: =SUMIFS($Q:$Q,$T:$T,CAPA!$C$22,$K:$K,$C2,$P:$P,'Multas Geradores'!$D2) -> 0 | F2: =SUMIFS($S:$S,$T:$T,CAPA!$C$22,$K:$K,$C2,$P:$P,'Multas Geradores'!$D2) -> 0 | G2: =SUMIFS($X:$X,$T:$T,CAPA!$C$22,$K:$K,$C2,$P:$P,'Multas Geradores'!$D2) -> 0 | H2: =IF(A2="S",F2+G2,0) -> 0
A3: S | B3: Desp. nº 2.495/2024 | C3: Termoceará | D3: 2009-T15 | E3: =SUMIFS($Q:$Q,$T:$T,CAPA!$C$22,$K:$K,$C3,$P:$P,'Multas Geradores'!$D3) -> 0 | F3: =SUMIFS($S:$S,$T:$T,CAPA!$C$22,$K:$K,$C3,$P:$P,'Multas Geradores'!$D3) -> 0 | G3: =SUMIFS($X:$X,$T:$T,CAPA!$C$22,$K:$K,$C3,$P:$P,'Multas Geradores'!$D3) -> 0 | H3: =IF(A3="S",F3+G3,0) -> 0
A4: S | B4: Desp. nº 2.495/2024 | C4: Termoceará | D4: 2010-T15 | E4: =SUMIFS($Q:$Q,$T:$T,CAPA!$C$22,$K:$K,$C4,$P:$P,'Multas Geradores'!$D4) -> 0 | F4: =SUMIFS($S:$S,$T:$T,CAPA!$C$22,$K:$K,$C4,$P:$P,'Multas Geradores'!$D4) -> 0 | G4: =SUMIFS($X:$X,$T:$T,CAPA!$C$22,$K:$K,$C4,$P:$P,'Multas Geradores'!$D4) -> 0 | H4: 0
J6: Ato legal | K6: Usina | L6: Perfil agente VENDEDOR | M6: Perfil agente COMPRADOR | N6: Código do Contrato CliqCCEE | O6: Leilão | P6: Produto | Q6: Valor da Multa | R6: Data Base Recisão | S6: Valor atualizado da multa | T6: Código Empresa | U6: Já revertida em processo anterior (S/N) | V6: Quanto foi revertido? | W6: Data reversão | X6: Valor já revertido atualizado
J7: Desp. nº 4.863/2023 | K7: Goiânia II | L7: BRENTECH 1LN | M7: AMPLA | N7: 17327 | O7: 1º LEN | P7: 2009-T15 | Q7: 15929.44 | R7: 45280 | S7: =Q7*VLOOKUP(CAPA!$C$15,Índices!$B$8:$F$1000,5)/VLOOKUP(EDATE('Multas Geradores'!R7,-1),Índices!$B$8:$F$1000,5) -> 20126.94392 | T7: =VLOOKUP(M7,$Z$7:$AD$64,2) -> 383 | U7: N | X7: =IFERROR(V7*VLOOKUP(CAPA!$C$15,Índices!$B$8:$F$1000,5)/VLOOKUP(EDATE('Multas Geradores'!W7,-1),Índices!$B$8:$F$1000,5),0) -> 0 | Z7: AMPLA | AA7: 383 | AB7: ENEL RJ | AC7: Ampla Energia e Serviços S.A. | AD7: 103
J8: Desp. nº 4.863/2023 | K8: Goiânia II | L8: BRENTECH 1LN | M8: BANDEIRANTE | N8: 17329 | O8: 1º LEN | P8: 2009-T15 | Q8: 18568.15 | R8: 45280 | S8: =Q8*VLOOKUP(CAPA!$C$15,Índices!$B$8:$F$1000,5)/VLOOKUP(EDATE('Multas Geradores'!R8,-1),Índices!$B$8:$F$1000,5) -> 23460.96999 | T8: 391 | U8: N | X8: =IFERROR(V8*VLOOKUP(CAPA!$C$15,Índices!$B$8:$F$1000,5)/VLOOKUP(EDATE('Multas Geradores'!W8,-1),Índices!$B$8:$F$1000,5),0) -> 0 | Z8: BANDEIRANTE | AA8: 391 | AB8: EDP SP | AC8: EDP São Paulo Distribuição de Energia S.A. | AD8: 104
J9: Desp. nº 4.863/2023 | K9: Goiânia II | L9: BRENTECH 1LN | M9: CEAL | N9: 17324 | O9: 1º LEN | P9: 2009-T15 | Q9: 3361.81 | R9: 45280 | S9: =Q9*VLOOKUP(CAPA!$C$15,Índices!$B$8:$F$1000,5)/VLOOKUP(EDATE('Multas Geradores'!R9,-1),Índices!$B$8:$F$1000,5) -> 4247.667297 | T9: 44 | U9: N | X9: =IFERROR(V9*VLOOKUP(CAPA!$C$15,Índices!$B$8:$F$1000,5)/VLOOKUP(EDATE('Multas Geradores'!W9,-1),Índices!$B$8:$F$1000,5),0) -> 0 | Z9: CEAL | AA9: 44 | AB9: Equatorial AL | AC9: Equatorial Alagoas Distribuidora de Energia S.A. | AD9: 108
J10: Desp. nº 4.863/2023 | K10: Goiânia II | L10: BRENTECH 1LN | M10: CEB DISTRIBUIC | N10: 17325 | O10: 1º LEN | P10: 2009-T15 | Q10: 21286.28 | R10: 45280 | S10: =Q10*VLOOKUP(CAPA!$C$15,Índices!$B$8:$F$1000,5)/VLOOKUP(EDATE('Multas Geradores'!R10,-1),Índices!$B$8:$F$1000,5) -> 26895.34371 | T10: 5160 | U10: N | X10: =IFERROR(V10*VLOOKUP(CAPA!$C$15,Índices!$B$8:$F$1000,5)/VLOOKUP(EDATE('Multas Geradores'!W10,-1),Índices!$B$8:$F$1000,5),0) -> 0 | Z10: CEB DISTRIBUIC | AA10: 5160 | AB10: Neoenergia Brasília | AC10: Neoenergia Distribuição Brasília S.A. | AD10: 109
J11: Desp. nº 4.863/2023 | K11: Goiânia II | L11: BRENTECH 1LN | M11: CEEE DISTRIB | N11: 17333 | O11: 1º LEN | P11: 2009-T15 | Q11: 13746.78 | R11: 45280 | S11: =Q11*VLOOKUP(CAPA!$C$15,Índices!$B$8:$F$1000,5)/VLOOKUP(EDATE('Multas Geradores'!R11,-1),Índices!$B$8:$F$1000,5) -> 17369.13979 | T11: 5707 | U11: N | X11: =IFERROR(V11*VLOOKUP(CAPA!$C$15,Índices!$B$8:$F$1000,5)/VLOOKUP(EDATE('Multas Geradores'!W11,-1),Índices!$B$8:$F$1000,5),0) -> 0 | Z11: CEEE DISTRIB | AA11: 5707 | AB11: CEEE-D | AC11: Companhia Estadual de Distribuição de Energia Elétrica | AD11: 110
J12: Desp. nº 4.863/2023 | K12: Goiânia II | L12: BRENTECH 1LN | M12: CELESC DIST | N12: 17308 | O12: 1º LEN | P12: 2009-T15 | Q12: 58245.53 | R12: 45280 | S12: =Q12*VLOOKUP(CAPA!$C$15,Índices!$B$8:$F$1000,5)/VLOOKUP(EDATE('Multas Geradores'!R12,-1),Índices!$B$8:$F$1000,5) -> 73593.57994 | T12: 5697 | U12: N | X12: =IFERROR(V12*VLOOKUP(CAPA!$C$15,Índices!$B$8:$F$1000,5)/VLOOKUP(EDATE('Multas Geradores'!W12,-1),Índices!$B$8:$F$1000,5),0) -> 0 | Z12: CELESC DIST | AA12: 5697 | AB12: Celesc-Dis | AC12: Celesc Distribuição S.A. | AD12: 111
J13: Desp. nº 4.863/2023 | K13: Goiânia II | L13: BRENTECH 1LN | M13: CELG | N13: 17332 | O13: 1º LEN | P13: 2009-T15 | Q13: 21717.13 | R13: 45280 | S13: =Q13*VLOOKUP(CAPA!$C$15,Índices!$B$8:$F$1000,5)/VLOOKUP(EDATE('Multas Geradores'!R13,-1),Índices!$B$8:$F$1000,5) -> 27439.72529 | T13: 6072 | U13: N | X13: =IFERROR(V13*VLOOKUP(CAPA!$C$15,Índices!$B$8:$F$1000,5)/VLOOKUP(EDATE('Multas Geradores'!W13,-1),Índices!$B$8:$F$1000,5),0) -> 0 | Z13: CELG | AA13: 6072 | AB13: ENEL GO | AC13: Enel Distribuição Goiás | AD13: 112
J14: Desp. nº 4.863/2023 | K14: Goiânia II | L14: BRENTECH 1LN | M14: CELPA | N14: 17313 | O14: 1º LEN | P14: 2009-T15 | Q14: 19498.83 | R14: 45280 | S14: =Q14*VLOOKUP(CAPA!$C$15,Índices!$B$8:$F$1000,5)/VLOOKUP(EDATE('Multas Geradores'!R14,-1),Índices!$B$8:$F$1000,5) -> 24636.88981 | T14: 371 | U14: N | X14: =IFERROR(V14*VLOOKUP(CAPA!$C$15,Índices!$B$8:$F$1000,5)/VLOOKUP(EDATE('Multas Geradores'!W14,-1),Índices!$B$8:$F$1000,5),0) -> 0 | Z14: CELPA | AA14: 371 | AB14: Equatorial PA | AC14: Equatorial Pará Distribuidora de Energia S.A. | AD14: 113
J15: Desp. nº 4.863/2023 | K15: Goiânia II | L15: BRENTECH 1LN | M15: CELPE | N15: 17306 | O15: 1º LEN | P15: 2009-T15 | Q15: 33171 | R15: 45280 | S15: =Q15*VLOOKUP(CAPA!$C$15,Índices!$B$8:$F$1000,5)/VLOOKUP(EDATE('Multas Geradores'!R15,-1),Índices!$B$8:$F$1000,5) -> 41911.75941 | T15: 43 | U15: N | X15: =IFERROR(V15*VLOOKUP(CAPA!$C$15,Índices!$B$8:$F$1000,5)/VLOOKUP(EDATE('Multas Geradores'!W15,-1),Índices!$B$8:$F$1000,5),0) -> 0 | Z15: CELPE | AA15: 43 | AB15: Neoenergia Pernambuco | AC15: Companhia Energética de Pernambuco | AD15: 114
J16: Desp. nº 4.863/2023 | K16: Goiânia II | L16: BRENTECH 1LN | M16: CEMAR | N16: 17338 | O16: 1º LEN | P16: 2009-T15 | Q16: 11687.45 | R16: 45280 | S16: =Q16*VLOOKUP(CAPA!$C$15,Índices!$B$8:$F$1000,5)/VLOOKUP(EDATE('Multas Geradores'!R16,-1),Índices!$B$8:$F$1000,5) -> 14767.16386 | T16: 37 | U16: N | X16: =IFERROR(V16*VLOOKUP(CAPA!$C$15,Índices!$B$8:$F$1000,5)/VLOOKUP(EDATE('Multas Geradores'!W16,-1),Índices!$B$8:$F$1000,5),0) -> 0 | Z16: CEMAR | AA16: 37 | AB16: Equatorial MA | AC16: Equatorial Maranhão Distribuidora de Energia S.A. | AD16: 116
J17: Desp. nº 4.863/2023 | K17: Goiânia II | L17: BRENTECH 1LN | M17: CEMIG DISTRIB | N17: 17321 | O17: 1º LEN | P17: 2009-T15 | Q17: 45542.57 | R17: 45280 | S17: =Q17*VLOOKUP(CAPA!$C$15,Índices!$B$8:$F$1000,5)/VLOOKUP(EDATE('Multas Geradores'!R17,-1),Índices!$B$8:$F$1000,5) -> 57543.31304 | T17: 4950 | U17: N | X17: =IFERROR(V17*VLOOKUP(CAPA!$C$15,Índices!$B$8:$F$1000,5)/VLOOKUP(EDATE('Multas Geradores'!W17,-1),Índices!$B$8:$F$1000,5),0) -> 0 | Z17: CEMIG DISTRIB | AA17: 4950 | AB17: Cemig-D | AC17: Cemig Distribuição S.A. | AD17: 118
J18: Desp. nº 4.863/2023 | K18: Goiânia II | L18: BRENTECH 1LN | M18: CEPISA | N18: 17314 | O18: 1º LEN | P18: 2009-T15 | Q18: 9214.03 | R18: 45280 | S18: =Q18*VLOOKUP(CAPA!$C$15,Índices!$B$8:$F$1000,5)/VLOOKUP(EDATE('Multas Geradores'!R18,-1),Índices!$B$8:$F$1000,5) -> 11641.98271 | T18: 4950 | U18: N | X18: =IFERROR(V18*VLOOKUP(CAPA!$C$15,Índices!$B$8:$F$1000,5)/VLOOKUP(EDATE('Multas Geradores'!W18,-1),Índices!$B$8:$F$1000,5),0) -> 0 | Z18: COELBA | AA18: 47 | AB18: Neoenergia Coelba | AC18: Companhia de Eletricidadedo Estado da Bahia | AD18: 129
J19: Desp. nº 4.863/2023 | K19: Goiânia II | L19: BRENTECH 1LN | M19: COELBA | N19: 17322 | O19: 1º LEN | P19: 2009-T15 | Q19: 37317.37 | R19: 45280 | S19: =Q19*VLOOKUP(CAPA!$C$15,Índices!$B$8:$F$1000,5)/VLOOKUP(EDATE('Multas Geradores'!R19,-1),Índices!$B$8:$F$1000,5) -> 47150.72302 | T19: 47 | U19: S | V19: -41525.5207 | W19: 45748 | X19: =IFERROR(V19*VLOOKUP(CAPA!$C$15,Índices!$B$8:$F$1000,5)/VLOOKUP(EDATE('Multas Geradores'!W19,-1),Índices!$B$8:$F$1000,5),0) -> -45539.08138 | Z19: COELCE | AA19: 39 | AB19: ENEL CE | AC19: Companhia Energética do Ceará | AD19: 130
J20: Desp. nº 4.863/2023 | K20: Goiânia II | L20: BRENTECH 1LN | M20: COELCE | N20: 17309 | O20: 1º LEN | P20: 2009-T15 | Q20: 22642.66 | R20: 45280 | S20: =Q20*VLOOKUP(CAPA!$C$15,Índices!$B$8:$F$1000,5)/VLOOKUP(EDATE('Multas Geradores'!R20,-1),Índices!$B$8:$F$1000,5) -> 28609.13805 | T20: 39 | U20: N | X20: =IFERROR(V20*VLOOKUP(CAPA!$C$15,Índices!$B$8:$F$1000,5)/VLOOKUP(EDATE('Multas Geradores'!W20,-1),Índices!$B$8:$F$1000,5),0) -> 0 | Z20: COPEL DISTRIB | AA20: 2866 | AB20: Copel-Dis | AC20: Copel Distribuição S.A. | AD20: 132
J21: Desp. nº 4.863/2023 | K21: Goiânia II | L21: BRENTECH 1LN | M21: COPEL DISTRIB | N21: 17330 | O21: 1º LEN | P21: 2009-T15 | Q21: 47040.61 | R21: 45280 | S21: =Q21*VLOOKUP(CAPA!$C$15,Índices!$B$8:$F$1000,5)/VLOOKUP(EDATE('Multas Geradores'!R21,-1),Índices!$B$8:$F$1000,5) -> 59436.09565 | T21: 2866 | U21: N | X21: =IFERROR(V21*VLOOKUP(CAPA!$C$15,Índices!$B$8:$F$1000,5)/VLOOKUP(EDATE('Multas Geradores'!W21,-1),Índices!$B$8:$F$1000,5),0) -> 0 | Z21: COSERN | AA21: 40 | AB21: Neoenergia Cosern | AC21: Companhia Energetica do Rio Grande do Norte | AD21: 133
J22: Desp. nº 4.863/2023 | K22: Goiânia II | L22: BRENTECH 1LN | M22: COSERN | N22: 17311 | O22: 1º LEN | P22: 2009-T15 | Q22: 16239.97 | R22: 45280 | S22: =Q22*VLOOKUP(CAPA!$C$15,Índices!$B$8:$F$1000,5)/VLOOKUP(EDATE('Multas Geradores'!R22,-1),Índices!$B$8:$F$1000,5) -> 20519.30046 | T22: 40 | U22: N | X22: =IFERROR(V22*VLOOKUP(CAPA!$C$15,Índices!$B$8:$F$1000,5)/VLOOKUP(EDATE('Multas Geradores'!W22,-1),Índices!$B$8:$F$1000,5),0) -> 0 | Z22: CPFL LESTE PAULISTA | AA22: 1000041 | AB22: CPFL Santa Cruz | AC22: Companhia Jaguari de Energia | AD22: 166
J23: Desp. nº 4.863/2023 | K23: Goiânia II | L23: BRENTECH 1LN | M23: CPFL PAULISTA | N23: 17307 | O23: 1º LEN | P23: 2009-T15 | Q23: 73736.37 | R23: 45280 | S23: =Q23*VLOOKUP(CAPA!$C$15,Índices!$B$8:$F$1000,5)/VLOOKUP(EDATE('Multas Geradores'!R23,-1),Índices!$B$8:$F$1000,5) -> 93166.35011 | T23: 63 | U23: S | V23: -99212.53901 | W23: 45748 | X23: =IFERROR(V23*VLOOKUP(CAPA!$C$15,Índices!$B$8:$F$1000,5)/VLOOKUP(EDATE('Multas Geradores'!W23,-1),Índices!$B$8:$F$1000,5),0) -> -108801.7155 | Z23: CPFL PAULISTA | AA23: 63 | AB23: CPFL Paulista | AC23: Companhia Paulista de Força e Luz | AD23: 136
J24: Desp. nº 4.863/2023 | K24: Goiânia II | L24: BRENTECH 1LN | M24: CPFL SANTA CRUZ | N24: 17316 | O24: 1º LEN | P24: 2009-T15 | Q24: 1715.42 | R24: 45280 | S24: =Q24*VLOOKUP(CAPA!$C$15,Índices!$B$8:$F$1000,5)/VLOOKUP(EDATE('Multas Geradores'!R24,-1),Índices!$B$8:$F$1000,5) -> 2167.44356 | T24: 1000041 | U24: S | V24: -1890.64 | W24: 45717 | X24: =IFERROR(V24*VLOOKUP(CAPA!$C$15,Índices!$B$8:$F$1000,5)/VLOOKUP(EDATE('Multas Geradores'!W24,-1),Índices!$B$8:$F$1000,5),0) -> -2093.363734 | Z24: CPFL PIRATINGA | AA24: 2937 | AB24: CPFL Piratininga | AC24: Companhia Piratininga de Força e Luz | AD24: 135
J25: Desp. nº 4.863/2023 | K25: Goiânia II | L25: BRENTECH 1LN | M25: ELEKTRO | N25: 17323 | O25: 1º LEN | P25: 2009-T15 | Q25: 27188.21 | R25: 45280 | S25: =Q25*VLOOKUP(CAPA!$C$15,Índices!$B$8:$F$1000,5)/VLOOKUP(EDATE('Multas Geradores'!R25,-1),Índices!$B$8:$F$1000,5) -> 34352.46801 | T25: 385 | U25: S | V25: -31659.78 | W25: 45870 | X25: =IFERROR(V25*VLOOKUP(CAPA!$C$15,Índices!$B$8:$F$1000,5)/VLOOKUP(EDATE('Multas Geradores'!W25,-1),Índices!$B$8:$F$1000,5),0) -> -33178.28325 | Z25: CPFL SANTA CRUZ | AA25: 1000041 | AB25: CPFL Santa Cruz | AC25: Companhia Jaguari de Energia | AD25: 166
J26: Desp. nº 4.863/2023 | K26: Goiânia II | L26: BRENTECH 1LN | M26: ELETROPAULO | N26: 17326 | O26: 1º LEN | P26: 2009-T15 | Q26: 52745.37 | R26: 45280 | S26: =Q26*VLOOKUP(CAPA!$C$15,Índices!$B$8:$F$1000,5)/VLOOKUP(EDATE('Multas Geradores'!R26,-1),Índices!$B$8:$F$1000,5) -> 66644.09447 | T26: 390 | U26: N | X26: =IFERROR(V26*VLOOKUP(CAPA!$C$15,Índices!$B$8:$F$1000,5)/VLOOKUP(EDATE('Multas Geradores'!W26,-1),Índices!$B$8:$F$1000,5),0) -> 0 | Z26: ELEKTRO | AA26: 385 | AB26: Neoenergia Elektro | AC26: Elektro Redes S.A. | AD26: 145
J27: Desp. nº 4.863/2023 | K27: Goiânia II | L27: BRENTECH 1LN | M27: ENERGISA BORBOREMA | N27: 17317 | O27: 1º LEN | P27: 2009-T15 | Q27: 1045.7 | R27: 45280 | S27: =Q27*VLOOKUP(CAPA!$C$15,Índices!$B$8:$F$1000,5)/VLOOKUP(EDATE('Multas Geradores'!R27,-1),Índices!$B$8:$F$1000,5) -> 1321.248284 | T27: 6600 | U27: N | X27: =IFERROR(V27*VLOOKUP(CAPA!$C$15,Índices!$B$8:$F$1000,5)/VLOOKUP(EDATE('Multas Geradores'!W27,-1),Índices!$B$8:$F$1000,5),0) -> 0 | Z27: ELETROPAULO | AA27: 390 | AB27: ENEL SP | AC27: Eletropaulo Metropolitana Eletricidade de São Paulo S.A. | AD27: 148
J28: Desp. nº 4.863/2023 | K28: Goiânia II | L28: BRENTECH 1LN | M28: ENERGISA BR | N28: 17320 | O28: 1º LEN | P28: 2009-T15 | Q28: 1003.04 | R28: 45280 | S28: =Q28*VLOOKUP(CAPA!$C$15,Índices!$B$8:$F$1000,5)/VLOOKUP(EDATE('Multas Geradores'!R28,-1),Índices!$B$8:$F$1000,5) -> 1267.347115 | T28: 1000040 | U28: N | X28: =IFERROR(V28*VLOOKUP(CAPA!$C$15,Índices!$B$8:$F$1000,5)/VLOOKUP(EDATE('Multas Geradores'!W28,-1),Índices!$B$8:$F$1000,5),0) -> 0 | Z28: ENERGISA BORBOREMA | AA28: 6600 | AB28: EPB | AC28: Energisa Paraíba - Distribuidora de Energia S.A. | AD28: 153
J29: Desp. nº 4.863/2023 | K29: Goiânia II | L29: BRENTECH 1LN | M29: ENERGISA MR | N29: 17337 | O29: 1º LEN | P29: 2009-T15 | Q29: 1742.24 | R29: 45280 | S29: =Q29*VLOOKUP(CAPA!$C$15,Índices!$B$8:$F$1000,5)/VLOOKUP(EDATE('Multas Geradores'!R29,-1),Índices!$B$8:$F$1000,5) -> 2201.330793 | T29: 6585 | U29: S | V29: -1787.073087 | W29: 45444 | X29: =IFERROR(V29*VLOOKUP(CAPA!$C$15,Índices!$B$8:$F$1000,5)/VLOOKUP(EDATE('Multas Geradores'!W29,-1),Índices!$B$8:$F$1000,5),0) -> -2143.770024 | Z29: ENERGISA BR | AA29: 1000040 | AB29: ESS | AC29: Energisa Sul-Sudeste - Distribuidora de Energia S.A. | AD29: 165
J30: Desp. nº 4.863/2023 | K30: Goiânia II | L30: BRENTECH 1LN | M30: ENERGISA MS | N30: 17319 | O30: 1º LEN | P30: 2009-T15 | Q30: 7504.94 | R30: 45280 | S30: =Q30*VLOOKUP(CAPA!$C$15,Índices!$B$8:$F$1000,5)/VLOOKUP(EDATE('Multas Geradores'!R30,-1),Índices!$B$8:$F$1000,5) -> 9482.537146 | T30: 404 | U30: S | V30: -7504.94 | W30: 45383 | X30: =IFERROR(V30*VLOOKUP(CAPA!$C$15,Índices!$B$8:$F$1000,5)/VLOOKUP(EDATE('Multas Geradores'!W30,-1),Índices!$B$8:$F$1000,5),0) -> -9158.418008 | Z30: ENERGISA MR | AA30: 6585 | AB30: EMG | AC30: Energisa Minas Gerais - Distribuidora de Energia S.A. | AD30: 150
J31: Desp. nº 4.863/2023 | K31: Goiânia II | L31: BRENTECH 1LN | M31: ENERGISA MT | N31: 17335 | O31: 1º LEN | P31: 2009-T15 | Q31: 13185.48 | R31: 45280 | S31: =Q31*VLOOKUP(CAPA!$C$15,Índices!$B$8:$F$1000,5)/VLOOKUP(EDATE('Multas Geradores'!R31,-1),Índices!$B$8:$F$1000,5) -> 16659.93384 | T31: 405 | U31: S | V31: -13185.48 | W31: 45383 | X31: =IFERROR(V31*VLOOKUP(CAPA!$C$15,Índices!$B$8:$F$1000,5)/VLOOKUP(EDATE('Multas Geradores'!W31,-1),Índices!$B$8:$F$1000,5),0) -> -16090.48673 | Z31: ENERGISA MS | AA31: 404 | AB31: EMS | AC31: Energisa Mato Grossodo Sul - Distribuidora de Energia S.A. | AD31: 151
J32: Desp. nº 4.863/2023 | K32: Goiânia II | L32: BRENTECH 1LN | M32: ENERGISA PB | N32: 17328 | O32: 1º LEN | P32: 2009-T15 | Q32: 6622.77 | R32: 45280 | S32: =Q32*VLOOKUP(CAPA!$C$15,Índices!$B$8:$F$1000,5)/VLOOKUP(EDATE('Multas Geradores'!R32,-1),Índices!$B$8:$F$1000,5) -> 8367.910008 | T32: 6600 | U32: S | V32: -6851.87026 | W32: 45505 | X32: =IFERROR(V32*VLOOKUP(CAPA!$C$15,Índices!$B$8:$F$1000,5)/VLOOKUP(EDATE('Multas Geradores'!W32,-1),Índices!$B$8:$F$1000,5),0) -> -8081.889533 | Z32: ENERGISA MT | AA32: 405 | AB32: EMT | AC32: Energisa Mato Grosso - Distribuidora de Energia S.A. | AD32: 117
J33: Desp. nº 4.863/2023 | K33: Goiânia II | L33: BRENTECH 1LN | M33: ENERGISA SE | N33: 17331 | O33: 1º LEN | P33: 2009-T15 | Q33: 5874.03 | R33: 45280 | S33: =Q33*VLOOKUP(CAPA!$C$15,Índices!$B$8:$F$1000,5)/VLOOKUP(EDATE('Multas Geradores'!R33,-1),Índices!$B$8:$F$1000,5) -> 7421.872483 | T33: 6587 | U33: N | X33: =IFERROR(V33*VLOOKUP(CAPA!$C$15,Índices!$B$8:$F$1000,5)/VLOOKUP(EDATE('Multas Geradores'!W33,-1),Índices!$B$8:$F$1000,5),0) -> 0 | Z33: ENERGISA NA | AA33: 1000040 | AB33: ESS | AC33: Energisa Sul-Sudeste - Distribuidora de Energia S.A. | AD33: 165
J34: Desp. nº 4.863/2023 | K34: Goiânia II | L34: BRENTECH 1LN | M34: ENERGISA SS | N34: 17318 | O34: 1º LEN | P34: 2009-T15 | Q34: 2003.62 | R34: 45280 | S34: =Q34*VLOOKUP(CAPA!$C$15,Índices!$B$8:$F$1000,5)/VLOOKUP(EDATE('Multas Geradores'!R34,-1),Índices!$B$8:$F$1000,5) -> 2531.586006 | T34: 1000040 | U34: S | V34: -2003.62 | W34: 45474 | X34: =IFERROR(V34*VLOOKUP(CAPA!$C$15,Índices!$B$8:$F$1000,5)/VLOOKUP(EDATE('Multas Geradores'!W34,-1),Índices!$B$8:$F$1000,5),0) -> -2384.739572 | Z34: ENERGISA PB | AA34: 6600 | AB34: EPB | AC34: Energisa Paraíba - Distribuidora de Energia S.A. | AD34: 153
J35: Desp. nº 4.863/2023 | K35: Goiânia II | L35: BRENTECH 1LN | M35: ENERGISA TO | N35: 17334 | O35: 1º LEN | P35: 2009-T15 | Q35: 2667.56 | R35: 45280 | S35: =Q35*VLOOKUP(CAPA!$C$15,Índices!$B$8:$F$1000,5)/VLOOKUP(EDATE('Multas Geradores'!R35,-1),Índices!$B$8:$F$1000,5) -> 3370.478217 | T35: 32 | U35: S | V35: -2757.774871 | W35: 45839 | X35: =IFERROR(V35*VLOOKUP(CAPA!$C$15,Índices!$B$8:$F$1000,5)/VLOOKUP(EDATE('Multas Geradores'!W35,-1),Índices!$B$8:$F$1000,5),0) -> -2926.915744 | Z35: ENERGISA SE | AA35: 6587 | AB35: ESE | AC35: Energisa Sergipe - Distribuidora de Energia S.A. | AD35: 155
J36: Desp. nº 4.863/2023 | K36: Goiânia II | L36: BRENTECH 1LN | M36: ENERGISA VP | N36: 17336 | O36: 1º LEN | P36: 2009-T15 | Q36: 1257.19 | R36: 45280 | S36: =Q36*VLOOKUP(CAPA!$C$15,Índices!$B$8:$F$1000,5)/VLOOKUP(EDATE('Multas Geradores'!R36,-1),Índices!$B$8:$F$1000,5) -> 1588.46718 | T36: 1000040 | U36: N | X36: =IFERROR(V36*VLOOKUP(CAPA!$C$15,Índices!$B$8:$F$1000,5)/VLOOKUP(EDATE('Multas Geradores'!W36,-1),Índices!$B$8:$F$1000,5),0) -> 0 | Z36: ENERGISA SS | AA36: 1000040 | AB36: ESS | AC36: Energisa Sul-Sudeste - Distribuidora de Energia S.A. | AD36: 165
J37: Desp. nº 4.863/2023 | K37: Goiânia II | L37: BRENTECH 1LN | M37: ESCELSA | N37: 17310 | O37: 1º LEN | P37: 2009-T15 | Q37: 15085.97 | R37: 45280 | S37: =Q37*VLOOKUP(CAPA!$C$15,Índices!$B$8:$F$1000,5)/VLOOKUP(EDATE('Multas Geradores'!R37,-1),Índices!$B$8:$F$1000,5) -> 19061.21447 | T37: 380 | U37: N | V37: 0 | X37: =IFERROR(V37*VLOOKUP(CAPA!$C$15,Índices!$B$8:$F$1000,5)/VLOOKUP(EDATE('Multas Geradores'!W37,-1),Índices!$B$8:$F$1000,5),0) -> 0 | Z37: ENERGISA TO | AA37: 32 | AB37: ETO | AC37: Energisa Tocantins Distribuidora de Energia S.A. | AD37: 115
J38: Desp. nº 4.863/2023 | K38: Goiânia II | L38: BRENTECH 1LN | M38: LIGHT | N38: 17312 | O38: 1º LEN | P38: 2009-T15 | Q38: 34994.68 | R38: 45280 | S38: =Q38*VLOOKUP(CAPA!$C$15,Índices!$B$8:$F$1000,5)/VLOOKUP(EDATE('Multas Geradores'!R38,-1),Índices!$B$8:$F$1000,5) -> 44215.99014 | T38: 382 | U38: N | X38: =IFERROR(V38*VLOOKUP(CAPA!$C$15,Índices!$B$8:$F$1000,5)/VLOOKUP(EDATE('Multas Geradores'!W38,-1),Índices!$B$8:$F$1000,5),0) -> 0 | Z38: ENERGISA VP | AA38: 1000040 | AB38: ESS | AC38: Energisa Sul-Sudeste - Distribuidora de Energia S.A. | AD38: 165
J39: Desp. nº 4.863/2023 | K39: Goiânia II | L39: BRENTECH 1LN | M39: RGE SUL | N39: 17315 | O39: 1º LEN | P39: 2009-T15 | Q39: 18189.04 | R39: 45280 | S39: =Q39*VLOOKUP(CAPA!$C$15,Índices!$B$8:$F$1000,5)/VLOOKUP(EDATE('Multas Geradores'!R39,-1),Índices!$B$8:$F$1000,5) -> 22981.96221 | T39: =VLOOKUP(M39,$Z$7:$AD$64,2) -> 1000042 | U39: S | V39: -20504.82 | W39: 45809 | X39: =IFERROR(V39*VLOOKUP(CAPA!$C$15,Índices!$B$8:$F$1000,5)/VLOOKUP(EDATE('Multas Geradores'!W39,-1),Índices!$B$8:$F$1000,5),0) -> -22001.17425 | Z39: ESCELSA | AA39: 380 | AB39: EDP ES | AC39: EDP Espírito Santo Distribuição de Energia S.A. | AD39: 154
J40: Desp. nº 2.495/2024 | K40: Termoceará | L40: PETROB PIE 1LN | M40: AMPLA | N40: 16299 | O40: 1º LEN | P40: 2009-T15 | Q40: 79105.63 | R40: 45231 | S40: =Q40*VLOOKUP(CAPA!$C$15,Índices!$B$8:$F$1000,5)/VLOOKUP(EDATE('Multas Geradores'!R40,-1),Índices!$B$8:$F$1000,5) -> 100865.9765 | T40: 383 | U40: N | X40: =IFERROR(V40*VLOOKUP(CAPA!$C$15,Índices!$B$8:$F$1000,5)/VLOOKUP(EDATE('Multas Geradores'!W40,-1),Índices!$B$8:$F$1000,5),0) -> 0 | Z40: LIGHT | AA40: 382 | AB40: Light | AC40: Light Serviços de Eletricidade S.A. | AD40: 160
J41: Desp. nº 2.495/2024 | K41: Termoceará | L41: PETROB PIE 1LN | M41: BANDEIRANTE | N41: 16301 | O41: 1º LEN | P41: 2009-T15 | Q41: 88987.05 | R41: 45231 | S41: =Q41*VLOOKUP(CAPA!$C$15,Índices!$B$8:$F$1000,5)/VLOOKUP(EDATE('Multas Geradores'!R41,-1),Índices!$B$8:$F$1000,5) -> 113465.5738 | T41: 391 | U41: N | X41: =IFERROR(V41*VLOOKUP(CAPA!$C$15,Índices!$B$8:$F$1000,5)/VLOOKUP(EDATE('Multas Geradores'!W41,-1),Índices!$B$8:$F$1000,5),0) -> 0 | Z41: RGE SUL | AA41: 1000042 | AB41: RGE | AC41: RGE Sul Distribuidora de Energia S.A. | AD41: 167
J42: Desp. nº 2.495/2024 | K42: Termoceará | L42: PETROB PIE 1LN | M42: CEAL | N42: 16296 | O42: 1º LEN | P42: 2009-T15 | Q42: 16693.61 | R42: 45231 | S42: =Q42*VLOOKUP(CAPA!$C$15,Índices!$B$8:$F$1000,5)/VLOOKUP(EDATE('Multas Geradores'!R42,-1),Índices!$B$8:$F$1000,5) -> 21285.68187 | T42: 44 | U42: N | X42: =IFERROR(V42*VLOOKUP(CAPA!$C$15,Índices!$B$8:$F$1000,5)/VLOOKUP(EDATE('Multas Geradores'!W42,-1),Índices!$B$8:$F$1000,5),0) -> 0 | AA42: 7019 | AB42: Amazonas Energia | AC42: Amazonas Energia S.A. | AD42: 102
J43: Desp. nº 2.495/2024 | K43: Termoceará | L43: PETROB PIE 1LN | M43: CEB DISTRIBUIC | N43: 16297 | O43: 1º LEN | P43: 2009-T15 | Q43: 102183.96 | R43: 45231 | S43: =Q43*VLOOKUP(CAPA!$C$15,Índices!$B$8:$F$1000,5)/VLOOKUP(EDATE('Multas Geradores'!R43,-1),Índices!$B$8:$F$1000,5) -> 130292.6847 | T43: 5160 | U43: N | X43: =IFERROR(V43*VLOOKUP(CAPA!$C$15,Índices!$B$8:$F$1000,5)/VLOOKUP(EDATE('Multas Geradores'!W43,-1),Índices!$B$8:$F$1000,5),0) -> 0 | AA43: 31 | AB43: CEA | AC43: Companhia de Eletricidade do Amapá | AD43: 107
J44: Desp. nº 2.495/2024 | K44: Termoceará | L44: PETROB PIE 1LN | M44: CEEE DISTRIB | N44: 16305 | O44: 1º LEN | P44: 2009-T15 | Q44: 65125.68 | R44: 45231 | S44: =Q44*VLOOKUP(CAPA!$C$15,Índices!$B$8:$F$1000,5)/VLOOKUP(EDATE('Multas Geradores'!R44,-1),Índices!$B$8:$F$1000,5) -> 83040.42721 | T44: 5707 | U44: N | X44: =IFERROR(V44*VLOOKUP(CAPA!$C$15,Índices!$B$8:$F$1000,5)/VLOOKUP(EDATE('Multas Geradores'!W44,-1),Índices!$B$8:$F$1000,5),0) -> 0 | AA44: 103 | AB44: CHESP | AC44: Companhia Hidroelétrica São Patrício | AD44: 123
J45: Desp. nº 2.495/2024 | K45: Termoceará | L45: PETROB PIE 1LN | M45: CELESC DIST | N45: 16280 | O45: 1º LEN | P45: 2009-T15 | Q45: 289258.62 | R45: 45231 | S45: =Q45*VLOOKUP(CAPA!$C$15,Índices!$B$8:$F$1000,5)/VLOOKUP(EDATE('Multas Geradores'!R45,-1),Índices!$B$8:$F$1000,5) -> 368827.7708 | T45: 5697 | U45: N | X45: =IFERROR(V45*VLOOKUP(CAPA!$C$15,Índices!$B$8:$F$1000,5)/VLOOKUP(EDATE('Multas Geradores'!W45,-1),Índices!$B$8:$F$1000,5),0) -> 0 | AA45: 82 | AB45: Cocel | AC45: Companhia Campolarguense de Energia | AD45: 128
J46: Desp. nº 2.495/2024 | K46: Termoceará | L46: PETROB PIE 1LN | M46: CELG | N46: 16304 | O46: 1º LEN | P46: 2009-T15 | Q46: 104252.17 | R46: 45231 | S46: =Q46*VLOOKUP(CAPA!$C$15,Índices!$B$8:$F$1000,5)/VLOOKUP(EDATE('Multas Geradores'!R46,-1),Índices!$B$8:$F$1000,5) -> 132929.8172 | T46: 6072 | U46: N | X46: =IFERROR(V46*VLOOKUP(CAPA!$C$15,Índices!$B$8:$F$1000,5)/VLOOKUP(EDATE('Multas Geradores'!W46,-1),Índices!$B$8:$F$1000,5),0) -> 0 | AA46: 2904 | AB46: Cooperaliança | AC46: Cooperativa Aliança | AD46: 131
J47: Desp. nº 2.495/2024 | K47: Termoceará | L47: PETROB PIE 1LN | M47: CELPA | N47: 16285 | O47: 1º LEN | P47: 2009-T15 | Q47: 96834.97 | R47: 45231 | S47: =Q47*VLOOKUP(CAPA!$C$15,Índices!$B$8:$F$1000,5)/VLOOKUP(EDATE('Multas Geradores'!R47,-1),Índices!$B$8:$F$1000,5) -> 123472.2966 | T47: 371 | U47: N | X47: =IFERROR(V47*VLOOKUP(CAPA!$C$15,Índices!$B$8:$F$1000,5)/VLOOKUP(EDATE('Multas Geradores'!W47,-1),Índices!$B$8:$F$1000,5),0) -> 0 | AA47: 87 | AB47: DCELT | AC47: Distribuidora Catarinense de Energia Elétrica Ltda | AD47: 158
J48: Desp. nº 2.495/2024 | K48: Termoceará | L48: PETROB PIE 1LN | M48: CELPE | N48: 16278 | O48: 1º LEN | P48: 2009-T15 | Q48: 164722.26 | R48: 45231 | S48: =Q48*VLOOKUP(CAPA!$C$15,Índices!$B$8:$F$1000,5)/VLOOKUP(EDATE('Multas Geradores'!R48,-1),Índices!$B$8:$F$1000,5) -> 210033.9964 | T48: 43 | U48: N | X48: =IFERROR(V48*VLOOKUP(CAPA!$C$15,Índices!$B$8:$F$1000,5)/VLOOKUP(EDATE('Multas Geradores'!W48,-1),Índices!$B$8:$F$1000,5),0) -> 0 | AA48: 95 | AB48: Demei | AC48: Departamento Municipal de Energia de Ijuí | AD48: 138
J49: Desp. nº 2.495/2024 | K49: Termoceará | L49: PETROB PIE 1LN | M49: CEMAR | N49: 16310 | O49: 1º LEN | P49: 2009-T15 | Q49: 58042.11 | R49: 45231 | S49: =Q49*VLOOKUP(CAPA!$C$15,Índices!$B$8:$F$1000,5)/VLOOKUP(EDATE('Multas Geradores'!R49,-1),Índices!$B$8:$F$1000,5) -> 74008.31148 | T49: 37 | U49: N | X49: =IFERROR(V49*VLOOKUP(CAPA!$C$15,Índices!$B$8:$F$1000,5)/VLOOKUP(EDATE('Multas Geradores'!W49,-1),Índices!$B$8:$F$1000,5),0) -> 0 | AA49: 51 | AB49: DME-D | AC49: DME Distribuição S.A. | AD49: 139
J50: Desp. nº 2.495/2024 | K50: Termoceará | L50: PETROB PIE 1LN | M50: CEMIG DISTRIB | N50: 16293 | O50: 1º LEN | P50: 2009-T15 | Q50: 226149.29 | R50: 45231 | S50: =Q50*VLOOKUP(CAPA!$C$15,Índices!$B$8:$F$1000,5)/VLOOKUP(EDATE('Multas Geradores'!R50,-1),Índices!$B$8:$F$1000,5) -> 288358.3504 | T50: 4950 | U50: N | X50: =IFERROR(V50*VLOOKUP(CAPA!$C$15,Índices!$B$8:$F$1000,5)/VLOOKUP(EDATE('Multas Geradores'!W50,-1),Índices!$B$8:$F$1000,5),0) -> 0 | AA50: 26 | AB50: EAC | AC50: Energisa Acre - Distribuidora de Energia S.A | AD50: 146
J51: Desp. nº 2.495/2024 | K51: Termoceará | L51: PETROB PIE 1LN | M51: CEPISA | N51: 16286 | O51: 1º LEN | P51: 2009-T15 | Q51: 43811.33 | R51: 45231 | S51: =Q51*VLOOKUP(CAPA!$C$15,Índices!$B$8:$F$1000,5)/VLOOKUP(EDATE('Multas Geradores'!R51,-1),Índices!$B$8:$F$1000,5) -> 55862.93394 | T51: 4950 | U51: N | X51: =IFERROR(V51*VLOOKUP(CAPA!$C$15,Índices!$B$8:$F$1000,5)/VLOOKUP(EDATE('Multas Geradores'!W51,-1),Índices!$B$8:$F$1000,5),0) -> 0 | AA51: 6611 | AB51: EBO | AC51: Energisa Borborema - Distribuidora de Energia S.A | AD51: 140
J52: Desp. nº 2.495/2024 | K52: Termoceará | L52: PETROB PIE 1LN | M52: COELBA | N52: 16294 | O52: 1º LEN | P52: 2009-T15 | Q52: 185312.57 | R52: 45231 | S52: =Q52*VLOOKUP(CAPA!$C$15,Índices!$B$8:$F$1000,5)/VLOOKUP(EDATE('Multas Geradores'!R52,-1),Índices!$B$8:$F$1000,5) -> 236288.2811 | T52: 47 | U52: S | V52: =-1801895.84088413*185312.57/(185312.57+1598898.52) -> -187149.3519 | W52: 45748 | X52: =IFERROR(V52*VLOOKUP(CAPA!$C$15,Índices!$B$8:$F$1000,5)/VLOOKUP(EDATE('Multas Geradores'!W52,-1),Índices!$B$8:$F$1000,5),0) -> -205237.8735 | AA52: 86 | AB52: EFLUL | AC52: Empresa Força e Luz de Urussanga Ltda | AD52: 144
J53: Desp. nº 2.495/2024 | K53: Termoceará | L53: PETROB PIE 1LN | M53: COELCE | N53: 16281 | O53: 1º LEN | P53: 2009-T15 | Q53: 112440.14 | R53: 45231 | S53: =Q53*VLOOKUP(CAPA!$C$15,Índices!$B$8:$F$1000,5)/VLOOKUP(EDATE('Multas Geradores'!R53,-1),Índices!$B$8:$F$1000,5) -> 143370.1308 | T53: 39 | U53: N | X53: =IFERROR(V53*VLOOKUP(CAPA!$C$15,Índices!$B$8:$F$1000,5)/VLOOKUP(EDATE('Multas Geradores'!W53,-1),Índices!$B$8:$F$1000,5),0) -> 0 | AA53: 398 | AB53: Eletrocar | AC53: Centrais Elétricas de Carazinho S.A. | AD53: 147
J54: Desp. nº 2.495/2024 | K54: Termoceará | L54: PETROB PIE 1LN | M54: COPEL DISTRIB | N54: 16302 | O54: 1º LEN | P54: 2009-T15 | Q54: 233592.3 | R54: 45231 | S54: =Q54*VLOOKUP(CAPA!$C$15,Índices!$B$8:$F$1000,5)/VLOOKUP(EDATE('Multas Geradores'!R54,-1),Índices!$B$8:$F$1000,5) -> 297848.7808 | T54: 2866 | U54: N | X54: =IFERROR(V54*VLOOKUP(CAPA!$C$15,Índices!$B$8:$F$1000,5)/VLOOKUP(EDATE('Multas Geradores'!W54,-1),Índices!$B$8:$F$1000,5),0) -> 0 | AA54: 6612 | AB54: ENF | AC54: Energisa Nova Friburgo - Distribuidora de Energia S.A. | AD54: 152
J55: Desp. nº 2.495/2024 | K55: Termoceará | L55: PETROB PIE 1LN | M55: COSERN | N55: 16283 | O55: 1º LEN | P55: 2009-T15 | Q55: 80645.27 | R55: 45231 | S55: =Q55*VLOOKUP(CAPA!$C$15,Índices!$B$8:$F$1000,5)/VLOOKUP(EDATE('Multas Geradores'!R55,-1),Índices!$B$8:$F$1000,5) -> 102829.1401 | T55: 40 | U55: N | X55: =IFERROR(V55*VLOOKUP(CAPA!$C$15,Índices!$B$8:$F$1000,5)/VLOOKUP(EDATE('Multas Geradores'!W55,-1),Índices!$B$8:$F$1000,5),0) -> 0 | AA55: 38 | AB55: Equatorial PI | AC55: Equatorial Piauí Distribuidora de Energia S.A. | AD55: 119
J56: Desp. nº 2.495/2024 | K56: Termoceará | L56: PETROB PIE 1LN | M56: CPFL PAULISTA | N56: 16279 | O56: 1º LEN | P56: 2009-T15 | Q56: 366163.95 | R56: 45231 | S56: =Q56*VLOOKUP(CAPA!$C$15,Índices!$B$8:$F$1000,5)/VLOOKUP(EDATE('Multas Geradores'!R56,-1),Índices!$B$8:$F$1000,5) -> 466888.1897 | T56: 63 | U56: S | V56: -351995.5516 | W56: 45748 | X56: =IFERROR(V56*VLOOKUP(CAPA!$C$15,Índices!$B$8:$F$1000,5)/VLOOKUP(EDATE('Multas Geradores'!W56,-1),Índices!$B$8:$F$1000,5),0) -> -386016.9313 | AA56: 369 | AB56: ERO | AC56: Energisa Rondônia - Distribuidora de Energia S.A. | AD56: 120
J57: Desp. nº 2.495/2024 | K57: Termoceará | L57: PETROB PIE 1LN | M57: CPFL SANTA CRUZ | N57: 16288 | O57: 1º LEN | P57: 2009-T15 | Q57: 8518.79 | R57: 45231 | S57: =Q57*VLOOKUP(CAPA!$C$15,Índices!$B$8:$F$1000,5)/VLOOKUP(EDATE('Multas Geradores'!R57,-1),Índices!$B$8:$F$1000,5) -> 10862.1355 | T57: 1000041 | U57: S | V57: =-82230.1*8518.79/(8518.79+72840.76+68.22) -> -8602.727959 | W57: 45717 | X57: =IFERROR(V57*VLOOKUP(CAPA!$C$15,Índices!$B$8:$F$1000,5)/VLOOKUP(EDATE('Multas Geradores'!W57,-1),Índices!$B$8:$F$1000,5),0) -> -9525.154828 | AA57: 83 | AB57: Forcel | AC57: Força e Luz Coronel Vivida Ltda. | AD57: 156
J58: Desp. nº 2.495/2024 | K58: Termoceará | L58: PETROB PIE 1LN | M58: ELEKTRO | N58: 16295 | O58: 1º LEN | P58: 2009-T15 | Q58: 135021.97 | R58: 45231 | S58: =Q58*VLOOKUP(CAPA!$C$15,Índices!$B$8:$F$1000,5)/VLOOKUP(EDATE('Multas Geradores'!R58,-1),Índices!$B$8:$F$1000,5) -> 172163.762 | T58: 385 | U58: S | V58: =-1153405.38*135021.97/(135021.97+935155.36) -> -145522.6739 | W58: 45870 | X58: =IFERROR(V58*VLOOKUP(CAPA!$C$15,Índices!$B$8:$F$1000,5)/VLOOKUP(EDATE('Multas Geradores'!W58,-1),Índices!$B$8:$F$1000,5),0) -> -152502.4019 | AA58: 399 | AB58: Hidropan | AC58: Hidropan Distribuição de Energia S.A. | AD58: 157
J59: Desp. nº 2.495/2024 | K59: Termoceará | L59: PETROB PIE 1LN | M59: ELETROPAULO | N59: 16298 | O59: 1º LEN | P59: 2009-T15 | Q59: 261941.35 | R59: 45231 | S59: =Q59*VLOOKUP(CAPA!$C$15,Índices!$B$8:$F$1000,5)/VLOOKUP(EDATE('Multas Geradores'!R59,-1),Índices!$B$8:$F$1000,5) -> 333996.0766 | T59: 390 | U59: N | X59: =IFERROR(V59*VLOOKUP(CAPA!$C$15,Índices!$B$8:$F$1000,5)/VLOOKUP(EDATE('Multas Geradores'!W59,-1),Índices!$B$8:$F$1000,5),0) -> 0 | AA59: 88 | AB59: João Cesa | AC59: Empresa Força e Luz João Cesa Ltda. | AD59: 143
J60: Desp. nº 2.495/2024 | K60: Termoceará | L60: PETROB PIE 1LN | M60: ENERGISA BORBOREMA | N60: 16289 | O60: 1º LEN | P60: 2009-T15 | Q60: 5193.13 | R60: 45231 | S60: =Q60*VLOOKUP(CAPA!$C$15,Índices!$B$8:$F$1000,5)/VLOOKUP(EDATE('Multas Geradores'!R60,-1),Índices!$B$8:$F$1000,5) -> 6621.654219 | T60: 6600 | U60: S | V60: =-439557.38*5193.13/(5193.13+32889.97+44113.25+279067.32) -> -6318.59444 | W60: 45809 | X60: =IFERROR(V60*VLOOKUP(CAPA!$C$15,Índices!$B$8:$F$1000,5)/VLOOKUP(EDATE('Multas Geradores'!W60,-1),Índices!$B$8:$F$1000,5),0) -> -6779.698494 | AA60: 401 | AB60: Mux Energia | AC60: Muxfeldt Marin E Cia Ltda | AD60: 161
J61: Desp. nº 2.495/2024 | K61: Termoceara | L61: PETROB PIE 1LN | M61: ENERGISA BR | N61: 16292 | O61: 1º LEN | P61: 2009-T15 | Q61: 4981.23 | R61: 45231 | S61: =Q61*VLOOKUP(CAPA!$C$15,Índices!$B$8:$F$1000,5)/VLOOKUP(EDATE('Multas Geradores'!R61,-1),Índices!$B$8:$F$1000,5) -> 6351.464848 | T61: 1000040 | U61: S | V61: =-276681.523893658*4981.23/(4981.23+65963.88+292.48+9950.3+102128.5+6243.38+68032.54) -> -5350.370542 | W61: 45839 | X61: =IFERROR(V61*VLOOKUP(CAPA!$C$15,Índices!$B$8:$F$1000,5)/VLOOKUP(EDATE('Multas Geradores'!W61,-1),Índices!$B$8:$F$1000,5),0) -> -5678.521456 | AA61: 400 | AB61: Nova Palma | AC61: Nova Palma Energia Ltda. | AD61: 164
J62: Desp. nº 2.495/2024 | K62: Termoceará | L62: PETROB PIE 1LN | M62: ENERGISA MR | N62: 16309 | O62: 1º LEN | P62: 2009-T15 | Q62: 8651.55 | R62: 45231 | S62: =Q62*VLOOKUP(CAPA!$C$15,Índices!$B$8:$F$1000,5)/VLOOKUP(EDATE('Multas Geradores'!R62,-1),Índices!$B$8:$F$1000,5) -> 11031.41507 | T62: 6585 | U62: S | V62: -9107.019526 | W62: 45809 | X62: =IFERROR(V62*VLOOKUP(CAPA!$C$15,Índices!$B$8:$F$1000,5)/VLOOKUP(EDATE('Multas Geradores'!W62,-1),Índices!$B$8:$F$1000,5),0) -> -9771.610941 | AA62: 370 | AB62: Roraima Energia | AC62: Roraima Energia S.A. | AD62: 105
J63: Desp. nº 2.495/2024 | K63: Termoceará | L63: PETROB PIE 1LN | M63: ENERGISA MS | N63: 16291 | O63: 1º LEN | P63: 2009-T15 | Q63: 37268.41 | R63: 45231 | S63: =Q63*VLOOKUP(CAPA!$C$15,Índices!$B$8:$F$1000,5)/VLOOKUP(EDATE('Multas Geradores'!R63,-1),Índices!$B$8:$F$1000,5) -> 47520.19001 | T63: 404 | U63: N | X63: =IFERROR(V63*VLOOKUP(CAPA!$C$15,Índices!$B$8:$F$1000,5)/VLOOKUP(EDATE('Multas Geradores'!W63,-1),Índices!$B$8:$F$1000,5),0) -> 0 | AA63: 381 | AB63: Santa Maria | AC63: Empresa Luz e Força Santa Maria S/A | AD63: 149
J64: Desp. nº 2.495/2024 | K64: Termoceará | L64: PETROB PIE 1LN | M64: ENERGISA MT | N64: 16307 | O64: 1º LEN | P64: 2009-T15 | Q64: 65477.12 | R64: 45231 | S64: =Q64*VLOOKUP(CAPA!$C$15,Índices!$B$8:$F$1000,5)/VLOOKUP(EDATE('Multas Geradores'!R64,-1),Índices!$B$8:$F$1000,5) -> 83488.54119 | T64: 405 | U64: N | X64: =IFERROR(V64*VLOOKUP(CAPA!$C$15,Índices!$B$8:$F$1000,5)/VLOOKUP(EDATE('Multas Geradores'!W64,-1),Índices!$B$8:$F$1000,5),0) -> 0 | AA64: 46 | AB64: Sulgipe | AC64: Companhia Sul Sergipana de Eletricidade | AD64: 163
J65: Desp. nº 2.495/2024 | K65: Termoceará | L65: PETROB PIE 1LN | M65: ENERGISA PB | N65: 16300 | O65: 1º LEN | P65: 2009-T15 | Q65: 32889.97 | R65: 45231 | S65: =Q65*VLOOKUP(CAPA!$C$15,Índices!$B$8:$F$1000,5)/VLOOKUP(EDATE('Multas Geradores'!R65,-1),Índices!$B$8:$F$1000,5) -> 41937.3304 | T65: 6600 | U65: S | V65: =-439557.38*32889.97/(5193.13+32889.97+44113.25+279067.32) -> -40017.94324 | W65: 45809 | X65: =IFERROR(V65*VLOOKUP(CAPA!$C$15,Índices!$B$8:$F$1000,5)/VLOOKUP(EDATE('Multas Geradores'!W65,-1),Índices!$B$8:$F$1000,5),0) -> -42938.28194
J66: Desp. nº 2.495/2024 | K66: Termoceará | L66: PETROB PIE 1LN | M66: ENERGISA SE | N66: 16303 | O66: 1º LEN | P66: 2009-T15 | Q66: 29169.57 | R66: 45231 | S66: =Q66*VLOOKUP(CAPA!$C$15,Índices!$B$8:$F$1000,5)/VLOOKUP(EDATE('Multas Geradores'!R66,-1),Índices!$B$8:$F$1000,5) -> 37193.52419 | T66: 6587 | U66: N | X66: =IFERROR(V66*VLOOKUP(CAPA!$C$15,Índices!$B$8:$F$1000,5)/VLOOKUP(EDATE('Multas Geradores'!W66,-1),Índices!$B$8:$F$1000,5),0) -> 0
J67: Desp. nº 2.495/2024 | K67: Termoceará | L67: PETROB PIE 1LN | M67: ENERGISA SS | N67: 16290 | O67: 1º LEN | P67: 2009-T15 | Q67: 9950.3 | R67: 45231 | S67: =Q67*VLOOKUP(CAPA!$C$15,Índices!$B$8:$F$1000,5)/VLOOKUP(EDATE('Multas Geradores'!R67,-1),Índices!$B$8:$F$1000,5) -> 12687.42473 | T67: 1000040 | U67: S | V67: =-276681.523893658*9950.3/(4981.23+65963.88+292.48+9950.3+102128.5+6243.38+68032.54) -> -10687.67995 | W67: 45839 | X67: =IFERROR(V67*VLOOKUP(CAPA!$C$15,Índices!$B$8:$F$1000,5)/VLOOKUP(EDATE('Multas Geradores'!W67,-1),Índices!$B$8:$F$1000,5),0) -> -11343.18071
J68: Desp. nº 2.495/2024 | K68: Termoceará | L68: PETROB PIE 1LN | M68: ENERGISA TO | N68: 16306 | O68: 1º LEN | P68: 2009-T15 | Q68: 13247.46 | R68: 45231 | S68: =Q68*VLOOKUP(CAPA!$C$15,Índices!$B$8:$F$1000,5)/VLOOKUP(EDATE('Multas Geradores'!R68,-1),Índices!$B$8:$F$1000,5) -> 16891.56624 | T68: 32 | U68: S | V68: =-152142.474781536*13247.46/(13247.46+128398.18) -> -14229.18029 | W68: 45839 | X68: =IFERROR(V68*VLOOKUP(CAPA!$C$15,Índices!$B$8:$F$1000,5)/VLOOKUP(EDATE('Multas Geradores'!W68,-1),Índices!$B$8:$F$1000,5),0) -> -15101.88966
J69: Desp. nº 2.495/2024 | K69: Termoceará | L69: PETROB PIE 1LN | M69: ENERGISA VP | N69: 16308 | O69: 1º LEN | P69: 2009-T15 | Q69: 6243.38 | R69: 45231 | S69: =Q69*VLOOKUP(CAPA!$C$15,Índices!$B$8:$F$1000,5)/VLOOKUP(EDATE('Multas Geradores'!R69,-1),Índices!$B$8:$F$1000,5) -> 7960.806589 | T69: 1000040 | U69: S | V69: =-276681.523893658*6243.38/(4981.23+65963.88+292.48+9950.3+102128.5+6243.38+68032.54) -> -6706.053813 | W69: 45839 | X69: =IFERROR(V69*VLOOKUP(CAPA!$C$15,Índices!$B$8:$F$1000,5)/VLOOKUP(EDATE('Multas Geradores'!W69,-1),Índices!$B$8:$F$1000,5),0) -> -7117.351997
J70: Desp. nº 2.495/2024 | K70: Termoceará | L70: PETROB PIE 1LN | M70: ESCELSA | N70: 16282 | O70: 1º LEN | P70: 2009-T15 | Q70: 74919.9 | R70: 45231 | S70: =Q70*VLOOKUP(CAPA!$C$15,Índices!$B$8:$F$1000,5)/VLOOKUP(EDATE('Multas Geradores'!R70,-1),Índices!$B$8:$F$1000,5) -> 95528.83751 | T70: 380 | U70: S | V70: =-1385727.16615225*74919.9/(74919.9+1188922.8) -> -82145.1441 | W70: 01/082025 | X70: =IFERROR(V70*VLOOKUP(CAPA!$C$15,Índices!$B$8:$F$1000,5)/VLOOKUP(EDATE('Multas Geradores'!W70,-1),Índices!$B$8:$F$1000,5),0) -> 0
J71: Desp. nº 2.495/2024 | K71: Termoceará | L71: PETROB PIE 1LN | M71: LIGHT | N71: 16284 | O71: 1º LEN | P71: 2009-T15 | Q71: 173783.63 | R71: 45231 | S71: =Q71*VLOOKUP(CAPA!$C$15,Índices!$B$8:$F$1000,5)/VLOOKUP(EDATE('Multas Geradores'!R71,-1),Índices!$B$8:$F$1000,5) -> 221587.9646 | T71: =VLOOKUP(M71,$Z$7:$AD$64,2) -> 382 | U71: N | X71: =IFERROR(V71*VLOOKUP(CAPA!$C$15,Índices!$B$8:$F$1000,5)/VLOOKUP(EDATE('Multas Geradores'!W71,-1),Índices!$B$8:$F$1000,5),0) -> 0
J72: Desp. nº 2.495/2024 | K72: Termoceará | L72: PETROB PIE 1LN | M72: RGE SUL | N72: 16287 | O72: 1º LEN | P72: 2009-T15 | Q72: 90322.36 | R72: 45231 | S72: =Q72*VLOOKUP(CAPA!$C$15,Índices!$B$8:$F$1000,5)/VLOOKUP(EDATE('Multas Geradores'!R72,-1),Índices!$B$8:$F$1000,5) -> 115168.2003 | T72: 1000042 | U72: S | V72: =-928794.33*90322.36/(90322.36+797751.65+3208.42) -> -94123.80747 | W72: 45809 | X72: =IFERROR(V72*VLOOKUP(CAPA!$C$15,Índices!$B$8:$F$1000,5)/VLOOKUP(EDATE('Multas Geradores'!W72,-1),Índices!$B$8:$F$1000,5),0) -> -100992.5612
J73: Desp. nº 2.495/2024 | K73: Termoceará | L73: PETROB PIE 1LN | M73: AMPLA | N73: 16330 | O73: 1º LEN | P73: 2010-T15 | Q73: 882724.17 | R73: 45231 | S73: =Q73*VLOOKUP(CAPA!$C$15,Índices!$B$8:$F$1000,5)/VLOOKUP(EDATE('Multas Geradores'!R73,-1),Índices!$B$8:$F$1000,5) -> 1125543.598 | T73: 383 | U73: N | X73: =IFERROR(V73*VLOOKUP(CAPA!$C$15,Índices!$B$8:$F$1000,5)/VLOOKUP(EDATE('Multas Geradores'!W73,-1),Índices!$B$8:$F$1000,5),0) -> 0
J74: Desp. nº 2.495/2024 | K74: Termoceará | L74: PETROB PIE 1LN | M74: BANDEIRANTE | N74: 16332 | O74: 1º LEN | P74: 2010-T15 | Q74: 969538.33 | R74: 45231 | S74: =Q74*VLOOKUP(CAPA!$C$15,Índices!$B$8:$F$1000,5)/VLOOKUP(EDATE('Multas Geradores'!R74,-1),Índices!$B$8:$F$1000,5) -> 1236238.564 | T74: 391 | U74: N | X74: =IFERROR(V74*VLOOKUP(CAPA!$C$15,Índices!$B$8:$F$1000,5)/VLOOKUP(EDATE('Multas Geradores'!W74,-1),Índices!$B$8:$F$1000,5),0) -> 0
J75: Desp. nº 2.495/2024 | K75: Termoceará | L75: PETROB PIE 1LN | M75: CEAL | N75: 16328 | O75: 1º LEN | P75: 2010-T15 | Q75: 114293.77 | R75: 45231 | S75: =Q75*VLOOKUP(CAPA!$C$15,Índices!$B$8:$F$1000,5)/VLOOKUP(EDATE('Multas Geradores'!R75,-1),Índices!$B$8:$F$1000,5) -> 145733.6567 | T75: 44 | U75: N | X75: =IFERROR(V75*VLOOKUP(CAPA!$C$15,Índices!$B$8:$F$1000,5)/VLOOKUP(EDATE('Multas Geradores'!W75,-1),Índices!$B$8:$F$1000,5),0) -> 0
J76: Desp. nº 2.495/2024 | K76: Termoceará | L76: PETROB PIE 1LN | M76: CEEE DISTRIB | N76: 16336 | O76: 1º LEN | P76: 2010-T15 | Q76: 817139.55 | R76: 45231 | S76: =Q76*VLOOKUP(CAPA!$C$15,Índices!$B$8:$F$1000,5)/VLOOKUP(EDATE('Multas Geradores'!R76,-1),Índices!$B$8:$F$1000,5) -> 1041917.986 | T76: 5707 | U76: N | X76: =IFERROR(V76*VLOOKUP(CAPA!$C$15,Índices!$B$8:$F$1000,5)/VLOOKUP(EDATE('Multas Geradores'!W76,-1),Índices!$B$8:$F$1000,5),0) -> 0
J77: Desp. nº 2.495/2024 | K77: Termoceará | L77: PETROB PIE 1LN | M77: CELESC DIST | N77: 16312 | O77: 1º LEN | P77: 2010-T15 | Q77: 1717163.29 | R77: 45231 | S77: =Q77*VLOOKUP(CAPA!$C$15,Índices!$B$8:$F$1000,5)/VLOOKUP(EDATE('Multas Geradores'!R77,-1),Índices!$B$8:$F$1000,5) -> 2189519.913 | T77: 5697 | U77: N | X77: =IFERROR(V77*VLOOKUP(CAPA!$C$15,Índices!$B$8:$F$1000,5)/VLOOKUP(EDATE('Multas Geradores'!W77,-1),Índices!$B$8:$F$1000,5),0) -> 0
J78: Desp. nº 2.495/2024 | K78: Termoceará | L78: PETROB PIE 1LN | M78: CELG | N78: 16335 | O78: 1º LEN | P78: 2010-T15 | Q78: 885275.08 | R78: 45231 | S78: =Q78*VLOOKUP(CAPA!$C$15,Índices!$B$8:$F$1000,5)/VLOOKUP(EDATE('Multas Geradores'!R78,-1),Índices!$B$8:$F$1000,5) -> 1128796.211 | T78: 6072 | U78: N | X78: =IFERROR(V78*VLOOKUP(CAPA!$C$15,Índices!$B$8:$F$1000,5)/VLOOKUP(EDATE('Multas Geradores'!W78,-1),Índices!$B$8:$F$1000,5),0) -> 0
J79: Desp. nº 2.495/2024 | K79: Termoceará | L79: PETROB PIE 1LN | M79: CELPA | N79: 16317 | O79: 1º LEN | P79: 2010-T15 | Q79: 941775.92 | R79: 45231 | S79: =Q79*VLOOKUP(CAPA!$C$15,Índices!$B$8:$F$1000,5)/VLOOKUP(EDATE('Multas Geradores'!R79,-1),Índices!$B$8:$F$1000,5) -> 1200839.281 | T79: 371 | U79: N | X79: =IFERROR(V79*VLOOKUP(CAPA!$C$15,Índices!$B$8:$F$1000,5)/VLOOKUP(EDATE('Multas Geradores'!W79,-1),Índices!$B$8:$F$1000,5),0) -> 0
J80: Desp. nº 2.495/2024 | K80: Termoceará | L80: PETROB PIE 1LN | M80: CELPE | N80: 16311 | O80: 1º LEN | P80: 2010-T15 | Q80: 1119228.98 | R80: 45231 | S80: =Q80*VLOOKUP(CAPA!$C$15,Índices!$B$8:$F$1000,5)/VLOOKUP(EDATE('Multas Geradores'!R80,-1),Índices!$B$8:$F$1000,5) -> 1427106.061 | T80: 43 | U80: N | X80: =IFERROR(V80*VLOOKUP(CAPA!$C$15,Índices!$B$8:$F$1000,5)/VLOOKUP(EDATE('Multas Geradores'!W80,-1),Índices!$B$8:$F$1000,5),0) -> 0
J81: Desp. nº 2.495/2024 | K81: Termoceará | L81: PETROB PIE 1LN | M81: CEMAR | N81: 16341 | O81: 1º LEN | P81: 2010-T15 | Q81: 592386.96 | R81: 45231 | S81: =Q81*VLOOKUP(CAPA!$C$15,Índices!$B$8:$F$1000,5)/VLOOKUP(EDATE('Multas Geradores'!R81,-1),Índices!$B$8:$F$1000,5) -> 755340.539 | T81: 37 | U81: N | X81: =IFERROR(V81*VLOOKUP(CAPA!$C$15,Índices!$B$8:$F$1000,5)/VLOOKUP(EDATE('Multas Geradores'!W81,-1),Índices!$B$8:$F$1000,5),0) -> 0
J82: Desp. nº 2.495/2024 | K82: Termoceará | L82: PETROB PIE 1LN | M82: CEMIG DISTRIB | N82: 16325 | O82: 1º LEN | P82: 2010-T15 | Q82: 2529782.66 | R82: 45231 | S82: =Q82*VLOOKUP(CAPA!$C$15,Índices!$B$8:$F$1000,5)/VLOOKUP(EDATE('Multas Geradores'!R82,-1),Índices!$B$8:$F$1000,5) -> 3225674.309 | T82: 4950 | U82: N | X82: =IFERROR(V82*VLOOKUP(CAPA!$C$15,Índices!$B$8:$F$1000,5)/VLOOKUP(EDATE('Multas Geradores'!W82,-1),Índices!$B$8:$F$1000,5),0) -> 0
J83: Desp. nº 2.495/2024 | K83: Termoceará | L83: PETROB PIE 1LN | M83: CEPISA | N83: 16318 | O83: 1º LEN | P83: 2010-T15 | Q83: 336873.28 | R83: 45231 | S83: =Q83*VLOOKUP(CAPA!$C$15,Índices!$B$8:$F$1000,5)/VLOOKUP(EDATE('Multas Geradores'!R83,-1),Índices!$B$8:$F$1000,5) -> 429540.2534 | T83: 4950 | U83: N | X83: =IFERROR(V83*VLOOKUP(CAPA!$C$15,Índices!$B$8:$F$1000,5)/VLOOKUP(EDATE('Multas Geradores'!W83,-1),Índices!$B$8:$F$1000,5),0) -> 0
J84: Desp. nº 2.495/2024 | K84: Termoceará | L84: PETROB PIE 1LN | M84: COELBA | N84: 16326 | O84: 1º LEN | P84: 2010-T15 | Q84: 1598898.52 | R84: 45231 | S84: =Q84*VLOOKUP(CAPA!$C$15,Índices!$B$8:$F$1000,5)/VLOOKUP(EDATE('Multas Geradores'!R84,-1),Índices!$B$8:$F$1000,5) -> 2038722.915 | T84: 47 | U84: S | V84: =-1801895.84088413*1598898.52/(185312.57+1598898.52) -> -1614746.489 | W84: 45748 | X84: =IFERROR(V84*VLOOKUP(CAPA!$C$15,Índices!$B$8:$F$1000,5)/VLOOKUP(EDATE('Multas Geradores'!W84,-1),Índices!$B$8:$F$1000,5),0) -> -1770816.369
J85: Desp. nº 2.495/2024 | K85: Termoceará | L85: PETROB PIE 1LN | M85: COELCE | N85: 16313 | O85: 1º LEN | P85: 2010-T15 | Q85: 978924.04 | R85: 45231 | S85: =Q85*VLOOKUP(CAPA!$C$15,Índices!$B$8:$F$1000,5)/VLOOKUP(EDATE('Multas Geradores'!R85,-1),Índices!$B$8:$F$1000,5) -> 1248206.091 | T85: 39 | U85: N | X85: =IFERROR(V85*VLOOKUP(CAPA!$C$15,Índices!$B$8:$F$1000,5)/VLOOKUP(EDATE('Multas Geradores'!W85,-1),Índices!$B$8:$F$1000,5),0) -> 0
J86: Desp. nº 2.495/2024 | K86: Termoceará | L86: PETROB PIE 1LN | M86: COPEL DISTRIB | N86: 16333 | O86: 1º LEN | P86: 2010-T15 | Q86: 1852455.66 | R86: 45231 | S86: =Q86*VLOOKUP(CAPA!$C$15,Índices!$B$8:$F$1000,5)/VLOOKUP(EDATE('Multas Geradores'!R86,-1),Índices!$B$8:$F$1000,5) -> 2362028.456 | T86: 2866 | U86: N | X86: =IFERROR(V86*VLOOKUP(CAPA!$C$15,Índices!$B$8:$F$1000,5)/VLOOKUP(EDATE('Multas Geradores'!W86,-1),Índices!$B$8:$F$1000,5),0) -> 0
J87: Desp. nº 2.495/2024 | K87: Termoceará | L87: PETROB PIE 1LN | M87: COSERN | N87: 16315 | O87: 1º LEN | P87: 2010-T15 | Q87: 639559.39 | R87: 45231 | S87: =Q87*VLOOKUP(CAPA!$C$15,Índices!$B$8:$F$1000,5)/VLOOKUP(EDATE('Multas Geradores'!R87,-1),Índices!$B$8:$F$1000,5) -> 815489.143 | T87: 40 | U87: N | X87: =IFERROR(V87*VLOOKUP(CAPA!$C$15,Índices!$B$8:$F$1000,5)/VLOOKUP(EDATE('Multas Geradores'!W87,-1),Índices!$B$8:$F$1000,5),0) -> 0
J88: Desp. nº 2.495/2024 | K88: Termoceará | L88: PETROB PIE 1LN | M88: CPFL LESTE PAULISTA | N88: 245806 | O88: 1º LEN | P88: 2010-T15 | Q88: 68.22 | R88: 45231 | S88: =Q88*VLOOKUP(CAPA!$C$15,Índices!$B$8:$F$1000,5)/VLOOKUP(EDATE('Multas Geradores'!R88,-1),Índices!$B$8:$F$1000,5) -> 86.98593158 | T88: 1000041 | U88: S | V88: =-82230.1*68.22/(8518.79+72840.76+68.22) -> -68.89219024 | W88: 45717 | X88: =IFERROR(V88*VLOOKUP(CAPA!$C$15,Índices!$B$8:$F$1000,5)/VLOOKUP(EDATE('Multas Geradores'!W88,-1),Índices!$B$8:$F$1000,5),0) -> -76.27915025
J89: Desp. nº 2.495/2024 | K89: Termoceará | L89: PETROB PIE 1LN | M89: CPFL PAULISTA | N89: 245945 | O89: 1º LEN | P89: 2010-T15 | Q89: 182.83 | R89: 45231 | S89: =Q89*VLOOKUP(CAPA!$C$15,Índices!$B$8:$F$1000,5)/VLOOKUP(EDATE('Multas Geradores'!R89,-1),Índices!$B$8:$F$1000,5) -> 233.1228067 | T89: 63 | U89: N | V89: 0 | W89: 45748 | X89: =IFERROR(V89*VLOOKUP(CAPA!$C$15,Índices!$B$8:$F$1000,5)/VLOOKUP(EDATE('Multas Geradores'!W89,-1),Índices!$B$8:$F$1000,5),0) -> 0
J90: Desp. nº 2.495/2024 | K90: Termoceará | L90: PETROB PIE 1LN | M90: CPFL PIRATINGA | N90: 246009 | O90: 1º LEN | P90: 2010-T15 | Q90: 1117.55 | R90: 45231 | S90: =Q90*VLOOKUP(CAPA!$C$15,Índices!$B$8:$F$1000,5)/VLOOKUP(EDATE('Multas Geradores'!R90,-1),Índices!$B$8:$F$1000,5) -> 1424.965228 | T90: 2937 | U90: N | X90: =IFERROR(V90*VLOOKUP(CAPA!$C$15,Índices!$B$8:$F$1000,5)/VLOOKUP(EDATE('Multas Geradores'!W90,-1),Índices!$B$8:$F$1000,5),0) -> 0
J91: Desp. nº 2.495/2024 | K91: Termoceará | L91: PETROB PIE 1LN | M91: CPFL SANTA CRUZ | N91: 16320 | O91: 1º LEN | P91: 2010-T15 | Q91: 72840.76 | R91: 45231 | S91: =Q91*VLOOKUP(CAPA!$C$15,Índices!$B$8:$F$1000,5)/VLOOKUP(EDATE('Multas Geradores'!R91,-1),Índices!$B$8:$F$1000,5) -> 92877.76847 | T91: 1000041 | U91: S | V91: =-82230.1*72840.76/(8518.79+72840.76+68.22) -> -73558.47985 | W91: 45717 | X91: =IFERROR(V91*VLOOKUP(CAPA!$C$15,Índices!$B$8:$F$1000,5)/VLOOKUP(EDATE('Multas Geradores'!W91,-1),Índices!$B$8:$F$1000,5),0) -> -81445.78242
J92: Desp. nº 2.495/2024 | K92: Termoceará | L92: PETROB PIE 1LN | M92: ELEKTRO | N92: 16327 | O92: 1º LEN | P92: 2010-T15 | Q92: 935155.36 | R92: 45231 | S92: =Q92*VLOOKUP(CAPA!$C$15,Índices!$B$8:$F$1000,5)/VLOOKUP(EDATE('Multas Geradores'!R92,-1),Índices!$B$8:$F$1000,5) -> 1192397.54 | T92: 385 | U92: S | V92: =-1153405.38*935155.36/(135021.97+935155.36) -> -1007882.706 | W92: 45870 | X92: =IFERROR(V92*VLOOKUP(CAPA!$C$15,Índices!$B$8:$F$1000,5)/VLOOKUP(EDATE('Multas Geradores'!W92,-1),Índices!$B$8:$F$1000,5),0) -> -1056223.95
J93: Desp. nº 2.495/2024 | K93: Termoceará | L93: PETROB PIE 1LN | M93: ELETROPAULO | N93: 16329 | O93: 1º LEN | P93: 2010-T15 | Q93: 2489755.81 | R93: 45231 | S93: =Q93*VLOOKUP(CAPA!$C$15,Índices!$B$8:$F$1000,5)/VLOOKUP(EDATE('Multas Geradores'!R93,-1),Índices!$B$8:$F$1000,5) -> 3174636.888 | T93: 390 | U93: N | X93: =IFERROR(V93*VLOOKUP(CAPA!$C$15,Índices!$B$8:$F$1000,5)/VLOOKUP(EDATE('Multas Geradores'!W93,-1),Índices!$B$8:$F$1000,5),0) -> 0
J94: Desp. nº 2.495/2024 | K94: Termoceará | L94: PETROB PIE 1LN | M94: ENERGISA BORBOREMA | N94: 16321 | O94: 1º LEN | P94: 2010-T15 | Q94: 44113.25 | R94: 45231 | S94: =Q94*VLOOKUP(CAPA!$C$15,Índices!$B$8:$F$1000,5)/VLOOKUP(EDATE('Multas Geradores'!R94,-1),Índices!$B$8:$F$1000,5) -> 56247.90598 | T94: 6600 | U94: S | V94: =-439557.38*44113.25/(5193.13+32889.97+44113.25+279067.32) -> -53673.5526 | W94: 45809 | X94: =IFERROR(V94*VLOOKUP(CAPA!$C$15,Índices!$B$8:$F$1000,5)/VLOOKUP(EDATE('Multas Geradores'!W94,-1),Índices!$B$8:$F$1000,5),0) -> -57590.41938
J95: Desp. nº 2.495/2024 | K95: 1 | L95: PETROB PIE 1LN | M95: ENERGISA BR | N95: 16324 | O95: 1º LEN | P95: 2010-T15 | Q95: 65963.88 | R95: 45231 | S95: =Q95*VLOOKUP(CAPA!$C$15,Índices!$B$8:$F$1000,5)/VLOOKUP(EDATE('Multas Geradores'!R95,-1),Índices!$B$8:$F$1000,5) -> 84109.19895 | T95: 1000040 | U95: S | V95: =-276681.523893658*65963.88/(4981.23+65963.88+292.48+9950.3+102128.5+6243.38+68032.54) -> -70852.21931 | W95: 45839 | X95: =IFERROR(V95*VLOOKUP(CAPA!$C$15,Índices!$B$8:$F$1000,5)/VLOOKUP(EDATE('Multas Geradores'!W95,-1),Índices!$B$8:$F$1000,5),0) -> -75197.75395
J96: Desp. nº 2.495/2024 | K96: Termoceará | L96: PETROB PIE 1LN | M96: ENERGISA MS | N96: 16323 | O96: 1º LEN | P96: 2010-T15 | Q96: 296566.55 | R96: 45231 | S96: =Q96*VLOOKUP(CAPA!$C$15,Índices!$B$8:$F$1000,5)/VLOOKUP(EDATE('Multas Geradores'!R96,-1),Índices!$B$8:$F$1000,5) -> 378145.9634 | T96: 404 | U96: N | X96: =IFERROR(V96*VLOOKUP(CAPA!$C$15,Índices!$B$8:$F$1000,5)/VLOOKUP(EDATE('Multas Geradores'!W96,-1),Índices!$B$8:$F$1000,5),0) -> 0
J97: Desp. nº 2.495/2024 | K97: Termoceará | L97: PETROB PIE 1LN | M97: ENERGISA MT | N97: 16338 | O97: 1º LEN | P97: 2010-T15 | Q97: 788678.48 | R97: 45231 | S97: =Q97*VLOOKUP(CAPA!$C$15,Índices!$B$8:$F$1000,5)/VLOOKUP(EDATE('Multas Geradores'!R97,-1),Índices!$B$8:$F$1000,5) -> 1005627.855 | T97: 405 | U97: N | X97: =IFERROR(V97*VLOOKUP(CAPA!$C$15,Índices!$B$8:$F$1000,5)/VLOOKUP(EDATE('Multas Geradores'!W97,-1),Índices!$B$8:$F$1000,5),0) -> 0
J98: Desp. nº 2.495/2024 | K98: Termoceará | L98: PETROB PIE 1LN | M98: ENERGISA NA | N98: 245908 | O98: 1º LEN | P98: 2010-T15 | Q98: 292.48 | R98: 45231 | S98: =Q98*VLOOKUP(CAPA!$C$15,Índices!$B$8:$F$1000,5)/VLOOKUP(EDATE('Multas Geradores'!R98,-1),Índices!$B$8:$F$1000,5) -> 372.9352868 | T98: 1000040 | U98: S | V98: =-276681.523893658*292.48/(4981.23+65963.88+292.48+9950.3+102128.5+6243.38+68032.54) -> -314.1546116 | W98: 45839 | X98: =IFERROR(V98*VLOOKUP(CAPA!$C$15,Índices!$B$8:$F$1000,5)/VLOOKUP(EDATE('Multas Geradores'!W98,-1),Índices!$B$8:$F$1000,5),0) -> -333.422459
J99: Desp. nº 2.495/2024 | K99: Termoceará | L99: PETROB PIE 1LN | M99: ENERGISA PB | N99: 16331 | O99: 1º LEN | P99: 2010-T15 | Q99: 279067.32 | R99: 45231 | S99: =Q99*VLOOKUP(CAPA!$C$15,Índices!$B$8:$F$1000,5)/VLOOKUP(EDATE('Multas Geradores'!R99,-1),Índices!$B$8:$F$1000,5) -> 355833.0519 | T99: 6600 | U99: S | V99: =-439557.38*279067.32/(5193.13+32889.97+44113.25+279067.32) -> -339547.2897 | W99: 45809 | X99: =IFERROR(V99*VLOOKUP(CAPA!$C$15,Índices!$B$8:$F$1000,5)/VLOOKUP(EDATE('Multas Geradores'!W99,-1),Índices!$B$8:$F$1000,5),0) -> -364326.0017
J100: Desp. nº 2.495/2024 | K100: Termoceará | L100: PETROB PIE 1LN | M100: ENERGISA SE | N100: 16334 | O100: 1º LEN | P100: 2010-T15 | Q100: 174425.31 | R100: 45231 | S100: =Q100*VLOOKUP(CAPA!$C$15,Índices!$B$8:$F$1000,5)/VLOOKUP(EDATE('Multas Geradores'!R100,-1),Índices!$B$8:$F$1000,5) -> 222406.1577 | T100: 6587 | U100: N | X100: =IFERROR(V100*VLOOKUP(CAPA!$C$15,Índices!$B$8:$F$1000,5)/VLOOKUP(EDATE('Multas Geradores'!W100,-1),Índices!$B$8:$F$1000,5),0) -> 0
J101: Desp. nº 2.495/2024 | K101: Termoceará | L101: PETROB PIE 1LN | M101: ENERGISA SS | N101: 16322 | O101: 1º LEN | P101: 2010-T15 | Q101: 102128.5 | R101: 45231 | S101: =Q101*VLOOKUP(CAPA!$C$15,Índices!$B$8:$F$1000,5)/VLOOKUP(EDATE('Multas Geradores'!R101,-1),Índices!$B$8:$F$1000,5) -> 130221.9688 | T101: 1000040 | U101: S | V101: =-276681.523893658*102128.5/(4981.23+65963.88+292.48+9950.3+102128.5+6243.38+68032.54) -> -109696.8656 | W101: 45839 | X101: =IFERROR(V101*VLOOKUP(CAPA!$C$15,Índices!$B$8:$F$1000,5)/VLOOKUP(EDATE('Multas Geradores'!W101,-1),Índices!$B$8:$F$1000,5),0) -> -116424.8345
J102: Desp. nº 2.495/2024 | K102: Termoceará | L102: PETROB PIE 1LN | M102: ENERGISA TO | N102: 16337 | O102: 1º LEN | P102: 2010-T15 | Q102: 128398.18 | R102: 45231 | S102: =Q102*VLOOKUP(CAPA!$C$15,Índices!$B$8:$F$1000,5)/VLOOKUP(EDATE('Multas Geradores'!R102,-1),Índices!$B$8:$F$1000,5) -> 163717.9024 | T102: 32 | U102: S | V102: =-152142.474781536*128398.18/(13247.46+128398.18) -> -137913.2945 | W102: 45839 | X102: =IFERROR(V102*VLOOKUP(CAPA!$C$15,Índices!$B$8:$F$1000,5)/VLOOKUP(EDATE('Multas Geradores'!W102,-1),Índices!$B$8:$F$1000,5),0) -> -146371.8439
J103: Desp. nº 2.495/2024 | K103: Termoceará | L103: PETROB PIE 1LN | M103: ENERGISA VP | N103: 16339 | O103: 1º LEN | P103: 2010-T15 | Q103: 68032.54 | R103: 45231 | S103: =Q103*VLOOKUP(CAPA!$C$15,Índices!$B$8:$F$1000,5)/VLOOKUP(EDATE('Multas Geradores'!R103,-1),Índices!$B$8:$F$1000,5) -> 86746.90515 | T103: 1000040 | U103: S | V103: =-276681.523893658*68032.54/(4981.23+65963.88+292.48+9950.3+102128.5+6243.38+68032.54) -> -73074.18005 | W103: 45839 | X103: =IFERROR(V103*VLOOKUP(CAPA!$C$15,Índices!$B$8:$F$1000,5)/VLOOKUP(EDATE('Multas Geradores'!W103,-1),Índices!$B$8:$F$1000,5),0) -> -77555.99282
J104: Desp. nº 2.495/2024 | K104: Termoceará | L104: PETROB PIE 1LN | M104: ESCELSA | N104: 16314 | O104: 1º LEN | P104: 2010-T15 | Q104: 1188927.8 | R104: 45231 | S104: =Q104*VLOOKUP(CAPA!$C$15,Índices!$B$8:$F$1000,5)/VLOOKUP(EDATE('Multas Geradores'!R104,-1),Índices!$B$8:$F$1000,5) -> 1515977.606 | T104: 380 | U104: S | V104: =-1385727.16615225*1188922.8/(74919.9+1188922.8) -> -1303582.022 | W104: 45870 | X104: =IFERROR(V104*VLOOKUP(CAPA!$C$15,Índices!$B$8:$F$1000,5)/VLOOKUP(EDATE('Multas Geradores'!W104,-1),Índices!$B$8:$F$1000,5),0) -> -1366105.941
J105: Desp. nº 2.495/2024 | K105: Termoceará | L105: PETROB PIE 1LN | M105: LIGHT | N105: 16316 | O105: 1º LEN | P105: 2010-T15 | Q105: 966965.63 | R105: 45231 | S105: =Q105*VLOOKUP(CAPA!$C$15,Índices!$B$8:$F$1000,5)/VLOOKUP(EDATE('Multas Geradores'!R105,-1),Índices!$B$8:$F$1000,5) -> 1232958.167 | T105: 382 | U105: N | X105: =IFERROR(V105*VLOOKUP(CAPA!$C$15,Índices!$B$8:$F$1000,5)/VLOOKUP(EDATE('Multas Geradores'!W105,-1),Índices!$B$8:$F$1000,5),0) -> 0
J106: Desp. nº 2.495/2024 | K106: Termoceará | L106: PETROB PIE 1LN | M106: RGE DIST | N106: 245979 | O106: 1º LEN | P106: 2010-T15 | Q106: 3208.42 | R106: 45231 | S106: =Q106*VLOOKUP(CAPA!$C$15,Índices!$B$8:$F$1000,5)/VLOOKUP(EDATE('Multas Geradores'!R106,-1),Índices!$B$8:$F$1000,5) -> 4090.99095 | T106: 382 | U106: S | V106: =-928794.33*3208.42/(90322.36+797751.65+3208.42) -> -3343.454559 | W106: 45809 | X106: =IFERROR(V106*VLOOKUP(CAPA!$C$15,Índices!$B$8:$F$1000,5)/VLOOKUP(EDATE('Multas Geradores'!W106,-1),Índices!$B$8:$F$1000,5),0) -> -3587.445603
J107: Desp. nº 2.495/2024 | K107: Termoceará | L107: PETROB PIE 1LN | M107: RGE SUL | N107: 16319 | O107: 1º LEN | P107: 2010-T15 | Q107: 797751.65 | R107: 45231 | S107: =Q107*VLOOKUP(CAPA!$C$15,Índices!$B$8:$F$1000,5)/VLOOKUP(EDATE('Multas Geradores'!R107,-1),Índices!$B$8:$F$1000,5) -> 1017196.87 | T107: 1000042 | U107: S | V107: =-928794.33*797751.65/(90322.36+797751.65+3208.42) -> -831327.068 | W107: 45809 | X107: =IFERROR(V107*VLOOKUP(CAPA!$C$15,Índices!$B$8:$F$1000,5)/VLOOKUP(EDATE('Multas Geradores'!W107,-1),Índices!$B$8:$F$1000,5),0) -> -891993.7692

Sheet BD_Uderor
K1: Número de lançamentos por item e por competência
A2: Dados SAMP Opção:Cativo Classe:Industrial | K2: Descrição | L2: =DATE(YEAR(LnkTxtDRPData),MONTH(LnkTxtDRPData),1) -> 2025-12-01 | M2: =EDATE(L2,-1) -> 2025-11-01 | N2: =EDATE(M2,-1) -> 2025-10-01 | O2: 2025-09-01 | P2: 2025-08-01 | Q2: 2025-07-01 | R2: 2025-06-01 | S2: 2025-05-01 | T2: 2025-04-01 | U2: 2025-03-01 | V2: 2025-02-01 | W2: 2025-01-01 | X2: 2024-12-01 | Y2: 2024-11-01 | Z2: 2024-10-01 | AA2: 2024-09-01
A3: Competencia | B3: COFINS (R$) | C3: ICMS (R$) | D3: PIS/PASEP (R$) | E3: Receita Bandeiras (R$) | F3: Receita Demanda (R$) | G3: Receita Energia (R$) | H3: PIS_Cofins_% | I3: ICMS_% | K3: =Entrada!P8 -> Serviços Cobráveis | L3: =IF(COUNTIFS($C$30:$C$200000,$K3,$H$30:$H$200000,L$2)=0,"",COUNTIFS($C$30:$C$200000,$K3,$H$30:$H$200000,L$2)) ->  | M3: =IF(COUNTIFS($C$30:$C$200000,$K3,$H$30:$H$200000,M$2)=0,"",COUNTIFS($C$30:$C$200000,$K3,$H$30:$H$200000,M$2)) -> 1 | N3: 1 | O3: 1 | P3: 1 | Q3: 1 | R3: 1 | S3: 1 | T3: 1 | U3: 1 | V3: 1 | W3: 1 | X3: 1 | Y3: 1 | Z3: 1 | AA3: 1
A4: 45536 | B4: 522411.17 | C4: 2025853.97 | D4: 113406.99 | E4: 287265.44 | F4: 2492043.66 | G4: 6687178.98 | H4: 0.05369680014 | I4: 0.1710896017 | K4: =Entrada!P9 -> Arrecadação de convênios ou valores pela fatura | L4: =IF(COUNTIFS($C$30:$C$200000,$K4,$H$30:$H$200000,L$2)=0,"",COUNTIFS($C$30:$C$200000,$K4,$H$30:$H$200000,L$2)) ->  | M4: 1 | N4: 1 | O4: 1 | P4: 1 | Q4: 1 | R4: 1 | S4: 1 | T4: 1 | U4: 1 | V4: 1 | W4: 1 | X4: 1 | Y4: 1 | Z4: 1 | AA4: 1
A5: 45566 | B5: 515283.66 | C5: 2022199.63 | D5: 111859.16 | E5: 784536.03 | F5: 2414637.63 | G5: 6628209.16 | H5: 0.05363775826 | I5: 0.1729530363 | K5: =Entrada!P10 -> Arrecadação de faturas de terceiros por estrutura própria
A6: 45597 | B6: 526113.46 | C6: 2081471.43 | D6: 114209.53 | E6: 752477.94 | F6: 2338812.19 | G6: 6890425.7 | H6: 0.05357888535 | I6: 0.1741666641 | K6: =Entrada!P11 -> Veiculação de publicidade
A7: 45627 | B7: 418831.82 | C7: 1728665.3 | D7: 90900.64 | E7: 118948.88 | F7: 1705789.58 | G7: 5456396.51 | H7: 0.05422348953 | I7: 0.1838891422 | K7: =Entrada!P12 -> Aluguel ou cessão onerosa de imóveis e espaços físicos
A8: 45658 | B8: 424280.99 | C8: 1576018.35 | D8: 92103.37 | E8: 329.51 | F8: 2325493.64 | G8: 5084465.07 | H8: 0.05434274042 | I8: 0.1658554416 | K8: =Entrada!P13 -> Compartilhamento de infraestrutura | M8: 1 | N8: 1 | O8: 1 | P8: 1 | Q8: 1 | R8: 1 | S8: 1 | T8: 1 | U8: 1 | V8: 1 | W8: 1 | X8: 1 | Y8: 1 | Z8: 1 | AA8: 1
A9: 45689 | B9: 434541.2 | C9: 1641583.77 | D9: 94330.66 | E9: 1164.77 | F9: 2400320.97 | G9: 5172356.19 | H9: 0.05428149974 | I9: 0.1684862359 | K9: =Entrada!P14 -> Serviços de avaliação técnica e aferição de medidores.
A10: 45717 | B10: 458386.07 | C10: 1750196.18 | D10: 99507.65 | E10: -561.92 | F10: 2396244.86 | G10: 5555400.02 | H10: 0.05437701188 | I10: 0.1705888327 | K10: =Entrada!P15 -> Operacionalização de serviço de créditos tributários
A11: 45748 | B11: 395640.78 | C11: 1487736.06 | D11: 85980.81 | E11: 1.91 | F11: 2311428.55 | G11: 4373068.82 | H11: 0.05565399338 | I11: 0.1719159908 | K11: =Entrada!P16 -> Elaboração de projeto, construção, operação, manutenção ou reforma de:
A12: 45778 | B12: 427708.13 | C12: 1681363.66 | D12: 92847.63 | E12: 94101.96 | F12: 2262230.64 | G12: 5158667.41 | H12: 0.05409598193 | I12: 0.1747267539 | K12: =Entrada!P17 -> (1) redes de distribuição de energia elétrica destinadas à regularização fundiária de interesse específico e ao atendimento dos empreendimentos de múltiplas unidades consumidoras;
A13: 45809 | B13: 454946.1 | C13: 1776409.42 | D13: 98760.38 | E13: 324259.09 | F13: 2281355.79 | G13: 5549781.42 | H13: 0.05449194839 | I13: 0.1748218847 | K13: =Entrada!P18 -> (2) redes de energia elétrica destinadas ao acesso dos sistemas de distribuição ou transmissão;
A14: 45839 | B14: 442103.77 | C14: 1771371.75 | D14: 95972.3 | E14: 432504.65 | F14: 2213525.89 | G14: 5323872.15 | H14: 0.0546445103 | I14: 0.1798923001 | K14: =Entrada!P19 -> (3) subestações de energia;
A15: 45870 | B15: 460647.58 | C15: 1861473.75 | D15: 99996.59 | E15: 624968.98 | F15: 2163189.95 | G15: 5800358.75 | H15: 0.05398249246 | I15: 0.1792348838 | K15: =Entrada!P20 -> (4) instalações elétricas internas de unidades consumidoras;
A16: 45901 | B16: 470200.42 | C16: 1899345.03 | D16: 102016.01 | E16: 823896.36 | F16: 2235068.26 | G16: 5933339.09 | H16: 0.05377989731 | I16: 0.1785103945 | K16: =Entrada!P21 -> (5) banco de capacitores;
A17: 45931 | B17: 598430.19 | C17: 1907979.54 | D17: 129913.96 | E17: 658429.34 | F17: 2215534.13 | G17: 5729693.45 | H17: 0.06883150981 | I17: 0.180311893 | K17: =Entrada!P22 -> (6) padrões de entrada de unidades consumidoras atendidas em baixa tensão;
K18: =Entrada!P23 -> (7) sistemas de medição de energia elétrica;
K19: =Entrada!P24 -> (8) geradores, incluindo-se unidades de microgeração e minigeração distribuída; | AA19: =IF(COUNTIFS($C$30:$C$200000,$K19,$H$30:$H$200000,AA$2)=0,"",COUNTIFS($C$30:$C$200000,$K19,$H$30:$H$200000,AA$2)) -> 
K20: =Entrada!P25 -> (9) sistemas de iluminação pública. | L20: =IF(COUNTIFS($C$30:$C$200000,$K20,$H$30:$H$200000,L$2)=0,"",COUNTIFS($C$30:$C$200000,$K20,$H$30:$H$200000,L$2)) -> 
K21: =Entrada!P26 -> (10) estações de recarga de veículos elétricos, incluindo a prestação de serviços aos usuários
K22: =Entrada!P27 -> Eficientização do consumo de energia elétrica e instalação de cogeração qualificada, desde que não enquadráveis nos projetos de Pesquisa e Desenvolvimento (P&D) ou de Eficiência Energética estabelecidos em lei
K23: =Entrada!P28 -> Serviços de comunicação de dados
K24: =Entrada!P29 -> Serviços de consultoria
K25: =Entrada!P30 -> Receita proveniente da comercialização de resultados de projetos de P&D COM comprovação
K26: =Entrada!P31 -> Receita proveniente da comercialização de resultados de projetos de P&D SEM comprovação
A28: Tab_Uderor | K28: Descrição | L28: =L2 -> 2025-12-01 | M28: =M2 -> 2025-11-01 | N28: 2025-10-01 | O28: 2025-09-01 | P28: 2025-08-01 | Q28: 2025-07-01 | R28: 2025-06-01 | S28: 2025-05-01 | T28: 2025-04-01 | U28: 2025-03-01 | V28: 2025-02-01 | W28: 2025-01-01 | X28: 2024-12-01 | Y28: 2024-11-01 | Z28: 2024-10-01 | AA28: =AA2 -> 2024-09-01
A29: IdeTipoReceita | B29: TipoReceitaArquivo | C29: TipoReceita | D29: CompetenciaArquivo | E29: Data_envio_arquivo | F29: NomeArquivo | G29: Data_Lancamento | H29: Competencia | I29: R$ | K29: =Entrada!P51 -> Ultrapassagem de Demanda | L29: =IF(COUNTIFS($C$30:$C$200000,$K29,$H$30:$H$200000,L$2)=0,"",COUNTIFS($C$30:$C$200000,$K29,$H$30:$H$200000,L$2)) ->  | M29: =IF(COUNTIFS($C$30:$C$200000,$K29,$H$30:$H$200000,M$2)=0,"",COUNTIFS($C$30:$C$200000,$K29,$H$30:$H$200000,M$2)) -> 1 | N29: 1 | O29: 1 | P29: 1 | Q29: 1 | R29: 1 | S29: 1 | T29: 1 | U29: 1 | V29: 1 | W29: 1 | X29: 1 | Y29: 1 | Z29: 1 | AA29: 1
A30: 1 | B30: Serviços Cobráveis | C30: Serviços Cobráveis | D30: 202409 | E30: 45600 | F30: APLCVA00369_FLXPAGAMENTOS_092024_S001.XML | G30: 45536 | H30: 45536 | I30: 255058.52 | K30: =Entrada!P52 -> Excedente Reativo | L30: =IF(COUNTIFS($C$30:$C$200000,$K30,$H$30:$H$200000,L$2)=0,"",COUNTIFS($C$30:$C$200000,$K30,$H$30:$H$200000,L$2)) ->  | M30: 1 | N30: 1 | O30: 1 | P30: 1 | Q30: 1 | R30: 1 | S30: 1 | T30: 1 | U30: 1 | V30: 1 | W30: 1 | X30: 1 | Y30: 1 | Z30: 1 | AA30: 1
A31: 1 | B31: Serviços Cobráveis | C31: Serviços Cobráveis | D31: 202410 | E31: 45667 | F31: APLCVA00369_FLXPAGAMENTOS_102024_S002.XML | G31: 45566 | H31: 45566 | I31: 178447.36
A32: 1 | B32: Serviços Cobráveis | C32: Serviços Cobráveis | D32: 202411 | E32: 45971 | F32: APLCVA00369_FLXPAGAMENTOS_112024_S004.XML | G32: 45597 | H32: 45597 | I32: 169847.26
A33: 1 | B33: Serviços Cobráveis | C33: Serviços Cobráveis | D33: 202412 | E33: 45726 | F33: APLCVA00369_FLXPAGAMENTOS_122024_S002.XML | G33: 45627 | H33: 45627 | I33: 233643.43
A34: 1 | B34: Serviços Cobráveis | C34: Serviços Cobráveis | D34: 202501 | E34: 45819 | F34: APLCVA00369_FLXPAGAMENTOS_012025_S002.XML | G34: 45658 | H34: 45658 | I34: 232982.6 | K34: Data do último Lançamento por item e competência
A35: 1 | B35: Serviços Cobráveis | C35: Serviços Cobráveis | D35: 202502 | E35: 45896 | F35: APLCVA00369_FLXPAGAMENTOS_022025_S004.XML | G35: 45689 | H35: 45689 | I35: 258498.01 | K35: Descrição | L35: =DATE(YEAR(LnkTxtDRPData),MONTH(LnkTxtDRPData),1) -> 2025-12-01 | M35: =EDATE(L35,-1) -> 2025-11-01 | N35: =EDATE(M35,-1) -> 2025-10-01 | O35: 2025-09-01 | P35: 2025-08-01 | Q35: 2025-07-01 | R35: 2025-06-01 | S35: 2025-05-01 | T35: 2025-04-01 | U35: 2025-03-01 | V35: 2025-02-01 | W35: 2025-01-01 | X35: 2024-12-01 | Y35: 2024-11-01 | Z35: 2024-10-01 | AA35: 2024-09-01
A36: 1 | B36: Serviços Cobráveis | C36: Serviços Cobráveis | D36: 202503 | E36: 45788 | F36: APLCVA00369_FLXPAGAMENTOS_032025_S001.XML | G36: 45717 | H36: 45717 | I36: 226480.55 | K36: =Entrada!P8 -> Serviços Cobráveis | L36: =IF(_xlfn.MAXIFS($G$30:$G$200000,$C$30:$C$200000,$K36,$H$30:$H$200000,L$2)=0,"",_xlfn.MAXIFS($G$30:$G$200000,$C$30:$C$200000,$K36,$H$30:$H$200000,L$2)) ->  | M36: 45962 | N36: 45931 | O36: 45901 | P36: 45870 | Q36: 45839 | R36: 45809 | S36: 45778 | T36: 45748 | U36: 45717 | V36: 45689 | W36: 45658 | X36: 45627 | Y36: 45597 | Z36: 45566 | AA36: 45536
A37: 1 | B37: Serviços Cobráveis | C37: Serviços Cobráveis | D37: 202504 | E37: 45819 | F37: APLCVA00369_FLXPAGAMENTOS_042025_S001.XML | G37: 45748 | H37: 45748 | I37: 238399.19 | K37: =Entrada!P9 -> Arrecadação de convênios ou valores pela fatura | M37: 45962 | N37: 45931 | O37: 45901 | P37: 45870 | Q37: 45839 | R37: 45809 | S37: 45778 | T37: 45748 | U37: 45717 | V37: 45689 | W37: 45658 | X37: 45627 | Y37: 45597 | Z37: 45566 | AA37: 45536
A38: 1 | B38: Serviços Cobráveis | C38: Serviços Cobráveis | D38: 202505 | E38: 45848 | F38: APLCVA00369_FLXPAGAMENTOS_052025_S001.XML | G38: 45778 | H38: 45778 | I38: 400159.83 | K38: =Entrada!P10 -> Arrecadação de faturas de terceiros por estrutura própria
A39: 1 | B39: Serviços Cobráveis | C39: Serviços Cobráveis | D39: 202506 | E39: 45971 | F39: APLCVA00369_FLXPAGAMENTOS_062025_S002.XML | G39: 45809 | H39: 45809 | I39: 851985.85 | K39: =Entrada!P11 -> Veiculação de publicidade
A40: 1 | B40: Serviços Cobráveis | C40: Serviços Cobráveis | D40: 202507 | E40: 45971 | F40: APLCVA00369_FLXPAGAMENTOS_072025_S002.XML | G40: 45839 | H40: 45839 | I40: 1119021.38 | K40: =Entrada!P12 -> Aluguel ou cessão onerosa de imóveis e espaços físicos
A41: 1 | B41: Serviços Cobráveis | C41: Serviços Cobráveis | D41: 202508 | E41: 45971 | F41: APLCVA00369_FLXPAGAMENTOS_082025_S002.XML | G41: 45870 | H41: 45870 | I41: 1079730.42 | K41: =Entrada!P13 -> Compartilhamento de infraestrutura | M41: 45962 | N41: 45931 | O41: 45901 | P41: 45870 | Q41: 45839 | R41: 45809 | S41: 45778 | T41: 45748 | U41: 45717 | V41: 45689 | W41: 45658 | X41: 45627 | Y41: 45597 | Z41: 45566 | AA41: 45536
A42: 1 | B42: Serviços Cobráveis | C42: Serviços Cobráveis | D42: 202509 | E42: 45971 | F42: APLCVA00369_FLXPAGAMENTOS_092025_S001.XML | G42: 45901 | H42: 45901 | I42: 885891.86 | K42: =Entrada!P14 -> Serviços de avaliação técnica e aferição de medidores.
A43: 1 | B43: Serviços Cobráveis | C43: Serviços Cobráveis | D43: 202510 | E43: 45971 | F43: APLCVA00369_FLXPAGAMENTOS_102025_S000.XML | G43: 45931 | H43: 45931 | I43: 0 | K43: =Entrada!P15 -> Operacionalização de serviço de créditos tributários
A44: 1 | B44: Serviços Cobráveis | C44: Serviços Cobráveis | D44: 202511 | E44: 45971 | F44: APLCVA00369_FLXPAGAMENTOS_112025_S000.XML | G44: 45962 | H44: 45962 | I44: 0 | K44: =Entrada!P16 -> Elaboração de projeto, construção, operação, manutenção ou reforma de:
A45: 2 | B45: Arrecadação de convênios ou valores pela fatura | C45: Arrecadação de convênios ou valores pela fatura | D45: 202409 | E45: 45600 | F45: APLCVA00369_FLXPAGAMENTOS_092024_S001.XML | G45: 45536 | H45: 45536 | I45: 379929.65 | K45: =Entrada!P17 -> (1) redes de distribuição de energia elétrica destinadas à regularização fundiária de interesse específico e ao atendimento dos empreendimentos de múltiplas unidades consumidoras;
A46: 2 | B46: Arrecadação de convênios ou valores pela fatura | C46: Arrecadação de convênios ou valores pela fatura | D46: 202410 | E46: 45667 | F46: APLCVA00369_FLXPAGAMENTOS_102024_S002.XML | G46: 45566 | H46: 45566 | I46: 411986.56 | K46: =Entrada!P18 -> (2) redes de energia elétrica destinadas ao acesso dos sistemas de distribuição ou transmissão; | L46: =IF(_xlfn.MAXIFS($G$30:$G$200000,$C$30:$C$200000,$K46,$H$30:$H$200000,L$2)=0,"",_xlfn.MAXIFS($G$30:$G$200000,$C$30:$C$200000,$K46,$H$30:$H$200000,L$2)) -> 
A47: 2 | B47: Arrecadação de convênios ou valores pela fatura | C47: Arrecadação de convênios ou valores pela fatura | D47: 202411 | E47: 45971 | F47: APLCVA00369_FLXPAGAMENTOS_112024_S004.XML | G47: 45597 | H47: 45597 | I47: 398499.02 | K47: =Entrada!P19 -> (3) subestações de energia;
A48: 2 | B48: Arrecadação de convênios ou valores pela fatura | C48: Arrecadação de convênios ou valores pela fatura | D48: 202412 | E48: 45726 | F48: APLCVA00369_FLXPAGAMENTOS_122024_S002.XML | G48: 45627 | H48: 45627 | I48: 414540.96 | K48: =Entrada!P20 -> (4) instalações elétricas internas de unidades consumidoras;
A49: 2 | B49: Arrecadação de convênios ou valores pela fatura | C49: Arrecadação de convênios ou valores pela fatura | D49: 202501 | E49: 45819 | F49: APLCVA00369_FLXPAGAMENTOS_012025_S002.XML | G49: 45658 | H49: 45658 | I49: 364761.64 | K49: =Entrada!P21 -> (5) banco de capacitores;
A50: 2 | B50: Arrecadação de convênios ou valores pela fatura | C50: Arrecadação de convênios ou valores pela fatura | D50: 202502 | E50: 45896 | F50: APLCVA00369_FLXPAGAMENTOS_022025_S004.XML | G50: 45689 | H50: 45689 | I50: 348978.82 | K50: =Entrada!P22 -> (6) padrões de entrada de unidades consumidoras atendidas em baixa tensão;
A51: 2 | B51: Arrecadação de convênios ou valores pela fatura | C51: Arrecadação de convênios ou valores pela fatura | D51: 202503 | E51: 45788 | F51: APLCVA00369_FLXPAGAMENTOS_032025_S001.XML | G51: 45717 | H51: 45717 | I51: 373183.88 | K51: =Entrada!P23 -> (7) sistemas de medição de energia elétrica;
A52: 2 | B52: Arrecadação de convênios ou valores pela fatura | C52: Arrecadação de convênios ou valores pela fatura | D52: 202504 | E52: 45819 | F52: APLCVA00369_FLXPAGAMENTOS_042025_S001.XML | G52: 45748 | H52: 45748 | I52: 353423.45 | K52: =Entrada!P24 -> (8) geradores, incluindo-se unidades de microgeração e minigeração distribuída;
A53: 2 | B53: Arrecadação de convênios ou valores pela fatura | C53: Arrecadação de convênios ou valores pela fatura | D53: 202505 | E53: 45848 | F53: APLCVA00369_FLXPAGAMENTOS_052025_S001.XML | G53: 45778 | H53: 45778 | I53: 379381.86 | K53: =Entrada!P25 -> (9) sistemas de iluminação pública.
A54: 2 | B54: Arrecadação de convênios ou valores pela fatura | C54: Arrecadação de convênios ou valores pela fatura | D54: 202506 | E54: 45971 | F54: APLCVA00369_FLXPAGAMENTOS_062025_S002.XML | G54: 45809 | H54: 45809 | I54: 386962.22 | K54: =Entrada!P26 -> (10) estações de recarga de veículos elétricos, incluindo a prestação de serviços aos usuários
A55: 2 | B55: Arrecadação de convênios ou valores pela fatura | C55: Arrecadação de convênios ou valores pela fatura | D55: 202507 | E55: 45971 | F55: APLCVA00369_FLXPAGAMENTOS_072025_S002.XML | G55: 45839 | H55: 45839 | I55: 384874.17 | K55: =Entrada!P27 -> Eficientização do consumo de energia elétrica e instalação de cogeração qualificada, desde que não enquadráveis nos projetos de Pesquisa e Desenvolvimento (P&D) ou de Eficiência Energética estabelecidos em lei
A56: 2 | B56: Arrecadação de convênios ou valores pela fatura | C56: Arrecadação de convênios ou valores pela fatura | D56: 202508 | E56: 45971 | F56: APLCVA00369_FLXPAGAMENTOS_082025_S002.XML | G56: 45870 | H56: 45870 | I56: 367285.06 | K56: =Entrada!P28 -> Serviços de comunicação de dados
A57: 2 | B57: Arrecadação de convênios ou valores pela fatura | C57: Arrecadação de convênios ou valores pela fatura | D57: 202509 | E57: 45971 | F57: APLCVA00369_FLXPAGAMENTOS_092025_S001.XML | G57: 45901 | H57: 45901 | I57: 405260.01 | K57: =Entrada!P29 -> Serviços de consultoria
A58: 2 | B58: Arrecadação de convênios ou valores pela fatura | C58: Arrecadação de convênios ou valores pela fatura | D58: 202510 | E58: 45971 | F58: APLCVA00369_FLXPAGAMENTOS_102025_S000.XML | G58: 45931 | H58: 45931 | I58: 0 | K58: =Entrada!P30 -> Receita proveniente da comercialização de resultados de projetos de P&D COM comprovação
A59: 2 | B59: Arrecadação de convênios ou valores pela fatura | C59: Arrecadação de convênios ou valores pela fatura | D59: 202511 | E59: 45971 | F59: APLCVA00369_FLXPAGAMENTOS_112025_S000.XML | G59: 45962 | H59: 45962 | I59: 0 | K59: =Entrada!P31 -> Receita proveniente da comercialização de resultados de projetos de P&D SEM comprovação
A60: 6 | B60: Compartilhamento de infraestrutura | C60: Compartilhamento de infraestrutura | D60: 202409 | E60: 45600 | F60: APLCVA00369_FLXPAGAMENTOS_092024_S001.XML | G60: 45536 | H60: 45536 | I60: 3103182.21
A61: 6 | B61: Compartilhamento de infraestrutura | C61: Compartilhamento de infraestrutura | D61: 202410 | E61: 45667 | F61: APLCVA00369_FLXPAGAMENTOS_102024_S002.XML | G61: 45566 | H61: 45566 | I61: 1271019.94 | K61: Descrição | L61: =L35 -> 2025-12-01 | M61: =M35 -> 2025-11-01 | N61: 2025-10-01 | O61: 2025-09-01 | P61: 2025-08-01 | Q61: 2025-07-01 | R61: 2025-06-01 | S61: 2025-05-01 | T61: 2025-04-01 | U61: 2025-03-01 | V61: 2025-02-01 | W61: 2025-01-01 | X61: 2024-12-01 | Y61: 2024-11-01 | Z61: 2024-10-01 | AA61: 2024-09-01
A62: 6 | B62: Compartilhamento de infraestrutura | C62: Compartilhamento de infraestrutura | D62: 202411 | E62: 45971 | F62: APLCVA00369_FLXPAGAMENTOS_112024_S004.XML | G62: 45597 | H62: 45597 | I62: 1885121.95 | K62: =Entrada!P51 -> Ultrapassagem de Demanda | L62: =IF(COUNTIFS($C$30:$C$200000,$K62,$H$30:$H$200000,L$2)=0,"",COUNTIFS($C$30:$C$200000,$K62,$H$30:$H$200000,L$2)) ->  | M62: 1 | N62: 1 | O62: 1 | P62: 1 | Q62: 1 | R62: 1 | S62: 1 | T62: 1 | U62: 1 | V62: 1 | W62: 1 | X62: 1 | Y62: 1 | Z62: 1 | AA62: 1
A63: 6 | B63: Compartilhamento de infraestrutura | C63: Compartilhamento de infraestrutura | D63: 202412 | E63: 45726 | F63: APLCVA00369_FLXPAGAMENTOS_122024_S002.XML | G63: 45627 | H63: 45627 | I63: 1584073.04 | K63: =Entrada!P52 -> Excedente Reativo | M63: 1 | N63: =IF(COUNTIFS($C$30:$C$200000,$K63,$H$30:$H$200000,N$2)=0,"",COUNTIFS($C$30:$C$200000,$K63,$H$30:$H$200000,N$2)) -> 1 | O63: 1 | P63: 1 | Q63: 1 | R63: 1 | S63: 1 | T63: 1 | U63: 1 | V63: 1 | W63: 1 | X63: 1 | Y63: 1 | Z63: 1 | AA63: 1
A64: 6 | B64: Compartilhamento de infraestrutura | C64: Compartilhamento de infraestrutura | D64: 202501 | E64: 45819 | F64: APLCVA00369_FLXPAGAMENTOS_012025_S002.XML | G64: 45658 | H64: 45658 | I64: 1597104.22
A65: 6 | B65: Compartilhamento de infraestrutura | C65: Compartilhamento de infraestrutura | D65: 202502 | E65: 45896 | F65: APLCVA00369_FLXPAGAMENTOS_022025_S004.XML | G65: 45689 | H65: 45689 | I65: 1618757.29
A66: 6 | B66: Compartilhamento de infraestrutura | C66: Compartilhamento de infraestrutura | D66: 202503 | E66: 45788 | F66: APLCVA00369_FLXPAGAMENTOS_032025_S001.XML | G66: 45717 | H66: 45717 | I66: 1625714.94
A67: 6 | B67: Compartilhamento de infraestrutura | C67: Compartilhamento de infraestrutura | D67: 202504 | E67: 45819 | F67: APLCVA00369_FLXPAGAMENTOS_042025_S001.XML | G67: 45748 | H67: 45748 | I67: 1532842.88
A68: 6 | B68: Compartilhamento de infraestrutura | C68: Compartilhamento de infraestrutura | D68: 202505 | E68: 45848 | F68: APLCVA00369_FLXPAGAMENTOS_052025_S001.XML | G68: 45778 | H68: 45778 | I68: 1634743.33
A69: 6 | B69: Compartilhamento de infraestrutura | C69: Compartilhamento de infraestrutura | D69: 202506 | E69: 45971 | F69: APLCVA00369_FLXPAGAMENTOS_062025_S002.XML | G69: 45809 | H69: 45809 | I69: 1890273.31
A70: 6 | B70: Compartilhamento de infraestrutura | C70: Compartilhamento de infraestrutura | D70: 202507 | E70: 45971 | F70: APLCVA00369_FLXPAGAMENTOS_072025_S002.XML | G70: 45839 | H70: 45839 | I70: 1642237.12
A71: 6 | B71: Compartilhamento de infraestrutura | C71: Compartilhamento de infraestrutura | D71: 202508 | E71: 45971 | F71: APLCVA00369_FLXPAGAMENTOS_082025_S002.XML | G71: 45870 | H71: 45870 | I71: 1644429.53
A72: 6 | B72: Compartilhamento de infraestrutura | C72: Compartilhamento de infraestrutura | D72: 202509 | E72: 45971 | F72: APLCVA00369_FLXPAGAMENTOS_092025_S001.XML | G72: 45901 | H72: 45901 | I72: 1672050.45
A73: 6 | B73: Compartilhamento de infraestrutura | C73: Compartilhamento de infraestrutura | D73: 202510 | E73: 45971 | F73: APLCVA00369_FLXPAGAMENTOS_102025_S000.XML | G73: 45931 | H73: 45931 | I73: 0
A74: 6 | B74: Compartilhamento de infraestrutura | C74: Compartilhamento de infraestrutura | D74: 202511 | E74: 45971 | F74: APLCVA00369_FLXPAGAMENTOS_112025_S000.XML | G74: 45962 | H74: 45962 | I74: 0
A75: 23 | B75: Ultrapassagem de Demanda | C75: Ultrapassagem de Demanda | D75: 202409 | E75: 45600 | F75: APLCVA00369_FLXPAGAMENTOS_092024_S001.XML | G75: 45536 | H75: 45536 | I75: 1662729.37
A76: 23 | B76: Ultrapassagem de Demanda | C76: Ultrapassagem de Demanda | D76: 202410 | E76: 45667 | F76: APLCVA00369_FLXPAGAMENTOS_102024_S002.XML | G76: 45566 | H76: 45566 | I76: 1904983.87
A77: 23 | B77: Ultrapassagem de Demanda | C77: Ultrapassagem de Demanda | D77: 202411 | E77: 45971 | F77: APLCVA00369_FLXPAGAMENTOS_112024_S004.XML | G77: 45597 | H77: 45597 | I77: 1785191.6
A78: 23 | B78: Ultrapassagem de Demanda | C78: Ultrapassagem de Demanda | D78: 202412 | E78: 45726 | F78: APLCVA00369_FLXPAGAMENTOS_122024_S002.XML | G78: 45627 | H78: 45627 | I78: 1351148.49
A79: 23 | B79: Ultrapassagem de Demanda | C79: Ultrapassagem de Demanda | D79: 202501 | E79: 45819 | F79: APLCVA00369_FLXPAGAMENTOS_012025_S002.XML | G79: 45658 | H79: 45658 | I79: 1118189.74
A80: 23 | B80: Ultrapassagem de Demanda | C80: Ultrapassagem de Demanda | D80: 202502 | E80: 45896 | F80: APLCVA00369_FLXPAGAMENTOS_022025_S004.XML | G80: 45689 | H80: 45689 | I80: 1246855.37
A81: 23 | B81: Ultrapassagem de Demanda | C81: Ultrapassagem de Demanda | D81: 202503 | E81: 45788 | F81: APLCVA00369_FLXPAGAMENTOS_032025_S001.XML | G81: 45717 | H81: 45717 | I81: 1703885.26
A82: 23 | B82: Ultrapassagem de Demanda | C82: Ultrapassagem de Demanda | D82: 202504 | E82: 45819 | F82: APLCVA00369_FLXPAGAMENTOS_042025_S001.XML | G82: 45748 | H82: 45748 | I82: 1678208.68
A83: 23 | B83: Ultrapassagem de Demanda | C83: Ultrapassagem de Demanda | D83: 202505 | E83: 45848 | F83: APLCVA00369_FLXPAGAMENTOS_052025_S001.XML | G83: 45778 | H83: 45778 | I83: 1707547.97
A84: 23 | B84: Ultrapassagem de Demanda | C84: Ultrapassagem de Demanda | D84: 202506 | E84: 45971 | F84: APLCVA00369_FLXPAGAMENTOS_062025_S002.XML | G84: 45809 | H84: 45809 | I84: 1661303.52
A85: 23 | B85: Ultrapassagem de Demanda | C85: Ultrapassagem de Demanda | D85: 202507 | E85: 45971 | F85: APLCVA00369_FLXPAGAMENTOS_072025_S002.XML | G85: 45839 | H85: 45839 | I85: 1564257.25
A86: 23 | B86: Ultrapassagem de Demanda | C86: Ultrapassagem de Demanda | D86: 202508 | E86: 45971 | F86: APLCVA00369_FLXPAGAMENTOS_082025_S002.XML | G86: 45870 | H86: 45870 | I86: 1699410.19
A87: 23 | B87: Ultrapassagem de Demanda | C87: Ultrapassagem de Demanda | D87: 202509 | E87: 45971 | F87: APLCVA00369_FLXPAGAMENTOS_092025_S001.XML | G87: 45901 | H87: 45901 | I87: 1863926.41
A88: 23 | B88: Ultrapassagem de Demanda | C88: Ultrapassagem de Demanda | D88: 202510 | E88: 45971 | F88: APLCVA00369_FLXPAGAMENTOS_102025_S000.XML | G88: 45931 | H88: 45931 | I88: 0
A89: 23 | B89: Ultrapassagem de Demanda | C89: Ultrapassagem de Demanda | D89: 202511 | E89: 45971 | F89: APLCVA00369_FLXPAGAMENTOS_112025_S000.XML | G89: 45962 | H89: 45962 | I89: 0
A90: 24 | B90: Excedente Reativo | C90: Excedente Reativo | D90: 202409 | E90: 45600 | F90: APLCVA00369_FLXPAGAMENTOS_092024_S001.XML | G90: 45536 | H90: 45536 | I90: 1102351.66
A91: 24 | B91: Excedente Reativo | C91: Excedente Reativo | D91: 202410 | E91: 45667 | F91: APLCVA00369_FLXPAGAMENTOS_102024_S002.XML | G91: 45566 | H91: 45566 | I91: 1112309.26
A92: 24 | B92: Excedente Reativo | C92: Excedente Reativo | D92: 202411 | E92: 45971 | F92: APLCVA00369_FLXPAGAMENTOS_112024_S004.XML | G92: 45597 | H92: 45597 | I92: 1229852.93
A93: 24 | B93: Excedente Reativo | C93: Excedente Reativo | D93: 202412 | E93: 45726 | F93: APLCVA00369_FLXPAGAMENTOS_122024_S002.XML | G93: 45627 | H93: 45627 | I93: 1126744.48
A94: 24 | B94: Excedente Reativo | C94: Excedente Reativo | D94: 202501 | E94: 45819 | F94: APLCVA00369_FLXPAGAMENTOS_012025_S002.XML | G94: 45658 | H94: 45658 | I94: 1139188.88
A95: 24 | B95: Excedente Reativo | C95: Excedente Reativo | D95: 202502 | E95: 45896 | F95: APLCVA00369_FLXPAGAMENTOS_022025_S004.XML | G95: 45689 | H95: 45689 | I95: 1141228.05
A96: 24 | B96: Excedente Reativo | C96: Excedente Reativo | D96: 202503 | E96: 45788 | F96: APLCVA00369_FLXPAGAMENTOS_032025_S001.XML | G96: 45717 | H96: 45717 | I96: 1259785.18
A97: 24 | B97: Excedente Reativo | C97: Excedente Reativo | D97: 202504 | E97: 45819 | F97: APLCVA00369_FLXPAGAMENTOS_042025_S001.XML | G97: 45748 | H97: 45748 | I97: 1177189.89
A98: 24 | B98: Excedente Reativo | C98: Excedente Reativo | D98: 202505 | E98: 45848 | F98: APLCVA00369_FLXPAGAMENTOS_052025_S001.XML | G98: 45778 | H98: 45778 | I98: 1146486.54
A99: 24 | B99: Excedente Reativo | C99: Excedente Reativo | D99: 202506 | E99: 45971 | F99: APLCVA00369_FLXPAGAMENTOS_062025_S002.XML | G99: 45809 | H99: 45809 | I99: 1199821.03
A100: 24 | B100: Excedente Reativo | C100: Excedente Reativo | D100: 202507 | E100: 45971 | F100: APLCVA00369_FLXPAGAMENTOS_072025_S002.XML | G100: 45839 | H100: 45839 | I100: 1217069.54
A101: 24 | B101: Excedente Reativo | C101: Excedente Reativo | D101: 202508 | E101: 45971 | F101: APLCVA00369_FLXPAGAMENTOS_082025_S002.XML | G101: 45870 | H101: 45870 | I101: 1267146.28
A102: 24 | B102: Excedente Reativo | C102: Excedente Reativo | D102: 202509 | E102: 45971 | F102: APLCVA00369_FLXPAGAMENTOS_092025_S001.XML | G102: 45901 | H102: 45901 | I102: 1261214.17
A103: 24 | B103: Excedente Reativo | C103: Excedente Reativo | D103: 202510 | E103: 45971 | F103: APLCVA00369_FLXPAGAMENTOS_102025_S000.XML | G103: 45931 | H103: 45931 | I103: 0
A104: 24 | B104: Excedente Reativo | C104: Excedente Reativo | D104: 202511 | E104: 45971 | F104: APLCVA00369_FLXPAGAMENTOS_112025_S000.XML | G104: 45962 | H104: 45962 | I104: 0

Sheet BD
B1: Banco de Dados | M1: Anexo II | N1: =Resultado!$D$6 -> 0.1180735948
B2: =CAPA!B6 -> ERO | M2: Anexo I | N2: =Resultado!$D$8 -> 0.1211839941
B5: Informações do ano anterior | G5: Dados de abertura (Neutralidade e CVA saldo a compensar) | L5: Dados de Energia | S5: Dados para Revisão | AA5: BMP_RIT | AK5: Avaliação Parcela B | AQ5: Compensação DIC FIC
B7: Encargos | G7: Encargo | H7: Valor | I7: Norma | J7: Coluna1 | L7: Cotas | M7: Valor da "Cota" | N7: Ano | O7: Custo Médio da Cota | P7: Energia MWh | S7: item | T7: Descrição | U7: Detalhe | V7: Valor | AA7: IDAGENTE | AB7: ANO | AC7: SIGLA | AD7: ContaPrincipal | AE7: ContaDetalhada | AF7: CONTA | AG7: SALDO | AK7: Ano | AL7: DataRevREa | AM7: item | AN7: valor | AQ7: Competência | AR7: IdSariAcessado | AS7: IdSariAcessante | AT7: IdcTipoPontoConexao | AU7: VlrCompensacao | AV7: VlrDIC | AW7: VlrDMICMensal | AX7: VrlCompensasao_compensado | AY7: VlrDIC_compensado | AZ7: VlrDMICMensal_compensado | BA7: VlrCompensacao_a_Compensar | BB7: VlrDIC_a_compensar | BC7: VlrDMICMensal_a_compensar | BD7: Vlr_a_Compensar
B8: CDE Covid TE | C8: 33072484.34 | G8: CDE Eletrobras | H8: -2187109.36 | I8: DSP 1.536/2025 | L8: Angra | M8: 0.00950628 | N8: 2025 | O8: 308.74 | P8: 126600.2323 | S8: 201 | T8: Financeiro de RTP | U8: Conselho de Consumidor | V8: 0.001 | AA8: 369 | AB8: 2022 | AC8: ERO | AD8: Pessoal | AE8: Remuneração | AF8: 610530501 | AG8: 20844793.47 | AK8: 2024 | AL8: 23723 | AM8: ANEXO II | AN8: 0.03875151363
B9: CDE Covid TUSD | C9: 34370840.02 | G9: CDE | H9: 232998420.1 | I9: REH 3.484/2025 | S9: 202 | T9: Financeiro de RTP | U9: Conselho de Consumidor | V9: 0.205 | AA9: 369 | AB9: 2022 | AC9: ERO | AD9: Pessoal | AE9: Encargos | AF9: 610530502 | AG9: 23962096.16 | AK9: 2024 | AL9: 23723 | AM9: CONSUMIDOR DISTRIBUIÇÃO | AN9: 11319.477
B10: TFSEE | C10: 4201206.808 | G10: CFURH | S10: 203 | T10: Financeiro de RTP | U10: Conselho de Consumidor | V10: 0.794 | AA10: 369 | AB10: 2022 | AC10: ERO | AD10: Pessoal | AE10: Previdência Privada Corrente | AF10: 610530503 | AG10: 2043023.14 | AK10: 2024 | AL10: 23723 | AM10: CONSUMIDOR LIVRE | AN10: 516038.136
B11: CDE | C11: 153420133.6 | G11: PROINFA | H11: 47322328.99 | I11: REH 3.422/2024 | L11: Ano | M11: Cota Itaipu | AA11: 369 | AB11: 2022 | AC11: ERO | AD11: Pessoal | AE11: Despesas Rescisórias | AF11: 610530506 | AG11: 0 | AK11: 2024 | AL11: 23723 | AM11: ENCARGO | AN11: 381273352.8
B12: ESS/ERR | C12: 80640516.62 | G12: ONS | H12: 111476.16 | I12: Contribuição 2025 | AA12: 369 | AB12: 2022 | AC12: ERO | AD12: Pessoal | AE12: Participação Lucros Resultados | AF12: 610530507 | AG12: 6288626.4 | AK12: 2024 | AL12: 23723 | AM12: ENERGIA | AN12: 1003238275
B13: PROINFA | C13: 37445641.28 | G13: ERCAP | H13: 15037222.34 | I13: DSP 2.566/2025 | J13: DSP 2.566/2025 | AA13: 369 | AB13: 2022 | AC13: ERO | AD13: Pessoal | AE13: Outros Benefícios | AF13: 610530508 | AG13: 30983791.87 | AK13: 2024 | AL13: 23723 | AM13: FATOR X | AN13: 0.01619530126
B14: P&D | C14: 25508712.72 | G14: EER | H14: 72171875.39 | I14: DSP 2.566/2025 | J14: DSP 2.566/2025 | AA14: 369 | AB14: 2022 | AC14: ERO | AD14: Pessoal | AE14: (-)Créditos Tributários Recuperáveis | AF14: 610530510 | AG14: 0 | AK14: 2024 | AL14: 23723 | AM14: Fornecimento | AN14: 3592273.793
B15: ONS | C15: 0 | G15: ESS | H15: 1589576.3 | I15: DSP 2.566/2025 | J15: DSP 2.566/2025 | AA15: 369 | AB15: 2022 | AC15: ERO | AD15: Pessoal | AE15: Remuneração | AF15: 610530511 | AG15: 1072149.64 | AK15: 2024 | AL15: 23723 | AM15: IGPM | AN15: 0.06331425908
B16: CDE Eletrobras | C16: -13533790.1 | G16: TFSEE Fator de Carga | H16: 0.861 | AA16: 369 | AB16: 2022 | AC16: ERO | AD16: Pessoal | AE16: Outros | AF16: 610530599 | AG16: 0 | AK16: 2024 | AL16: 23723 | AM16: IPCA | AN16: 0.04710676931
B17: CDE GD | C17: 12532255.09 | G17: CDE Covid | H17: 0 | I17: Quitação | AA17: 369 | AB17: 2022 | AC17: ERO | AD17: Pessoal | AE17: Administradores | AF17: 6105306 | AG17: 0 | AK17: 2024 | AL17: 23723 | AM17: Parcela B | AN17: 1163456715
B18: CDE Conta - Escassez Hídrica TUSD | C18: 1165201.448 | G18: CDE Covid TE% | H18: 0.4903744686 | AA18: 369 | AB18: 2022 | AC18: ERO | AD18: Materiais | AE18: Materiais | AF18: 610530701 | AG18: 18723417.32 | AK18: 2024 | AL18: 23723 | AM18: Receita Irrecuperável | AN18: 42514637.83
B19: CDE Conta - Escassez Hídrica TE | C19: 12450150.99 | G19: CDE Covid TUSD% | H19: 0.5096255314 | AA19: 369 | AB19: 2022 | AC19: ERO | AD19: Materiais | AE19: (-)Créditos Tributários Recuperáveis | AF19: 610530710 | AG19: -7173.51 | AK19: 2024 | AL19: 23723 | AM19: Revisão ou Reajuste (1-REVI,0-Reaj) | AN19: 0
G20: CDE Escassez Hidrica | H20: 13615352.44 | I20: DSP 510/2023 | AA20: 369 | AB20: 2022 | AC20: ERO | AD20: Materiais | AE20: Outros | AF20: 610530799 | AG20: 5187323.46 | AK20: 2024 | AL20: 23723 | AM20: SUPRIMENTO (Mercado TUSD) | AN20: 0
B21: Pmix | C21: 216.2431199 | G21: CDE Escassez Hidr TE% | H21: 0.9144200304 | AA21: 369 | AB21: 2022 | AC21: ERO | AD21: Terceiros | AE21: (-)Créditos Tributários Recuperáveis | AF21: 610530810 | AG21: -567636.31 | AK21: 2024 | AL21: 23723 | AM21: SUPRIMENTO (via Rede Básica) | AN21: 0
B22: PN2024 | C22: 0.16642 | G22: CDE Escassez Hidr TUSD% | H22: 0.08557996964 | L22: Mês | M22: Potência | N22: Tarifa | O22: Perdas | P22: Energia | AA22: 369 | AB22: 2022 | AC22: ERO | AD22: Seguros | AE22: Seguros | AF22: 610531001 | AG22: 0 | AK22: 2024 | AL22: 23723 | AM22: TRANSPORTE TERCEIROS | AN22: 187120832.2
B23: PN2025 | C23: 0.160648 | G23: CDE GD | H23: 40506930.45 | I23: REH 3.484/2025 | AA23: 369 | AB23: 2022 | AC23: ERO | AD23: Seguros | AE23: (-)Créditos Tributários Recuperáveis | AF23: 610531010 | AG23: 0
B24: PT2023 | C24: 0.101338 | AA24: 369 | AB24: 2022 | AC24: ERO | AD24: Seguros | AE24: Outros | AF24: 610531099 | AG24: 0
B25: Perda RB total | C25: 0.02115000275 | G25: Informações de Postergação | AA25: 369 | AB25: 2022 | AC25: ERO | AD25: Demais | AE25: Condenações Trabalhistas | AF25: 610531212 | AG25: 0
AA26: 369 | AB26: 2022 | AC26: ERO | AD26: Tributos | AE26: Tributos | AF26: 6105316 | AG26: 931.22
B27: CVA RB | C27: 21688402.16 | G27: Tipo | H27: Valor | I27: Coluna1 | AA27: 369 | AB27: 2022 | AC27: ERO | AD27: Outros | AE27: Indenização Perdas Danos | AF27: 610531901 | AG27: 214741.5
B28: CVA CDE Covid TUSD | C28: -16262639.45 | G28: Data Postergada | H28: DtAniversario | I28: 46004 | AA28: 369 | AB28: 2022 | AC28: ERO | AD28: Outros | AE28: Consumo Próprio Energia | AF28: 610531902 | AG28: 4816562.7
B29: CVA CCC | C29: 0 | G29: Data Anterior | I29: 46004 | AA29: 369 | AB29: 2022 | AC29: ERO | AD29: Outros | AE29: Taxas Arrecadação | AF29: 610531903 | AG29: 0
B30: CVA CDE | C30: 29094481.51 | G30: Diferença de Dias | I30: 0 | AA30: 369 | AB30: 2022 | AC30: ERO | AD30: Outros | AE30: Taxas Bancárias | AF30: 610531904 | AG30: 0
B31: CVA CFURH | G31: MesesAdin | I31: 0 | AA31: 369 | AB31: 2022 | AC31: ERO | AD31: Outros | AE31: DespesaConselhoConsumidores | AF31: 610531905 | AG31: 0
B32: CVA ESS\ERR | C32: 17714515.73 | G32: Reversão Subvenção CDE | AA32: 369 | AB32: 2022 | AC32: ERO | AD32: Outros | AE32: Comunicação e Reprografia | AF32: 610531908 | AG32: 401774.01
B33: CVA PROINFA | C33: -1493132.811 | G33: Data 4CRT | I33: 45273 | AA33: 369 | AB33: 2022 | AC33: ERO | AD33: Demais | AE33: Gastos com CCEE | AF33: 610531909 | AG33: 94290.97
B34: CVA TRANS. ITAIPU | C34: 0 | AA34: 369 | AB34: 2022 | AC34: ERO | AD34: Outros | AE34: (-)Créditos Tributários Recuperáveis | AF34: 610531910 | AG34: 0
B35: CVA ENERGIA | C35: -14505361.68 | G35: Nome | H35: Valor | AA35: 369 | AB35: 2022 | AC35: ERO | AD35: Pessoal | AE35: Remuneração | AF35: 610532501 | AG35: 15847653.55
B36: CVA CDE Covid TE | C36: -15648319.57 | G36: TUSDg Export DRP | H36: 5169431.95 | L36: Mês | M36: Potência | N36: Tarifa DRA | O36: Tarifa DRP | P36: Colunas1 | AA36: 369 | AB36: 2022 | AC36: ERO | AD36: Pessoal | AE36: Encargos | AF36: 610532502 | AG36: 5834467.56
G37: TUSDg ONS DRP | H37: 240746.34 | AA37: 369 | AB37: 2022 | AC37: ERO | AD37: Pessoal | AE37: Previdência Privada Corrente | AF37: 610532503 | AG37: 811201.74
G38: TUSDg ONS DRA | H38: 225423.05 | AA38: 369 | AB38: 2022 | AC38: ERO | AD38: Pessoal | AE38: Despesas Rescisórias | AF38: 610532506 | AG38: 0
B39: Transporte | G39: TUSDg Export DRA | H39: 4829965.9 | AA39: 369 | AB39: 2022 | AC39: ERO | AD39: Pessoal | AE39: Participação Lucros Resultados | AF39: 610532507 | AG39: 3528491
B40: Conexao | C40: 3616259.365 | AA40: 369 | AB40: 2022 | AC40: ERO | AD40: Pessoal | AE40: Outros Benefícios | AF40: 610532508 | AG40: 4044413.25
AA41: 369 | AB41: 2022 | AC41: ERO | AD41: Pessoal | AE41: (-)Créditos Tributários Recuperáveis | AF41: 610532510 | AG41: 0
G42: Fator X | H42: Valor | AA42: 369 | AB42: 2022 | AC42: ERO | AD42: Pessoal | AE42: Remuneração | AF42: 610532511 | AG42: 111995.11
G43: fatorx_t | H43: 0 | AA43: 369 | AB43: 2022 | AC43: ERO | AD43: Pessoal | AE43: Outros | AF43: 610532599 | AG43: 7962.5
B44: Mercado | G44: fatorx_pd | H44: 0 | AA44: 369 | AB44: 2022 | AC44: ERO | AD44: Pessoal | AE44: Administradores | AF44: 6105326 | AG44: 3578578.94
B45: RA0_MWh_Tusd | C45: 4119631.406 | AA45: 369 | AB45: 2022 | AC45: ERO | AD45: Materiais | AE45: Materiais | AF45: 610532701 | AG45: 12810423
B46: RA1_R$ | C46: 2777603813 | G46: DecFec Processo Anterior | H46: Valor | AA46: 369 | AB46: 2022 | AC46: ERO | AD46: Materiais | AE46: (-)Créditos Tributários Recuperáveis | AF46: 610532710 | AG46: 0
B47: Proinfa | AA47: 369 | AB47: 2022 | AC47: ERO | AD47: Materiais | AE47: Outros | AF47: 610532799 | AG47: 0
B48: 2025 | C48: 77966.64438 | AA48: 369 | AB48: 2022 | AC48: ERO | AD48: Terceiros | AE48: AdmCentral | AF48: 610532801 | AG48: 68413803.64
B49: Detalhamento de Encargos ESS e CDE | AA49: 369 | AB49: 2022 | AC49: ERO | AD49: Terceiros | AE49: (-)Créditos Tributários Recuperáveis | AF49: 610532810 | AG49: 0
L50: Dado | M50: Valor | N50: Início | O50: Fim | AA50: 369 | AB50: 2022 | AC50: ERO | AD50: Seguros | AE50: Seguros | AF50: 610533001 | AG50: 1587002.59
L51: MUST | M51: 6963 | N51: 45474 | O51: 45838 | AA51: 369 | AB51: 2022 | AC51: ERO | AD51: Seguros | AE51: (-)Créditos Tributários Recuperáveis | AF51: 610533010 | AG51: 0
G52: Dados de dólar | H52: Valor | L52: MUST | M52: 7170 | N52: 45839 | O52: 46203 | AA52: 369 | AB52: 2022 | AC52: ERO | AD52: Seguros | AE52: Outros | AF52: 610533099 | AG52: 0
B53: Ciclo de Revisão | C53: 5 | G53: Dólar médio | H53: 5.346977273 | L53: Potência Max | M53: 10335 | N53: 45292 | O53: 45657 | AA53: 369 | AB53: 2022 | AC53: ERO | AD53: Demais | AE53: Condenações Trabalhistas | AF53: 610533212 | AG53: -13486543.14
G54: Data Inicial | H54: 45950 | L54: Potência Max | M54: 10193 | N54: 45658 | O54: 46022 | AA54: 369 | AB54: 2022 | AC54: ERO | AD54: Tributos | AE54: Tributos | AF54: 6105336 | AG54: 1090095.98
G55: Data Final | H55: 45979 | AA55: 369 | AB55: 2022 | AC55: ERO | AD55: Outros | AE55: Indenização Perdas Danos | AF55: 610533901 | AG55: 694076.54
L56: Dados de perda | M56: Valor | O56: Agente | P56: Ressarcimento P&D | AA56: 369 | AB56: 2022 | AC56: ERO | AD56: Outros | AE56: Consumo Próprio Energia | AF56: 610533902 | AG56: 0
B57: Subsídios Concedidos (sem ajuste) - Valor Mensal | L57: Perdas RB | M57: 90267.37539 | AA57: 369 | AB57: 2022 | AC57: ERO | AD57: Outros | AE57: Taxas Arrecadação | AF57: 610533903 | AG57: 0
B58: Mês de Início | C58: Carga Fonte | D58: Geração | E58: Distribuição | F58: Água, Esgoto e Saneamento | G58: Rural | H58: Irrigante/Aquicultor | I58: SCEE | J58: Lei 14299/20222 | L58: Perdas DITs | M58: 0 | AA58: 369 | AB58: 2022 | AC58: ERO | AD58: Outros | AE58: Taxas Bancárias | AF58: 610533904 | AG58: 0
B59: 2024-12-01 | C59: 4152747.045 | D59: 1153356.62 | E59: 0 | F59: 0 | G59: 0 | H59: 214472.3583 | I59: 3474179.731 | J59: 0 | AA59: 369 | AB59: 2022 | AC59: ERO | AD59: Outros | AE59: Comunicação e Reprografia | AF59: 610533907 | AG59: 5675000.56
AA60: 369 | AB60: 2022 | AC60: ERO | AD60: Demais | AE60: Gastos com CCEE | AF60: 610533908 | AG60: 0
AA61: 369 | AB61: 2022 | AC61: ERO | AD61: Outros | AE61: (-)Créditos Tributários Recuperáveis | AF61: 610533910 | AG61: 0
L62: Informações de DR1 | AA62: 369 | AB62: 2022 | AC62: ERO | AD62: Pessoal | AE62: Remuneração | AF62: 610550501 | AG62: 0
L63: fator PB1 | M63: 1.028236442 | AA63: 369 | AB63: 2022 | AC63: ERO | AD63: Pessoal | AE63: Encargos | AF63: 610550502 | AG63: 0
L64: Informações de RI | AA64: 369 | AB64: 2022 | AC64: ERO | AD64: Pessoal | AE64: Previdência Privada Corrente | AF64: 610550503 | AG64: 0
B65: Data | C65: Tipo | D65: Valor | E65: Valor IGPM | F65: Valor IPCA | G65: EixoRef | AA65: 369 | AB65: 2022 | AC65: ERO | AD65: Pessoal | AE65: Despesas Rescisórias | AF65: 610550506 | AG65: 0
B66: =DATE(YEAR(CAPA!C10),MONTH(CAPA!C10),1) -> 2025-12-01 | C66: =IF(CAPA!C7="Revisão",1,0) -> 0 | D66: =Resultado!L11 -> 841.3917756 | E66: =IFERROR(VLOOKUP(EDATE($B66,-1),Índices!$B$6:$F$500,2,FALSE)/VLOOKUP(EDATE(MIN($B$67:$B$81),-1),Índices!$B$6:$F$500,2,FALSE)*VLOOKUP(MIN($B$67:$B$81),$B$67:$D$81,3,FALSE),0) -> 0 | F66: =IFERROR(VLOOKUP(EDATE($B66,-1),Índices!$B$6:$F$500,3,FALSE)/VLOOKUP(EDATE(MIN($B$67:$B$81),-1),Índices!$B$6:$F$500,3,FALSE)*VLOOKUP(MIN($B$67:$B$81),$B$67:$D$81,3,FALSE),0) -> 0 | G66: =IF(B66<>"",150+1,"") -> 151 | L66: Tipo | M66: % RI | O66: Data | P66: Fat Bandeiras | AA66: 369 | AB66: 2022 | AC66: ERO | AD66: Pessoal | AE66: Participação Lucros Resultados | AF66: 610550507 | AG66: 0
L67: PctRIResidencial | M67: 0.018 | O67: 45627 | P67: 2157858.46 | AA67: 369 | AB67: 2022 | AC67: ERO | AD67: Pessoal | AE67: Outros Benefícios | AF67: 610550508 | AG67: 0
L68: PctRIIndustrial | M68: 0.0037 | O68: 45658 | P68: 19800.65 | AA68: 369 | AB68: 2022 | AC68: ERO | AD68: Pessoal | AE68: (-)Créditos Tributários Recuperáveis | AF68: 610550510 | AG68: 0
L69: PctRICOMERCIAL | M69: 0.0068 | O69: 45689 | P69: 54559.25 | AA69: 369 | AB69: 2022 | AC69: ERO | AD69: Pessoal | AE69: Outros | AF69: 610550599 | AG69: 0
L70: PctRIRURAL | M70: 0.0123 | O70: 45717 | P70: 4112.47 | AA70: 369 | AB70: 2022 | AC70: ERO | AD70: Pessoal | AE70: Administradores | AF70: 6105506 | AG70: 0
L71: PctRILUMPUBLICA | M71: 0.0007 | O71: 45748 | P71: -71710.05 | AA71: 369 | AB71: 2022 | AC71: ERO | AD71: Materiais | AE71: Materiais | AF71: 610550701 | AG71: 12510
L72: PctRIPODERPUBLICO | M72: 0.0018 | O72: 45778 | P72: 2530368.35 | AA72: 369 | AB72: 2022 | AC72: ERO | AD72: Materiais | AE72: (-)Créditos Tributários Recuperáveis | AF72: 610550710 | AG72: 0
L73: PctRISERVPUBLICO | M73: 0 | O73: 45809 | P73: 7596057.54 | AA73: 369 | AB73: 2022 | AC73: ERO | AD73: Materiais | AE73: Outros | AF73: 610550799 | AG73: 0
O74: 45839 | P74: 10249965.29 | AA74: 369 | AB74: 2022 | AC74: ERO | AD74: Terceiros | AE74: (-)Créditos Tributários Recuperáveis | AF74: 610550810 | AG74: 0
L75: Tipo | M75: % RI Anterior | O75: 45870 | P75: 15344659.1 | AA75: 369 | AB75: 2022 | AC75: ERO | AD75: Seguros | AE75: Seguros | AF75: 610551001 | AG75: 0
L76: PctRIResidencial | M76: 0.018 | O76: 45901 | P76: 21093671.32 | AA76: 369 | AB76: 2022 | AC76: ERO | AD76: Seguros | AE76: (-)Créditos Tributários Recuperáveis | AF76: 610551010 | AG76: 0
L77: PctRIIndustrial | M77: 0.0037 | O77: 45931 | P77: 21093671.32 | AA77: 369 | AB77: 2022 | AC77: ERO | AD77: Seguros | AE77: Outros | AF77: 610551099 | AG77: 0
L78: PctRICOMERCIAL | M78: 0.0068 | O78: 45962 | P78: 21093671.32 | AA78: 369 | AB78: 2022 | AC78: ERO | AD78: Tributos | AE78: Tributos | AF78: 6105516 | AG78: 0
L79: PctRIRURAL | M79: 0.0123 | AA79: 369 | AB79: 2022 | AC79: ERO | AD79: Outros | AE79: Indenização Perdas Danos | AF79: 610551901 | AG79: 0
L80: PctRILUMPUBLICA | M80: 0.0007 | AA80: 369 | AB80: 2022 | AC80: ERO | AD80: Outros | AE80: Consumo Próprio Energia | AF80: 610551902 | AG80: 0
L81: PctRIPODERPUBLICO | M81: 0.0018 | AA81: 369 | AB81: 2022 | AC81: ERO | AD81: Outros | AE81: Taxas Arrecadação | AF81: 610551903 | AG81: 0
L82: PctRISERVPUBLICO | M82: 0 | AA82: 369 | AB82: 2022 | AC82: ERO | AD82: Outros | AE82: Taxas Bancárias | AF82: 610551904 | AG82: 0
AA83: 369 | AB83: 2022 | AC83: ERO | AD83: Outros | AE83: (-)Créditos Tributários Recuperáveis | AF83: 610551910 | AG83: 0
B84: Tabela de Resumo de Montante DRP ano anterior/ Montante Apurado pelo Mercado | AA84: 369 | AB84: 2022 | AC84: ERO | AD84: Pessoal | AE84: Remuneração | AF84: 610552501 | AG84: 0
B85: detalhe_grupo | C85: GrupoTarifa | D85: tipoBase | E85: tipofatura | F85: ValorCTAnterior_Sum | G85: ValorAnt_Sum | L85: Prcesso Anterior | N85: RTE | AA85: 369 | AB85: 2022 | AC85: ERO | AD85: Pessoal | AE85: Encargos | AF85: 610552502 | AG85: 0
L86: MWh | M86: R$ | N86: MWh | O86: R$ | S86: DthEfetivaPagamento | T86: VlrGarantiaFinanceira | V86: Conta Escassez | W86: Valor | X86: Legislacao | AA86: 369 | AB86: 2022 | AC86: ERO | AD86: Pessoal | AE86: Previdência Privada Corrente | AF86: 610552503 | AG86: 0
I87: BILATERAL | K87: valor | L87: 97076.376 | M87: 29773081.83 | S87: 45627 | T87: 40603.42 | AA87: 369 | AB87: 2022 | AC87: ERO | AD87: Pessoal | AE87: Despesas Rescisórias | AF87: 610552506 | AG87: 0
I88: CCEAR-DISP | J88: Nova | K88: valor | L88: 2164411.812 | M88: 568709394.2 | S88: 45658 | T88: 40603.42 | AA88: 369 | AB88: 2022 | AC88: ERO | AD88: Pessoal | AE88: Participação Lucros Resultados | AF88: 610552507 | AG88: 0
I89: CCEAR-QTD | J89: Belo Monte | K89: valor | L89: 190326.3821 | M89: 33868183.79 | S89: 45689 | T89: 24240 | AA89: 369 | AB89: 2022 | AC89: ERO | AD89: Pessoal | AE89: Outros Benefícios | AF89: 610552508 | AG89: 0
I90: CCEAR-QTD | J90: Madeira | K90: valor | L90: 353050.601 | M90: 63385214.9 | S90: 45717 | T90: 24240 | AA90: 369 | AB90: 2022 | AC90: ERO | AD90: Pessoal | AE90: (-)Créditos Tributários Recuperáveis | AF90: 610552510 | AG90: 0
I91: CCEAR-QTD | J91: Nova | K91: valor | L91: 1328933.177 | M91: 209658480 | S91: 45748 | T91: 24240 | AA91: 369 | AB91: 2022 | AC91: ERO | AD91: Pessoal | AE91: Outros | AF91: 610552599 | AG91: 0
I92: CCEN | K92: valor | L92: 127850.3916 | M92: 45407345.06 | S92: 45778 | T92: 24240 | AA92: 369 | AB92: 2022 | AC92: ERO | AD92: Pessoal | AE92: Administradores | AF92: 6105526 | AG92: 0
I93: CCGF | K93: valor | L93: 541957.9565 | M93: 105842206.4 | S93: 45809 | T93: 24240 | AA93: 369 | AB93: 2022 | AC93: ERO | AD93: Materiais | AE93: Materiais | AF93: 610552701 | AG93: 909.3
I94: GERAÇÃO PRÓPRIA | K94: valor | L94: 1765 | M94: 541747.9878 | S94: 45839 | T94: 25529.48 | AA94: 369 | AB94: 2022 | AC94: ERO | AD94: Materiais | AE94: (-)Créditos Tributários Recuperáveis | AF94: 610552710 | AG94: 0
I95: PROINFA | K95: valor | L95: 79242.50698 | S95: 45870 | T95: 25529.48 | AA95: 369 | AB95: 2022 | AC95: ERO | AD95: Materiais | AE95: Outros | AF95: 610552799 | AG95: 0
I96: SOBRA/EXPOSIÇÃO | K96: valor | L96: -245214.4586 | M96: -53947378.93 | S96: 45901 | T96: 25529.48 | AA96: 369 | AB96: 2022 | AC96: ERO | AD96: Terceiros | AE96: AdmCentral | AF96: 610552801 | AG96: 0
S97: 45931 | T97: 25529.48 | AA97: 369 | AB97: 2022 | AC97: ERO | AD97: Terceiros | AE97: (-)Créditos Tributários Recuperáveis | AF97: 610552810 | AG97: 0
AA98: 369 | AB98: 2022 | AC98: ERO | AD98: Seguros | AE98: Seguros | AF98: 610553001 | AG98: 0
AA99: 369 | AB99: 2022 | AC99: ERO | AD99: Seguros | AE99: (-)Créditos Tributários Recuperáveis | AF99: 610553010 | AG99: 0
AA100: 369 | AB100: 2022 | AC100: ERO | AD100: Seguros | AE100: Outros | AF100: 610553099 | AG100: 0
AA101: 369 | AB101: 2022 | AC101: ERO | AD101: Tributos | AE101: Tributos | AF101: 6105536 | AG101: 0
AA102: 369 | AB102: 2022 | AC102: ERO | AD102: Outros | AE102: Indenização Perdas Danos | AF102: 610553901 | AG102: 0
AA103: 369 | AB103: 2022 | AC103: ERO | AD103: Outros | AE103: Consumo Próprio Energia | AF103: 610553902 | AG103: 0
AA104: 369 | AB104: 2022 | AC104: ERO | AD104: Outros | AE104: Taxas Arrecadação | AF104: 610553903 | AG104: 0
V105: Empresa | W105: AT | X105: MT | Y105: BT | AA105: 369 | AB105: 2022 | AC105: ERO | AD105: Outros | AE105: Taxas Bancárias | AF105: 610553904 | AG105: 0
V106: 167 | W106: 0.02134 | X106: 0.35825 | Y106: 0.62041 | AA106: 369 | AB106: 2022 | AC106: ERO | AD106: Outros | AE106: (-)Créditos Tributários Recuperáveis | AF106: 610553910 | AG106: 0
V107: 102 | W107: 0.064 | X107: 0.32003 | Y107: 0.61596 | AA107: 369 | AB107: 2022 | AC107: ERO | AD107: Demais | AE107: Ganhos Alienação Materiais | AF107: 611112103 | AG107: 0
V108: 103 | W108: 0.02996 | X108: 0.27106 | Y108: 0.69898 | AA108: 369 | AB108: 2022 | AC108: ERO | AD108: Demais | AE108: Ganhos Alienação Materiais | AF108: 611112203 | AG108: 0
V109: 104 | W109: 0.07171 | X109: 0.2909 | Y109: 0.63739 | AA109: 369 | AB109: 2022 | AC109: ERO | AD109: Demais | AE109: Ganhos Alienação Materiais | AF109: 611112303 | AG109: 0
V110: 105 | W110: 0.00823 | X110: 0.24677 | Y110: 0.745 | AA110: 369 | AB110: 2022 | AC110: ERO | AD110: Demais | AE110: Ganhos Alienação Materiais | AF110: 611112403 | AG110: 0
I111: Agente | J111: idagente | K111: indexador | L111: database | M111: RAP do ciclo | N111: Colunas1 | O111: RAP atualizada | V111: 165 | W111: 0.00795 | X111: 0.22554 | Y111: 0.76651 | AA111: 369 | AB111: 2022 | AC111: ERO | AD111: Demais | AE111: Ganhos Alienação Materiais | AF111: 611112503 | AG111: 0
O112: =M112*VLOOKUP(CAPA!C15,Índices!$B$6:$F$626,IF(BD!K112="IPCA",3,2),FALSE)/VLOOKUP(L112,Índices!$B$6:$F$626,IF(BD!K112="IPCA",3,2),FALSE) ->  | V112: 108 | W112: 0.06098 | X112: 0.1711 | Y112: 0.76792 | AA112: 369 | AB112: 2022 | AC112: ERO | AD112: Demais | AE112: Perdas Alienação Desativação | AF112: 611511401 | AG112: 0
O113: =M113*VLOOKUP(CAPA!C16,Índices!$B$6:$F$626,IF(BD!K113="IPCA",3,2),FALSE)/VLOOKUP(L113,Índices!$B$6:$F$626,IF(BD!K113="IPCA",3,2),FALSE) ->  | V113: 109 | W113: 0.01034 | X113: 0.24366 | Y113: 0.746 | AA113: 369 | AB113: 2022 | AC113: ERO | AD113: Demais | AE113: Perdas Alienação Desativação | AF113: 611512003 | AG113: 23155302.45
O114: =M114*VLOOKUP(CAPA!C17,Índices!$B$6:$F$626,IF(BD!K114="IPCA",3,2),FALSE)/VLOOKUP(L114,Índices!$B$6:$F$626,IF(BD!K114="IPCA",3,2),FALSE) ->  | V114: 110 | W114: 0.01165 | X114: 0.24322 | Y114: 0.74513 | AA114: 369 | AB114: 2022 | AC114: ERO | AD114: Demais | AE114: Perdas Alienação Desativação | AF114: 611512103 | AG114: 0
O115: =M115*VLOOKUP(CAPA!C18,Índices!$B$6:$F$626,IF(BD!K115="IPCA",3,2),FALSE)/VLOOKUP(L115,Índices!$B$6:$F$626,IF(BD!K115="IPCA",3,2),FALSE) ->  | V115: 111 | W115: 0.03791 | X115: 0.37961 | Y115: 0.58248 | AA115: 369 | AB115: 2022 | AC115: ERO | AD115: Demais | AE115: Perdas Alienação Desativação | AF115: 611512203 | AG115: 1861139.42
O116: =M116*VLOOKUP(CAPA!C19,Índices!$B$6:$F$626,IF(BD!K116="IPCA",3,2),FALSE)/VLOOKUP(L116,Índices!$B$6:$F$626,IF(BD!K116="IPCA",3,2),FALSE) ->  | V116: 112 | W116: 0.02273 | X116: 0.26361 | Y116: 0.71367 | AA116: 369 | AB116: 2022 | AC116: ERO | AD116: Demais | AE116: Perdas Alienação Desativação | AF116: 611512303 | AG116: 31800893.67
O117: =M117*VLOOKUP(CAPA!C20,Índices!$B$6:$F$626,IF(BD!K117="IPCA",3,2),FALSE)/VLOOKUP(L117,Índices!$B$6:$F$626,IF(BD!K117="IPCA",3,2),FALSE) ->  | V117: 113 | W117: 0.01263 | X117: 0.23345 | Y117: 0.75392 | AA117: 369 | AB117: 2023 | AC117: ERO | AD117: Pessoal | AE117: Remuneração | AF117: 610530501 | AG117: 24971120.83
O118: =M118*VLOOKUP(CAPA!C21,Índices!$B$6:$F$626,IF(BD!K118="IPCA",3,2),FALSE)/VLOOKUP(L118,Índices!$B$6:$F$626,IF(BD!K118="IPCA",3,2),FALSE) ->  | V118: 114 | W118: 0.01726 | X118: 0.23794 | Y118: 0.7448 | AA118: 369 | AB118: 2023 | AC118: ERO | AD118: Pessoal | AE118: Encargos | AF118: 610530502 | AG118: 28182458.97
O119: =M119*VLOOKUP(CAPA!C22,Índices!$B$6:$F$626,IF(BD!K119="IPCA",3,2),FALSE)/VLOOKUP(L119,Índices!$B$6:$F$626,IF(BD!K119="IPCA",3,2),FALSE) ->  | V119: 115 | W119: 0.00993 | X119: 0.23087 | Y119: 0.7592 | AA119: 369 | AB119: 2023 | AC119: ERO | AD119: Pessoal | AE119: Previdência Privada Corrente | AF119: 610530503 | AG119: 531783.11
O120: =M120*VLOOKUP(CAPA!C23,Índices!$B$6:$F$626,IF(BD!K120="IPCA",3,2),FALSE)/VLOOKUP(L120,Índices!$B$6:$F$626,IF(BD!K120="IPCA",3,2),FALSE) ->  | S120: iddet1 | T120: valor | V120: 116 | W120: 0.00806 | X120: 0.16835 | Y120: 0.82359 | AA120: 369 | AB120: 2023 | AC120: ERO | AD120: Pessoal | AE120: Despesas Rescisórias | AF120: 610530506 | AG120: 0
O121: =M121*VLOOKUP(CAPA!C24,Índices!$B$6:$F$626,IF(BD!K121="IPCA",3,2),FALSE)/VLOOKUP(L121,Índices!$B$6:$F$626,IF(BD!K121="IPCA",3,2),FALSE) ->  | S121: 56-Datalimite_D-25 | T121: 45980 | V121: 117 | W121: 0.03028 | X121: 0.29131 | Y121: 0.67841 | AA121: 369 | AB121: 2023 | AC121: ERO | AD121: Pessoal | AE121: Participação Lucros Resultados | AF121: 610530507 | AG121: 5384579.64
O122: =M122*VLOOKUP(CAPA!C25,Índices!$B$6:$F$626,IF(BD!K122="IPCA",3,2),FALSE)/VLOOKUP(L122,Índices!$B$6:$F$626,IF(BD!K122="IPCA",3,2),FALSE) ->  | S122: 57-DthEfetivaPagamento | T122: 45945 | V122: 118 | W122: 0.04215 | X122: 0.2081 | Y122: 0.74975 | AA122: 369 | AB122: 2023 | AC122: ERO | AD122: Pessoal | AE122: Outros Benefícios | AF122: 610530508 | AG122: 33564804.62
O123: =M123*VLOOKUP(CAPA!C26,Índices!$B$6:$F$626,IF(BD!K123="IPCA",3,2),FALSE)/VLOOKUP(L123,Índices!$B$6:$F$626,IF(BD!K123="IPCA",3,2),FALSE) ->  | S123: 58-DthCompetenciaPagamento | T123: 45901 | V123: 119 | W123: 0.01807 | X123: 0.11713 | Y123: 0.8648 | AA123: 369 | AB123: 2023 | AC123: ERO | AD123: Pessoal | AE123: (-)Créditos Tributários Recuperáveis | AF123: 610530510 | AG123: 0
O124: =M124*VLOOKUP(CAPA!C27,Índices!$B$6:$F$626,IF(BD!K124="IPCA",3,2),FALSE)/VLOOKUP(L124,Índices!$B$6:$F$626,IF(BD!K124="IPCA",3,2),FALSE) ->  | V124: 120 | W124: - | X124: 0.17688 | Y124: 0.82312 | AA124: 369 | AB124: 2023 | AC124: ERO | AD124: Pessoal | AE124: Remuneração | AF124: 610530511 | AG124: 1098274.84
O125: =M125*VLOOKUP(CAPA!C28,Índices!$B$6:$F$626,IF(BD!K125="IPCA",3,2),FALSE)/VLOOKUP(L125,Índices!$B$6:$F$626,IF(BD!K125="IPCA",3,2),FALSE) ->  | V125: 123 | W125: - | X125: 0.13612 | Y125: 0.86388 | AA125: 369 | AB125: 2023 | AC125: ERO | AD125: Pessoal | AE125: Outros | AF125: 610530599 | AG125: 0
O126: =M126*VLOOKUP(CAPA!C29,Índices!$B$6:$F$626,IF(BD!K126="IPCA",3,2),FALSE)/VLOOKUP(L126,Índices!$B$6:$F$626,IF(BD!K126="IPCA",3,2),FALSE) ->  | V126: 166 | W126: 0.04257 | X126: 0.29652 | Y126: 0.66092 | AA126: 369 | AB126: 2023 | AC126: ERO | AD126: Pessoal | AE126: Administradores | AF126: 6105306 | AG126: 0
O127: =M127*VLOOKUP(CAPA!C30,Índices!$B$6:$F$626,IF(BD!K127="IPCA",3,2),FALSE)/VLOOKUP(L127,Índices!$B$6:$F$626,IF(BD!K127="IPCA",3,2),FALSE) ->  | V127: 128 | W127: - | X127: 0.40427 | Y127: 0.59573 | AA127: 369 | AB127: 2023 | AC127: ERO | AD127: Materiais | AE127: Materiais | AF127: 610530701 | AG127: 24659392.47
O128: =M128*VLOOKUP(CAPA!C31,Índices!$B$6:$F$626,IF(BD!K128="IPCA",3,2),FALSE)/VLOOKUP(L128,Índices!$B$6:$F$626,IF(BD!K128="IPCA",3,2),FALSE) ->  | V128: 129 | W128: 0.02905 | X128: 0.24895 | Y128: 0.722 | AA128: 369 | AB128: 2023 | AC128: ERO | AD128: Materiais | AE128: (-)Créditos Tributários Recuperáveis | AF128: 610530710 | AG128: -78425.62
O129: =M129*VLOOKUP(CAPA!C32,Índices!$B$6:$F$626,IF(BD!K129="IPCA",3,2),FALSE)/VLOOKUP(L129,Índices!$B$6:$F$626,IF(BD!K129="IPCA",3,2),FALSE) ->  | V129: 130 | W129: 0.0175 | X129: 0.14397 | Y129: 0.83853 | AA129: 369 | AB129: 2023 | AC129: ERO | AD129: Materiais | AE129: Outros | AF129: 610530799 | AG129: 2038965.33
O130: =M130*VLOOKUP(CAPA!C33,Índices!$B$6:$F$626,IF(BD!K130="IPCA",3,2),FALSE)/VLOOKUP(L130,Índices!$B$6:$F$626,IF(BD!K130="IPCA",3,2),FALSE) ->  | S130: Nível | T130: Mercado Faturado A-6 | V130: 131 | W130: - | X130: 0.30099 | Y130: 0.69901 | AA130: 369 | AB130: 2023 | AC130: ERO | AD130: Terceiros | AE130: (-)Créditos Tributários Recuperáveis | AF130: 610530810 | AG130: -1534882.46
O131: =M131*VLOOKUP(CAPA!C34,Índices!$B$6:$F$626,IF(BD!K131="IPCA",3,2),FALSE)/VLOOKUP(L131,Índices!$B$6:$F$626,IF(BD!K131="IPCA",3,2),FALSE) ->  | S131: AT | T131: 41968.909 | V131: 132 | W131: 0.02757 | X131: 0.26424 | Y131: 0.70819 | AA131: 369 | AB131: 2023 | AC131: ERO | AD131: Seguros | AE131: Seguros | AF131: 610531001 | AG131: 0
O132: =M132*VLOOKUP(CAPA!C35,Índices!$B$6:$F$626,IF(BD!K132="IPCA",3,2),FALSE)/VLOOKUP(L132,Índices!$B$6:$F$626,IF(BD!K132="IPCA",3,2),FALSE) ->  | S132: BT | T132: 2415780.546 | V132: 133 | W132: 0.01856 | X132: 0.19536 | Y132: 0.78608 | AA132: 369 | AB132: 2023 | AC132: ERO | AD132: Seguros | AE132: (-)Créditos Tributários Recuperáveis | AF132: 610531010 | AG132: 0
S133: MT | T133: 887898.375 | V133: 135 | W133: 0.04788 | X133: 0.27054 | Y133: 0.68158 | AA133: 369 | AB133: 2023 | AC133: ERO | AD133: Seguros | AE133: Outros | AF133: 610531099 | AG133: 0
V134: 136 | W134: 0.06732 | X134: 0.35547 | Y134: 0.57721 | AA134: 369 | AB134: 2023 | AC134: ERO | AD134: Demais | AE134: Condenações Trabalhistas | AF134: 610531212 | AG134: 0
V135: 138 | W135: - | X135: 0.07651 | Y135: 0.92349 | AA135: 369 | AB135: 2023 | AC135: ERO | AD135: Tributos | AE135: Tributos | AF135: 6105316 | AG135: 537085.74
V136: 139 | W136: - | X136: 0.35483 | Y136: 0.64517 | AA136: 369 | AB136: 2023 | AC136: ERO | AD136: Outros | AE136: Indenização Perdas Danos | AF136: 610531901 | AG136: 4349.6
V137: 140 | W137: 0.01004 | X137: 0.21058 | Y137: 0.77938 | AA137: 369 | AB137: 2023 | AC137: ERO | AD137: Outros | AE137: Consumo Próprio Energia | AF137: 610531902 | AG137: 5782590.24
V138: 143 | W138: - | X138: 0.20409 | Y138: 0.79591 | AA138: 369 | AB138: 2023 | AC138: ERO | AD138: Outros | AE138: Taxas Arrecadação | AF138: 610531903 | AG138: 0
V139: 144 | W139: - | X139: 0.48131 | Y139: 0.51869 | AA139: 369 | AB139: 2023 | AC139: ERO | AD139: Outros | AE139: Taxas Bancárias | AF139: 610531904 | AG139: 0
A140: NumBar | B140: Nome Conexão | C140: Tensão | D140: Posto Tarifário | E140: Tarifas RB - DRA | F140: Tarifa RB - DRP | G140: Tarifas Fronteira - DRA | H140: Tarifa Fronteira - DRP | I140: M01 | J140: M02 | K140: M03 | L140: M04 | M140: M05 | N140: M06 | O140: M07 | P140: M08 | Q140: M09 | R140: M10 | S140: M11 | T140: M12 | V140: 145 | W140: 0.03725 | X140: 0.29306 | Y140: 0.66969 | AA140: 369 | AB140: 2023 | AC140: ERO | AD140: Outros | AE140: DespesaConselhoConsumidores | AF140: 610531905 | AG140: 0
A141: 6931 | B141: ABUNA - 138 kV (A) | C141: 138.0 | D141: Ponta | E141: 6541 | F141: 8870 | G141: 2745 | H141: 2680 | I141: 38.6 | J141: 36.505 | K141: 36.505 | L141: 36.505 | M141: 36.505 | N141: 36.505 | O141: 36.505 | P141: 36.505 | Q141: 39 | R141: 39 | S141: 39 | T141: 39 | W141: - | X141: 0.14124 | Y141: 0.85876 | AA141: 369 | AB141: 2023 | AC141: ERO | AD141: Outros | AE141: Comunicação e Reprografia | AF141: 610531908 | AG141: 410677.44
A142: 6869 | B142: JARU - 138 kV (A) | C142: 138.0 | D142: Ponta | E142: 6570 | F142: 8280 | G142: 4823 | H142: 4410 | I142: 25.1 | J142: 24.6 | K142: 24.6 | L142: 24.6 | M142: 24.6 | N142: 24.6 | O142: 24.6 | P142: 24.6 | Q142: 24.6 | R142: 24.6 | S142: 24.6 | T142: 24.6 | V142: 147 | W142: - | X142: 0.20977 | Y142: 0.79023 | AA142: 369 | AB142: 2023 | AC142: ERO | AD142: Demais | AE142: Gastos com CCEE | AF142: 610531909 | AG142: 103264.68
A143: 6841 | B143: JI-PARANA - 138 kV (A) | C143: 138.0 | D143: Ponta | E143: 6417 | F143: 8000 | G143: 449 | H143: 370 | I143: 149.5 | J143: 145 | K143: 145 | L143: 145 | M143: 145 | N143: 145 | O143: 145 | P143: 145 | Q143: 145 | R143: 145 | S143: 145 | T143: 145 | V143: 148 | W143: 0.03455 | X143: 0.23757 | Y143: 0.72788 | AA143: 369 | AB143: 2023 | AC143: ERO | AD143: Outros | AE143: (-)Créditos Tributários Recuperáveis | AF143: 610531910 | AG143: 0
A144: 6821 | B144: PIMENTA BUENO - 138 kV (A) | C144: 138.0 | D144: Ponta | E144: 6279 | F144: 7730 | G144: 1303 | H144: 4440 | I144: 54.807 | J144: 30 | K144: 30 | L144: 30 | M144: 30 | N144: 30 | O144: 30 | P144: 30 | Q144: 30 | R144: 30 | S144: 30 | T144: 30 | V144: 149 | W144: - | X144: 0.17399 | Y144: 0.82601 | AA144: 369 | AB144: 2023 | AC144: ERO | AD144: Pessoal | AE144: Remuneração | AF144: 610532501 | AG144: 8684567.26
A145: 6881 | B145: ARIQUEMES - 69 kV (A) | C145: 69.0 | D145: Ponta | E145: 6351 | F145: 8170 | G145: 3745 | H145: 3200 | I145: 86.354 | J145: 89.826 | K145: 89.826 | L145: 89.826 | M145: 89.826 | N145: 89.826 | O145: 89.826 | P145: 89.826 | Q145: 89.826 | R145: 89.826 | S145: 89.826 | T145: 89.826 | V145: 150 | W145: 0.03635 | X145: 0.17413 | Y145: 0.78952 | AA145: 369 | AB145: 2023 | AC145: ERO | AD145: Pessoal | AE145: Encargos | AF145: 610532502 | AG145: 5954067.29
A146: 7049 | B146: C.PORTO VELHO - 69 kV (A) | C146: 69.0 | D146: Ponta | E146: 6048 | F146: 8200 | G146: 921 | H146: 1450 | I146: 144.4 | J146: 150.421 | K146: 150.421 | L146: 150.421 | M146: 150.421 | N146: 150.421 | O146: 150.421 | P146: 150.421 | Q146: 150.421 | R146: 150.421 | S146: 150.421 | T146: 150.421 | V146: 151 | W146: 0.02735 | X146: 0.28351 | Y146: 0.68915 | AA146: 369 | AB146: 2023 | AC146: ERO | AD146: Pessoal | AE146: Previdência Privada Corrente | AF146: 610532503 | AG146: 649050.44
A147: 6871 | B147: JARU - 69 kV (A) | C147: 69.0 | D147: Ponta | E147: 6570 | F147: 8280 | G147: 5705 | H147: 5620 | I147: 36 | J147: 36.48 | K147: 36.48 | L147: 36.48 | M147: 36.48 | N147: 36.48 | O147: 36.48 | P147: 36.48 | Q147: 38.5 | R147: 38.5 | S147: 38.5 | T147: 38.5 | V147: 152 | W147: 0.00215 | X147: 0.1412 | Y147: 0.85665 | AA147: 369 | AB147: 2023 | AC147: ERO | AD147: Pessoal | AE147: Despesas Rescisórias | AF147: 610532506 | AG147: 0
A148: 6842 | B148: JI-PARANA - 69 kV (A) | C148: 69.0 | D148: Ponta | E148: 6417 | F148: 8000 | G148: 1989 | H148: 1750 | I148: 116.8 | J148: 114.917 | K148: 114.917 | L148: 114.917 | M148: 114.917 | N148: 114.917 | O148: 114.917 | P148: 114.917 | Q148: 114.917 | R148: 114.917 | S148: 114.917 | T148: 114.917 | V148: 153 | W148: 0.03606 | X148: 0.17601 | Y148: 0.78793 | AA148: 369 | AB148: 2023 | AC148: ERO | AD148: Pessoal | AE148: Participação Lucros Resultados | AF148: 610532507 | AG148: 3014651.43
A149: 6901 | B149: PORTO VELHO - 69 kV (A) | C149: 69.0 | D149: Ponta | E149: 6136 | F149: 8300 | G149: 747 | H149: 670 | I149: 293.138 | J149: 308.838 | K149: 308.838 | L149: 308.838 | M149: 308.838 | N149: 308.838 | O149: 308.838 | P149: 308.838 | Q149: 308.838 | R149: 308.838 | S149: 308.838 | T149: 308.838 | V149: 154 | W149: 0.12913 | X149: 0.26626 | Y149: 0.60462 | AA149: 369 | AB149: 2023 | AC149: ERO | AD149: Pessoal | AE149: Outros Benefícios | AF149: 610532508 | AG149: 3786832.71
A150: 6863 | B150: UHE JIRAU - 69 kV (A) | C150: 69.0 | D150: Ponta | E150: 6350 | F150: 8600 | G150: 141 | H150: 1030 | I150: 11 | J150: 10.892 | K150: 10.892 | L150: 10.892 | M150: 10.892 | N150: 10.892 | O150: 10.892 | P150: 10.892 | Q150: 10.892 | R150: 10.892 | S150: 10.892 | T150: 10.892 | V150: 155 | W150: 0.04008 | X150: 0.23225 | Y150: 0.72768 | AA150: 369 | AB150: 2023 | AC150: ERO | AD150: Pessoal | AE150: (-)Créditos Tributários Recuperáveis | AF150: 610532510 | AG150: 0
A151: 6801 | B151: VILHENA - 69 kV (A) | C151: 69.0 | D151: Ponta | E151: 6128 | F151: 7420 | G151: 852 | H151: 770 | I151: 60 | J151: 52.919 | K151: 52.919 | L151: 52.919 | M151: 52.919 | N151: 52.919 | O151: 52.919 | P151: 52.919 | Q151: 52.919 | R151: 52.919 | S151: 52.919 | T151: 52.919 | V151: 156 | W151: - | X151: 0.35985 | Y151: 0.64015 | AA151: 369 | AB151: 2023 | AC151: ERO | AD151: Pessoal | AE151: Remuneração | AF151: 610532511 | AG151: -167520.71
A152: 6931 | B152: ABUNA - 138 kV (A) | C152: 138.0 | D152: Fora Ponta | E152: 6294 | F152: 8930 | G152: 2745 | H152: 2680 | I152: 40.5 | J152: 36.674 | K152: 36.674 | L152: 36.674 | M152: 36.674 | N152: 36.674 | O152: 36.674 | P152: 36.674 | Q152: 39 | R152: 39 | S152: 39 | T152: 39 | V152: 157 | W152: - | X152: 0.15963 | Y152: 0.84037 | AA152: 369 | AB152: 2023 | AC152: ERO | AD152: Pessoal | AE152: Outros | AF152: 610532599 | AG152: 0
A153: 6869 | B153: JARU - 138 kV (A) | C153: 138.0 | D153: Fora Ponta | E153: 6435 | F153: 8400 | G153: 4823 | H153: 4410 | I153: 25.6 | J153: 23.94 | K153: 23.94 | L153: 23.94 | M153: 23.94 | N153: 23.94 | O153: 23.94 | P153: 23.94 | Q153: 23.94 | R153: 23.94 | S153: 23.94 | T153: 23.94 | V153: 158 | W153: - | X153: 0.33049 | Y153: 0.66951 | AA153: 369 | AB153: 2023 | AC153: ERO | AD153: Pessoal | AE153: Administradores | AF153: 6105326 | AG153: 3481258.89
A154: 6841 | B154: JI-PARANA - 138 kV (A) | C154: 138.0 | D154: Fora Ponta | E154: 6293 | F154: 8110 | G154: 449 | H154: 370 | I154: 153 | J154: 147 | K154: 147 | L154: 147 | M154: 147 | N154: 147 | O154: 147 | P154: 147 | Q154: 147 | R154: 147 | S154: 147 | T154: 147 | V154: 160 | W154: 0.1013 | X154: 0.22818 | Y154: 0.67051 | AA154: 369 | AB154: 2023 | AC154: ERO | AD154: Materiais | AE154: Materiais | AF154: 610532701 | AG154: 12208784.95
A155: 6821 | B155: PIMENTA BUENO - 138 kV (A) | C155: 138.0 | D155: Fora Ponta | E155: 6175 | F155: 7850 | G155: 1303 | H155: 4440 | I155: 27.464 | J155: 30 | K155: 30 | L155: 30 | M155: 30 | N155: 30 | O155: 30 | P155: 30 | Q155: 30 | R155: 30 | S155: 30 | T155: 30 | V155: 161 | W155: - | X155: 0.28355 | Y155: 0.71645 | AA155: 369 | AB155: 2023 | AC155: ERO | AD155: Materiais | AE155: (-)Créditos Tributários Recuperáveis | AF155: 610532710 | AG155: 0
A156: 6881 | B156: ARIQUEMES - 69 kV (A) | C156: 69.0 | D156: Fora Ponta | E156: 6169 | F156: 8250 | G156: 3745 | H156: 3200 | I156: 91.297 | J156: 95.23 | K156: 95.23 | L156: 95.23 | M156: 95.23 | N156: 95.23 | O156: 95.23 | P156: 95.23 | Q156: 95.23 | R156: 95.23 | S156: 95.23 | T156: 95.23 | V156: 163 | W156: 0.03507 | X156: 0.1664 | Y156: 0.79853 | AA156: 369 | AB156: 2023 | AC156: ERO | AD156: Materiais | AE156: Outros | AF156: 610532799 | AG156: 0
A157: 7049 | B157: C.PORTO VELHO - 69 kV (A) | C157: 69.0 | D157: Fora Ponta | E157: 5751 | F157: 8220 | G157: 921 | H157: 1450 | I157: 148.8 | J157: 153.006 | K157: 153.006 | L157: 153.006 | M157: 153.006 | N157: 153.006 | O157: 153.006 | P157: 153.006 | Q157: 153.006 | R157: 153.006 | S157: 153.006 | T157: 153.006 | V157: 164 | W157: - | X157: 0.12897 | Y157: 0.87103 | AA157: 369 | AB157: 2023 | AC157: ERO | AD157: Terceiros | AE157: AdmCentral | AF157: 610532801 | AG157: 78825600.47
A158: 6871 | B158: JARU - 69 kV (A) | C158: 69.0 | D158: Fora Ponta | E158: 6435 | F158: 8400 | G158: 5705 | H158: 5620 | I158: 39 | J158: 38.926 | K158: 38.926 | L158: 38.926 | M158: 38.926 | N158: 38.926 | O158: 38.926 | P158: 38.926 | Q158: 40.4 | R158: 40.4 | S158: 40.4 | T158: 40.4 | AA158: 369 | AB158: 2023 | AC158: ERO | AD158: Terceiros | AE158: (-)Créditos Tributários Recuperáveis | AF158: 610532810 | AG158: 0
A159: 6842 | B159: JI-PARANA - 69 kV (A) | C159: 69.0 | D159: Fora Ponta | E159: 6293 | F159: 8110 | G159: 1989 | H159: 1750 | I159: 122.5 | J159: 113.917 | K159: 113.917 | L159: 113.917 | M159: 113.917 | N159: 113.917 | O159: 113.917 | P159: 113.917 | Q159: 119.5 | R159: 119.5 | S159: 119.5 | T159: 119.5 | AA159: 369 | AB159: 2023 | AC159: ERO | AD159: Seguros | AE159: Seguros | AF159: 610533001 | AG159: 2011384.77
A160: 6901 | B160: PORTO VELHO - 69 kV (A) | C160: 69.0 | D160: Fora Ponta | E160: 5851 | F160: 8340 | G160: 747 | H160: 670 | I160: 299.3 | J160: 315 | K160: 315 | L160: 315 | M160: 315 | N160: 315 | O160: 315 | P160: 315 | Q160: 315 | R160: 315 | S160: 315 | T160: 315 | AA160: 369 | AB160: 2023 | AC160: ERO | AD160: Seguros | AE160: (-)Créditos Tributários Recuperáveis | AF160: 610533010 | AG160: 0
A161: 6863 | B161: UHE JIRAU - 69 kV (A) | C161: 69.0 | D161: Fora Ponta | E161: 6086 | F161: 8650 | G161: 141 | H161: 1030 | I161: 11 | J161: 10.265 | K161: 10.265 | L161: 10.265 | M161: 10.265 | N161: 10.265 | O161: 10.265 | P161: 10.265 | Q161: 10.265 | R161: 10.265 | S161: 10.265 | T161: 10.265 | AA161: 369 | AB161: 2023 | AC161: ERO | AD161: Seguros | AE161: Outros | AF161: 610533099 | AG161: 0
A162: 6801 | B162: VILHENA - 69 kV (A) | C162: 69.0 | D162: Fora Ponta | E162: 6069 | F162: 7540 | G162: 852 | H162: 770 | I162: 60 | J162: 53.921 | K162: 53.921 | L162: 53.921 | M162: 53.921 | N162: 53.921 | O162: 53.921 | P162: 53.921 | Q162: 53.921 | R162: 53.921 | S162: 53.921 | T162: 53.921 | AA162: 369 | AB162: 2023 | AC162: ERO | AD162: Demais | AE162: Condenações Trabalhistas | AF162: 610533212 | AG162: -7828634.82
V163: Tab_EnergiaConsumidaMWh | AA163: 369 | AB163: 2023 | AC163: ERO | AD163: Tributos | AE163: Tributos | AF163: 6105336 | AG163: 2419490.8
V164: Competencia | W164: EnergiaConsumidaMWh | X164: EnergiaFaturadaMWh | Y164: Dif_Consumida_FaturadaMWh | AA164: 369 | AB164: 2023 | AC164: ERO | AD164: Outros | AE164: Indenização Perdas Danos | AF164: 610533901 | AG164: 964517.37
V165: 45627 | W165: 54931.35 | X165: 19031.778 | Y165: 35899.572 | AA165: 369 | AB165: 2023 | AC165: ERO | AD165: Outros | AE165: Consumo Próprio Energia | AF165: 610533902 | AG165: 0
V166: 45658 | W166: 52872.294 | X166: 17883.904 | Y166: 34988.39 | AA166: 369 | AB166: 2023 | AC166: ERO | AD166: Outros | AE166: Taxas Arrecadação | AF166: 610533903 | AG166: 0
V167: 45689 | W167: 54590.49 | X167: 17572.944 | Y167: 37017.546 | AA167: 369 | AB167: 2023 | AC167: ERO | AD167: Outros | AE167: Taxas Bancárias | AF167: 610533904 | AG167: 0
V168: 45717 | W168: 57381.446 | X168: 18794.466 | Y168: 38586.98 | AA168: 369 | AB168: 2023 | AC168: ERO | AD168: Outros | AE168: Comunicação e Reprografia | AF168: 610533907 | AG168: 4926847.51
V169: 45748 | W169: 60099.153 | X169: 20379.69 | Y169: 39719.463 | AA169: 369 | AB169: 2023 | AC169: ERO | AD169: Demais | AE169: Gastos com CCEE | AF169: 610533908 | AG169: 0
V170: 45778 | W170: 67782.416 | X170: 22588.441 | Y170: 45193.975 | AA170: 369 | AB170: 2023 | AC170: ERO | AD170: Outros | AE170: (-)Créditos Tributários Recuperáveis | AF170: 610533910 | AG170: 0
V171: 45809 | W171: 64954.334 | X171: 21341.658 | Y171: 43612.676 | AA171: 369 | AB171: 2023 | AC171: ERO | AD171: Pessoal | AE171: Remuneração | AF171: 610550501 | AG171: 0
V172: 45839 | W172: 63930.648 | X172: 18349.454 | Y172: 45581.194 | AA172: 369 | AB172: 2023 | AC172: ERO | AD172: Pessoal | AE172: Encargos | AF172: 610550502 | AG172: 0
V173: 45870 | W173: 71747.801 | X173: 19854.225 | Y173: 51893.576 | AA173: 369 | AB173: 2023 | AC173: ERO | AD173: Pessoal | AE173: Previdência Privada Corrente | AF173: 610550503 | AG173: 0
V174: 45901 | W174: 78750.058 | X174: 22352.833 | Y174: 56397.225 | AA174: 369 | AB174: 2023 | AC174: ERO | AD174: Pessoal | AE174: Despesas Rescisórias | AF174: 610550506 | AG174: 0
V175: 45931 | W175: 79650.656 | X175: 22842.753 | Y175: 56807.903 | AA175: 369 | AB175: 2023 | AC175: ERO | AD175: Pessoal | AE175: Participação Lucros Resultados | AF175: 610550507 | AG175: 0
V176: 45962 | W176: 79650.656 | X176: 22842.753 | Y176: 56807.903 | AA176: 369 | AB176: 2023 | AC176: ERO | AD176: Pessoal | AE176: Outros Benefícios | AF176: 610550508 | AG176: 0
AA177: 369 | AB177: 2023 | AC177: ERO | AD177: Pessoal | AE177: (-)Créditos Tributários Recuperáveis | AF177: 610550510 | AG177: 0
AA178: 369 | AB178: 2023 | AC178: ERO | AD178: Pessoal | AE178: Outros | AF178: 610550599 | AG178: 0
AA179: 369 | AB179: 2023 | AC179: ERO | AD179: Pessoal | AE179: Administradores | AF179: 6105506 | AG179: 0
AA180: 369 | AB180: 2023 | AC180: ERO | AD180: Materiais | AE180: Materiais | AF180: 610550701 | AG180: 0
AA181: 369 | AB181: 2023 | AC181: ERO | AD181: Materiais | AE181: (-)Créditos Tributários Recuperáveis | AF181: 610550710 | AG181: 0
AA182: 369 | AB182: 2023 | AC182: ERO | AD182: Materiais | AE182: Outros | AF182: 610550799 | AG182: 0
AA183: 369 | AB183: 2023 | AC183: ERO | AD183: Terceiros | AE183: (-)Créditos Tributários Recuperáveis | AF183: 610550810 | AG183: 0
AA184: 369 | AB184: 2023 | AC184: ERO | AD184: Seguros | AE184: Seguros | AF184: 610551001 | AG184: 0
AA185: 369 | AB185: 2023 | AC185: ERO | AD185: Seguros | AE185: (-)Créditos Tributários Recuperáveis | AF185: 610551010 | AG185: 0
AA186: 369 | AB186: 2023 | AC186: ERO | AD186: Seguros | AE186: Outros | AF186: 610551099 | AG186: 0
AA187: 369 | AB187: 2023 | AC187: ERO | AD187: Tributos | AE187: Tributos | AF187: 6105516 | AG187: 0
AA188: 369 | AB188: 2023 | AC188: ERO | AD188: Outros | AE188: Indenização Perdas Danos | AF188: 610551901 | AG188: 0
AA189: 369 | AB189: 2023 | AC189: ERO | AD189: Outros | AE189: Consumo Próprio Energia | AF189: 610551902 | AG189: 0
AA190: 369 | AB190: 2023 | AC190: ERO | AD190: Outros | AE190: Taxas Arrecadação | AF190: 610551903 | AG190: 0
AA191: 369 | AB191: 2023 | AC191: ERO | AD191: Outros | AE191: Taxas Bancárias | AF191: 610551904 | AG191: 0
AA192: 369 | AB192: 2023 | AC192: ERO | AD192: Outros | AE192: (-)Créditos Tributários Recuperáveis | AF192: 610551910 | AG192: 0
AA193: 369 | AB193: 2023 | AC193: ERO | AD193: Pessoal | AE193: Remuneração | AF193: 610552501 | AG193: 0
AA194: 369 | AB194: 2023 | AC194: ERO | AD194: Pessoal | AE194: Encargos | AF194: 610552502 | AG194: 0
AA195: 369 | AB195: 2023 | AC195: ERO | AD195: Pessoal | AE195: Previdência Privada Corrente | AF195: 610552503 | AG195: 0
AA196: 369 | AB196: 2023 | AC196: ERO | AD196: Pessoal | AE196: Despesas Rescisórias | AF196: 610552506 | AG196: 0
AA197: 369 | AB197: 2023 | AC197: ERO | AD197: Pessoal | AE197: Participação Lucros Resultados | AF197: 610552507 | AG197: 0
AA198: 369 | AB198: 2023 | AC198: ERO | AD198: Pessoal | AE198: Outros Benefícios | AF198: 610552508 | AG198: 0
AA199: 369 | AB199: 2023 | AC199: ERO | AD199: Pessoal | AE199: (-)Créditos Tributários Recuperáveis | AF199: 610552510 | AG199: 0
AA200: 369 | AB200: 2023 | AC200: ERO | AD200: Pessoal | AE200: Outros | AF200: 610552599 | AG200: 0
AA201: 369 | AB201: 2023 | AC201: ERO | AD201: Pessoal | AE201: Administradores | AF201: 6105526 | AG201: 0
AA202: 369 | AB202: 2023 | AC202: ERO | AD202: Materiais | AE202: Materiais | AF202: 610552701 | AG202: 0
AA203: 369 | AB203: 2023 | AC203: ERO | AD203: Materiais | AE203: (-)Créditos Tributários Recuperáveis | AF203: 610552710 | AG203: 0
... 286 more rows

Sheet Entrada
B1: Entrada de parâmetros para cálculo tarifário
B4: Energia | D4: Últ. Atualização | F4: Parâmetros para Revisão | P4: ="Caso de OR para a empresa é: " &IF(BD!C53=4,"caso 1","caso 3") -> Caso de OR para a empresa é: caso 3
D6: 45908 | F6: CAPEX - Ativos de Distribuição | J6: Custo Operacional Real do(s) último(s) ano(s) | P6: Outras Receitas - Caso 1 e 2 | AC6: =" Diferenças em relação ao RTA "&YEAR(AC7) -> Diferenças em relação ao RTA 2024 | AG6: ="Valores RTA "&YEAR(AG7) -> Valores RTA 2024
B7: Montante de Geração Própria | C7: 2454 | D7: 45978 | F7: (1) Ativo Imobilizado em Serviço (Valor Novo de Reposição) | G7: =G71*VLOOKUP(DATE(YEAR(CAPA!$C$10),MONTH(CAPA!$C$10)-1,1),Índices!$B$135:$D$638,3,0)/VLOOKUP(DATE(YEAR($G$70),MONTH($G$70)-1,1),Índices!$B$135:$D$638,3,0) ->  | J7: Ano do Custo Operacional | L7: =MAX(Tab_RIT_BMP[ANO])-1 -> 2023 | M7: =MAX(Tab_RIT_BMP[ANO]) -> 2024 | P7: Tipo de Receita | Q7: =DATE(YEAR(LnkTxtDRPData),MONTH(LnkTxtDRPData)-1,1) -> 2025-11-01 | R7: =DATE(YEAR(Q7),MONTH(Q7)-1,1) -> 2025-10-01 | S7: =DATE(YEAR(R7),MONTH(R7)-1,1) -> 2025-09-01 | T7: 2025-08-01 | U7: 2025-07-01 | V7: 2025-06-01 | W7: 2025-05-01 | X7: 2025-04-01 | Y7: 2025-03-01 | Z7: 2025-02-01 | AA7: 2025-01-01 | AB7: 2024-12-01 | AC7: =EDATE(AB7,-1) -> 2024-11-01 | AD7: =EDATE(AC7,-1) -> 2024-10-01 | AE7: 2024-09-01 | AF7: =AC7 -> 2024-11-01 | AG7: =AD7 -> 2024-10-01 | AH7: 2024-09-01 | AI7: =UDEROR!Y12 -> 00:00:00 | AJ7: =UDEROR!Z12 -> 00:00:00 | AK7: =UDEROR!AA12 -> 00:00:00 | AL7: =UDEROR!AB12 -> 00:00:00 | AM7: =UDEROR!AC12 -> 00:00:00 | AN7: =UDEROR!AD12 -> 00:00:00 | AO7: =UDEROR!AE12 -> 00:00:00 | AP7: =UDEROR!AF12 -> 00:00:00 | AQ7: =UDEROR!AG12 -> 00:00:00 | AR7: =UDEROR!AH12 -> 00:00:00 | AS7: =UDEROR!AI12 -> 00:00:00 | AT7: =UDEROR!AJ12 -> 00:00:00 | AU7: =UDEROR!AK12 -> 00:00:00 | AV7: =UDEROR!AL12 -> 00:00:00 | AW7: =UDEROR!AM12 -> 00:00:00 | AX7: =UDEROR!AN12 -> 00:00:00 | AY7: =UDEROR!AO12 -> 00:00:00 | AZ7: =UDEROR!AP12 -> 00:00:00 | BA7: =UDEROR!AQ12 -> 00:00:00 | BB7: =UDEROR!AR12 -> 00:00:00 | BC7: =UDEROR!AS12 -> 00:00:00 | BD7: =UDEROR!AT12 -> 00:00:00
B8: Custo médio da Geração Própria | C8: =(11*C15+1*C14)/12 -> 339.7583333 | D8: 45989 | F8: (2) Índice de Aproveitamento Integral | G8: =G72*VLOOKUP(DATE(YEAR(CAPA!$C$10),MONTH(CAPA!$C$10)-1,1),Índices!$B$135:$D$638,3,0)/VLOOKUP(DATE(YEAR($G$70),MONTH($G$70)-1,1),Índices!$B$135:$D$638,3,0) ->  | J8: CONTA PESSOAL | P8: Serviços Cobráveis | Q8: =SUMIFS(Tab_Uderor[R$],Tab_Uderor[Competencia],Entrada!Q$7,Tab_Uderor[TipoReceita],Entrada!$P8)*0+R8 -> 885891.86 | R8: =S8 -> 885891.86 | S8: =SUMIFS(Tab_Uderor[R$],Tab_Uderor[Competencia],Entrada!S$7,Tab_Uderor[TipoReceita],Entrada!$P8) -> 885891.86 | T8: =SUMIFS(Tab_Uderor[R$],Tab_Uderor[Competencia],Entrada!T$7,Tab_Uderor[TipoReceita],Entrada!$P8) -> 1079730.42 | U8: =SUMIFS(Tab_Uderor[R$],Tab_Uderor[Competencia],Entrada!U$7,Tab_Uderor[TipoReceita],Entrada!$P8) -> 1119021.38 | V8: =SUMIFS(Tab_Uderor[R$],Tab_Uderor[Competencia],Entrada!V$7,Tab_Uderor[TipoReceita],Entrada!$P8) -> 851985.85 | W8: =SUMIFS(Tab_Uderor[R$],Tab_Uderor[Competencia],Entrada!W$7,Tab_Uderor[TipoReceita],Entrada!$P8) -> 400159.83 | X8: =SUMIFS(Tab_Uderor[R$],Tab_Uderor[Competencia],Entrada!X$7,Tab_Uderor[TipoReceita],Entrada!$P8) -> 238399.19 | Y8: =SUMIFS(Tab_Uderor[R$],Tab_Uderor[Competencia],Entrada!Y$7,Tab_Uderor[TipoReceita],Entrada!$P8) -> 226480.55 | Z8: =SUMIFS(Tab_Uderor[R$],Tab_Uderor[Competencia],Entrada!Z$7,Tab_Uderor[TipoReceita],Entrada!$P8) -> 258498.01 | AA8: =SUMIFS(Tab_Uderor[R$],Tab_Uderor[Competencia],Entrada!AA$7,Tab_Uderor[TipoReceita],Entrada!$P8) -> 232982.6 | AB8: =SUMIFS(Tab_Uderor[R$],Tab_Uderor[Competencia],Entrada!AB$7,Tab_Uderor[TipoReceita],Entrada!$P8) -> 233643.43 | AC8: =SUMIFS(Tab_Uderor[R$],Tab_Uderor[Competencia],Entrada!AC$7,Tab_Uderor[TipoReceita],Entrada!$P8)-AF8 -> -8600.1 | AD8: =SUMIFS(Tab_Uderor[R$],Tab_Uderor[Competencia],Entrada!AD$7,Tab_Uderor[TipoReceita],Entrada!$P8)-AG8 -> 0 | AE8: =SUMIFS(Tab_Uderor[R$],Tab_Uderor[Competencia],Entrada!AE$7,Tab_Uderor[TipoReceita],Entrada!$P8)-AH8 -> 0 | AF8: 178447.36 | AG8: 178447.36 | AH8: 255058.52
D9: 45908 | F9: (3) Obrigações Especiais Bruta | G9: =G73*VLOOKUP(DATE(YEAR(CAPA!$C$10),MONTH(CAPA!$C$10)-1,1),Índices!$B$135:$D$638,3,0)/VLOOKUP(DATE(YEAR($G$70),MONTH($G$70)-1,1),Índices!$B$135:$D$638,3,0) ->  | J9: BMP - 610530501; 610550501; 610532501; 610552501; 610530511; 610532511 | K9: Remuneração | L9: =SUMIFS(Tab_RIT_BMP[SALDO],Tab_RIT_BMP[CONTA],610530501,Tab_RIT_BMP[ANO],$L$7)+SUMIFS(Tab_RIT_BMP[SALDO],Tab_RIT_BMP[CONTA],610550501,Tab_RIT_BMP[ANO],$L$7)+ SUMIFS(Tab_RIT_BMP[SALDO],Tab_RIT_BMP[CONTA],610532501,Tab_RIT_BMP[ANO],$L$7)+SUMIFS(Tab_RIT_BMP[SALDO],Tab_RIT_BMP[CONTA],610552501,Tab_RIT_BMP[ANO],$L$7)+ SUMIFS(Tab_RIT_BMP[SALDO],Tab_RIT_BMP[CONTA],610530511,Tab_RIT_BMP[ANO],$L$7)+SUMIFS(Tab_RIT_BMP[SALDO],Tab_RIT_BMP[CONTA],610532511,Tab_RIT_BMP[ANO],$L$7) -> 34586442.22 | M9: =SUMIFS(Tab_RIT_BMP[SALDO],Tab_RIT_BMP[CONTA],610530501,Tab_RIT_BMP[ANO],$M$7)+SUMIFS(Tab_RIT_BMP[SALDO],Tab_RIT_BMP[CONTA],610550501,Tab_RIT_BMP[ANO],$M$7)+ SUMIFS(Tab_RIT_BMP[SALDO],Tab_RIT_BMP[CONTA],610532501,Tab_RIT_BMP[ANO],$M$7)+SUMIFS(Tab_RIT_BMP[SALDO],Tab_RIT_BMP[CONTA],610552501,Tab_RIT_BMP[ANO],$M$7)+ SUMIFS(Tab_RIT_BMP[SALDO],Tab_RIT_BMP[CONTA],610530511,Tab_RIT_BMP[ANO],$M$7)+SUMIFS(Tab_RIT_BMP[SALDO],Tab_RIT_BMP[CONTA],610532511,Tab_RIT_BMP[ANO],$M$7) -> 28720556.85 | P9: Arrecadação de convênios ou valores pela fatura | Q9: =SUMIFS(Tab_Uderor[R$],Tab_Uderor[Competencia],Entrada!Q$7,Tab_Uderor[TipoReceita],Entrada!$P9)*0+R9 -> 405260.01 | R9: =S9 -> 405260.01 | S9: =SUMIFS(Tab_Uderor[R$],Tab_Uderor[Competencia],Entrada!S$7,Tab_Uderor[TipoReceita],Entrada!$P9) -> 405260.01 | T9: =SUMIFS(Tab_Uderor[R$],Tab_Uderor[Competencia],Entrada!T$7,Tab_Uderor[TipoReceita],Entrada!$P9) -> 367285.06 | U9: =SUMIFS(Tab_Uderor[R$],Tab_Uderor[Competencia],Entrada!U$7,Tab_Uderor[TipoReceita],Entrada!$P9) -> 384874.17 | V9: =SUMIFS(Tab_Uderor[R$],Tab_Uderor[Competencia],Entrada!V$7,Tab_Uderor[TipoReceita],Entrada!$P9) -> 386962.22 | W9: =SUMIFS(Tab_Uderor[R$],Tab_Uderor[Competencia],Entrada!W$7,Tab_Uderor[TipoReceita],Entrada!$P9) -> 379381.86 | X9: =SUMIFS(Tab_Uderor[R$],Tab_Uderor[Competencia],Entrada!X$7,Tab_Uderor[TipoReceita],Entrada!$P9) -> 353423.45 | Y9: =SUMIFS(Tab_Uderor[R$],Tab_Uderor[Competencia],Entrada!Y$7,Tab_Uderor[TipoReceita],Entrada!$P9) -> 373183.88 | Z9: =SUMIFS(Tab_Uderor[R$],Tab_Uderor[Competencia],Entrada!Z$7,Tab_Uderor[TipoReceita],Entrada!$P9) -> 348978.82 | AA9: =SUMIFS(Tab_Uderor[R$],Tab_Uderor[Competencia],Entrada!AA$7,Tab_Uderor[TipoReceita],Entrada!$P9) -> 364761.64 | AB9: =SUMIFS(Tab_Uderor[R$],Tab_Uderor[Competencia],Entrada!AB$7,Tab_Uderor[TipoReceita],Entrada!$P9) -> 414540.96 | AC9: =SUMIFS(Tab_Uderor[R$],Tab_Uderor[Competencia],Entrada!AC$7,Tab_Uderor[TipoReceita],Entrada!$P9)-AF9 -> -13487.54 | AD9: =SUMIFS(Tab_Uderor[R$],Tab_Uderor[Competencia],Entrada!AD$7,Tab_Uderor[TipoReceita],Entrada!$P9)-AG9 -> 0 | AE9: =SUMIFS(Tab_Uderor[R$],Tab_Uderor[Competencia],Entrada!AE$7,Tab_Uderor[TipoReceita],Entrada!$P9)-AH9 -> 0 | AF9: 411986.56 | AG9: 411986.56 | AH9: 379929.65
D10: 45908 | F10: (4) Bens Totalmente Depreciados | G10: =G74*VLOOKUP(DATE(YEAR(CAPA!$C$10),MONTH(CAPA!$C$10)-1,1),Índices!$B$135:$D$638,3,0)/VLOOKUP(DATE(YEAR($G$70),MONTH($G$70)-1,1),Índices!$B$135:$D$638,3,0) ->  | J10: BMP - 610530502; 610550502; 610532502; 610552502 | K10: Encargos | L10: =SUMIFS(Tab_RIT_BMP[SALDO],Tab_RIT_BMP[CONTA],610530502,Tab_RIT_BMP[ANO],$L$7)+SUMIFS(Tab_RIT_BMP[SALDO],Tab_RIT_BMP[CONTA],610550502,Tab_RIT_BMP[ANO],$L$7)+ SUMIFS(Tab_RIT_BMP[SALDO],Tab_RIT_BMP[CONTA],610532502,Tab_RIT_BMP[ANO],$L$7)+SUMIFS(Tab_RIT_BMP[SALDO],Tab_RIT_BMP[CONTA],610552502,Tab_RIT_BMP[ANO],$L$7) -> 34136526.26 | M10: =SUMIFS(Tab_RIT_BMP[SALDO],Tab_RIT_BMP[CONTA],610530502,Tab_RIT_BMP[ANO],$M$7)+SUMIFS(Tab_RIT_BMP[SALDO],Tab_RIT_BMP[CONTA],610550502,Tab_RIT_BMP[ANO],$M$7)+ SUMIFS(Tab_RIT_BMP[SALDO],Tab_RIT_BMP[CONTA],610532502,Tab_RIT_BMP[ANO],$M$7)+SUMIFS(Tab_RIT_BMP[SALDO],Tab_RIT_BMP[CONTA],610552502,Tab_RIT_BMP[ANO],$M$7) -> 38012126.04 | P10: Arrecadação de faturas de terceiros por estrutura própria | Q10: =SUMIFS(Tab_Uderor[R$],Tab_Uderor[Competencia],Entrada!Q$7,Tab_Uderor[TipoReceita],Entrada!$P10)*0+R10 -> 0 | R10: 0 | S10: =SUMIFS(Tab_Uderor[R$],Tab_Uderor[Competencia],Entrada!S$7,Tab_Uderor[TipoReceita],Entrada!$P10) -> 0 | T10: =SUMIFS(Tab_Uderor[R$],Tab_Uderor[Competencia],Entrada!T$7,Tab_Uderor[TipoReceita],Entrada!$P10) -> 0 | U10: =SUMIFS(Tab_Uderor[R$],Tab_Uderor[Competencia],Entrada!U$7,Tab_Uderor[TipoReceita],Entrada!$P10) -> 0 | V10: =SUMIFS(Tab_Uderor[R$],Tab_Uderor[Competencia],Entrada!V$7,Tab_Uderor[TipoReceita],Entrada!$P10) -> 0 | W10: =SUMIFS(Tab_Uderor[R$],Tab_Uderor[Competencia],Entrada!W$7,Tab_Uderor[TipoReceita],Entrada!$P10) -> 0 | X10: =SUMIFS(Tab_Uderor[R$],Tab_Uderor[Competencia],Entrada!X$7,Tab_Uderor[TipoReceita],Entrada!$P10) -> 0 | Y10: =SUMIFS(Tab_Uderor[R$],Tab_Uderor[Competencia],Entrada!Y$7,Tab_Uderor[TipoReceita],Entrada!$P10) -> 0 | Z10: =SUMIFS(Tab_Uderor[R$],Tab_Uderor[Competencia],Entrada!Z$7,Tab_Uderor[TipoReceita],Entrada!$P10) -> 0 | AA10: =SUMIFS(Tab_Uderor[R$],Tab_Uderor[Competencia],Entrada!AA$7,Tab_Uderor[TipoReceita],Entrada!$P10) -> 0 | AB10: =SUMIFS(Tab_Uderor[R$],Tab_Uderor[Competencia],Entrada!AB$7,Tab_Uderor[TipoReceita],Entrada!$P10) -> 0 | AC10: =SUMIFS(Tab_Uderor[R$],Tab_Uderor[Competencia],Entrada!AC$7,Tab_Uderor[TipoReceita],Entrada!$P10)-AF10 -> 0 | AD10: =SUMIFS(Tab_Uderor[R$],Tab_Uderor[Competencia],Entrada!AD$7,Tab_Uderor[TipoReceita],Entrada!$P10)-AG10 -> 0 | AE10: =SUMIFS(Tab_Uderor[R$],Tab_Uderor[Competencia],Entrada!AE$7,Tab_Uderor[TipoReceita],Entrada!$P10)-AH10 -> 0 | AF10: 0 | AG10: 0 | AH10: 0
F11: (5) Base de Remuneração Bruta = (1)-(2)-(3)-(4) | G11: =G7-G8-G9-G10 ->  | J11: BMP - 610530503; 610550503; 610532503; 610552503 | K11: Previdência Privada - Corrente | L11: =SUMIFS(Tab_RIT_BMP[SALDO],Tab_RIT_BMP[CONTA],610530503,Tab_RIT_BMP[ANO],$L$7)+SUMIFS(Tab_RIT_BMP[SALDO],Tab_RIT_BMP[CONTA],610550503,Tab_RIT_BMP[ANO],$L$7)+ SUMIFS(Tab_RIT_BMP[SALDO],Tab_RIT_BMP[CONTA],610532503,Tab_RIT_BMP[ANO],$L$7)+SUMIFS(Tab_RIT_BMP[SALDO],Tab_RIT_BMP[CONTA],610552503,Tab_RIT_BMP[ANO],$L$7) -> 1180833.55 | M11: =SUMIFS(Tab_RIT_BMP[SALDO],Tab_RIT_BMP[CONTA],610530503,Tab_RIT_BMP[ANO],$M$7)+SUMIFS(Tab_RIT_BMP[SALDO],Tab_RIT_BMP[CONTA],610550503,Tab_RIT_BMP[ANO],$M$7)+ SUMIFS(Tab_RIT_BMP[SALDO],Tab_RIT_BMP[CONTA],610532503,Tab_RIT_BMP[ANO],$M$7)+SUMIFS(Tab_RIT_BMP[SALDO],Tab_RIT_BMP[CONTA],610552503,Tab_RIT_BMP[ANO],$M$7) -> 3451799.9 | P11: Veiculação de publicidade | Q11: =SUMIFS(Tab_Uderor[R$],Tab_Uderor[Competencia],Entrada!Q$7,Tab_Uderor[TipoReceita],Entrada!$P11)*0+R11 -> 0 | R11: 0 | S11: =SUMIFS(Tab_Uderor[R$],Tab_Uderor[Competencia],Entrada!S$7,Tab_Uderor[TipoReceita],Entrada!$P11) -> 0 | T11: =SUMIFS(Tab_Uderor[R$],Tab_Uderor[Competencia],Entrada!T$7,Tab_Uderor[TipoReceita],Entrada!$P11) -> 0 | U11: =SUMIFS(Tab_Uderor[R$],Tab_Uderor[Competencia],Entrada!U$7,Tab_Uderor[TipoReceita],Entrada!$P11) -> 0 | V11: =SUMIFS(Tab_Uderor[R$],Tab_Uderor[Competencia],Entrada!V$7,Tab_Uderor[TipoReceita],Entrada!$P11) -> 0 | W11: =SUMIFS(Tab_Uderor[R$],Tab_Uderor[Competencia],Entrada!W$7,Tab_Uderor[TipoReceita],Entrada!$P11) -> 0 | X11: =SUMIFS(Tab_Uderor[R$],Tab_Uderor[Competencia],Entrada!X$7,Tab_Uderor[TipoReceita],Entrada!$P11) -> 0 | Y11: =SUMIFS(Tab_Uderor[R$],Tab_Uderor[Competencia],Entrada!Y$7,Tab_Uderor[TipoReceita],Entrada!$P11) -> 0 | Z11: =SUMIFS(Tab_Uderor[R$],Tab_Uderor[Competencia],Entrada!Z$7,Tab_Uderor[TipoReceita],Entrada!$P11) -> 0 | AA11: =SUMIFS(Tab_Uderor[R$],Tab_Uderor[Competencia],Entrada!AA$7,Tab_Uderor[TipoReceita],Entrada!$P11) -> 0 | AB11: =SUMIFS(Tab_Uderor[R$],Tab_Uderor[Competencia],Entrada!AB$7,Tab_Uderor[TipoReceita],Entrada!$P11) -> 0 | AC11: =SUMIFS(Tab_Uderor[R$],Tab_Uderor[Competencia],Entrada!AC$7,Tab_Uderor[TipoReceita],Entrada!$P11)-AF11 -> 0 | AD11: =SUMIFS(Tab_Uderor[R$],Tab_Uderor[Competencia],Entrada!AD$7,Tab_Uderor[TipoReceita],Entrada!$P11)-AG11 -> 0 | AE11: =SUMIFS(Tab_Uderor[R$],Tab_Uderor[Competencia],Entrada!AE$7,Tab_Uderor[TipoReceita],Entrada!$P11)-AH11 -> 0 | AF11: 0 | AG11: 0 | AH11: 0
F12: (6) Depreciação Acumulada | G12: =G76*VLOOKUP(DATE(YEAR(CAPA!$C$10),MONTH(CAPA!$C$10)-1,1),Índices!$B$135:$D$638,3,0)/VLOOKUP(DATE(YEAR($G$70),MONTH($G$70)-1,1),Índices!$B$135:$D$638,3,0) ->  | J12: BMP - 610530508; 610550508; 610532508; 610552508 | K12: Outros Benefícios | L12: =SUMIFS(Tab_RIT_BMP[SALDO],Tab_RIT_BMP[CONTA],610530508,Tab_RIT_BMP[ANO],$L$7)+SUMIFS(Tab_RIT_BMP[SALDO],Tab_RIT_BMP[CONTA],610550508,Tab_RIT_BMP[ANO],$L$7)+ SUMIFS(Tab_RIT_BMP[SALDO],Tab_RIT_BMP[CONTA],610532508,Tab_RIT_BMP[ANO],$L$7)+SUMIFS(Tab_RIT_BMP[SALDO],Tab_RIT_BMP[CONTA],610552508,Tab_RIT_BMP[ANO],$L$7) -> 37351637.33 | M12: =SUMIFS(Tab_RIT_BMP[SALDO],Tab_RIT_BMP[CONTA],610530508,Tab_RIT_BMP[ANO],$M$7)+SUMIFS(Tab_RIT_BMP[SALDO],Tab_RIT_BMP[CONTA],610550508,Tab_RIT_BMP[ANO],$M$7)+ SUMIFS(Tab_RIT_BMP[SALDO],Tab_RIT_BMP[CONTA],610532508,Tab_RIT_BMP[ANO],$M$7)+SUMIFS(Tab_RIT_BMP[SALDO],Tab_RIT_BMP[CONTA],610552508,Tab_RIT_BMP[ANO],$M$7) -> 45204007.55 | P12: Aluguel ou cessão onerosa de imóveis e espaços físicos | Q12: =SUMIFS(Tab_Uderor[R$],Tab_Uderor[Competencia],Entrada!Q$7,Tab_Uderor[TipoReceita],Entrada!$P12)*0+R12 -> 0 | R12: 0 | S12: =SUMIFS(Tab_Uderor[R$],Tab_Uderor[Competencia],Entrada!S$7,Tab_Uderor[TipoReceita],Entrada!$P12) -> 0 | T12: =SUMIFS(Tab_Uderor[R$],Tab_Uderor[Competencia],Entrada!T$7,Tab_Uderor[TipoReceita],Entrada!$P12) -> 0 | U12: =SUMIFS(Tab_Uderor[R$],Tab_Uderor[Competencia],Entrada!U$7,Tab_Uderor[TipoReceita],Entrada!$P12) -> 0 | V12: =SUMIFS(Tab_Uderor[R$],Tab_Uderor[Competencia],Entrada!V$7,Tab_Uderor[TipoReceita],Entrada!$P12) -> 0 | W12: =SUMIFS(Tab_Uderor[R$],Tab_Uderor[Competencia],Entrada!W$7,Tab_Uderor[TipoReceita],Entrada!$P12) -> 0 | X12: =SUMIFS(Tab_Uderor[R$],Tab_Uderor[Competencia],Entrada!X$7,Tab_Uderor[TipoReceita],Entrada!$P12) -> 0 | Y12: =SUMIFS(Tab_Uderor[R$],Tab_Uderor[Competencia],Entrada!Y$7,Tab_Uderor[TipoReceita],Entrada!$P12) -> 0 | Z12: =SUMIFS(Tab_Uderor[R$],Tab_Uderor[Competencia],Entrada!Z$7,Tab_Uderor[TipoReceita],Entrada!$P12) -> 0 | AA12: =SUMIFS(Tab_Uderor[R$],Tab_Uderor[Competencia],Entrada!AA$7,Tab_Uderor[TipoReceita],Entrada!$P12) -> 0 | AB12: =SUMIFS(Tab_Uderor[R$],Tab_Uderor[Competencia],Entrada!AB$7,Tab_Uderor[TipoReceita],Entrada!$P12) -> 0 | AC12: =SUMIFS(Tab_Uderor[R$],Tab_Uderor[Competencia],Entrada!AC$7,Tab_Uderor[TipoReceita],Entrada!$P12)-AF12 -> 0 | AD12: =SUMIFS(Tab_Uderor[R$],Tab_Uderor[Competencia],Entrada!AD$7,Tab_Uderor[TipoReceita],Entrada!$P12)-AG12 -> 0 | AE12: =SUMIFS(Tab_Uderor[R$],Tab_Uderor[Competencia],Entrada!AE$7,Tab_Uderor[TipoReceita],Entrada!$P12)-AH12 -> 0 | AF12: 0 | AG12: 0 | AH12: 0
F13: (7) AIS Líquido (Valor de Mercado em Uso) | G13: =G7-G12 ->  | J13: BMP - 610530506; 610550506; 610532506; 610552506 | K13: Despesas Rescisórias | L13: =SUMIFS(Tab_RIT_BMP[SALDO],Tab_RIT_BMP[CONTA],610530506,Tab_RIT_BMP[ANO],$L$7)+SUMIFS(Tab_RIT_BMP[SALDO],Tab_RIT_BMP[CONTA],610550506,Tab_RIT_BMP[ANO],$L$7)+ SUMIFS(Tab_RIT_BMP[SALDO],Tab_RIT_BMP[CONTA],610532506,Tab_RIT_BMP[ANO],$L$7)+SUMIFS(Tab_RIT_BMP[SALDO],Tab_RIT_BMP[CONTA],610552506,Tab_RIT_BMP[ANO],$L$7) -> 0 | M13: =SUMIFS(Tab_RIT_BMP[SALDO],Tab_RIT_BMP[CONTA],610530506,Tab_RIT_BMP[ANO],$M$7)+SUMIFS(Tab_RIT_BMP[SALDO],Tab_RIT_BMP[CONTA],610550506,Tab_RIT_BMP[ANO],$M$7)+ SUMIFS(Tab_RIT_BMP[SALDO],Tab_RIT_BMP[CONTA],610532506,Tab_RIT_BMP[ANO],$M$7)+SUMIFS(Tab_RIT_BMP[SALDO],Tab_RIT_BMP[CONTA],610552506,Tab_RIT_BMP[ANO],$M$7) -> 0 | P13: Compartilhamento de infraestrutura | Q13: =SUMIFS(Tab_Uderor[R$],Tab_Uderor[Competencia],Entrada!Q$7,Tab_Uderor[TipoReceita],Entrada!$P13)*0+R13 -> 1672050.45 | R13: 1672050.45 | S13: =SUMIFS(Tab_Uderor[R$],Tab_Uderor[Competencia],Entrada!S$7,Tab_Uderor[TipoReceita],Entrada!$P13) -> 1672050.45 | T13: =SUMIFS(Tab_Uderor[R$],Tab_Uderor[Competencia],Entrada!T$7,Tab_Uderor[TipoReceita],Entrada!$P13) -> 1644429.53 | U13: =SUMIFS(Tab_Uderor[R$],Tab_Uderor[Competencia],Entrada!U$7,Tab_Uderor[TipoReceita],Entrada!$P13) -> 1642237.12 | V13: =SUMIFS(Tab_Uderor[R$],Tab_Uderor[Competencia],Entrada!V$7,Tab_Uderor[TipoReceita],Entrada!$P13) -> 1890273.31 | W13: =SUMIFS(Tab_Uderor[R$],Tab_Uderor[Competencia],Entrada!W$7,Tab_Uderor[TipoReceita],Entrada!$P13) -> 1634743.33 | X13: =SUMIFS(Tab_Uderor[R$],Tab_Uderor[Competencia],Entrada!X$7,Tab_Uderor[TipoReceita],Entrada!$P13) -> 1532842.88 | Y13: =SUMIFS(Tab_Uderor[R$],Tab_Uderor[Competencia],Entrada!Y$7,Tab_Uderor[TipoReceita],Entrada!$P13) -> 1625714.94 | Z13: =SUMIFS(Tab_Uderor[R$],Tab_Uderor[Competencia],Entrada!Z$7,Tab_Uderor[TipoReceita],Entrada!$P13) -> 1618757.29 | AA13: =SUMIFS(Tab_Uderor[R$],Tab_Uderor[Competencia],Entrada!AA$7,Tab_Uderor[TipoReceita],Entrada!$P13) -> 1597104.22 | AB13: =SUMIFS(Tab_Uderor[R$],Tab_Uderor[Competencia],Entrada!AB$7,Tab_Uderor[TipoReceita],Entrada!$P13) -> 1584073.04 | AC13: =SUMIFS(Tab_Uderor[R$],Tab_Uderor[Competencia],Entrada!AC$7,Tab_Uderor[TipoReceita],Entrada!$P13)-AF13 -> 614102.01 | AD13: =SUMIFS(Tab_Uderor[R$],Tab_Uderor[Competencia],Entrada!AD$7,Tab_Uderor[TipoReceita],Entrada!$P13)-AG13 -> 0 | AE13: =SUMIFS(Tab_Uderor[R$],Tab_Uderor[Competencia],Entrada!AE$7,Tab_Uderor[TipoReceita],Entrada!$P13)-AH13 -> 0 | AF13: 1271019.94 | AG13: 1271019.94 | AH13: 3103182.21
B14: ACR Médio de 2024 | C14: 307.29 | D14: DSP 3.080/2024 | F14: (8) Índice de Aproveitamento Depreciado | G14: =G78*VLOOKUP(DATE(YEAR(CAPA!$C$10),MONTH(CAPA!$C$10)-1,1),Índices!$B$135:$D$638,3,0)/VLOOKUP(DATE(YEAR($G$70),MONTH($G$70)-1,1),Índices!$B$135:$D$638,3,0) ->  | J14: BMP - 610530507; 610550507; 610532507; 610552507 | K14: Participação nos Lucros e Resultados - PLR | L14: =SUMIFS(Tab_RIT_BMP[SALDO],Tab_RIT_BMP[CONTA],610530507,Tab_RIT_BMP[ANO],$L$7)+SUMIFS(Tab_RIT_BMP[SALDO],Tab_RIT_BMP[CONTA],610550507,Tab_RIT_BMP[ANO],$L$7)+SUMIFS(Tab_RIT_BMP[SALDO],Tab_RIT_BMP[CONTA],610532507,Tab_RIT_BMP[ANO],$L$7)+SUMIFS(Tab_RIT_BMP[SALDO],Tab_RIT_BMP[CONTA],610552507,Tab_RIT_BMP[ANO],$L$7) -> 8399231.07 | M14: =SUMIFS(Tab_RIT_BMP[SALDO],Tab_RIT_BMP[CONTA],610530507,Tab_RIT_BMP[ANO],$M$7)+SUMIFS(Tab_RIT_BMP[SALDO],Tab_RIT_BMP[CONTA],610550507,Tab_RIT_BMP[ANO],$M$7)+ SUMIFS(Tab_RIT_BMP[SALDO],Tab_RIT_BMP[CONTA],610532507,Tab_RIT_BMP[ANO],$M$7)+SUMIFS(Tab_RIT_BMP[SALDO],Tab_RIT_BMP[CONTA],610552507,Tab_RIT_BMP[ANO],$M$7) -> 13405050.99 | P14: Serviços de avaliação técnica e aferição de medidores. | Q14: =SUMIFS(Tab_Uderor[R$],Tab_Uderor[Competencia],Entrada!Q$7,Tab_Uderor[TipoReceita],Entrada!$P14)*0+R14 -> 0 | R14: 0 | S14: =SUMIFS(Tab_Uderor[R$],Tab_Uderor[Competencia],Entrada!S$7,Tab_Uderor[TipoReceita],Entrada!$P14) -> 0 | T14: =SUMIFS(Tab_Uderor[R$],Tab_Uderor[Competencia],Entrada!T$7,Tab_Uderor[TipoReceita],Entrada!$P14) -> 0 | U14: =SUMIFS(Tab_Uderor[R$],Tab_Uderor[Competencia],Entrada!U$7,Tab_Uderor[TipoReceita],Entrada!$P14) -> 0 | V14: =SUMIFS(Tab_Uderor[R$],Tab_Uderor[Competencia],Entrada!V$7,Tab_Uderor[TipoReceita],Entrada!$P14) -> 0 | W14: =SUMIFS(Tab_Uderor[R$],Tab_Uderor[Competencia],Entrada!W$7,Tab_Uderor[TipoReceita],Entrada!$P14) -> 0 | X14: =SUMIFS(Tab_Uderor[R$],Tab_Uderor[Competencia],Entrada!X$7,Tab_Uderor[TipoReceita],Entrada!$P14) -> 0 | Y14: =SUMIFS(Tab_Uderor[R$],Tab_Uderor[Competencia],Entrada!Y$7,Tab_Uderor[TipoReceita],Entrada!$P14) -> 0 | Z14: =SUMIFS(Tab_Uderor[R$],Tab_Uderor[Competencia],Entrada!Z$7,Tab_Uderor[TipoReceita],Entrada!$P14) -> 0 | AA14: =SUMIFS(Tab_Uderor[R$],Tab_Uderor[Competencia],Entrada!AA$7,Tab_Uderor[TipoReceita],Entrada!$P14) -> 0 | AB14: =SUMIFS(Tab_Uderor[R$],Tab_Uderor[Competencia],Entrada!AB$7,Tab_Uderor[TipoReceita],Entrada!$P14) -> 0 | AC14: =SUMIFS(Tab_Uderor[R$],Tab_Uderor[Competencia],Entrada!AC$7,Tab_Uderor[TipoReceita],Entrada!$P14)-AF14 -> 0 | AD14: =SUMIFS(Tab_Uderor[R$],Tab_Uderor[Competencia],Entrada!AD$7,Tab_Uderor[TipoReceita],Entrada!$P14)-AG14 -> 0 | AE14: =SUMIFS(Tab_Uderor[R$],Tab_Uderor[Competencia],Entrada!AE$7,Tab_Uderor[TipoReceita],Entrada!$P14)-AH14 -> 0 | AF14: 0 | AG14: 0 | AH14: 0
B15: ACR Médio de 2025 | C15: 342.71 | D15: DSP 3.050/2025 | F15: (9) Valor da Base de Remuneração (VBR) | G15: =G13-G14 ->  | J15: BMP - 610530599; 610550599; 610532599; 610552599 | K15: Outros | L15: =SUMIFS(Tab_RIT_BMP[SALDO],Tab_RIT_BMP[CONTA],610530599,Tab_RIT_BMP[ANO],$L$7)+SUMIFS(Tab_RIT_BMP[SALDO],Tab_RIT_BMP[CONTA],610550599,Tab_RIT_BMP[ANO],$L$7)+ SUMIFS(Tab_RIT_BMP[SALDO],Tab_RIT_BMP[CONTA],610532599,Tab_RIT_BMP[ANO],$L$7)+SUMIFS(Tab_RIT_BMP[SALDO],Tab_RIT_BMP[CONTA],610552599,Tab_RIT_BMP[ANO],$L$7) -> 0 | M15: =SUMIFS(Tab_RIT_BMP[SALDO],Tab_RIT_BMP[CONTA],610530599,Tab_RIT_BMP[ANO],$M$7)+SUMIFS(Tab_RIT_BMP[SALDO],Tab_RIT_BMP[CONTA],610550599,Tab_RIT_BMP[ANO],$M$7)+ SUMIFS(Tab_RIT_BMP[SALDO],Tab_RIT_BMP[CONTA],610532599,Tab_RIT_BMP[ANO],$M$7)+SUMIFS(Tab_RIT_BMP[SALDO],Tab_RIT_BMP[CONTA],610552599,Tab_RIT_BMP[ANO],$M$7) -> 0 | P15: Operacionalização de serviço de créditos tributários | Q15: =SUMIFS(Tab_Uderor[R$],Tab_Uderor[Competencia],Entrada!Q$7,Tab_Uderor[TipoReceita],Entrada!$P15)*0+R15 -> 0 | R15: 0 | S15: =SUMIFS(Tab_Uderor[R$],Tab_Uderor[Competencia],Entrada!S$7,Tab_Uderor[TipoReceita],Entrada!$P15) -> 0 | T15: =SUMIFS(Tab_Uderor[R$],Tab_Uderor[Competencia],Entrada!T$7,Tab_Uderor[TipoReceita],Entrada!$P15) -> 0 | U15: =SUMIFS(Tab_Uderor[R$],Tab_Uderor[Competencia],Entrada!U$7,Tab_Uderor[TipoReceita],Entrada!$P15) -> 0 | V15: =SUMIFS(Tab_Uderor[R$],Tab_Uderor[Competencia],Entrada!V$7,Tab_Uderor[TipoReceita],Entrada!$P15) -> 0 | W15: =SUMIFS(Tab_Uderor[R$],Tab_Uderor[Competencia],Entrada!W$7,Tab_Uderor[TipoReceita],Entrada!$P15) -> 0 | X15: =SUMIFS(Tab_Uderor[R$],Tab_Uderor[Competencia],Entrada!X$7,Tab_Uderor[TipoReceita],Entrada!$P15) -> 0 | Y15: =SUMIFS(Tab_Uderor[R$],Tab_Uderor[Competencia],Entrada!Y$7,Tab_Uderor[TipoReceita],Entrada!$P15) -> 0 | Z15: =SUMIFS(Tab_Uderor[R$],Tab_Uderor[Competencia],Entrada!Z$7,Tab_Uderor[TipoReceita],Entrada!$P15) -> 0 | AA15: =SUMIFS(Tab_Uderor[R$],Tab_Uderor[Competencia],Entrada!AA$7,Tab_Uderor[TipoReceita],Entrada!$P15) -> 0 | AB15: =SUMIFS(Tab_Uderor[R$],Tab_Uderor[Competencia],Entrada!AB$7,Tab_Uderor[TipoReceita],Entrada!$P15) -> 0 | AC15: =SUMIFS(Tab_Uderor[R$],Tab_Uderor[Competencia],Entrada!AC$7,Tab_Uderor[TipoReceita],Entrada!$P15)-AF15 -> 0 | AD15: =SUMIFS(Tab_Uderor[R$],Tab_Uderor[Competencia],Entrada!AD$7,Tab_Uderor[TipoReceita],Entrada!$P15)-AG15 -> 0 | AE15: =SUMIFS(Tab_Uderor[R$],Tab_Uderor[Competencia],Entrada!AE$7,Tab_Uderor[TipoReceita],Entrada!$P15)-AH15 -> 0 | AF15: 0 | AG15: 0 | AH15: 0
F16: (10) Almoxarifado em Operação | G16: =G80*VLOOKUP(DATE(YEAR(CAPA!$C$10),MONTH(CAPA!$C$10)-1,1),Índices!$B$135:$D$638,3,0)/VLOOKUP(DATE(YEAR($G$70),MONTH($G$70)-1,1),Índices!$B$135:$D$638,3,0) ->  | J16: BMP - 610530510; 610550510; 610532510; 610552510 | K16: (-) Créditos de Tributos Recuperáveis | L16: =SUMIFS(Tab_RIT_BMP[SALDO],Tab_RIT_BMP[CONTA],610530510,Tab_RIT_BMP[ANO],$L$7)+SUMIFS(Tab_RIT_BMP[SALDO],Tab_RIT_BMP[CONTA],610550510,Tab_RIT_BMP[ANO],$L$7)+ SUMIFS(Tab_RIT_BMP[SALDO],Tab_RIT_BMP[CONTA],610532510,Tab_RIT_BMP[ANO],$L$7)+SUMIFS(Tab_RIT_BMP[SALDO],Tab_RIT_BMP[CONTA],610552510,Tab_RIT_BMP[ANO],$L$7) -> 0 | M16: =SUMIFS(Tab_RIT_BMP[SALDO],Tab_RIT_BMP[CONTA],610530510,Tab_RIT_BMP[ANO],$M$7)+SUMIFS(Tab_RIT_BMP[SALDO],Tab_RIT_BMP[CONTA],610550510,Tab_RIT_BMP[ANO],$M$7)+ SUMIFS(Tab_RIT_BMP[SALDO],Tab_RIT_BMP[CONTA],610532510,Tab_RIT_BMP[ANO],$M$7)+SUMIFS(Tab_RIT_BMP[SALDO],Tab_RIT_BMP[CONTA],610552510,Tab_RIT_BMP[ANO],$M$7) -> 0 | P16: Elaboração de projeto, construção, operação, manutenção ou reforma de: | Q16: =SUMIFS(Tab_Uderor[R$],Tab_Uderor[Competencia],Entrada!Q$7,Tab_Uderor[TipoReceita],Entrada!$P16)*0+R16 -> 0 | R16: 0 | S16: =SUMIFS(Tab_Uderor[R$],Tab_Uderor[Competencia],Entrada!S$7,Tab_Uderor[TipoReceita],Entrada!$P16) -> 0 | T16: =SUMIFS(Tab_Uderor[R$],Tab_Uderor[Competencia],Entrada!T$7,Tab_Uderor[TipoReceita],Entrada!$P16) -> 0 | U16: =SUMIFS(Tab_Uderor[R$],Tab_Uderor[Competencia],Entrada!U$7,Tab_Uderor[TipoReceita],Entrada!$P16) -> 0 | V16: =SUMIFS(Tab_Uderor[R$],Tab_Uderor[Competencia],Entrada!V$7,Tab_Uderor[TipoReceita],Entrada!$P16) -> 0 | W16: =SUMIFS(Tab_Uderor[R$],Tab_Uderor[Competencia],Entrada!W$7,Tab_Uderor[TipoReceita],Entrada!$P16) -> 0 | X16: =SUMIFS(Tab_Uderor[R$],Tab_Uderor[Competencia],Entrada!X$7,Tab_Uderor[TipoReceita],Entrada!$P16) -> 0 | Y16: =SUMIFS(Tab_Uderor[R$],Tab_Uderor[Competencia],Entrada!Y$7,Tab_Uderor[TipoReceita],Entrada!$P16) -> 0 | Z16: =SUMIFS(Tab_Uderor[R$],Tab_Uderor[Competencia],Entrada!Z$7,Tab_Uderor[TipoReceita],Entrada!$P16) -> 0 | AA16: =SUMIFS(Tab_Uderor[R$],Tab_Uderor[Competencia],Entrada!AA$7,Tab_Uderor[TipoReceita],Entrada!$P16) -> 0 | AB16: =SUMIFS(Tab_Uderor[R$],Tab_Uderor[Competencia],Entrada!AB$7,Tab_Uderor[TipoReceita],Entrada!$P16) -> 0 | AC16: =SUMIFS(Tab_Uderor[R$],Tab_Uderor[Competencia],Entrada!AC$7,Tab_Uderor[TipoReceita],Entrada!$P16)-AF16 -> 0 | AD16: =SUMIFS(Tab_Uderor[R$],Tab_Uderor[Competencia],Entrada!AD$7,Tab_Uderor[TipoReceita],Entrada!$P16)-AG16 -> 0 | AE16: =SUMIFS(Tab_Uderor[R$],Tab_Uderor[Competencia],Entrada!AE$7,Tab_Uderor[TipoReceita],Entrada!$P16)-AH16 -> 0 | AF16: 0 | AG16: 0 | AH16: 0
F17: (11) Ativo Diferido | G17: =G81*VLOOKUP(DATE(YEAR(CAPA!$C$10),MONTH(CAPA!$C$10)-1,1),Índices!$B$135:$D$638,3,0)/VLOOKUP(DATE(YEAR($G$70),MONTH($G$70)-1,1),Índices!$B$135:$D$638,3,0) ->  | J17: BMP - 6105306; 6105506; 6105326; 6105526 | K17: Administradores | L17: =SUMIFS(Tab_RIT_BMP[SALDO],Tab_RIT_BMP[CONTA],6105306,Tab_RIT_BMP[ANO],$L$7)+SUMIFS(Tab_RIT_BMP[SALDO],Tab_RIT_BMP[CONTA],6105506,Tab_RIT_BMP[ANO],$L$7)+ SUMIFS(Tab_RIT_BMP[SALDO],Tab_RIT_BMP[CONTA],6105326,Tab_RIT_BMP[ANO],$L$7)+SUMIFS(Tab_RIT_BMP[SALDO],Tab_RIT_BMP[CONTA],6105526,Tab_RIT_BMP[ANO],$L$7) -> 3481258.89 | M17: =SUMIFS(Tab_RIT_BMP[SALDO],Tab_RIT_BMP[CONTA],6105306,Tab_RIT_BMP[ANO],$M$7)+SUMIFS(Tab_RIT_BMP[SALDO],Tab_RIT_BMP[CONTA],6105506,Tab_RIT_BMP[ANO],$M$7)+ SUMIFS(Tab_RIT_BMP[SALDO],Tab_RIT_BMP[CONTA],6105326,Tab_RIT_BMP[ANO],$M$7)+SUMIFS(Tab_RIT_BMP[SALDO],Tab_RIT_BMP[CONTA],6105526,Tab_RIT_BMP[ANO],$M$7) -> 4193040.11 | P17: (1) redes de distribuição de energia elétrica destinadas à regularização fundiária de interesse específico e ao atendimento dos empreendimentos de múltiplas unidades consumidoras; | Q17: =SUMIFS(Tab_Uderor[R$],Tab_Uderor[Competencia],Entrada!Q$7,Tab_Uderor[TipoReceita],Entrada!$P17)*0+R17 -> 0 | R17: 0 | S17: =SUMIFS(Tab_Uderor[R$],Tab_Uderor[Competencia],Entrada!S$7,Tab_Uderor[TipoReceita],Entrada!$P17) -> 0 | T17: =SUMIFS(Tab_Uderor[R$],Tab_Uderor[Competencia],Entrada!T$7,Tab_Uderor[TipoReceita],Entrada!$P17) -> 0 | U17: =SUMIFS(Tab_Uderor[R$],Tab_Uderor[Competencia],Entrada!U$7,Tab_Uderor[TipoReceita],Entrada!$P17) -> 0 | V17: =SUMIFS(Tab_Uderor[R$],Tab_Uderor[Competencia],Entrada!V$7,Tab_Uderor[TipoReceita],Entrada!$P17) -> 0 | W17: =SUMIFS(Tab_Uderor[R$],Tab_Uderor[Competencia],Entrada!W$7,Tab_Uderor[TipoReceita],Entrada!$P17) -> 0 | X17: =SUMIFS(Tab_Uderor[R$],Tab_Uderor[Competencia],Entrada!X$7,Tab_Uderor[TipoReceita],Entrada!$P17) -> 0 | Y17: =SUMIFS(Tab_Uderor[R$],Tab_Uderor[Competencia],Entrada!Y$7,Tab_Uderor[TipoReceita],Entrada!$P17) -> 0 | Z17: =SUMIFS(Tab_Uderor[R$],Tab_Uderor[Competencia],Entrada!Z$7,Tab_Uderor[TipoReceita],Entrada!$P17) -> 0 | AA17: =SUMIFS(Tab_Uderor[R$],Tab_Uderor[Competencia],Entrada!AA$7,Tab_Uderor[TipoReceita],Entrada!$P17) -> 0 | AB17: =SUMIFS(Tab_Uderor[R$],Tab_Uderor[Competencia],Entrada!AB$7,Tab_Uderor[TipoReceita],Entrada!$P17) -> 0 | AC17: =SUMIFS(Tab_Uderor[R$],Tab_Uderor[Competencia],Entrada!AC$7,Tab_Uderor[TipoReceita],Entrada!$P17)-AF17 -> 0 | AD17: =SUMIFS(Tab_Uderor[R$],Tab_Uderor[Competencia],Entrada!AD$7,Tab_Uderor[TipoReceita],Entrada!$P17)-AG17 -> 0 | AE17: =SUMIFS(Tab_Uderor[R$],Tab_Uderor[Competencia],Entrada!AE$7,Tab_Uderor[TipoReceita],Entrada!$P17)-AH17 -> 0 | AF17: 0 | AG17: 0 | AH17: 0
F18: (12) Obrigações Especiais Líquida | G18: =G82*VLOOKUP(DATE(YEAR(CAPA!$C$10),MONTH(CAPA!$C$10)-1,1),Índices!$B$135:$D$638,3,0)/VLOOKUP(DATE(YEAR($G$70),MONTH($G$70)-1,1),Índices!$B$135:$D$638,3,0) ->  | K18: Subtotal | L18: =SUM(L9:L17) -> 119135929.3 | M18: =SUM(M9:M17) -> 132986581.4 | P18: (2) redes de energia elétrica destinadas ao acesso dos sistemas de distribuição ou transmissão; | Q18: =SUMIFS(Tab_Uderor[R$],Tab_Uderor[Competencia],Entrada!Q$7,Tab_Uderor[TipoReceita],Entrada!$P18)*0+R18 -> 0 | R18: 0 | S18: =SUMIFS(Tab_Uderor[R$],Tab_Uderor[Competencia],Entrada!S$7,Tab_Uderor[TipoReceita],Entrada!$P18) -> 0 | T18: =SUMIFS(Tab_Uderor[R$],Tab_Uderor[Competencia],Entrada!T$7,Tab_Uderor[TipoReceita],Entrada!$P18) -> 0 | U18: =SUMIFS(Tab_Uderor[R$],Tab_Uderor[Competencia],Entrada!U$7,Tab_Uderor[TipoReceita],Entrada!$P18) -> 0 | V18: =SUMIFS(Tab_Uderor[R$],Tab_Uderor[Competencia],Entrada!V$7,Tab_Uderor[TipoReceita],Entrada!$P18) -> 0 | W18: =SUMIFS(Tab_Uderor[R$],Tab_Uderor[Competencia],Entrada!W$7,Tab_Uderor[TipoReceita],Entrada!$P18) -> 0 | X18: =SUMIFS(Tab_Uderor[R$],Tab_Uderor[Competencia],Entrada!X$7,Tab_Uderor[TipoReceita],Entrada!$P18) -> 0 | Y18: =SUMIFS(Tab_Uderor[R$],Tab_Uderor[Competencia],Entrada!Y$7,Tab_Uderor[TipoReceita],Entrada!$P18) -> 0 | Z18: =SUMIFS(Tab_Uderor[R$],Tab_Uderor[Competencia],Entrada!Z$7,Tab_Uderor[TipoReceita],Entrada!$P18) -> 0 | AA18: =SUMIFS(Tab_Uderor[R$],Tab_Uderor[Competencia],Entrada!AA$7,Tab_Uderor[TipoReceita],Entrada!$P18) -> 0 | AB18: =SUMIFS(Tab_Uderor[R$],Tab_Uderor[Competencia],Entrada!AB$7,Tab_Uderor[TipoReceita],Entrada!$P18) -> 0 | AC18: =SUMIFS(Tab_Uderor[R$],Tab_Uderor[Competencia],Entrada!AC$7,Tab_Uderor[TipoReceita],Entrada!$P18)-AF18 -> 0 | AD18: =SUMIFS(Tab_Uderor[R$],Tab_Uderor[Competencia],Entrada!AD$7,Tab_Uderor[TipoReceita],Entrada!$P18)-AG18 -> 0 | AE18: =SUMIFS(Tab_Uderor[R$],Tab_Uderor[Competencia],Entrada!AE$7,Tab_Uderor[TipoReceita],Entrada!$P18)-AH18 -> 0 | AF18: 0 | AG18: 0 | AH18: 0
F19: (13) Terrenos e Servidões | G19: =G83*VLOOKUP(DATE(YEAR(CAPA!$C$10),MONTH(CAPA!$C$10)-1,1),Índices!$B$135:$D$638,3,0)/VLOOKUP(DATE(YEAR($G$70),MONTH($G$70)-1,1),Índices!$B$135:$D$638,3,0) ->  | J19: CONTA MATERIAIS | P19: (3) subestações de energia; | Q19: =SUMIFS(Tab_Uderor[R$],Tab_Uderor[Competencia],Entrada!Q$7,Tab_Uderor[TipoReceita],Entrada!$P19)*0+R19 -> 0 | R19: 0 | S19: =SUMIFS(Tab_Uderor[R$],Tab_Uderor[Competencia],Entrada!S$7,Tab_Uderor[TipoReceita],Entrada!$P19) -> 0 | T19: =SUMIFS(Tab_Uderor[R$],Tab_Uderor[Competencia],Entrada!T$7,Tab_Uderor[TipoReceita],Entrada!$P19) -> 0 | U19: =SUMIFS(Tab_Uderor[R$],Tab_Uderor[Competencia],Entrada!U$7,Tab_Uderor[TipoReceita],Entrada!$P19) -> 0 | V19: =SUMIFS(Tab_Uderor[R$],Tab_Uderor[Competencia],Entrada!V$7,Tab_Uderor[TipoReceita],Entrada!$P19) -> 0 | W19: =SUMIFS(Tab_Uderor[R$],Tab_Uderor[Competencia],Entrada!W$7,Tab_Uderor[TipoReceita],Entrada!$P19) -> 0 | X19: =SUMIFS(Tab_Uderor[R$],Tab_Uderor[Competencia],Entrada!X$7,Tab_Uderor[TipoReceita],Entrada!$P19) -> 0 | Y19: =SUMIFS(Tab_Uderor[R$],Tab_Uderor[Competencia],Entrada!Y$7,Tab_Uderor[TipoReceita],Entrada!$P19) -> 0 | Z19: =SUMIFS(Tab_Uderor[R$],Tab_Uderor[Competencia],Entrada!Z$7,Tab_Uderor[TipoReceita],Entrada!$P19) -> 0 | AA19: =SUMIFS(Tab_Uderor[R$],Tab_Uderor[Competencia],Entrada!AA$7,Tab_Uderor[TipoReceita],Entrada!$P19) -> 0 | AB19: =SUMIFS(Tab_Uderor[R$],Tab_Uderor[Competencia],Entrada!AB$7,Tab_Uderor[TipoReceita],Entrada!$P19) -> 0 | AC19: =SUMIFS(Tab_Uderor[R$],Tab_Uderor[Competencia],Entrada!AC$7,Tab_Uderor[TipoReceita],Entrada!$P19)-AF19 -> 0 | AD19: =SUMIFS(Tab_Uderor[R$],Tab_Uderor[Competencia],Entrada!AD$7,Tab_Uderor[TipoReceita],Entrada!$P19)-AG19 -> 0 | AE19: =SUMIFS(Tab_Uderor[R$],Tab_Uderor[Competencia],Entrada!AE$7,Tab_Uderor[TipoReceita],Entrada!$P19)-AH19 -> 0 | AF19: 0 | AG19: 0 | AH19: 0
F20: (14) Base de Rem. Líquida Total = (1)-(6)-(8)+(10)+(11)-(12)+(13) | G20: =G15+G16+G17-G18+G19 ->  | J20: BMP - 610530701; 610550701; 610532701; 610552701 | K20: Materiais | L20: =SUMIFS(Tab_RIT_BMP[SALDO],Tab_RIT_BMP[CONTA],610530701,Tab_RIT_BMP[ANO],$L$7)+SUMIFS(Tab_RIT_BMP[SALDO],Tab_RIT_BMP[CONTA],610550701,Tab_RIT_BMP[ANO],$L$7)+ SUMIFS(Tab_RIT_BMP[SALDO],Tab_RIT_BMP[CONTA],610532701,Tab_RIT_BMP[ANO],$L$7)+SUMIFS(Tab_RIT_BMP[SALDO],Tab_RIT_BMP[CONTA],610552701,Tab_RIT_BMP[ANO],$L$7) -> 36868177.42 | M20: =SUMIFS(Tab_RIT_BMP[SALDO],Tab_RIT_BMP[CONTA],610530701,Tab_RIT_BMP[ANO],$M$7)+SUMIFS(Tab_RIT_BMP[SALDO],Tab_RIT_BMP[CONTA],610550701,Tab_RIT_BMP[ANO],$M$7)+ SUMIFS(Tab_RIT_BMP[SALDO],Tab_RIT_BMP[CONTA],610532701,Tab_RIT_BMP[ANO],$M$7)+SUMIFS(Tab_RIT_BMP[SALDO],Tab_RIT_BMP[CONTA],610552701,Tab_RIT_BMP[ANO],$M$7) -> 29336384.15 | P20: (4) instalações elétricas internas de unidades consumidoras; | Q20: =SUMIFS(Tab_Uderor[R$],Tab_Uderor[Competencia],Entrada!Q$7,Tab_Uderor[TipoReceita],Entrada!$P20)*0+R20 -> 0 | R20: 0 | S20: =SUMIFS(Tab_Uderor[R$],Tab_Uderor[Competencia],Entrada!S$7,Tab_Uderor[TipoReceita],Entrada!$P20) -> 0 | T20: =SUMIFS(Tab_Uderor[R$],Tab_Uderor[Competencia],Entrada!T$7,Tab_Uderor[TipoReceita],Entrada!$P20) -> 0 | U20: =SUMIFS(Tab_Uderor[R$],Tab_Uderor[Competencia],Entrada!U$7,Tab_Uderor[TipoReceita],Entrada!$P20) -> 0 | V20: =SUMIFS(Tab_Uderor[R$],Tab_Uderor[Competencia],Entrada!V$7,Tab_Uderor[TipoReceita],Entrada!$P20) -> 0 | W20: =SUMIFS(Tab_Uderor[R$],Tab_Uderor[Competencia],Entrada!W$7,Tab_Uderor[TipoReceita],Entrada!$P20) -> 0 | X20: =SUMIFS(Tab_Uderor[R$],Tab_Uderor[Competencia],Entrada!X$7,Tab_Uderor[TipoReceita],Entrada!$P20) -> 0 | Y20: =SUMIFS(Tab_Uderor[R$],Tab_Uderor[Competencia],Entrada!Y$7,Tab_Uderor[TipoReceita],Entrada!$P20) -> 0 | Z20: =SUMIFS(Tab_Uderor[R$],Tab_Uderor[Competencia],Entrada!Z$7,Tab_Uderor[TipoReceita],Entrada!$P20) -> 0 | AA20: =SUMIFS(Tab_Uderor[R$],Tab_Uderor[Competencia],Entrada!AA$7,Tab_Uderor[TipoReceita],Entrada!$P20) -> 0 | AB20: =SUMIFS(Tab_Uderor[R$],Tab_Uderor[Competencia],Entrada!AB$7,Tab_Uderor[TipoReceita],Entrada!$P20) -> 0 | AC20: =SUMIFS(Tab_Uderor[R$],Tab_Uderor[Competencia],Entrada!AC$7,Tab_Uderor[TipoReceita],Entrada!$P20)-AF20 -> 0 | AD20: =SUMIFS(Tab_Uderor[R$],Tab_Uderor[Competencia],Entrada!AD$7,Tab_Uderor[TipoReceita],Entrada!$P20)-AG20 -> 0 | AE20: =SUMIFS(Tab_Uderor[R$],Tab_Uderor[Competencia],Entrada!AE$7,Tab_Uderor[TipoReceita],Entrada!$P20)-AH20 -> 0 | AF20: 0 | AG20: 0 | AH20: 0
F21: (15) Saldo RGR PLPT | G21: =G85*VLOOKUP(DATE(YEAR(CAPA!$C$10),MONTH(CAPA!$C$10)-1,1),Índices!$B$135:$D$638,3,0)/VLOOKUP(DATE(YEAR($G$70),MONTH($G$70)-1,1),Índices!$B$135:$D$638,3,0) ->  | J21: BMP - 610530799; 610550799; 610532799; 610552799 | K21: Outros | L21: =SUMIFS(Tab_RIT_BMP[SALDO],Tab_RIT_BMP[CONTA],610530799,Tab_RIT_BMP[ANO],$L$7)+SUMIFS(Tab_RIT_BMP[SALDO],Tab_RIT_BMP[CONTA],610550799,Tab_RIT_BMP[ANO],$L$7)+ SUMIFS(Tab_RIT_BMP[SALDO],Tab_RIT_BMP[CONTA],610532799,Tab_RIT_BMP[ANO],$L$7)+SUMIFS(Tab_RIT_BMP[SALDO],Tab_RIT_BMP[CONTA],610552799,Tab_RIT_BMP[ANO],$L$7) -> 2038965.33 | M21: =SUMIFS(Tab_RIT_BMP[SALDO],Tab_RIT_BMP[CONTA],610530799,Tab_RIT_BMP[ANO],$M$7)+SUMIFS(Tab_RIT_BMP[SALDO],Tab_RIT_BMP[CONTA],610550799,Tab_RIT_BMP[ANO],$M$7)+ SUMIFS(Tab_RIT_BMP[SALDO],Tab_RIT_BMP[CONTA],610532799,Tab_RIT_BMP[ANO],$M$7)+SUMIFS(Tab_RIT_BMP[SALDO],Tab_RIT_BMP[CONTA],610552799,Tab_RIT_BMP[ANO],$M$7) -> 1064178.55 | P21: (5) banco de capacitores; | Q21: =SUMIFS(Tab_Uderor[R$],Tab_Uderor[Competencia],Entrada!Q$7,Tab_Uderor[TipoReceita],Entrada!$P21)*0+R21 -> 0 | R21: 0 | S21: =SUMIFS(Tab_Uderor[R$],Tab_Uderor[Competencia],Entrada!S$7,Tab_Uderor[TipoReceita],Entrada!$P21) -> 0 | T21: =SUMIFS(Tab_Uderor[R$],Tab_Uderor[Competencia],Entrada!T$7,Tab_Uderor[TipoReceita],Entrada!$P21) -> 0 | U21: =SUMIFS(Tab_Uderor[R$],Tab_Uderor[Competencia],Entrada!U$7,Tab_Uderor[TipoReceita],Entrada!$P21) -> 0 | V21: =SUMIFS(Tab_Uderor[R$],Tab_Uderor[Competencia],Entrada!V$7,Tab_Uderor[TipoReceita],Entrada!$P21) -> 0 | W21: =SUMIFS(Tab_Uderor[R$],Tab_Uderor[Competencia],Entrada!W$7,Tab_Uderor[TipoReceita],Entrada!$P21) -> 0 | X21: =SUMIFS(Tab_Uderor[R$],Tab_Uderor[Competencia],Entrada!X$7,Tab_Uderor[TipoReceita],Entrada!$P21) -> 0 | Y21: =SUMIFS(Tab_Uderor[R$],Tab_Uderor[Competencia],Entrada!Y$7,Tab_Uderor[TipoReceita],Entrada!$P21) -> 0 | Z21: =SUMIFS(Tab_Uderor[R$],Tab_Uderor[Competencia],Entrada!Z$7,Tab_Uderor[TipoReceita],Entrada!$P21) -> 0 | AA21: =SUMIFS(Tab_Uderor[R$],Tab_Uderor[Competencia],Entrada!AA$7,Tab_Uderor[TipoReceita],Entrada!$P21) -> 0 | AB21: =SUMIFS(Tab_Uderor[R$],Tab_Uderor[Competencia],Entrada!AB$7,Tab_Uderor[TipoReceita],Entrada!$P21) -> 0 | AC21: =SUMIFS(Tab_Uderor[R$],Tab_Uderor[Competencia],Entrada!AC$7,Tab_Uderor[TipoReceita],Entrada!$P21)-AF21 -> 0 | AD21: =SUMIFS(Tab_Uderor[R$],Tab_Uderor[Competencia],Entrada!AD$7,Tab_Uderor[TipoReceita],Entrada!$P21)-AG21 -> 0 | AE21: =SUMIFS(Tab_Uderor[R$],Tab_Uderor[Competencia],Entrada!AE$7,Tab_Uderor[TipoReceita],Entrada!$P21)-AH21 -> 0 | AF21: 0 | AG21: 0 | AH21: 0
F22: (16) Saldo RGR Demais Investimentos | G22: =G86*VLOOKUP(DATE(YEAR(CAPA!$C$10),MONTH(CAPA!$C$10)-1,1),Índices!$B$135:$D$638,3,0)/VLOOKUP(DATE(YEAR($G$70),MONTH($G$70)-1,1),Índices!$B$135:$D$638,3,0) ->  | J22: BMP - 610530710; 610550710; 610532710; 610552710 | K22: (-) Créditos de Tributos Recuperáveis | L22: =SUMIFS(Tab_RIT_BMP[SALDO],Tab_RIT_BMP[CONTA],610530710,Tab_RIT_BMP[ANO],$L$7)+SUMIFS(Tab_RIT_BMP[SALDO],Tab_RIT_BMP[CONTA],610550710,Tab_RIT_BMP[ANO],$L$7)+ SUMIFS(Tab_RIT_BMP[SALDO],Tab_RIT_BMP[CONTA],610532710,Tab_RIT_BMP[ANO],$L$7)+SUMIFS(Tab_RIT_BMP[SALDO],Tab_RIT_BMP[CONTA],610552710,Tab_RIT_BMP[ANO],$L$7) -> -78425.62 | M22: =SUMIFS(Tab_RIT_BMP[SALDO],Tab_RIT_BMP[CONTA],610530710,Tab_RIT_BMP[ANO],$M$7)+SUMIFS(Tab_RIT_BMP[SALDO],Tab_RIT_BMP[CONTA],610550710,Tab_RIT_BMP[ANO],$M$7)+ SUMIFS(Tab_RIT_BMP[SALDO],Tab_RIT_BMP[CONTA],610532710,Tab_RIT_BMP[ANO],$M$7)+SUMIFS(Tab_RIT_BMP[SALDO],Tab_RIT_BMP[CONTA],610552710,Tab_RIT_BMP[ANO],$M$7) -> -264536.46 | P22: (6) padrões de entrada de unidades consumidoras atendidas em baixa tensão; | Q22: =SUMIFS(Tab_Uderor[R$],Tab_Uderor[Competencia],Entrada!Q$7,Tab_Uderor[TipoReceita],Entrada!$P22)*0+R22 -> 0 | R22: 0 | S22: =SUMIFS(Tab_Uderor[R$],Tab_Uderor[Competencia],Entrada!S$7,Tab_Uderor[TipoReceita],Entrada!$P22) -> 0 | T22: =SUMIFS(Tab_Uderor[R$],Tab_Uderor[Competencia],Entrada!T$7,Tab_Uderor[TipoReceita],Entrada!$P22) -> 0 | U22: =SUMIFS(Tab_Uderor[R$],Tab_Uderor[Competencia],Entrada!U$7,Tab_Uderor[TipoReceita],Entrada!$P22) -> 0 | V22: =SUMIFS(Tab_Uderor[R$],Tab_Uderor[Competencia],Entrada!V$7,Tab_Uderor[TipoReceita],Entrada!$P22) -> 0 | W22: =SUMIFS(Tab_Uderor[R$],Tab_Uderor[Competencia],Entrada!W$7,Tab_Uderor[TipoReceita],Entrada!$P22) -> 0 | X22: =SUMIFS(Tab_Uderor[R$],Tab_Uderor[Competencia],Entrada!X$7,Tab_Uderor[TipoReceita],Entrada!$P22) -> 0 | Y22: =SUMIFS(Tab_Uderor[R$],Tab_Uderor[Competencia],Entrada!Y$7,Tab_Uderor[TipoReceita],Entrada!$P22) -> 0 | Z22: =SUMIFS(Tab_Uderor[R$],Tab_Uderor[Competencia],Entrada!Z$7,Tab_Uderor[TipoReceita],Entrada!$P22) -> 0 | AA22: =SUMIFS(Tab_Uderor[R$],Tab_Uderor[Competencia],Entrada!AA$7,Tab_Uderor[TipoReceita],Entrada!$P22) -> 0 | AB22: =SUMIFS(Tab_Uderor[R$],Tab_Uderor[Competencia],Entrada!AB$7,Tab_Uderor[TipoReceita],Entrada!$P22) -> 0 | AC22: =SUMIFS(Tab_Uderor[R$],Tab_Uderor[Competencia],Entrada!AC$7,Tab_Uderor[TipoReceita],Entrada!$P22)-AF22 -> 0 | AD22: =SUMIFS(Tab_Uderor[R$],Tab_Uderor[Competencia],Entrada!AD$7,Tab_Uderor[TipoReceita],Entrada!$P22)-AG22 -> 0 | AE22: =SUMIFS(Tab_Uderor[R$],Tab_Uderor[Competencia],Entrada!AE$7,Tab_Uderor[TipoReceita],Entrada!$P22)-AH22 -> 0 | AF22: 0 | AG22: 0 | AH22: 0
F23: (17) Taxa de Depreciação | G23: =G87 -> 0 | K23: Subtotal | L23: =SUM(L20:L22) -> 38828717.13 | M23: =SUM(M20:M22) -> 30136026.24 | P23: (7) sistemas de medição de energia elétrica; | Q23: =SUMIFS(Tab_Uderor[R$],Tab_Uderor[Competencia],Entrada!Q$7,Tab_Uderor[TipoReceita],Entrada!$P23)*0+R23 -> 0 | R23: 0 | S23: =SUMIFS(Tab_Uderor[R$],Tab_Uderor[Competencia],Entrada!S$7,Tab_Uderor[TipoReceita],Entrada!$P23) -> 0 | T23: =SUMIFS(Tab_Uderor[R$],Tab_Uderor[Competencia],Entrada!T$7,Tab_Uderor[TipoReceita],Entrada!$P23) -> 0 | U23: =SUMIFS(Tab_Uderor[R$],Tab_Uderor[Competencia],Entrada!U$7,Tab_Uderor[TipoReceita],Entrada!$P23) -> 0 | V23: =SUMIFS(Tab_Uderor[R$],Tab_Uderor[Competencia],Entrada!V$7,Tab_Uderor[TipoReceita],Entrada!$P23) -> 0 | W23: =SUMIFS(Tab_Uderor[R$],Tab_Uderor[Competencia],Entrada!W$7,Tab_Uderor[TipoReceita],Entrada!$P23) -> 0 | X23: =SUMIFS(Tab_Uderor[R$],Tab_Uderor[Competencia],Entrada!X$7,Tab_Uderor[TipoReceita],Entrada!$P23) -> 0 | Y23: =SUMIFS(Tab_Uderor[R$],Tab_Uderor[Competencia],Entrada!Y$7,Tab_Uderor[TipoReceita],Entrada!$P23) -> 0 | Z23: =SUMIFS(Tab_Uderor[R$],Tab_Uderor[Competencia],Entrada!Z$7,Tab_Uderor[TipoReceita],Entrada!$P23) -> 0 | AA23: =SUMIFS(Tab_Uderor[R$],Tab_Uderor[Competencia],Entrada!AA$7,Tab_Uderor[TipoReceita],Entrada!$P23) -> 0 | AB23: =SUMIFS(Tab_Uderor[R$],Tab_Uderor[Competencia],Entrada!AB$7,Tab_Uderor[TipoReceita],Entrada!$P23) -> 0 | AC23: =SUMIFS(Tab_Uderor[R$],Tab_Uderor[Competencia],Entrada!AC$7,Tab_Uderor[TipoReceita],Entrada!$P23)-AF23 -> 0 | AD23: =SUMIFS(Tab_Uderor[R$],Tab_Uderor[Competencia],Entrada!AD$7,Tab_Uderor[TipoReceita],Entrada!$P23)-AG23 -> 0 | AE23: =SUMIFS(Tab_Uderor[R$],Tab_Uderor[Competencia],Entrada!AE$7,Tab_Uderor[TipoReceita],Entrada!$P23)-AH23 -> 0 | AF23: 0 | AG23: 0 | AH23: 0
F24: (18) Quota de Reintegração Regulatória = (5) * (17) | G24: =G23*G11 ->  | J24: CONTA TERCEIROS | P24: (8) geradores, incluindo-se unidades de microgeração e minigeração distribuída; | Q24: =SUMIFS(Tab_Uderor[R$],Tab_Uderor[Competencia],Entrada!Q$7,Tab_Uderor[TipoReceita],Entrada!$P24)*0+R24 -> 0 | R24: 0 | S24: =SUMIFS(Tab_Uderor[R$],Tab_Uderor[Competencia],Entrada!S$7,Tab_Uderor[TipoReceita],Entrada!$P24) -> 0 | T24: =SUMIFS(Tab_Uderor[R$],Tab_Uderor[Competencia],Entrada!T$7,Tab_Uderor[TipoReceita],Entrada!$P24) -> 0 | U24: =SUMIFS(Tab_Uderor[R$],Tab_Uderor[Competencia],Entrada!U$7,Tab_Uderor[TipoReceita],Entrada!$P24) -> 0 | V24: =SUMIFS(Tab_Uderor[R$],Tab_Uderor[Competencia],Entrada!V$7,Tab_Uderor[TipoReceita],Entrada!$P24) -> 0 | W24: =SUMIFS(Tab_Uderor[R$],Tab_Uderor[Competencia],Entrada!W$7,Tab_Uderor[TipoReceita],Entrada!$P24) -> 0 | X24: =SUMIFS(Tab_Uderor[R$],Tab_Uderor[Competencia],Entrada!X$7,Tab_Uderor[TipoReceita],Entrada!$P24) -> 0 | Y24: =SUMIFS(Tab_Uderor[R$],Tab_Uderor[Competencia],Entrada!Y$7,Tab_Uderor[TipoReceita],Entrada!$P24) -> 0 | Z24: =SUMIFS(Tab_Uderor[R$],Tab_Uderor[Competencia],Entrada!Z$7,Tab_Uderor[TipoReceita],Entrada!$P24) -> 0 | AA24: =SUMIFS(Tab_Uderor[R$],Tab_Uderor[Competencia],Entrada!AA$7,Tab_Uderor[TipoReceita],Entrada!$P24) -> 0 | AB24: =SUMIFS(Tab_Uderor[R$],Tab_Uderor[Competencia],Entrada!AB$7,Tab_Uderor[TipoReceita],Entrada!$P24) -> 0 | AC24: =SUMIFS(Tab_Uderor[R$],Tab_Uderor[Competencia],Entrada!AC$7,Tab_Uderor[TipoReceita],Entrada!$P24)-AF24 -> 0 | AD24: =SUMIFS(Tab_Uderor[R$],Tab_Uderor[Competencia],Entrada!AD$7,Tab_Uderor[TipoReceita],Entrada!$P24)-AG24 -> 0 | AE24: =SUMIFS(Tab_Uderor[R$],Tab_Uderor[Competencia],Entrada!AE$7,Tab_Uderor[TipoReceita],Entrada!$P24)-AH24 -> 0 | AF24: 0 | AG24: 0 | AH24: 0
J25: RIT - RP 800 - Célula F20 | K25: Manut. e Conserv. Bens e Instalações vinculadas ao Serviço Concedido | L25: =SUMIFS(Tab_RIT_BMP[SALDO],Tab_RIT_BMP[CONTA],1,Tab_RIT_BMP[ANO],$L$7) -> 58721331.06 | M25: =SUMIFS(Tab_RIT_BMP[SALDO],Tab_RIT_BMP[CONTA],1,Tab_RIT_BMP[ANO],$M$7) -> 58935064.13 | P25: (9) sistemas de iluminação pública. | Q25: =SUMIFS(Tab_Uderor[R$],Tab_Uderor[Competencia],Entrada!Q$7,Tab_Uderor[TipoReceita],Entrada!$P25)*0+R25 -> 0 | R25: 0 | S25: =SUMIFS(Tab_Uderor[R$],Tab_Uderor[Competencia],Entrada!S$7,Tab_Uderor[TipoReceita],Entrada!$P25) -> 0 | T25: =SUMIFS(Tab_Uderor[R$],Tab_Uderor[Competencia],Entrada!T$7,Tab_Uderor[TipoReceita],Entrada!$P25) -> 0 | U25: =SUMIFS(Tab_Uderor[R$],Tab_Uderor[Competencia],Entrada!U$7,Tab_Uderor[TipoReceita],Entrada!$P25) -> 0 | V25: =SUMIFS(Tab_Uderor[R$],Tab_Uderor[Competencia],Entrada!V$7,Tab_Uderor[TipoReceita],Entrada!$P25) -> 0 | W25: =SUMIFS(Tab_Uderor[R$],Tab_Uderor[Competencia],Entrada!W$7,Tab_Uderor[TipoReceita],Entrada!$P25) -> 0 | X25: =SUMIFS(Tab_Uderor[R$],Tab_Uderor[Competencia],Entrada!X$7,Tab_Uderor[TipoReceita],Entrada!$P25) -> 0 | Y25: =SUMIFS(Tab_Uderor[R$],Tab_Uderor[Competencia],Entrada!Y$7,Tab_Uderor[TipoReceita],Entrada!$P25) -> 0 | Z25: =SUMIFS(Tab_Uderor[R$],Tab_Uderor[Competencia],Entrada!Z$7,Tab_Uderor[TipoReceita],Entrada!$P25) -> 0 | AA25: =SUMIFS(Tab_Uderor[R$],Tab_Uderor[Competencia],Entrada!AA$7,Tab_Uderor[TipoReceita],Entrada!$P25) -> 0 | AB25: =SUMIFS(Tab_Uderor[R$],Tab_Uderor[Competencia],Entrada!AB$7,Tab_Uderor[TipoReceita],Entrada!$P25) -> 0 | AC25: =SUMIFS(Tab_Uderor[R$],Tab_Uderor[Competencia],Entrada!AC$7,Tab_Uderor[TipoReceita],Entrada!$P25)-AF25 -> 0 | AD25: =SUMIFS(Tab_Uderor[R$],Tab_Uderor[Competencia],Entrada!AD$7,Tab_Uderor[TipoReceita],Entrada!$P25)-AG25 -> 0 | AE25: =SUMIFS(Tab_Uderor[R$],Tab_Uderor[Competencia],Entrada!AE$7,Tab_Uderor[TipoReceita],Entrada!$P25)-AH25 -> 0 | AF25: 0 | AG25: 0 | AH25: 0
F26: Gasto do Conselho de Consumidores | J26: RIT - RP 800 - Célula F21 | K26: Auditoria e Consultoria | L26: =SUMIFS(Tab_RIT_BMP[SALDO],Tab_RIT_BMP[CONTA],2,Tab_RIT_BMP[ANO],$L$7) -> 1595667.7 | M26: =SUMIFS(Tab_RIT_BMP[SALDO],Tab_RIT_BMP[CONTA],2,Tab_RIT_BMP[ANO],$M$7) -> 1784076.78 | P26: (10) estações de recarga de veículos elétricos, incluindo a prestação de serviços aos usuários | Q26: =SUMIFS(Tab_Uderor[R$],Tab_Uderor[Competencia],Entrada!Q$7,Tab_Uderor[TipoReceita],Entrada!$P26)*0+R26 -> 0 | R26: 0 | S26: =SUMIFS(Tab_Uderor[R$],Tab_Uderor[Competencia],Entrada!S$7,Tab_Uderor[TipoReceita],Entrada!$P26) -> 0 | T26: =SUMIFS(Tab_Uderor[R$],Tab_Uderor[Competencia],Entrada!T$7,Tab_Uderor[TipoReceita],Entrada!$P26) -> 0 | U26: =SUMIFS(Tab_Uderor[R$],Tab_Uderor[Competencia],Entrada!U$7,Tab_Uderor[TipoReceita],Entrada!$P26) -> 0 | V26: =SUMIFS(Tab_Uderor[R$],Tab_Uderor[Competencia],Entrada!V$7,Tab_Uderor[TipoReceita],Entrada!$P26) -> 0 | W26: =SUMIFS(Tab_Uderor[R$],Tab_Uderor[Competencia],Entrada!W$7,Tab_Uderor[TipoReceita],Entrada!$P26) -> 0 | X26: =SUMIFS(Tab_Uderor[R$],Tab_Uderor[Competencia],Entrada!X$7,Tab_Uderor[TipoReceita],Entrada!$P26) -> 0 | Y26: =SUMIFS(Tab_Uderor[R$],Tab_Uderor[Competencia],Entrada!Y$7,Tab_Uderor[TipoReceita],Entrada!$P26) -> 0 | Z26: =SUMIFS(Tab_Uderor[R$],Tab_Uderor[Competencia],Entrada!Z$7,Tab_Uderor[TipoReceita],Entrada!$P26) -> 0 | AA26: =SUMIFS(Tab_Uderor[R$],Tab_Uderor[Competencia],Entrada!AA$7,Tab_Uderor[TipoReceita],Entrada!$P26) -> 0 | AB26: =SUMIFS(Tab_Uderor[R$],Tab_Uderor[Competencia],Entrada!AB$7,Tab_Uderor[TipoReceita],Entrada!$P26) -> 0 | AC26: =SUMIFS(Tab_Uderor[R$],Tab_Uderor[Competencia],Entrada!AC$7,Tab_Uderor[TipoReceita],Entrada!$P26)-AF26 -> 0 | AD26: =SUMIFS(Tab_Uderor[R$],Tab_Uderor[Competencia],Entrada!AD$7,Tab_Uderor[TipoReceita],Entrada!$P26)-AG26 -> 0 | AE26: =SUMIFS(Tab_Uderor[R$],Tab_Uderor[Competencia],Entrada!AE$7,Tab_Uderor[TipoReceita],Entrada!$P26)-AH26 -> 0 | AF26: 0 | AG26: 0 | AH26: 0
F27: =Indexador!D132 -> Despesa 2024 | H27: 45908 | J27: RIT - RP 800 - Célula F22 | K27: Serviços Jurídicos | L27: =SUMIFS(Tab_RIT_BMP[SALDO],Tab_RIT_BMP[CONTA],3,Tab_RIT_BMP[ANO],$L$7) -> 0 | M27: =SUMIFS(Tab_RIT_BMP[SALDO],Tab_RIT_BMP[CONTA],3,Tab_RIT_BMP[ANO],$M$7) -> 0 | P27: Eficientização do consumo de energia elétrica e instalação de cogeração qualificada, desde que não enquadráveis nos projetos de Pesquisa e Desenvolvimento (P&D) ou de Eficiência Energética estabelecidos em lei | Q27: =SUMIFS(Tab_Uderor[R$],Tab_Uderor[Competencia],Entrada!Q$7,Tab_Uderor[TipoReceita],Entrada!$P27)*0+R27 -> 0 | R27: 0 | S27: =SUMIFS(Tab_Uderor[R$],Tab_Uderor[Competencia],Entrada!S$7,Tab_Uderor[TipoReceita],Entrada!$P27) -> 0 | T27: =SUMIFS(Tab_Uderor[R$],Tab_Uderor[Competencia],Entrada!T$7,Tab_Uderor[TipoReceita],Entrada!$P27) -> 0 | U27: =SUMIFS(Tab_Uderor[R$],Tab_Uderor[Competencia],Entrada!U$7,Tab_Uderor[TipoReceita],Entrada!$P27) -> 0 | V27: =SUMIFS(Tab_Uderor[R$],Tab_Uderor[Competencia],Entrada!V$7,Tab_Uderor[TipoReceita],Entrada!$P27) -> 0 | W27: =SUMIFS(Tab_Uderor[R$],Tab_Uderor[Competencia],Entrada!W$7,Tab_Uderor[TipoReceita],Entrada!$P27) -> 0 | X27: =SUMIFS(Tab_Uderor[R$],Tab_Uderor[Competencia],Entrada!X$7,Tab_Uderor[TipoReceita],Entrada!$P27) -> 0 | Y27: =SUMIFS(Tab_Uderor[R$],Tab_Uderor[Competencia],Entrada!Y$7,Tab_Uderor[TipoReceita],Entrada!$P27) -> 0 | Z27: =SUMIFS(Tab_Uderor[R$],Tab_Uderor[Competencia],Entrada!Z$7,Tab_Uderor[TipoReceita],Entrada!$P27) -> 0 | AA27: =SUMIFS(Tab_Uderor[R$],Tab_Uderor[Competencia],Entrada!AA$7,Tab_Uderor[TipoReceita],Entrada!$P27) -> 0 | AB27: =SUMIFS(Tab_Uderor[R$],Tab_Uderor[Competencia],Entrada!AB$7,Tab_Uderor[TipoReceita],Entrada!$P27) -> 0 | AC27: =SUMIFS(Tab_Uderor[R$],Tab_Uderor[Competencia],Entrada!AC$7,Tab_Uderor[TipoReceita],Entrada!$P27)-AF27 -> 0 | AD27: =SUMIFS(Tab_Uderor[R$],Tab_Uderor[Competencia],Entrada!AD$7,Tab_Uderor[TipoReceita],Entrada!$P27)-AG27 -> 0 | AE27: =SUMIFS(Tab_Uderor[R$],Tab_Uderor[Competencia],Entrada!AE$7,Tab_Uderor[TipoReceita],Entrada!$P27)-AH27 -> 0 | AF27: 0 | AG27: 0 | AH27: 0
F28: =Indexador!E132 -> Despesa 2023 | J28: RIT - RP 800 - Célula F23 | K28: Serviços de Informática | L28: =SUMIFS(Tab_RIT_BMP[SALDO],Tab_RIT_BMP[CONTA],4,Tab_RIT_BMP[ANO],$L$7)+SUMIFS(Tab_RIT_BMP[SALDO],Tab_RIT_BMP[CONTA],5,Tab_RIT_BMP[ANO],$L$7) -> 43469.42 | M28: =SUMIFS(Tab_RIT_BMP[SALDO],Tab_RIT_BMP[CONTA],4,Tab_RIT_BMP[ANO],$M$7)+SUMIFS(Tab_RIT_BMP[SALDO],Tab_RIT_BMP[CONTA],5,Tab_RIT_BMP[ANO],$M$7) -> 101937.24 | P28: Serviços de comunicação de dados | Q28: =SUMIFS(Tab_Uderor[R$],Tab_Uderor[Competencia],Entrada!Q$7,Tab_Uderor[TipoReceita],Entrada!$P28)*0+R28 -> 0 | R28: 0 | S28: =SUMIFS(Tab_Uderor[R$],Tab_Uderor[Competencia],Entrada!S$7,Tab_Uderor[TipoReceita],Entrada!$P28) -> 0 | T28: =SUMIFS(Tab_Uderor[R$],Tab_Uderor[Competencia],Entrada!T$7,Tab_Uderor[TipoReceita],Entrada!$P28) -> 0 | U28: =SUMIFS(Tab_Uderor[R$],Tab_Uderor[Competencia],Entrada!U$7,Tab_Uderor[TipoReceita],Entrada!$P28) -> 0 | V28: =SUMIFS(Tab_Uderor[R$],Tab_Uderor[Competencia],Entrada!V$7,Tab_Uderor[TipoReceita],Entrada!$P28) -> 0 | W28: =SUMIFS(Tab_Uderor[R$],Tab_Uderor[Competencia],Entrada!W$7,Tab_Uderor[TipoReceita],Entrada!$P28) -> 0 | X28: =SUMIFS(Tab_Uderor[R$],Tab_Uderor[Competencia],Entrada!X$7,Tab_Uderor[TipoReceita],Entrada!$P28) -> 0 | Y28: =SUMIFS(Tab_Uderor[R$],Tab_Uderor[Competencia],Entrada!Y$7,Tab_Uderor[TipoReceita],Entrada!$P28) -> 0 | Z28: =SUMIFS(Tab_Uderor[R$],Tab_Uderor[Competencia],Entrada!Z$7,Tab_Uderor[TipoReceita],Entrada!$P28) -> 0 | AA28: =SUMIFS(Tab_Uderor[R$],Tab_Uderor[Competencia],Entrada!AA$7,Tab_Uderor[TipoReceita],Entrada!$P28) -> 0 | AB28: =SUMIFS(Tab_Uderor[R$],Tab_Uderor[Competencia],Entrada!AB$7,Tab_Uderor[TipoReceita],Entrada!$P28) -> 0 | AC28: =SUMIFS(Tab_Uderor[R$],Tab_Uderor[Competencia],Entrada!AC$7,Tab_Uderor[TipoReceita],Entrada!$P28)-AF28 -> 0 | AD28: =SUMIFS(Tab_Uderor[R$],Tab_Uderor[Competencia],Entrada!AD$7,Tab_Uderor[TipoReceita],Entrada!$P28)-AG28 -> 0 | AE28: =SUMIFS(Tab_Uderor[R$],Tab_Uderor[Competencia],Entrada!AE$7,Tab_Uderor[TipoReceita],Entrada!$P28)-AH28 -> 0 | AF28: 0 | AG28: 0 | AH28: 0
F29: =Indexador!F132 -> Despesa 2022 | J29: RIT - RP 800 - Célula F26 | K29: Viagens (Passagens Aéreas, etc) | L29: =SUMIFS(Tab_RIT_BMP[SALDO],Tab_RIT_BMP[CONTA],6,Tab_RIT_BMP[ANO],$L$7) -> 6214816.52 | M29: =SUMIFS(Tab_RIT_BMP[SALDO],Tab_RIT_BMP[CONTA],6,Tab_RIT_BMP[ANO],$M$7) -> 4954984.61 | P29: Serviços de consultoria | Q29: =SUMIFS(Tab_Uderor[R$],Tab_Uderor[Competencia],Entrada!Q$7,Tab_Uderor[TipoReceita],Entrada!$P29)*0+R29 -> 0 | R29: 0 | S29: =SUMIFS(Tab_Uderor[R$],Tab_Uderor[Competencia],Entrada!S$7,Tab_Uderor[TipoReceita],Entrada!$P29) -> 0 | T29: =SUMIFS(Tab_Uderor[R$],Tab_Uderor[Competencia],Entrada!T$7,Tab_Uderor[TipoReceita],Entrada!$P29) -> 0 | U29: =SUMIFS(Tab_Uderor[R$],Tab_Uderor[Competencia],Entrada!U$7,Tab_Uderor[TipoReceita],Entrada!$P29) -> 0 | V29: =SUMIFS(Tab_Uderor[R$],Tab_Uderor[Competencia],Entrada!V$7,Tab_Uderor[TipoReceita],Entrada!$P29) -> 0 | W29: =SUMIFS(Tab_Uderor[R$],Tab_Uderor[Competencia],Entrada!W$7,Tab_Uderor[TipoReceita],Entrada!$P29) -> 0 | X29: =SUMIFS(Tab_Uderor[R$],Tab_Uderor[Competencia],Entrada!X$7,Tab_Uderor[TipoReceita],Entrada!$P29) -> 0 | Y29: =SUMIFS(Tab_Uderor[R$],Tab_Uderor[Competencia],Entrada!Y$7,Tab_Uderor[TipoReceita],Entrada!$P29) -> 0 | Z29: =SUMIFS(Tab_Uderor[R$],Tab_Uderor[Competencia],Entrada!Z$7,Tab_Uderor[TipoReceita],Entrada!$P29) -> 0 | AA29: =SUMIFS(Tab_Uderor[R$],Tab_Uderor[Competencia],Entrada!AA$7,Tab_Uderor[TipoReceita],Entrada!$P29) -> 0 | AB29: =SUMIFS(Tab_Uderor[R$],Tab_Uderor[Competencia],Entrada!AB$7,Tab_Uderor[TipoReceita],Entrada!$P29) -> 0 | AC29: =SUMIFS(Tab_Uderor[R$],Tab_Uderor[Competencia],Entrada!AC$7,Tab_Uderor[TipoReceita],Entrada!$P29)-AF29 -> 0 | AD29: =SUMIFS(Tab_Uderor[R$],Tab_Uderor[Competencia],Entrada!AD$7,Tab_Uderor[TipoReceita],Entrada!$P29)-AG29 -> 0 | AE29: =SUMIFS(Tab_Uderor[R$],Tab_Uderor[Competencia],Entrada!AE$7,Tab_Uderor[TipoReceita],Entrada!$P29)-AH29 -> 0 | AF29: 0 | AG29: 0 | AH29: 0
F30: =Indexador!G132 -> Despesa 2021 | J30: RIT - RP 800 - Célula F27 | K30: Transportes (inclui Fretes) | L30: =SUMIFS(Tab_RIT_BMP[SALDO],Tab_RIT_BMP[CONTA],7,Tab_RIT_BMP[ANO],$L$7) -> 4563712.7 | M30: =SUMIFS(Tab_RIT_BMP[SALDO],Tab_RIT_BMP[CONTA],7,Tab_RIT_BMP[ANO],$M$7) -> 4094258.15 | P30: Receita proveniente da comercialização de resultados de projetos de P&D COM comprovação | Q30: =SUMIFS(Tab_Uderor[R$],Tab_Uderor[Competencia],Entrada!Q$7,Tab_Uderor[TipoReceita],Entrada!$P30)*0+R30 -> 0 | R30: 0 | S30: =SUMIFS(Tab_Uderor[R$],Tab_Uderor[Competencia],Entrada!S$7,Tab_Uderor[TipoReceita],Entrada!$P30) -> 0 | T30: =SUMIFS(Tab_Uderor[R$],Tab_Uderor[Competencia],Entrada!T$7,Tab_Uderor[TipoReceita],Entrada!$P30) -> 0 | U30: =SUMIFS(Tab_Uderor[R$],Tab_Uderor[Competencia],Entrada!U$7,Tab_Uderor[TipoReceita],Entrada!$P30) -> 0 | V30: =SUMIFS(Tab_Uderor[R$],Tab_Uderor[Competencia],Entrada!V$7,Tab_Uderor[TipoReceita],Entrada!$P30) -> 0 | W30: =SUMIFS(Tab_Uderor[R$],Tab_Uderor[Competencia],Entrada!W$7,Tab_Uderor[TipoReceita],Entrada!$P30) -> 0 | X30: =SUMIFS(Tab_Uderor[R$],Tab_Uderor[Competencia],Entrada!X$7,Tab_Uderor[TipoReceita],Entrada!$P30) -> 0 | Y30: =SUMIFS(Tab_Uderor[R$],Tab_Uderor[Competencia],Entrada!Y$7,Tab_Uderor[TipoReceita],Entrada!$P30) -> 0 | Z30: =SUMIFS(Tab_Uderor[R$],Tab_Uderor[Competencia],Entrada!Z$7,Tab_Uderor[TipoReceita],Entrada!$P30) -> 0 | AA30: =SUMIFS(Tab_Uderor[R$],Tab_Uderor[Competencia],Entrada!AA$7,Tab_Uderor[TipoReceita],Entrada!$P30) -> 0 | AB30: =SUMIFS(Tab_Uderor[R$],Tab_Uderor[Competencia],Entrada!AB$7,Tab_Uderor[TipoReceita],Entrada!$P30) -> 0 | AC30: =SUMIFS(Tab_Uderor[R$],Tab_Uderor[Competencia],Entrada!AC$7,Tab_Uderor[TipoReceita],Entrada!$P30)-AF30 -> 0 | AD30: =SUMIFS(Tab_Uderor[R$],Tab_Uderor[Competencia],Entrada!AD$7,Tab_Uderor[TipoReceita],Entrada!$P30)-AG30 -> 0 | AE30: =SUMIFS(Tab_Uderor[R$],Tab_Uderor[Competencia],Entrada!AE$7,Tab_Uderor[TipoReceita],Entrada!$P30)-AH30 -> 0 | AF30: 0 | AG30: 0 | AH30: 0
F31: =Indexador!H132 -> Despesa 2020 | J31: RIT - RP 800 - Célula F28 | K31: Propaganda e Publicidade (exceto Publicações Oficiais) | L31: =SUMIFS(Tab_RIT_BMP[SALDO],Tab_RIT_BMP[CONTA],8,Tab_RIT_BMP[ANO],$L$7) -> 0 | M31: =SUMIFS(Tab_RIT_BMP[SALDO],Tab_RIT_BMP[CONTA],8,Tab_RIT_BMP[ANO],$M$7) -> 0 | P31: Receita proveniente da comercialização de resultados de projetos de P&D SEM comprovação | Q31: =SUMIFS(Tab_Uderor[R$],Tab_Uderor[Competencia],Entrada!Q$7,Tab_Uderor[TipoReceita],Entrada!$P31)*0+R31 -> 0 | R31: 0 | S31: =SUMIFS(Tab_Uderor[R$],Tab_Uderor[Competencia],Entrada!S$7,Tab_Uderor[TipoReceita],Entrada!$P31) -> 0 | T31: =SUMIFS(Tab_Uderor[R$],Tab_Uderor[Competencia],Entrada!T$7,Tab_Uderor[TipoReceita],Entrada!$P31) -> 0 | U31: =SUMIFS(Tab_Uderor[R$],Tab_Uderor[Competencia],Entrada!U$7,Tab_Uderor[TipoReceita],Entrada!$P31) -> 0 | V31: =SUMIFS(Tab_Uderor[R$],Tab_Uderor[Competencia],Entrada!V$7,Tab_Uderor[TipoReceita],Entrada!$P31) -> 0 | W31: =SUMIFS(Tab_Uderor[R$],Tab_Uderor[Competencia],Entrada!W$7,Tab_Uderor[TipoReceita],Entrada!$P31) -> 0 | X31: =SUMIFS(Tab_Uderor[R$],Tab_Uderor[Competencia],Entrada!X$7,Tab_Uderor[TipoReceita],Entrada!$P31) -> 0 | Y31: =SUMIFS(Tab_Uderor[R$],Tab_Uderor[Competencia],Entrada!Y$7,Tab_Uderor[TipoReceita],Entrada!$P31) -> 0 | Z31: =SUMIFS(Tab_Uderor[R$],Tab_Uderor[Competencia],Entrada!Z$7,Tab_Uderor[TipoReceita],Entrada!$P31) -> 0 | AA31: =SUMIFS(Tab_Uderor[R$],Tab_Uderor[Competencia],Entrada!AA$7,Tab_Uderor[TipoReceita],Entrada!$P31) -> 0 | AB31: =SUMIFS(Tab_Uderor[R$],Tab_Uderor[Competencia],Entrada!AB$7,Tab_Uderor[TipoReceita],Entrada!$P31) -> 0 | AC31: =SUMIFS(Tab_Uderor[R$],Tab_Uderor[Competencia],Entrada!AC$7,Tab_Uderor[TipoReceita],Entrada!$P31)-AF31 -> 0 | AD31: =SUMIFS(Tab_Uderor[R$],Tab_Uderor[Competencia],Entrada!AD$7,Tab_Uderor[TipoReceita],Entrada!$P31)-AG31 -> 0 | AE31: =SUMIFS(Tab_Uderor[R$],Tab_Uderor[Competencia],Entrada!AE$7,Tab_Uderor[TipoReceita],Entrada!$P31)-AH31 -> 0 | AF31: 0 | AG31: 0 | AH31: 0
F32: Perdas Regulatórias | J32: RIT - RP 800 - Célula F29 | K32: Publicações Oficiais | L32: =SUMIFS(Tab_RIT_BMP[SALDO],Tab_RIT_BMP[CONTA],9,Tab_RIT_BMP[ANO],$L$7) -> 0 | M32: =SUMIFS(Tab_RIT_BMP[SALDO],Tab_RIT_BMP[CONTA],9,Tab_RIT_BMP[ANO],$M$7) -> 0
F33: Perdas Não Técnicas | H33: 45908 | J33: RIT - RP 800 - Célula F30 | K33: Serviço de Engenharia e Supervisão de Obras | L33: =SUMIFS(Tab_RIT_BMP[SALDO],Tab_RIT_BMP[CONTA],10,Tab_RIT_BMP[ANO],$L$7) -> 0 | M33: =SUMIFS(Tab_RIT_BMP[SALDO],Tab_RIT_BMP[CONTA],10,Tab_RIT_BMP[ANO],$M$7) -> 0
F34: Perdas Técnicas | J34: RIT - RP 800 - Célula F31 | K34: Gestão Comercial | L34: =SUMIFS(Tab_RIT_BMP[SALDO],Tab_RIT_BMP[CONTA],11,Tab_RIT_BMP[ANO],$L$7) -> 9188254.49 | M34: =SUMIFS(Tab_RIT_BMP[SALDO],Tab_RIT_BMP[CONTA],11,Tab_RIT_BMP[ANO],$M$7) -> 10120051.55 | P34: Outras Receitas - Caso 3
J35: RIT - RP 800 - Célula F32 | K35: Outros Serviços Terceirizados | L35: =SUMIFS(Tab_RIT_BMP[SALDO],Tab_RIT_BMP[CONTA],12,Tab_RIT_BMP[ANO],$L$7) -> 16467141.22 | M35: =SUMIFS(Tab_RIT_BMP[SALDO],Tab_RIT_BMP[CONTA],12,Tab_RIT_BMP[ANO],$M$7) -> 18843181.21 | P35: Alíquota ISS
F36: Dados da Revisão Anterior - Componente Pd | J36: RIT - RP 800 - Célula F33 - BMP - 610530810,610550810,610532810,610552810 | K36: (-) Créditos de Tributos Recuperáveis | L36: =SUMIFS(Tab_RIT_BMP[SALDO],Tab_RIT_BMP[CONTA],610530810,Tab_RIT_BMP[ANO],$L$7)+SUMIFS(Tab_RIT_BMP[SALDO],Tab_RIT_BMP[CONTA],610550810,Tab_RIT_BMP[ANO],$L$7)+ SUMIFS(Tab_RIT_BMP[SALDO],Tab_RIT_BMP[CONTA],610532810,Tab_RIT_BMP[ANO],$L$7)+SUMIFS(Tab_RIT_BMP[SALDO],Tab_RIT_BMP[CONTA],610552810,Tab_RIT_BMP[ANO],$L$7) -> -1534882.46 | M36: =SUMIFS(Tab_RIT_BMP[SALDO],Tab_RIT_BMP[CONTA],610530810,Tab_RIT_BMP[ANO],$M$7)+SUMIFS(Tab_RIT_BMP[SALDO],Tab_RIT_BMP[CONTA],610550810,Tab_RIT_BMP[ANO],$M$7)+ SUMIFS(Tab_RIT_BMP[SALDO],Tab_RIT_BMP[CONTA],610532810,Tab_RIT_BMP[ANO],$M$7)+SUMIFS(Tab_RIT_BMP[SALDO],Tab_RIT_BMP[CONTA],610552810,Tab_RIT_BMP[ANO],$M$7) -> -4519309.34
F37: Data Base Ativos e Consumidores | H37: 45908 | J37: RIT - RP 800 - Célula F34 - BMP - 610532801,610552801 | K37: Transferências da Administração Central | L37: =SUMIFS(Tab_RIT_BMP[SALDO],Tab_RIT_BMP[CONTA],610532801,Tab_RIT_BMP[ANO],$L$7)+SUMIFS(Tab_RIT_BMP[SALDO],Tab_RIT_BMP[CONTA],610552801,Tab_RIT_BMP[ANO],$M$7) -> 78825600.47 | M37: =SUMIFS(Tab_RIT_BMP[SALDO],Tab_RIT_BMP[CONTA],610532801,Tab_RIT_BMP[ANO],$M$7)+SUMIFS(Tab_RIT_BMP[SALDO],Tab_RIT_BMP[CONTA],610552801,Tab_RIT_BMP[ANO],$L$7) -> 87661823.83 | P37: Tipo de Receita | Q37: =Q7 -> 2025-11-01 | R37: 2025-10-01 | S37: 2025-09-01 | T37: 2025-08-01 | U37: 2025-07-01 | V37: 2025-06-01 | W37: 2025-05-01 | X37: 2025-04-01 | Y37: 2025-03-01 | Z37: 2025-02-01 | AA37: 2025-01-01 | AB37: 2024-12-01
F38: Mercado AT (MWh) | K38: Subtotal | L38: =SUM(L25:L37) -> 174085111.1 | M38: =SUM(M25:M37) -> 181976068.2 | P38: Serviços Cobráveis
D39: 45308 | F39: Mercado MT (MWh) | J39: CONTA SEGUROS | P39: Encargos de Conexão
D40: 45308 | F40: Mercado BT (MWh) | J40: BMP - 610531001; 610551001; 610533001; 610553001 | K40: Seguros | L40: =SUMIFS(Tab_RIT_BMP[SALDO],Tab_RIT_BMP[CONTA],610531001,Tab_RIT_BMP[ANO],$L$7)+SUMIFS(Tab_RIT_BMP[SALDO],Tab_RIT_BMP[CONTA],610551001,Tab_RIT_BMP[ANO],$L$7)+ SUMIFS(Tab_RIT_BMP[SALDO],Tab_RIT_BMP[CONTA],610533001,Tab_RIT_BMP[ANO],$L$7)+SUMIFS(Tab_RIT_BMP[SALDO],Tab_RIT_BMP[CONTA],610553001,Tab_RIT_BMP[ANO],$L$7) -> 2011384.77 | M40: =SUMIFS(Tab_RIT_BMP[SALDO],Tab_RIT_BMP[CONTA],610531001,Tab_RIT_BMP[ANO],$M$7)+SUMIFS(Tab_RIT_BMP[SALDO],Tab_RIT_BMP[CONTA],610551001,Tab_RIT_BMP[ANO],$M$7)+ SUMIFS(Tab_RIT_BMP[SALDO],Tab_RIT_BMP[CONTA],610533001,Tab_RIT_BMP[ANO],$M$7)+SUMIFS(Tab_RIT_BMP[SALDO],Tab_RIT_BMP[CONTA],610553001,Tab_RIT_BMP[ANO],$M$7) -> 2785427.88 | P40: Compartilhamento de Infraestrutura
D41: 45308 | F41: Número de unidades consumidoras | J41: BMP - 610531099; 610551099; 610533099; 610553099 | K41: Outros | L41: =SUMIFS(Tab_RIT_BMP[SALDO],Tab_RIT_BMP[CONTA],610531099,Tab_RIT_BMP[ANO],$L$7)+SUMIFS(Tab_RIT_BMP[SALDO],Tab_RIT_BMP[CONTA],610551099,Tab_RIT_BMP[ANO],$L$7)+ SUMIFS(Tab_RIT_BMP[SALDO],Tab_RIT_BMP[CONTA],610533099,Tab_RIT_BMP[ANO],$L$7)+SUMIFS(Tab_RIT_BMP[SALDO],Tab_RIT_BMP[CONTA],610553099,Tab_RIT_BMP[ANO],$L$7) -> 0 | M41: =SUMIFS(Tab_RIT_BMP[SALDO],Tab_RIT_BMP[CONTA],610531099,Tab_RIT_BMP[ANO],$M$7)+SUMIFS(Tab_RIT_BMP[SALDO],Tab_RIT_BMP[CONTA],610551099,Tab_RIT_BMP[ANO],$M$7)+ SUMIFS(Tab_RIT_BMP[SALDO],Tab_RIT_BMP[CONTA],610533099,Tab_RIT_BMP[ANO],$M$7)+SUMIFS(Tab_RIT_BMP[SALDO],Tab_RIT_BMP[CONTA],610553099,Tab_RIT_BMP[ANO],$M$7) -> 0 | P41: Sistemas de Comunicação (PLC)
D42: 45308 | J42: BMP - 610531010; 610551010; 610533010; 610553010 | K42: (-) Créditos de Tributos Recuperáveis | L42: =SUMIFS(Tab_RIT_BMP[SALDO],Tab_RIT_BMP[CONTA],610531010,Tab_RIT_BMP[ANO],$L$7)+SUMIFS(Tab_RIT_BMP[SALDO],Tab_RIT_BMP[CONTA],610551010,Tab_RIT_BMP[ANO],$L$7)+ SUMIFS(Tab_RIT_BMP[SALDO],Tab_RIT_BMP[CONTA],610533010,Tab_RIT_BMP[ANO],$L$7)+SUMIFS(Tab_RIT_BMP[SALDO],Tab_RIT_BMP[CONTA],610553010,Tab_RIT_BMP[ANO],$L$7) -> 0 | M42: =SUMIFS(Tab_RIT_BMP[SALDO],Tab_RIT_BMP[CONTA],610531010,Tab_RIT_BMP[ANO],$M$7)+SUMIFS(Tab_RIT_BMP[SALDO],Tab_RIT_BMP[CONTA],610551010,Tab_RIT_BMP[ANO],$M$7)+ SUMIFS(Tab_RIT_BMP[SALDO],Tab_RIT_BMP[CONTA],610533010,Tab_RIT_BMP[ANO],$M$7)+SUMIFS(Tab_RIT_BMP[SALDO],Tab_RIT_BMP[CONTA],610553010,Tab_RIT_BMP[ANO],$M$7) -> 0 | P42: Serviços de Consultoria
F43: OPEX | K43: Subtotal | L43: =SUM(L40:L42) -> 2011384.77 | M43: =SUM(M40:M42) -> 2785427.88 | P43: Serviços de O&M
F44: Extensão de redes não urbanas (Km) | H44: 45908 | J44: CONTA TRIBUTOS | P44: Serviços de Comunicação
F45: Extensão de rede urbana (Km) | J45: BMP - 6105316; 6105516; 6105336; 6105536 | K45: Tributos | L45: =SUMIFS(Tab_RIT_BMP[SALDO],Tab_RIT_BMP[CONTA],6105316,Tab_RIT_BMP[ANO],$L$7)+SUMIFS(Tab_RIT_BMP[SALDO],Tab_RIT_BMP[CONTA],6105516,Tab_RIT_BMP[ANO],$L$7)+ SUMIFS(Tab_RIT_BMP[SALDO],Tab_RIT_BMP[CONTA],6105336,Tab_RIT_BMP[ANO],$L$7)+SUMIFS(Tab_RIT_BMP[SALDO],Tab_RIT_BMP[CONTA],6105536,Tab_RIT_BMP[ANO],$L$7) -> 2956576.54 | M45: =SUMIFS(Tab_RIT_BMP[SALDO],Tab_RIT_BMP[CONTA],6105316,Tab_RIT_BMP[ANO],$M$7)+SUMIFS(Tab_RIT_BMP[SALDO],Tab_RIT_BMP[CONTA],6105516,Tab_RIT_BMP[ANO],$M$7)+ SUMIFS(Tab_RIT_BMP[SALDO],Tab_RIT_BMP[CONTA],6105336,Tab_RIT_BMP[ANO],$M$7)+SUMIFS(Tab_RIT_BMP[SALDO],Tab_RIT_BMP[CONTA],6105536,Tab_RIT_BMP[ANO],$M$7) -> 2653767.74 | P45: Serviços de Engenharia
K46: (+) Créditos de Tributos Recuperáveis | L46: =L45 -> 2956576.54 | M46: =M45 -> 2653767.74 | P46: Convênios
F47: ="% PNT / BT Real de "&IF(MONTH(LnkTxtDRPData)>6,YEAR(LnkTxtDRPData)-1,YEAR(LnkTxtDRPData)-2) & " (Medido)" -> % PNT / BT Real de 2024 (Medido) | J47: CONTA OUTROS
F48: ="% PNT / BT Real de "&IF(MONTH(LnkTxtDRPData)>6,YEAR(LnkTxtDRPData)-1,YEAR(LnkTxtDRPData)-2)-1 & " (Medido)" -> % PNT / BT Real de 2023 (Medido) | J48: BMP - 610531901; 610551901; 610533901; 610553901 | K48: Indenização por Perdas e Danos | L48: =SUMIFS(Tab_RIT_BMP[SALDO],Tab_RIT_BMP[CONTA],610531901,Tab_RIT_BMP[ANO],$L$7)+SUMIFS(Tab_RIT_BMP[SALDO],Tab_RIT_BMP[CONTA],610551901,Tab_RIT_BMP[ANO],$L$7)+ SUMIFS(Tab_RIT_BMP[SALDO],Tab_RIT_BMP[CONTA],610533901,Tab_RIT_BMP[ANO],$L$7)+SUMIFS(Tab_RIT_BMP[SALDO],Tab_RIT_BMP[CONTA],610553901,Tab_RIT_BMP[ANO],$L$7) -> 968866.97 | M48: =SUMIFS(Tab_RIT_BMP[SALDO],Tab_RIT_BMP[CONTA],610531901,Tab_RIT_BMP[ANO],$M$7)+SUMIFS(Tab_RIT_BMP[SALDO],Tab_RIT_BMP[CONTA],610551901,Tab_RIT_BMP[ANO],$M$7)+ SUMIFS(Tab_RIT_BMP[SALDO],Tab_RIT_BMP[CONTA],610533901,Tab_RIT_BMP[ANO],$M$7)+SUMIFS(Tab_RIT_BMP[SALDO],Tab_RIT_BMP[CONTA],610553901,Tab_RIT_BMP[ANO],$M$7) -> 570252.44 | P48: UDER
F49: ="% PNT / BT Real de "&IF(MONTH(LnkTxtDRPData)>6,YEAR(LnkTxtDRPData)-1,YEAR(LnkTxtDRPData)-2)-2 & " (Medido)" -> % PNT / BT Real de 2022 (Medido) | J49: BMP - 610531902; 610551902; 610533902; 610553902 | K49: Consumo Próprio de Energia | L49: =SUMIFS(Tab_RIT_BMP[SALDO],Tab_RIT_BMP[CONTA],610531902,Tab_RIT_BMP[ANO],$L$7)+SUMIFS(Tab_RIT_BMP[SALDO],Tab_RIT_BMP[CONTA],610551902,Tab_RIT_BMP[ANO],$L$7)+ SUMIFS(Tab_RIT_BMP[SALDO],Tab_RIT_BMP[CONTA],610533902,Tab_RIT_BMP[ANO],$L$7)+SUMIFS(Tab_RIT_BMP[SALDO],Tab_RIT_BMP[CONTA],610553902,Tab_RIT_BMP[ANO],$L$7) -> 5782590.24 | M49: =SUMIFS(Tab_RIT_BMP[SALDO],Tab_RIT_BMP[CONTA],610531902,Tab_RIT_BMP[ANO],$M$7)+SUMIFS(Tab_RIT_BMP[SALDO],Tab_RIT_BMP[CONTA],610551902,Tab_RIT_BMP[ANO],$M$7)+ SUMIFS(Tab_RIT_BMP[SALDO],Tab_RIT_BMP[CONTA],610533902,Tab_RIT_BMP[ANO],$M$7)+SUMIFS(Tab_RIT_BMP[SALDO],Tab_RIT_BMP[CONTA],610553902,Tab_RIT_BMP[ANO],$M$7) -> 7224646.9 | AC49: =AC6 -> Diferenças em relação ao RTA 2024 | AG49: =AG6 -> Valores RTA 2024
F50: ="DEC Apurado "&IF(MONTH(LnkTxtDRPData)>3,YEAR(LnkTxtDRPData)-1,YEAR(LnkTxtDRPData)-2) -> DEC Apurado 2024 | J50: BMP - 610531905 | K50: Despesas com Conselho de Consumidores | L50: =SUMIFS(Tab_RIT_BMP[SALDO],Tab_RIT_BMP[CONTA],610531905,Tab_RIT_BMP[ANO],$L$7) -> 0 | M50: =SUMIFS(Tab_RIT_BMP[SALDO],Tab_RIT_BMP[CONTA],610531905,Tab_RIT_BMP[ANO],$M$7) -> 0 | Q50: =$Q$7 -> 2025-11-01 | R50: =DATE(YEAR(Q50),MONTH(Q50)-1,1) -> 2025-10-01 | S50: =DATE(YEAR(R50),MONTH(R50)-1,1) -> 2025-09-01 | T50: 2025-08-01 | U50: 2025-07-01 | V50: 2025-06-01 | W50: 2025-05-01 | X50: 2025-04-01 | Y50: 2025-03-01 | Z50: 2025-02-01 | AA50: 2025-01-01 | AB50: 2024-12-01 | AC50: =EDATE(AB50,-1) -> 2024-11-01 | AD50: =EDATE(AC50,-1) -> 2024-10-01 | AE50: 2024-09-01 | AF50: =AC50 -> 2024-11-01 | AG50: =AD50 -> 2024-10-01 | AH50: 2024-09-01
F51: ="DEC Apurado "&IF(MONTH(LnkTxtDRPData)>3,YEAR(LnkTxtDRPData)-1,YEAR(LnkTxtDRPData)-2)-1 -> DEC Apurado 2023 | J51: BMP - 610531908; 610533907 | K51: Comunicação e Reprografia | L51: =SUMIFS(Tab_RIT_BMP[SALDO],Tab_RIT_BMP[CONTA],610531908,Tab_RIT_BMP[ANO],$L$7)+SUMIFS(Tab_RIT_BMP[SALDO],Tab_RIT_BMP[CONTA],610533907,Tab_RIT_BMP[ANO],$L$7) -> 5337524.95 | M51: =SUMIFS(Tab_RIT_BMP[SALDO],Tab_RIT_BMP[CONTA],610531908,Tab_RIT_BMP[ANO],$M$7)+SUMIFS(Tab_RIT_BMP[SALDO],Tab_RIT_BMP[CONTA],610533907,Tab_RIT_BMP[ANO],$M$7) -> 4884098.17 | P51: Ultrapassagem de Demanda | Q51: =SUMIFS(Tab_Uderor[R$],Tab_Uderor[Competencia],Entrada!Q$50,Tab_Uderor[TipoReceita],Entrada!$P$51)*0+R51 -> 1863926.41 | R51: =S51 -> 1863926.41 | S51: =SUMIFS(Tab_Uderor[R$],Tab_Uderor[Competencia],Entrada!S$50,Tab_Uderor[TipoReceita],Entrada!$P$51) -> 1863926.41 | T51: =SUMIFS(Tab_Uderor[R$],Tab_Uderor[Competencia],Entrada!T$50,Tab_Uderor[TipoReceita],Entrada!$P$51) -> 1699410.19 | U51: =SUMIFS(Tab_Uderor[R$],Tab_Uderor[Competencia],Entrada!U$50,Tab_Uderor[TipoReceita],Entrada!$P$51) -> 1564257.25 | V51: =SUMIFS(Tab_Uderor[R$],Tab_Uderor[Competencia],Entrada!V$50,Tab_Uderor[TipoReceita],Entrada!$P$51) -> 1661303.52 | W51: =SUMIFS(Tab_Uderor[R$],Tab_Uderor[Competencia],Entrada!W$50,Tab_Uderor[TipoReceita],Entrada!$P$51) -> 1707547.97 | X51: =SUMIFS(Tab_Uderor[R$],Tab_Uderor[Competencia],Entrada!X$50,Tab_Uderor[TipoReceita],Entrada!$P$51) -> 1678208.68 | Y51: =SUMIFS(Tab_Uderor[R$],Tab_Uderor[Competencia],Entrada!Y$50,Tab_Uderor[TipoReceita],Entrada!$P$51) -> 1703885.26 | Z51: =SUMIFS(Tab_Uderor[R$],Tab_Uderor[Competencia],Entrada!Z$50,Tab_Uderor[TipoReceita],Entrada!$P$51) -> 1246855.37 | AA51: =SUMIFS(Tab_Uderor[R$],Tab_Uderor[Competencia],Entrada!AA$50,Tab_Uderor[TipoReceita],Entrada!$P$51) -> 1118189.74 | AB51: =SUMIFS(Tab_Uderor[R$],Tab_Uderor[Competencia],Entrada!AB$50,Tab_Uderor[TipoReceita],Entrada!$P$51) -> 1351148.49 | AC51: =SUMIFS(Tab_Uderor[R$],Tab_Uderor[Competencia],Entrada!AC$50,Tab_Uderor[TipoReceita],Entrada!$P51)-AF51 -> -119792.27 | AD51: =SUMIFS(Tab_Uderor[R$],Tab_Uderor[Competencia],Entrada!AD$50,Tab_Uderor[TipoReceita],Entrada!$P51)-AG51 -> 0 | AE51: =SUMIFS(Tab_Uderor[R$],Tab_Uderor[Competencia],Entrada!AE$50,Tab_Uderor[TipoReceita],Entrada!$P51)-AH51 -> 0 | AF51: 1904983.87 | AG51: 1904983.87 | AH51: 1662729.37
F52: ="DEC Apurado "&IF(MONTH(LnkTxtDRPData)>3,YEAR(LnkTxtDRPData)-1,YEAR(LnkTxtDRPData)-2)-2 -> DEC Apurado 2022 | J52: BMP - 610531903; 610551903; 610533903; 610553903 | K52: Taxa de Arrecadação | L52: =SUMIFS(Tab_RIT_BMP[SALDO],Tab_RIT_BMP[CONTA],610531903,Tab_RIT_BMP[ANO],$L$7)+SUMIFS(Tab_RIT_BMP[SALDO],Tab_RIT_BMP[CONTA],610551903,Tab_RIT_BMP[ANO],$L$7)+ SUMIFS(Tab_RIT_BMP[SALDO],Tab_RIT_BMP[CONTA],610533903,Tab_RIT_BMP[ANO],$L$7)+SUMIFS(Tab_RIT_BMP[SALDO],Tab_RIT_BMP[CONTA],610553903,Tab_RIT_BMP[ANO],$L$7) -> 0 | M52: =SUMIFS(Tab_RIT_BMP[SALDO],Tab_RIT_BMP[CONTA],610531903,Tab_RIT_BMP[ANO],$M$7)+SUMIFS(Tab_RIT_BMP[SALDO],Tab_RIT_BMP[CONTA],610551903,Tab_RIT_BMP[ANO],$M$7)+ SUMIFS(Tab_RIT_BMP[SALDO],Tab_RIT_BMP[CONTA],610533903,Tab_RIT_BMP[ANO],$M$7)+SUMIFS(Tab_RIT_BMP[SALDO],Tab_RIT_BMP[CONTA],610553903,Tab_RIT_BMP[ANO],$M$7) -> 0 | P52: Excedente Reativo | Q52: =SUMIFS(Tab_Uderor[R$],Tab_Uderor[Competencia],Entrada!Q$50,Tab_Uderor[TipoReceita],Entrada!$P$51)*0+R52 -> 1261214.17 | R52: =S52 -> 1261214.17 | S52: =SUMIFS(Tab_Uderor[R$],Tab_Uderor[Competencia],Entrada!S$50,Tab_Uderor[TipoReceita],Entrada!$P$52) -> 1261214.17 | T52: =SUMIFS(Tab_Uderor[R$],Tab_Uderor[Competencia],Entrada!T$50,Tab_Uderor[TipoReceita],Entrada!$P$52) -> 1267146.28 | U52: =SUMIFS(Tab_Uderor[R$],Tab_Uderor[Competencia],Entrada!U$50,Tab_Uderor[TipoReceita],Entrada!$P$52) -> 1217069.54 | V52: =SUMIFS(Tab_Uderor[R$],Tab_Uderor[Competencia],Entrada!V$50,Tab_Uderor[TipoReceita],Entrada!$P$52) -> 1199821.03 | W52: =SUMIFS(Tab_Uderor[R$],Tab_Uderor[Competencia],Entrada!W$50,Tab_Uderor[TipoReceita],Entrada!$P$52) -> 1146486.54 | X52: =SUMIFS(Tab_Uderor[R$],Tab_Uderor[Competencia],Entrada!X$50,Tab_Uderor[TipoReceita],Entrada!$P$52) -> 1177189.89 | Y52: =SUMIFS(Tab_Uderor[R$],Tab_Uderor[Competencia],Entrada!Y$50,Tab_Uderor[TipoReceita],Entrada!$P$52) -> 1259785.18 | Z52: =SUMIFS(Tab_Uderor[R$],Tab_Uderor[Competencia],Entrada!Z$50,Tab_Uderor[TipoReceita],Entrada!$P$52) -> 1141228.05 | AA52: =SUMIFS(Tab_Uderor[R$],Tab_Uderor[Competencia],Entrada!AA$50,Tab_Uderor[TipoReceita],Entrada!$P$52) -> 1139188.88 | AB52: =SUMIFS(Tab_Uderor[R$],Tab_Uderor[Competencia],Entrada!AB$50,Tab_Uderor[TipoReceita],Entrada!$P$52) -> 1126744.48 | AC52: =SUMIFS(Tab_Uderor[R$],Tab_Uderor[Competencia],Entrada!AC$50,Tab_Uderor[TipoReceita],Entrada!$P52)-AF52 -> 117543.67 | AD52: =SUMIFS(Tab_Uderor[R$],Tab_Uderor[Competencia],Entrada!AD$50,Tab_Uderor[TipoReceita],Entrada!$P52)-AG52 -> 0 | AE52: =SUMIFS(Tab_Uderor[R$],Tab_Uderor[Competencia],Entrada!AE$50,Tab_Uderor[TipoReceita],Entrada!$P52)-AH52 -> 0 | AF52: 1112309.26 | AG52: 1112309.26 | AH52: 1102351.66
F53: Meta de % PNT / BT (Medido) | J53: BMP - 610531904; 610551904; 610533904; 610553904 | K53: Taxas Bancárias | L53: =SUMIFS(Tab_RIT_BMP[SALDO],Tab_RIT_BMP[CONTA],610531904,Tab_RIT_BMP[ANO],$L$7)+SUMIFS(Tab_RIT_BMP[SALDO],Tab_RIT_BMP[CONTA],610551904,Tab_RIT_BMP[ANO],$L$7)+ SUMIFS(Tab_RIT_BMP[SALDO],Tab_RIT_BMP[CONTA],610533904,Tab_RIT_BMP[ANO],$L$7)+SUMIFS(Tab_RIT_BMP[SALDO],Tab_RIT_BMP[CONTA],610553904,Tab_RIT_BMP[ANO],$L$7) -> 0 | M53: =SUMIFS(Tab_RIT_BMP[SALDO],Tab_RIT_BMP[CONTA],610531904,Tab_RIT_BMP[ANO],$M$7)+SUMIFS(Tab_RIT_BMP[SALDO],Tab_RIT_BMP[CONTA],610551904,Tab_RIT_BMP[ANO],$M$7)+ SUMIFS(Tab_RIT_BMP[SALDO],Tab_RIT_BMP[CONTA],610533904,Tab_RIT_BMP[ANO],$M$7)+SUMIFS(Tab_RIT_BMP[SALDO],Tab_RIT_BMP[CONTA],610553904,Tab_RIT_BMP[ANO],$M$7) -> 0
F54: DEC 8 anos (Limite V8) | J54: BMP - 610531910; 610551910; 610533910; 610553910 | K54: (-) Créditos de Tributos Recuperáveis | L54: =SUMIFS(Tab_RIT_BMP[SALDO],Tab_RIT_BMP[CONTA],610531910,Tab_RIT_BMP[ANO],$L$7)+SUMIFS(Tab_RIT_BMP[SALDO],Tab_RIT_BMP[CONTA],610551910,Tab_RIT_BMP[ANO],$L$7)+ SUMIFS(Tab_RIT_BMP[SALDO],Tab_RIT_BMP[CONTA],610533910,Tab_RIT_BMP[ANO],$L$7)+SUMIFS(Tab_RIT_BMP[SALDO],Tab_RIT_BMP[CONTA],610553910,Tab_RIT_BMP[ANO],$L$7) -> 0 | M54: =SUMIFS(Tab_RIT_BMP[SALDO],Tab_RIT_BMP[CONTA],610531910,Tab_RIT_BMP[ANO],$M$7)+SUMIFS(Tab_RIT_BMP[SALDO],Tab_RIT_BMP[CONTA],610551910,Tab_RIT_BMP[ANO],$M$7)+ SUMIFS(Tab_RIT_BMP[SALDO],Tab_RIT_BMP[CONTA],610533910,Tab_RIT_BMP[ANO],$M$7)+SUMIFS(Tab_RIT_BMP[SALDO],Tab_RIT_BMP[CONTA],610553910,Tab_RIT_BMP[ANO],$M$7) -> 0
K55: Subtotal | L55: =SUM(L48:L54) -> 12088982.16 | M55: =SUM(M48:M54) -> 12678997.51 | P55: UDER "Limbo"
J56: Demais
F57: Dados da última Revisão Tarifária | J57: BMP - 610531212; 610533212 | K57: Condenações Trabalhistas | P57: Preenchimento necessário apenas para cálculos de concessionárias que passaram por alteração contratual, conforme parágrafo 38 do Proret 2.1A.
F58: Custos Operacionais (CO3) | H58: 45908 | J58: BMP - 610533908; 610531909 | K58: Gastos com CCEE | P58: Mês correspondente à Data de Referência de Alteração Contratual - DRAC
F59: Receitas Irrecuperáveis - Encargos Setoriais (Vi) | J59: BMP - 611511401; 611512203; 611512103; 611512003; 611512303 | K59: Perdas na Alienação e Desativação | L59: =SUMIFS(Tab_RIT_BMP[SALDO],Tab_RIT_BMP[CONTA],611511401,Tab_RIT_BMP[ANO],$L$7)+SUMIFS(Tab_RIT_BMP[SALDO],Tab_RIT_BMP[CONTA],611512203,Tab_RIT_BMP[ANO],$L$7)+ SUMIFS(Tab_RIT_BMP[SALDO],Tab_RIT_BMP[CONTA], 611512103,Tab_RIT_BMP[ANO],$L$7)+SUMIFS(Tab_RIT_BMP[SALDO],Tab_RIT_BMP[CONTA],611512003,Tab_RIT_BMP[ANO],$L$7)+ SUMIFS(Tab_RIT_BMP[SALDO],Tab_RIT_BMP[CONTA],611512303,Tab_RIT_BMP[ANO],$L$7) -> 57783849.47 | M59: =SUMIFS(Tab_RIT_BMP[SALDO],Tab_RIT_BMP[CONTA],611511401,Tab_RIT_BMP[ANO],$M$7)+SUMIFS(Tab_RIT_BMP[SALDO],Tab_RIT_BMP[CONTA],611512203,Tab_RIT_BMP[ANO],$M$7)+ SUMIFS(Tab_RIT_BMP[SALDO],Tab_RIT_BMP[CONTA],611512103,Tab_RIT_BMP[ANO],$M$7)+SUMIFS(Tab_RIT_BMP[SALDO],Tab_RIT_BMP[CONTA],611512003,Tab_RIT_BMP[ANO],$M$7)+ SUMIFS(Tab_RIT_BMP[SALDO],Tab_RIT_BMP[CONTA],611512303,Tab_RIT_BMP[ANO],$M$7) -> 47646290.95 | P59: Sexto mês anterior à data da última RTP
F60: Demais Receitas Irrecuperáveis (Vse) | J60: BMP - 611112103; 611112203; 611112303; 611112403; 611112503 | K60: Ganhos na Alienação de Materiais | L60: =SUMIFS(Tab_RIT_BMP[SALDO],Tab_RIT_BMP[CONTA],611112103,Tab_RIT_BMP[ANO],$L$7)+SUMIFS(Tab_RIT_BMP[SALDO],Tab_RIT_BMP[CONTA],611112203, Tab_RIT_BMP[ANO],$L$7)+ SUMIFS(Tab_RIT_BMP[SALDO],Tab_RIT_BMP[CONTA],611112303,Tab_RIT_BMP[ANO],$L$7)+SUMIFS(Tab_RIT_BMP[SALDO],Tab_RIT_BMP[CONTA], 611112403,Tab_RIT_BMP[ANO],$L$7)+ SUMIFS(Tab_RIT_BMP[SALDO],Tab_RIT_BMP[CONTA],611112503,Tab_RIT_BMP[ANO],$L$7) -> 0 | M60: =SUMIFS(Tab_RIT_BMP[SALDO],Tab_RIT_BMP[CONTA],611112103,Tab_RIT_BMP[ANO],$M$7)+SUMIFS(Tab_RIT_BMP[SALDO],Tab_RIT_BMP[CONTA],611112203, Tab_RIT_BMP[ANO],$M$7)+ SUMIFS(Tab_RIT_BMP[SALDO],Tab_RIT_BMP[CONTA],611112303,Tab_RIT_BMP[ANO],$M$7)+SUMIFS(Tab_RIT_BMP[SALDO],Tab_RIT_BMP[CONTA], 611112403,Tab_RIT_BMP[ANO],$M$7)+ SUMIFS(Tab_RIT_BMP[SALDO],Tab_RIT_BMP[CONTA],611112503,Tab_RIT_BMP[ANO],$M$7) -> 0
F61: Remuneração do Capital (RC) | P61: Preenchimento necessário apenas para cálculos de concessionárias que passaram por alteração contratual, conforme parágrafo 38 do Proret 2.1A.
F62: Quota de Reintegração Regulatória (QRR) | Q62: =Q58 -> 00:00:00 | R62: =DATE(YEAR(Q62),MONTH(Q62)-1,1) ->  | X62: =DATE(YEAR(W62),MONTH(W62)-1,1) ->  | Y62: =DATE(YEAR(X62),MONTH(X62)-1,1) ->  | Z62: =DATE(YEAR(Y62),MONTH(Y62)-1,1) ->  | AA62: =DATE(YEAR(Z62),MONTH(Z62)-1,1) ->  | AB62: =DATE(YEAR(AA62),MONTH(AA62)-1,1) ->  | AC62: =DATE(YEAR(AB62),MONTH(AB62)-1,1) ->  | AD62: =DATE(YEAR(AC62),MONTH(AC62)-1,1) ->  | AE62: =DATE(YEAR(AD62),MONTH(AD62)-1,1) ->  | AF62: =DATE(YEAR(AE62),MONTH(AE62)-1,1) ->  | AG62: =DATE(YEAR(AF62),MONTH(AF62)-1,1) ->  | AH62: =DATE(YEAR(AG62),MONTH(AG62)-1,1) ->  | AI62: =DATE(YEAR(AH62),MONTH(AH62)-1,1) -> 
F63: Custo anual das instalações móveis e imóveis (CAIMI) | P63: Ultrapassagem de Demanda (valores brutos)
F64: Ajuste em função dos investimentos realizados (valor negativo) | J64: Custo Médio do Capital - Atual | P64: Excedente Reativo (valores brutos)
F65: Índice de Produtividade + Mecanismo de Qualidade | J65: Tipo | K65: Norma | L65: Valor
F66: UDEROR (inserir o valor positivo) | J66: WACC real antes de impostos | K66: Despacho n° 829, 24/03/2023 | L66: 0.112503
F67: Componente T - Última Revisão | J67: Taxa RGR/PLPT real | K67: Despacho n° 829, 24/03/2023 | L67: 0.000797
J68: Taxa RGR Demais Investimentos | K68: Despacho n° 829, 24/03/2023 | L68: 0.000797
J69: Participação do Capital Próprio | K69: Despacho 829/2023 | L69: 0.524453
F70: Base de Ativios - SFF | H70: 45908 | J70: Prêmio de Risco do negócio e financeiro após impostos | K70: Despacho 829/2023 | L70: 0.089205
F71: (1) Ativo Imobilizado em Serviço (Valor Novo de Reposição)
F72: (2) Índice de Aproveitamento Integral
F73: (3) Obrigações Especiais Bruta | J73: Custo Médio do Capital - Ultima Revisão
F74: (4) Bens Totalmente Depreciados | J74: Tipo | K74: Norma | L74: Valor
F75: (5) Base de Remuneração Bruta = (1)-(2)-(3)-(4) | G75: =G71-G72-G73-G74 -> 0 | J75: WACC real antes de impostos | M75: <- Conferir valor na sparta da última revisão!
F76: (6) Depreciação Acumulada | J76: Taxa RGR/PLPT real | M76: <- Conferir valor na sparta da última revisão!
F77: (7) AIS Líquido (Valor de Mercado em Uso) | G77: =G71-G76 -> 0 | J77: Taxa RGR Demais Investimentos | M77: <- Conferir valor na sparta da última revisão!
F78: (8) Índice de Aproveitamento Depreciado | J78: Participação do Capital Próprio | M78: <- Conferir valor na sparta da última revisão!
F79: (9) Valor da Base de Remuneração (VBR) | G79: =G77-G78 -> 0 | J79: Prêmio de Risco do negócio e financeiro após impostos | M79: <- Conferir valor na sparta da última revisão!
F80: (10) Almoxarifado em Operação
F81: (11) Ativo Diferido | G81: =G102*I81 -> 0
F82: (12) Obrigações Especiais Líquida
F83: (13) Terrenos e Servidões
F84: (14) Base de Rem. Líquida Total = (9)+(10)+(11)-(12)+(13) | G84: =G79+G80+G81-G82+G83 -> 0
F85: (15) Saldo RGR PLPT
F86: (16) Saldo RGR Demais Investimentos
F87: (17) Taxa de Depreciação
F88: (18) Quota de Reintegração Regulatória = (5) * (17) | G88: =G87*G75 -> 0
F91: Base de Ativios - Ciclo anterior | H91: 45908
F92: (1) Ativo Imobilizado em Serviço (Valor Novo de Reposição)
F93: (2) Índice de Aproveitamento Integral
F94: (3) Obrigações Especiais Bruta
F95: (4) Bens Totalmente Depreciados
F96: (5) Base de Remuneração Bruta = (1)-(2)-(3)-(4) | G96: =G92-G93-G94-G95 -> 0
F97: (6) Depreciação Acumulada
F98: (7) AIS Líquido (Valor de Mercado em Uso)
F99: (8) Índice de Aproveitamento Depreciado
F100: (9) Valor da Base de Remuneração (VBR)
F101: (10) Almoxarifado em Operação
F102: (11) Ativo Diferido
F103: (12) Obrigações Especiais Líquida
F104: (13) Terrenos e Servidões
F105: (14) Base de Rem. Líquida Total = (1)-(6)-(8)+(10)+(11)-(12)+(13) | G105: =G92-G97-G99+G101+G102-G103+G104 -> 0
F106: (15) Saldo RGR PLPT
F107: (16) Saldo RGR Demais Investimentos
F109: (17) Taxa de Depreciação
F110: (18) Quota de Reintegração Regulatória = (5) * (17) | G110: =G96*G109 -> 0
F111: Base de Anuidade Regulatória (BAR)
F113: Dados do último Reajuste Anual - Contrato Novo
F114: Parcela B sem desconto UDEROR | G114: =SUM(G115:G118) -> 0
F115: Outras Receitas (OR)
F116: Excedente de Reativos (ER)
F117: Ultrapassagem de Demanda (UD)
F118: Parcela B
F119: Fator PB | G119: =G114/G118 -> 
F121: Dados do último Ciclo - Contrato Novo
F122: Número de processos até o primeiro reajuste contrato novo
F123: Número de processos no contrato novo antes da atual revisão
F125: Participação dos componentes da Parcela B no Ano Teste
F126: Descrição | G126: Valor
F127: Custos Operacionais | G127: =(G58*(1-G65)-(SUM(G58:G63)*(1-G65)-G66)*(1-(1-G67)^G122)-((SUM(G58:G63)*(1-G65)-G66)*(1-G67)^G122+G66-SUM(G59:G60)*(1-G65))*(1-(1-G67)^G123))/((((SUM(G58:G63)*(1-G65)-G66)*(1-G67)^G122)+G66-SUM(G59:G60)*(1-G65))*(1-G67)^G123) -> 
F128: Anuidades | G128: =(G63*(1-G65)/((((SUM(G58:G63)*(1-G65)-G66)*(1-G67)^G122)+G66-SUM(G59:G60)*(1-G65))*(1-G67)^G123)) -> 
F129: Remuneração | G129: =(G61*(1-G65)/((((SUM(G58:G63)*(1-G65)-G66)*(1-G67)^G122)+G66-SUM(G59:G60)*(1-G65))*(1-G67)^G123)) -> 
F130: Depreciação | G130: =(G62*(1-G65)/((((SUM(G58:G63)*(1-G65)-G66)*(1-G67)^G122)+G66-SUM(G59:G60)*(1-G65))*(1-G67)^G123)) -> 

Sheet Resultado
B1: =LnkTxtNomeCompleto -> Energisa Rondônia - Distribuidora de Energia S.A.
B2: Resultado | F2: Parâmetros a serem considerados para os Reajustes subsequentes
B4: RA1 | D4: =D40+D45 -> 2970958998 | F4: FATOR X | K4: Última versão enviada: | L4: 25
B5: RA0 | D5: =Mercado!D24 -> 2657212380 | F5: Componente T do Fator X | G5: ='VPB e Fator X'!C36 ->  | K5: Data de envio | L5: 2025-12-04T19:07:18
B6: Índice de Reposição/Reajuste | D6: =D4/D5-1 -> 0.1180735948 | F6: Componente Pd do Fator X | G6: ='VPB e Fator X'!C33 -> 0.01271180625 | O6: Efeito Consumidor por subgrupo
B7: Componentes Financeiros | D7: =Financeiros!E8 -> 0.003110399212 | K7: Efeito Consumidor | O7: Subgrupo | P7: Variação
B8: Índice de Reposição/Reajuste com Financeiros | D8: =D6+D7 -> 0.1211839941 | F8: PERDAS | K8: Efeito Grupo A - Alta tensão | L8: 0.1848522054 | O8: A2 | P8: 0.04741544985
F9: Perdas Não Técnicas | G9: =Entrada!G33 -> 0 | K9: Efeito Grupo B - Baixa tensão | L9: 0.150135566 | O9: A3 | P9: 0.3093633053
C10: DRA | D10: DRP | F10: Perdas Técnicas | G10: =Entrada!G34 -> 0 | K10: Efeito tarifário médio AT+BT | L10: 0.1572115071 | O10: A3a | P10: 0.2128557792
B11: TOTAL (Parcela A + Parcela B) | C11: =C45+C40 -> 2657212380 | D11: =D45+D40 -> 2970958998 | K11: Tarifa B1 - Residencial (R$)/MWh | L11: 841.3917756 | O11: A4 | P11: 0.1793885972
B12: Financeiros | D12: =Financeiros!D8 -> 8264991.295 | O12: B1 | P12: 0.1463631336
B13: Total com financeiros | D13: =D11+D12 -> 2979223990 | K13: Subvenção da CDE para descontos tarifários (Valores anuais) | M13: Ano anterior | O13: B2 | P13: 0.1564129265
K14: SUBSIDIO CARGA FONTE INCENTIVADA | L14: 83831382.77 | M14: 49832964.54 | O14: B3 | P14: 0.1567455853
K15: SUBSIDIO GERAÇÃO FONTE INCENTIVADA | L15: 15082576.05 | M15: 13840279.44 | O15: B4 | P15: 0.1572029922
B16: Parcela A | F16: Formação da Parcela B e Reposicionamento (Resumo) | K16: SUBSIDIO DISTRIBUIÇÃO | L16: 0 | M16: 0 | O16: A | P16: 0.1848522054
K17: SUBSIDIO ÁGUA, ESGOTO E SANEAMENTO | L17: 0 | M17: 0 | O17: B | P17: 0.150135566
C18: Processo Anterior | D18: Processo Atual | K18: SUBSIDIO RURAL | L18: 0 | M18: 0 | O18: A+B | P18: 0.1572115071
B19: ENCARGOS | C19: =SUM(C20:C28) -> 368084323.7 | D19: =SUM(D20:D28) -> 451521039.4 | F19: Custo de Administração, Operação e Manutenção (CAOM) | G19: =SUM(G20:G20) ->  | K19: SUBSIDIO IRRIGANTE/AQUICULTOR | L19: 1613826.486 | M19: 2573668.298
B20: Reserva Global de Reversão – RGR | D20: =Encargos!C16 -> 0 | F20: Custos Operacionais (CO) | G20: ='VPB e Fator X'!C127 ->  | K20: SUBSIDIO BAIXA RENDA | L20: 61580838.52 | M20: 45323165.6
B21: Conta de Consumo de Combustíveis – CCC | D21: =Encargos!C9 -> 0 | F21: Custo Anual dos Ativos (CAA) | G21: =SUM(G22:G24) ->  | K21: SUBSIDIO SCEE | L21: 103123184.2 | M21: 41690156.77
B22: Taxa de Fisc. de Serviços de E.E. – TFSEE | C22: ='Votos e NTs'!D49 -> 4152512.575 | D22: =Encargos!C17 -> 4358672.202 | F22: Remuneração do Capital (RC) | G22: ='VPB e Fator X'!C95 ->  | K22: SUBSIDIO LEI 14.299/22 | L22: 0 | M22: 0
B23: Conta de Desenvolvimento Energético – CDE | C23: =SUM('Votos e NTs'!D50:D54) -> 226596490.6 | D23: =Encargos!C10 -> 284933593.6 | F23: Quota de Reintegração Regulatória (QRR) | G23: ='VPB e Fator X'!C77 -> 
B24: Compensação financeira - CFURH | C24: ='Votos e NTs'!D55 -> 0 | D24: =Encargos!C11 -> 0 | F24: Custo anual das instalações móveis e imóveis (CAIMI) | G24: ='VPB e Fator X'!C67 -> 
B25: Encargos Serv. Sist. - ESS e Energ. Reserv. - EER | C25: ='Votos e NTs'!D56 -> 75883234.05 | D25: =Encargos!C12 -> 88798674.03 | F25: Parcela B (VPB) | G25: =SUM(G21,G19) ->  | K25: Versão de Mercado
B26: PROINFA | C26: ='Votos e NTs'!D57 -> 36773102.56 | D26: =Encargos!C13 -> 47322328.99 | F26: Índice de Produtividade da Parcela B | G26: ='VPB e Fator X'!C33 -> 0.01271180625 | K26: Status de Sincronização de BDL
B27: P&D e Eficiência Energética | C27: ='Votos e NTs'!D58 -> 24678984 | D27: =Encargos!C15 -> 26107770.54 | F27: Mecanismo de Incentivo à Qualidade | G27: ='VPB1'!F42 -> -0.001626941449 | K27: Última Sincronização
F28: Parcela B com ajustes | G28: =((1-G26-G27)*G25) ->  | L28: Trabalha na pasta de rede
B29: TRANSPORTE | C29: =SUM(C30:C37) -> 184005792.3 | D29: =SUM(D30:D37) -> 246300879.6 | F29: Outras Receitas (OR) | G29: =UDEROR!C2 -> 19694305.46
B30: Rede Básica | C30: ='Votos e NTs'!D61 -> 140381445.9 | D30: ='RB e Conexão'!E6 -> 198946076.9 | F30: Ultrapassagem de Demanda (UD) | G30: =UDEROR!C6+'VPB e Fator X'!D185 -> 9536354.117
B31: Rede Básica Fronteira | C31: ='Votos e NTs'!D62 -> 34732173.61 | D31: ='RB e Conexão'!E7 -> 38221429.4 | F31: Excedente de Reativos (ER) | G31: =UDEROR!C7+'VPB e Fator X'!D186 -> 7254188.347
B32: Rede Básica ONS (A2) | C32: ='Votos e NTs'!D63 -> 238770.9293 | D32: =VLOOKUP("TUSDg ONS DRP",TUSDG[],2,FALSE) -> 240746.34 | F32: Parcela B deduzidas as outras receitas | G32: =G28-SUM(G29:G31) -> 
B33: Rede Básica Export. (A2) | C33: ='Votos e NTs'!D64 -> 5101511.456 | D33: =VLOOKUP("TUSDg Export DRP",TUSDG[],2,FALSE) -> 5169431.95
B34: MUST Itaipu | C34: ='Votos e NTs'!D65 -> 0 | D34: ='RB e Conexão'!E8 -> 0 | F34: 1. Receita Requerida (RR) | G34: =G28+D40 -> 
B35: Transporte de Itaipu | C35: ='Votos e NTs'!D66 -> 0 | D35: =SUMPRODUCT(itaiputransporte[Potência],itaiputransporte[Tarifa DRP]) -> 0 | F35: 2. Outras Receitas (OR) | G35: =G29 -> 19694305.46
B36: Conexão | C36: ='Votos e NTs'!D67 -> 3551890.372 | D36: ='RB e Conexão'!E9 -> 3723195.015 | F36: 3. Receita Verificada (RV) | G36: =Mercado!D24 -> 2657212380
B37: Uso do sistema de distribuição e CCD | C37: ='Votos e NTs'!D68 -> 0 | D37: =CUSD!D14+CUSD!E14 -> 0
B38: ENERGIA | C38: ='Votos e NTs'!D69 -> 914692615 | D38: =Energia!D15 -> 1026176525
B39: RECEITA IRRECUPERÁVEL | C39: ='Votos e NTs'!D70 -> 41744367.76 | D39: =Mercado!H38 -> 48500024.61
B40: VPA (ENCARGO + TRANSPORTE + ENERGIA+RI) | C40: =C19+C29+C38+C39 -> 1508527099 | D40: =D19+D29+D38+D39 -> 1772498469
B42: Parcela B
D44: VPB1
B45: ="Parcela B "&IF(CAPA!C7="Revisão","(menos Outras Receitas)",) -> Parcela B | C45: ='Votos e NTs'!D71 -> 1148685282 | D45: =IF(CAPA!$C$7="Revisão",Resultado!$G$32,'VPB1'!$C$43) -> 1198460530

Sheet Subvenção Permissionária (hidden)
A1: Cooperativa
S2: Outras Receitas
A3: Cálculo PB | D3: Receita Agregada | K3: Subvenção
A4: UC | D4: Subgrupo | E4: Modalidade | F4: Classe | G4: Mercado TUSD | H4: Tarifa Fio B eco | I4: Receita | K4: Subvenção | R4: OUTRAS RECEITAS (R$) | W4: 44013 | X4: 43983 | Y4: 43952 | Z4: 43922 | AA4: 43891 | AB4: 43862 | AC4: 43831 | AD4: 43800 | AE4: 43770 | AF4: 43739 | AG4: 43709 | AH4: 43678
A5: Data Base | D5: A3 | E5: Azul | F5: Demanda azul P | I5: =G5*H5 -> 0 | K5: PB COM COOPERATIVA | L5: ='VPB e Fator X - Subvenção'!C26 ->  | R5: Tipo de Receita | Y5: 3 meses antes | Z5: 4 meses antes | AA5: 5 meses antes | AB5: 6 meses antes | AC5: 7 meses antes | AD5: 8 meses antes | AE5: 9 meses antes | AF5: 10 meses antes | AG5: 11 meses antes | AH5: 12 meses antes
A6: (1) Ativo Imobilizado em Serviço (Valor Novo de Reposição) | F6: Demanda azul FP | I6: =G6*H6 -> 0 | K6: PB ORIGINAL SUPRIDORA | L6: =Resultado!D45 -> 1198460530 | R6: Serviços Cobráveis | V6: Atividade inerente ao serviço
A7: (2) Obrigações Especiais Bruta | F7: Energia TUSD azul | I7: 0 | K7: Diferença | L7: =L5-L6 ->  | R7: Arrecadação de convênios ou valores pela fatura | V7: Atividades acessórias próprias
A8: (3) Bens Totalmente Depreciados | E8: Geração | F8: Demanda Geração | I8: 0 | K8: Receita Agregada | L8: =I24 -> 0 | R8: Arrecadação de faturas de terceiros por estrutura própria
A9: (4) Base de Remuneração Bruta = (1)-(2)-(3) | K9: Subvenção | L9: =L7-L8 ->  | R9: Veiculação de publicidade
A10: (5) Depreciação Acumulada | D10: A4 | E10: Azul | F10: Demanda azul P | I10: 0 | R10: Aluguel ou cessão onerosa de imóveis e espaços físicos
A11: (6) Valor da Base de Remuneração (VBR) | F11: Demanda azul FP | I11: 0 | K11: subvenção de 2016 | R11: Compartilhamento de infraestrutura
A12: (7) Obrigações Especiais Líquida | F12: Energia TUSD azul E | I12: 0 | L12: =L9/L11-1 ->  | R12: Serviços de avaliação técnica e aferição de medidores.
A13: (8) Terrenos e Servidões | E13: Verde | F13: Demanda verde | I13: 0 | R13: Operacionalização de serviço de créditos tributários
A14: (9) Almoxarifado em Operação | F14: Energia TUSD verde EP | I14: 0 | K14: Item | L14: 2023 | M14: Calculo anterior | N14: variação | R14: Elaboração de projeto, construção, operação, manutenção ou reforma de: | V14: Atividades acessórias complementares
A15: (10) Base de Remuneração Líquida Total = (1)-(5)-(7)+(8)+(9) | F15: Energia TUSD verde EFP | I15: 0 | K15: Densidade Cooperativa | L15: =G24/B21 ->  | N15: =L15/M15-1 ->  | R15: (1) redes de distribuição de energia elétrica destinadas à regularização fundiária de interesse específico e ao atendimento dos empreendimentos de múltiplas unidades consumidoras;
A16: (11) Taxa de Depreciação | E16: Geração | F16: Demanda geração | I16: 0 | K16: Densidade Supridora | L16: =(Mercado!C24-Mercado!C17)/(Entrada!G44+Entrada!G45+Entrada!G46) ->  | N16: =L16/M16-1 ->  | R16: (2) redes de energia elétrica destinadas ao acesso dos sistemas de distribuição ou transmissão;
A17: (12) Quota de Reintegração Regulatória | K17: Mercado | L17: =G24 -> 0 | R17: (3) subestações de energia;
A18: (13) Remuneração de Capital (RC) = BRR líq x WACC | D18: BT | E18: Convencional | F18: Energia TUSD B | I18: =G18*H18 -> 0 | K18: Km de rede | L18: =B21 -> 0 | R18: (4) instalações elétricas internas de unidades consumidoras;
E19: Branca | F19: Ponta | I19: 0 | R19: (5) banco de capacitores:
B20: Valores | E20: Branca | F20: Fora Ponta | I20: 0 | R20: (6) padrões de entrada de unidades consumidoras atendidas em baixa tensão;
A21: Total de km de rede (linhas e redes de distribuição) | E21: Branca | F21: Intermediário | I21: 0 | R21: (7) sistemas de medição de energia elétrica;
E22: Iluminação | F22: Energia TUSD B4a | I22: 0 | R22: (8) geradores, incluindo-se unidades de microgeração e minigeração distribuída;
F23: Energia TUSD B4b | I23: =G23*H23 -> 0 | R23: (9) sistemas de iluminação pública.
D24: Total Energia | G24: =G7+G12+G14+G15+G18+G22+G23 -> 0 | H24: Receita total | I24: =SUM(I5:I23) -> 0 | R24: Eficientização do consumo de energia elétrica e instalação de cogeração qualificada, desde que não enquadráveis nos projetos de Pesquisa e Desenvolvimento (P&D) ou de Eficiência Energética estabelecidos em lei
D25: Total demanda | G25: =G5+G6+G8+G10+G11+G13+G16 -> 0 | R25: Serviços de comunicação de dados
R26: Serviços de consultoria

Sheet Votos e NTs
B2: Tabelas | D2: Gráficos
D4: Análise de Impacto da RTA na Tarfia | K4: Composição da Receita | P4: Composição da Receita com Tributos | U4: Composição da Receita com detalhamento de Encargos | Z4: Evolução da Tarifa B1 Residencial
B6: Avaliação RTA
B7: Financeiros
B8: Consumidores
B9: Mercado
B10: Encargos
B11: Custo do Transporte de Energia
B12: Perdas
B13: Energia Requerida
B14: Energia na DRA
B15: Contratos
B16: Fator X
B17: Parcela B
B18: CVA em Processamento
B20: Subsídios
B21: Efeito Médio AT + BT
B22: Variação do Custo de Energia
E23: Impacto da RTA na Tarifa | I23: 1 | K23: Composição da Receita
E24: Encargos | H24: ='Votos e NTs'!G48 -> 0.03140009292 | I24: 1 | K24: Distribuição | M24: =Resultado!D45 -> 1198460530
E25: Transporte | H25: ='Votos e NTs'!G60 -> 0.02344377431 | I25: 1 | K25: Energia | M25: =Resultado!D38 -> 1026176525
E26: Energia | H26: ='Votos e NTs'!G69 -> 0.04195521252 | I26: 1 | K26: Transporte | M26: =Resultado!D29 -> 246300879.6
E27: RI | H27: ='Votos e NTs'!G70 -> 0.002542384981 | I27: 1 | K27: Encargos | M27: =Resultado!D19 -> 451521039.4
E28: Distribuição | H28: ='Votos e NTs'!G71 -> 0.01873213011 | I28: 1 | K28: RI | M28: =Resultado!D39 -> 48500024.61
E29: Financeiros | H29: ='Votos e NTs'!G80 -> 0.003110399212 | I29: 1
E30: Financeiros Anteriores | H30: ='Votos e NTs'!G137 -> 0.036 | I30: 1
E31: Efeito Lei 14.299 | H31: ='Votos e NTs'!G138 -> 0 | I31: =IFERROR(IF(H31=0,0,1),0) -> 0
E32: Efeito Médio | H32: =G139 -> 0.1572115071 | I32: 1
P33: Composição da Receita com Tributos | U33: Composição da Receita com detalhamento de Encargos
P34: Distribuição | R34: =M24/$R$42 -> 0.3030098759 | U34: Distribuição | W34: =Resultado!D45 -> 1198460530
P35: Energia | R35: =M25/$R$42 -> 0.2594508654 | U35: Energia | W35: =Resultado!D38 -> 1026176525
P36: Transmissão | R36: =M26/$R$42 -> 0.06227288853 | U36: Transmissão | W36: =Resultado!D29 -> 246300879.6
P37: Encargos | R37: =M27/$R$42 -> 0.1141592324 | U37: RI | W37: =Resultado!D39 -> 48500024.61
P38: RI | R38: =M28/R42 -> 0.01226238668 | U38: PROINFA | W38: =Resultado!D26 -> 47322328.99
P39: ICMS | R39: =Mercado!G9 -> 0.1938151408 | U39: CDE | W39: =Resultado!D23 -> 284933593.6
P40: PIS/COFINS | R40: =Mercado!$G$10 -> 0.05502961029 | U40: ESS/EER | W40: =Resultado!D25 -> 88798674.03 | Z40: Data | AA40: Tipo | AC40: B1 - Residencial | AD40: IGPM | AE40: IPCA | AF40: Data
P41: Tributos por dentro | R41: =LnkTxtPisCofins+LnkTxtICMS -> 0.2488447511 | U41: Outros | W41: =Resultado!D27+Resultado!D28+Resultado!D24+Resultado!D22 -> 30466442.75 | Z41: =YEAR(BD!B79) -> 1900 | AA41: =(BD!C79) -> 0 | AB41: =CONCATENATE(AA41," ",Z41) -> 0 1900 | AC41: =BD!D79 -> 0 | AD41: =AC41 -> 0 | AE41: =AD41 -> 0 | AF41: =DATE(YEAR(BD!B79),MONTH(BD!B79)-1,1) -> 
P42: Receita com Tributos | R42: =SUM(W34:W41)/(1-R39-R40) -> 3955186365 | Z42: =YEAR(BD!B78) -> 1900 | AA42: =(BD!C78) -> 0 | AB42: 0 1900 | AC42: =BD!D78 -> 0 | AD42: =AD41*VLOOKUP(AF42,Índices!$B$135:$F$627,2,0)/VLOOKUP(AF41,Índices!$B$135:$F$627,2,0) ->  | AE42: =AE41*VLOOKUP(AF42,Índices!$B$135:$F$627,3,0)/VLOOKUP(AF41,Índices!$B$135:$F$627,3,0) ->  | AF42: =DATE(YEAR(BD!B78),MONTH(BD!B78)-1,1) -> 
P43: Tributos Totais por Fora | R43: =(R39+R40)/(1-R39-R40) -> 0.3312827162 | Z43: =YEAR(BD!B77) -> 1900 | AA43: =(BD!C77) -> 0 | AB43: 0 1900 | AC43: =BD!D77 -> 0 | AD43: =AD42*VLOOKUP(AF43,Índices!$B$135:$F$627,2,0)/VLOOKUP(AF42,Índices!$B$135:$F$627,2,0) ->  | AE43: =AE42*VLOOKUP(AF43,Índices!$B$135:$F$627,3,0)/VLOOKUP(AF42,Índices!$B$135:$F$627,3,0) ->  | AF43: =DATE(YEAR(BD!B77),MONTH(BD!B77)-1,1) -> 
Z44: =YEAR(BD!B76) -> 1900 | AA44: =(BD!C76) -> 0 | AB44: 0 1900 | AC44: =BD!D76 -> 0 | AD44: =AD43*VLOOKUP(AF44,Índices!$B$135:$F$627,2,0)/VLOOKUP(AF43,Índices!$B$135:$F$627,2,0) ->  | AE44: =AE43*VLOOKUP(AF44,Índices!$B$135:$F$627,3,0)/VLOOKUP(AF43,Índices!$B$135:$F$627,3,0) ->  | AF44: =DATE(YEAR(BD!B76),MONTH(BD!B76)-1,1) -> 
B45: TabRevAvalRTE | H45: Voltar | Z45: =YEAR(BD!B75) -> 1900 | AA45: =(BD!C75) -> 0 | AB45: 0 1900 | AC45: =BD!D75 -> 0 | AD45: =AD44*VLOOKUP(AF45,Índices!$B$135:$F$627,2,0)/VLOOKUP(AF44,Índices!$B$135:$F$627,2,0) ->  | AE45: =AE44*VLOOKUP(AF45,Índices!$B$135:$F$627,3,0)/VLOOKUP(AF44,Índices!$B$135:$F$627,3,0) ->  | AF45: =DATE(YEAR(BD!B75),MONTH(BD!B75)-1,1) -> 
C46: Receita Verificada (R$) | D46: Receita Verificada (R$) | E46: Receita Requerida (R$) | F46: Variação | G46: Participação no Efeito | H46: Participação na Receita | Z46: =YEAR(BD!B74) -> 1900 | AA46: =(BD!C74) -> 0 | AB46: 0 1900 | AC46: =BD!D74 -> 0 | AD46: =AD45*VLOOKUP(AF46,Índices!$B$135:$F$627,2,0)/VLOOKUP(AF45,Índices!$B$135:$F$627,2,0) ->  | AE46: =AE45*VLOOKUP(AF46,Índices!$B$135:$F$627,3,0)/VLOOKUP(AF45,Índices!$B$135:$F$627,3,0) ->  | AF46: =DATE(YEAR(BD!B74),MONTH(BD!B74)-1,1) -> 
B47: PARCELA A [Encargos+Transmissão+Energia+RI] | C47: =C48+C60+C69+C70 -> 1508527751 | D47: =D48+D60+D69+D70 -> 1508527099 | E47: =E48+E60+E69+E70 -> 1772498469 | F47: =IFERROR(E47/D47-1,0) -> 0.1749861638 | G47: =IFERROR((E47-D47)/$D$78,0) -> 0.09934146473 | H47: =IFERROR(E47/$E$78,0) -> 0.5966081894 | Z47: =YEAR(BD!B73) -> 1900 | AA47: =(BD!C73) -> 0 | AB47: 0 1900 | AC47: =BD!D73 -> 0 | AD47: =AD46*VLOOKUP(AF47,Índices!$B$135:$F$627,2,0)/VLOOKUP(AF46,Índices!$B$135:$F$627,2,0) ->  | AE47: =AE46*VLOOKUP(AF47,Índices!$B$135:$F$627,3,0)/VLOOKUP(AF46,Índices!$B$135:$F$627,3,0) ->  | AF47: =DATE(YEAR(BD!B73),MONTH(BD!B73)-1,1) -> 
B48: Encargos Setoriais | C48: =SUM(C49:C59) -> 368084482.8 | D48: =SUM(D49:D59) -> 368084323.7 | E48: =SUM(E49:E59) -> 451521039.4 | F48: 0.2266782644 | G48: 0.03140009292 | H48: 0.151978213 | I48: Colunas1 | J48: Colunas2 | Z48: =YEAR(BD!B72) -> 1900 | AA48: =(BD!C72) -> 0 | AB48: =CONCATENATE(AA48," ",Z48) -> 0 1900 | AC48: =BD!D72 -> 0 | AD48: =AD47*VLOOKUP(AF48,Índices!$B$135:$F$627,2,0)/VLOOKUP(AF47,Índices!$B$135:$F$627,2,0) ->  | AE48: =AE47*VLOOKUP(AF48,Índices!$B$135:$F$627,3,0)/VLOOKUP(AF47,Índices!$B$135:$F$627,3,0) ->  | AF48: =DATE(YEAR(BD!B72),MONTH(BD!B72)-1,1) -> 
B49: Taxa de Fisc. de Serviços de E.E. – TFSEE | C49: =SUM(DADOS_MercadoBase[TFSEE]) -> 4152514.369 | D49: =C49+C49*($D$78-$C$78)/$C$47 -> 4152512.575 | E49: =Resultado!D22 -> 4358672.202 | F49: 0.04964696034 | G49: 7.758492645e-05 | H49: 0.001467092681 | I49: =IF(SUM(C49:E49)<>0,1,0) -> 1 | Z49: =YEAR(BD!B71) -> 1900 | AA49: =(BD!C71) -> 0 | AB49: 0 1900 | AC49: =BD!D71 -> 0 | AD49: =AD48*VLOOKUP(AF49,Índices!$B$135:$F$627,2,0)/VLOOKUP(AF48,Índices!$B$135:$F$627,2,0) ->  | AE49: =AE48*VLOOKUP(AF49,Índices!$B$135:$F$627,3,0)/VLOOKUP(AF48,Índices!$B$135:$F$627,3,0) ->  | AF49: =DATE(YEAR(BD!B71),MONTH(BD!B71)-1,1) -> 
B50: Conta de Desenv. Energético – CDE (USO) | C50: =SUM(DADOS_MercadoBase[CDE],DADOS_MercadoBase[RTE_CDE_E]) -> 149993112.8 | D50: 149993048 | E50: =Encargos!G23 -> 232998420.1 | F50: 0.5533947957 | G50: 0.03123776359 | H50: 0.07842532335 | I50: =IF(SUM(C50:E50)<>0,1,0) -> 1 | Z50: =YEAR(BD!B70) -> 1900 | AA50: =(BD!C70) -> 0 | AB50: 0 1900 | AC50: =BD!D70 -> 0 | AD50: =AD49*VLOOKUP(AF50,Índices!$B$135:$F$627,2,0)/VLOOKUP(AF49,Índices!$B$135:$F$627,2,0) ->  | AE50: =AE49*VLOOKUP(AF50,Índices!$B$135:$F$627,3,0)/VLOOKUP(AF49,Índices!$B$135:$F$627,3,0) ->  | AF50: =DATE(YEAR(BD!B70),MONTH(BD!B70)-1,1) -> 
B51: Conta de Desenv. Energético – CDE Conta-Covid (TE) | C51: =IFERROR(SUM(DADOS_MercadoBase[covidTeEco])*(IFERROR(VLOOKUP("CDE Covid TE",BD!$B$8:$C$53,2,FALSE),0) /(IFERROR(VLOOKUP("CDE Covid TE",BD!$B$8:$C$53,2,FALSE),0)+IFERROR(VLOOKUP("CDE Conta - Escassez Hídrica TE",BD!$B$8:$C$53,2,FALSE),0)))+ SUM(DADOS_MercadoBase[covidTusdEco])*(IFERROR(VLOOKUP("CDE Covid TUSD",BD!$B$8:$C$53,2,FALSE),0) /(IFERROR(VLOOKUP("CDE Covid TUSD",BD!$B$8:$C$53,2,FALSE),0)+IFERROR(VLOOKUP("CDE Conta - Escassez Hídrica TUSD",BD!$B$8:$C$53,2,FALSE),0))),0) -> 64724511.22 | D51: 64724483.25 | E51: =Encargos!G24+Encargos!G25 -> 0 | F51: -1 | G51: -0.02435803917 | H51: 0 | I51: 1 | Z51: =YEAR(BD!B69) -> 1900 | AA51: =(BD!C69) -> 0 | AB51: 0 1900 | AC51: =BD!D69 -> 0 | AD51: =AD50*VLOOKUP(AF51,Índices!$B$135:$F$627,2,0)/VLOOKUP(AF50,Índices!$B$135:$F$627,2,0) ->  | AE51: =AE50*VLOOKUP(AF51,Índices!$B$135:$F$627,3,0)/VLOOKUP(AF50,Índices!$B$135:$F$627,3,0) ->  | AF51: =DATE(YEAR(BD!B69),MONTH(BD!B69)-1,1) -> 
B52: Conta de Desenv. Energético – CDE Eletrobrás | C52: =SUM(DADOS_MercadoBase[CDE_Elet_Eco]) -> -12735387.22 | D52: -12735381.72 | E52: =Encargos!G26 -> -2187109.36 | F52: -0.8282651115 | G52: 0.003969676056 | H52: -0.0007361627546 | I52: 1 | Z52: =YEAR(BD!B68) -> 1900 | AA52: =(BD!C68) -> 0 | AB52: 0 1900 | AC52: =BD!D68 -> 0 | AD52: =AD51*VLOOKUP(AF52,Índices!$B$135:$F$627,2,0)/VLOOKUP(AF51,Índices!$B$135:$F$627,2,0) ->  | AE52: =AE51*VLOOKUP(AF52,Índices!$B$135:$F$627,3,0)/VLOOKUP(AF51,Índices!$B$135:$F$627,3,0) ->  | AF52: =DATE(YEAR(BD!B68),MONTH(BD!B68)-1,1) -> 
B53: Conta de Desenv. Energético – CDE Conta-Escassez Hídrica (TE) | C53: =IFERROR(SUM(DADOS_MercadoBase[covidTeEco])*(IFERROR(VLOOKUP("CDE Conta - Escassez Hídrica TE",BD!$B$8:$C$53,2,FALSE),0) /(IFERROR(VLOOKUP("CDE Covid TE",BD!$B$8:$C$53,2,FALSE),0)+IFERROR(VLOOKUP("CDE Conta - Escassez Hídrica TE",BD!$B$8:$C$53,2,FALSE),0))),0)+ IFERROR(SUM(DADOS_MercadoBase[covidTusdEco])*(IFERROR(VLOOKUP("CDE Conta - Escassez Hídrica TUSD",BD!$B$8:$C$53,2,FALSE),0) /(IFERROR(VLOOKUP("CDE Covid TUSD",BD!$B$8:$C$53,2,FALSE),0)+IFERROR(VLOOKUP("CDE Conta - Escassez Hídrica TUSD",BD!$B$8:$C$53,2,FALSE),0))),0) -> 12854849.33 | D53: 12854843.78 | E53: =Encargos!G27+Encargos!G28 -> 13615352.44 | F53: 0.05916125272 | G53: 0.0002862054486 | H53: 0.004582813982 | I53: 1 | Z53: =YEAR(BD!B67) -> 1900 | AA53: =(BD!C67) -> 0 | AB53: 0 1900 | AC53: =BD!D67 -> 0 | AD53: =AD52*VLOOKUP(AF53,Índices!$B$135:$F$627,2,0)/VLOOKUP(AF52,Índices!$B$135:$F$627,2,0) ->  | AE53: =AE52*VLOOKUP(AF53,Índices!$B$135:$F$627,3,0)/VLOOKUP(AF52,Índices!$B$135:$F$627,3,0) ->  | AF53: =DATE(YEAR(BD!B67),MONTH(BD!B67)-1,1) -> 
B54: Conta de Desenv. Energético – CDE GD | C54: =SUM(DADOS_MercadoBase[CDE_GD_Eco]) -> 11759502.38 | D54: 11759497.29 | E54: =Encargos!G29 -> 40506930.45 | F54: 2.444614122 | G54: 0.01081864339 | H54: 0.01363429467 | I54: 1 | Z54: =YEAR(BD!B66) -> 2025 | AA54: =(BD!C66) -> 0 | AB54: =CONCATENATE(IF(AA54=1,"Revisão","Reajuste")," ",Z54) -> Reajuste 2025 | AC54: =BD!D66 -> 841.3917756 | AD54: =AD53*VLOOKUP(AF54,Índices!$B$135:$F$627,2,0)/VLOOKUP(AF53,Índices!$B$135:$F$627,2,0) ->  | AE54: =AE53*VLOOKUP(AF54,Índices!$B$135:$F$627,3,0)/VLOOKUP(AF53,Índices!$B$135:$F$627,3,0) ->  | AF54: =DATE(YEAR(BD!B66),MONTH(BD!B66)-1,1) -> 2025-11-01
B55: Compensação financeira - CFURH | C55: =SUM(DADOS_MercadoBase[CFURH]) -> 0 | D55: 0 | E55: =Resultado!D24 -> 0 | F55: 0 | G55: 0 | H55: 0 | I55: 0 | AC55: =AC54/AC41-1 ->  | AD55: =AD54/AD41-1 ->  | AE55: =AE54/AE41-1 -> 
B56: Encargos Serv. Sist. - ESS/Energ. Reserv. - EER/ERCAP | C56: =SUM(DADOS_MercadoBase[ESSERR]) -> 75883266.84 | D56: 75883234.05 | E56: =Resultado!D25 -> 88798674.03 | F56: 0.1702014963 | G56: 0.004860522281 | H56: 0.02988889247 | I56: 1
B57: PROINFA | C57: =SUM(DADOS_MercadoBase[PROINFA]) -> 36773118.45 | D57: 36773102.56 | E57: =Resultado!D26 -> 47322328.99 | F57: 0.2868734399 | G57: 0.003970035104 | H57: 0.01592830093 | I57: 1
B58: P&D, Efic.Energ e Ressarc.ICMS Sist.Isol. | C58: =SUM(DADOS_MercadoBase[PeD],DADOS_MercadoBase[RTE_PeD]) -> 24678994.66 | D58: 24678984 | E58: =Resultado!D27 -> 26107770.54 | F58: 0.05789486894 | G58: 0.0005377012973 | H58: 0.008787657641 | I58: 1
B59: ONS | C59: =Resultado!C28 -> 0 | D59: 0 | E59: =Resultado!D28 -> 0 | F59: 0 | G59: 0 | H59: 0 | I59: 0
B60: Custos de Transmissão | C60: =SUM(C61:C68) -> 184005871.8 | D60: =SUM(D61:D68) -> 184005792.3 | E60: =SUM(E61:E68) -> 246300879.6 | F60: 0.3385495999 | G60: 0.02344377431 | H60: 0.08290282019 | I60: 1
B61: Rede Básica | C61: =SUM(DADOS_MercadoBase[TUST_RB]) -> 140381506.6 | D61: =C61+C61*($D$78-$C$78)/$C$47 -> 140381445.9 | E61: =Resultado!D30 -> 198946076.9 | F61: 0.4171821329 | G61: 0.02203987587 | H61: 0.06696358887 | I61: 1 | K61: Total RB e RBF
B62: Rede Básica Fronteira | C62: =SUM(DADOS_MercadoBase[TUST_FR]) -> 34732188.62 | D62: 34732173.61 | E62: =Resultado!D31 -> 38221429.4 | F62: 0.1004617743 | G62: 0.001313126422 | H62: 0.0128650141 | I62: 1 | K62: =SUM(G61:G62) -> 0.02335300229
B63: Rede Básica ONS (A2) | C63: =SUM(DADOS_MercadoBase[TUSDG_ONS]) -> 238771.0325 | D63: 238770.9293 | E63: =Resultado!D32 -> 240746.34 | F63: 0.008273246164 | G63: 7.434146738e-07 | H63: 8.103320851e-05 | I63: 1
B64: Rede Básica Export. (A2) | C64: =SUM(DADOS_MercadoBase[TUSDG_T]) -> 5101513.66 | D64: 5101511.456 | E64: =Resultado!D33 -> 5169431.95 | F64: 0.01331379825 | G64: 2.556080756e-05 | H64: 0.001739987645 | I64: 1
B65: MUST Itaipu | C65: =SUM(DADOS_MercadoBase[TUST_ITAIPU]) -> 0 | D65: 0 | E65: =Resultado!D34 -> 0 | F65: 0 | G65: 0 | H65: 0 | I65: 0
B66: Transporte de Itaipu | C66: =SUM(DADOS_MercadoBase[ITAIPU]) -> 0 | D66: 0 | E66: =Resultado!D35 -> 0 | F66: 0 | G66: 0 | H66: 0 | I66: 0
B67: Conexão | C67: =SUM(DADOS_MercadoBase[Conexao_T]) -> 3551891.907 | D67: 3551890.372 | E67: =Resultado!D36 -> 3723195.015 | F67: 0.04822914687 | G67: 6.446780231e-05 | H67: 0.001253196364 | I67: 1
B68: Uso do sistema de distribuição | C68: =SUM(DADOS_MercadoBase[CUSD],DADOS_MercadoBase[RTE_CUSD]) -> 0 | D68: 0 | E68: =Resultado!D37 -> 0 | F68: 0 | G68: 0 | H68: 0 | I68: 0
B69: Custos de Aquisição de Energia | C69: =SUM(DADOS_MercadoBase[RTE_Energia],DADOS_MercadoBase[EnergiaRevenda],DADOS_MercadoBase[perdasnt],DADOS_MercadoBase[perdasrb_d],DADOS_MercadoBase[perdasrb_c],DADOS_MercadoBase[perdastec]) -> 914693010.3 | D69: 914692615 | E69: =Resultado!D38 -> 1026176525 | F69: 0.1218812837 | G69: 0.04195521252 | H69: 0.3454024528 | I69: 1
B70: Receitas Irrecuperáveis | C70: =SUM(DADOS_MercadoBase[RI]) -> 41744385.79 | D70: 41744367.76 | E70: =Resultado!D39 -> 48500024.61 | F70: 0.1618339721 | G70: 0.002542384981 | H70: 0.01632470345 | I70: 1
B71: PARCELA B | C71: =IF(CAPA!$C$7="Reajuste",SUM(DADOS_MercadoBase[DISTRIBUICAO]),SUM(C72:C77)) -> 1148685282 | D71: =Mercado!Z66 -> 1148685282 | E71: =IF(CAPA!$C$7="Reajuste",Resultado!D45,SUM(E72:E77)) -> 1198460530 | F71: 0.0433323634 | G71: 0.01873213011 | H71: 0.4033918106 | I71: 1
B72: Custos Operacionais | C72: ='VPB e Fator X'!C107 ->  | D72: =C72 ->  | E72: =Resultado!G20*(1-Resultado!$G$26-Resultado!$G$27) ->  | F72: 0 | G72: 0 | H72: 0
B73: Anuidades | C73: =Entrada!G63*('VPB e Fator X'!$C$102-'VPB e Fator X'!$C$107)/SUM(Entrada!$G$61:$G$63) ->  | D73: =C73 ->  | E73: =Resultado!G24*(1-Resultado!$G$26-Resultado!$G$27) ->  | F73: 0 | G73: 0 | H73: 0
B74: Remuneração | C74: =Entrada!G61*('VPB e Fator X'!$C$102-'VPB e Fator X'!$C$107)/SUM(Entrada!$G$61:$G$63) ->  | D74: =C74 ->  | E74: =Resultado!G22*(1-Resultado!$G$26-Resultado!$G$27) ->  | F74: 0 | G74: 0 | H74: 0
B75: Depreciação | C75: =Entrada!G62*('VPB e Fator X'!$C$102-'VPB e Fator X'!$C$107)/SUM(Entrada!$G$61:$G$63) ->  | D75: =C75 ->  | E75: =Resultado!G23*(1-Resultado!$G$26-Resultado!$G$27) ->  | F75: 0 | G75: 0 | H75: 0
B76: UD+ER+OR | C76: =-Entrada!G115*'VPB e Fator X'!$C$102/Entrada!$G$114-SUM(Entrada!G116:'Entrada'!G117)*'VPB e Fator X'!C102/Entrada!G114 ->  | D76: =C76 ->  | E76: =-(SUM(Resultado!$G$29:$G$31)) -> -36484847.92 | F76: 0 | G76: 0 | H76: -0.01228049527
I77: 0
B78: RT considerando a varição tarifária da RTA | C78: =C71+C47 -> 2657213032 | D78: =Mercado!D24 -> 2657212380 | E78: =E71+E47 -> 2970958998 | G78: =IFERROR((E78-D78)/$D$78,0) -> 0.1180735948 | H78: =IFERROR(E78/$E$78,0) -> 1 | I78: 1
I79: 1 | K79: TabFin | M79: Voltar
B80: Efeito dos Componentes Financeiros do Processo Atual | E80: =SUM(E81:E136) -> 8264991.295 | G80: =SUM(G81:G136) -> 0.003110399212 | I80: 1 | K80: Componentes Financeiros | L80: Valor (R$) | M80: Participação | N80: Colunas1 | O80: Colunas2
B81: ='Votos e NTs'!K81 -> CVA em processamento - Energia | E81: =L81 -> 158565984.3 | G81: =M81 -> 0.05967380909 | I81: 1 | K81: CVA em processamento - Energia | L81: =SUMIFS(Financeiros[Valor],Financeiros[idDet1],19,Financeiros[id_Grupo_TARIFA],2,Financeiros[idDet2],60,Financeiros[idDet3],999) -> 158565984.3 | M81: =L81/Financeiros!$D$5 -> 0.05967380909 | O81: Total CVA
B82: ='Votos e NTs'!K82 -> CVA em processamento - Transporte | E82: =L82 -> 42283543.92 | G82: =M82 -> 0.01591274534 | I82: 1 | K82: CVA em processamento - Transporte | L82: =SUMIFS(Financeiros[Valor],Financeiros[idDet1],19,Financeiros[id_Grupo_TARIFA],1,Financeiros[idDet2],60, Financeiros[idDet3],999) -> 42283543.92 | M82: =L82/Financeiros!$D$5 -> 0.01591274534 | O82: =SUM(M81:M83) -> 0.1065300719
B83: ='Votos e NTs'!K83 -> CVA em processamento - Encargos Setoriais | E83: 82223497.7 | G83: 0.03094351746 | I83: 1 | K83: CVA em processamento - Encargos Setoriais | L83: =SUMIFS(Financeiros[Valor],Financeiros[idDet1],19,Financeiros[id_Grupo_TARIFA],3,Financeiros[idDet2],60,Financeiros[idDet3],999)+ SUMIFS(Financeiros[Valor],Financeiros[idDet1],19,Financeiros[id_Grupo_TARIFA],3,Financeiros[idDet2],60,Financeiros[idDet3],73)+ SUMIFS(Financeiros[Valor],Financeiros[idDet1],19,Financeiros[id_Grupo_TARIFA],3,Financeiros[idDet2],60,Financeiros[idDet3],74) -> 82223497.7 | M83: =L83/Financeiros!$D$5 -> 0.03094351746
B84: ='Votos e NTs'!K84 -> Saldo a Compensar CVA-Ano Anterior + Ajustes | E84: -307829.7334 | G84: -0.0001158468686 | I84: 1 | K84: Saldo a Compensar CVA-Ano Anterior + Ajustes | L84: =SUMIFS(Financeiros[Valor],Financeiros[idDet1],19,Financeiros[idDet2],64, Financeiros[idDet3],999)+ SUMIFS(Financeiros[Valor],Financeiros[idDet1],19,Financeiros[idDet2],64, Financeiros[idDet3],73)+ SUMIFS(Financeiros[Valor],Financeiros[idDet1],19,Financeiros[idDet2],64, Financeiros[idDet3],74) -> -307829.7334 | M84: =L84/Financeiros!$D$5 -> -0.0001158468686
B85: ='Votos e NTs'!K85 -> Neutralidade de Parcela A- Energia | E85: 1815664.871 | G85: 0.0006832968582 | I85: 1 | K85: Neutralidade de Parcela A- Energia | L85: =SUMIFS(Financeiros[Valor],Financeiros[idDet1],20,Financeiros[id_Grupo_TARIFA],2,Financeiros[idDet2],60,Financeiros[idDet3],999) -> 1815664.871 | M85: =L85/Financeiros!$D$5 -> 0.0006832968582
B86: ='Votos e NTs'!K86 -> Neutralidade de Parcela A - Transporte | E86: 12873479.03 | G86: 0.004844730937 | I86: 1 | K86: Neutralidade de Parcela A - Transporte | L86: =SUMIFS(Financeiros[Valor],Financeiros[idDet1],20,Financeiros[id_Grupo_TARIFA],1,Financeiros[idDet2],60, Financeiros[idDet3],999) -> 12873479.03 | M86: =L86/Financeiros!$D$5 -> 0.004844730937
B87: ='Votos e NTs'!K87 -> Neutralidade de Parcela A - Encargos Setoriais | E87: 7513520.959 | G87: 0.002827595195 | I87: 1 | K87: Neutralidade de Parcela A - Encargos Setoriais | L87: =SUMIFS(Financeiros[Valor],Financeiros[idDet1],20,Financeiros[id_Grupo_TARIFA],3,Financeiros[idDet2],60,Financeiros[idDet3],999)+ SUMIFS(Financeiros[Valor],Financeiros[idDet1],20,Financeiros[idDet2],60,Financeiros[idDet3],73)+ SUMIFS(Financeiros[Valor],Financeiros[idDet1],20,Financeiros[idDet2],60,Financeiros[idDet3],74)+ SUMIFS(Financeiros[Valor],Financeiros[idDet1],20,Financeiros[idDet2],60,Financeiros[idDet3],81)+ SUMIFS(Financeiros[Valor],Financeiros[idDet1],20,Financeiros[idDet2],60,Financeiros[idDet3],82) -> 7513520.959 | M87: =L87/Financeiros!$D$5 -> 0.002827595195
B88: ='Votos e NTs'!K88 -> Neutralidade de Parcela A - Receita Irrecuperável | E88: 1252193.418 | G88: 0.0004712432576 | I88: 1 | K88: Neutralidade de Parcela A - Receita Irrecuperável | L88: =SUMIFS(Financeiros[Valor],Financeiros[idDet1],20,Financeiros[id_Grupo_TARIFA],5,Financeiros[idDet2],60, Financeiros[idDet3],999) -> 1252193.418 | M88: =L88/Financeiros!$D$5 -> 0.0004712432576
B89: ='Votos e NTs'!K89 -> Neutralidade de Fin. Parcela B - Conta Covid | E89: 0 | G89: 0 | I89: 0 | K89: Neutralidade de Fin. Parcela B - Conta Covid | L89: =SUMIFS(Financeiros[Valor],Financeiros[idDet1],20,Financeiros[id_Grupo_TARIFA],4,Financeiros[idDet2],60, Financeiros[idDet3],999) -> 0 | M89: =L89/Financeiros!$D$5 -> 0
B90: ='Votos e NTs'!K90 -> Neutralidade de Créditos de PIS/COFINS | E90: -49870.38496 | G90: -1.876793339e-05 | I90: 1 | K90: Neutralidade de Créditos de PIS/COFINS | L90: =SUMIFS(Financeiros[Valor],Financeiros[idDet1],20,Financeiros[idDet2],60,Financeiros[idDet3],503,Financeiros[id_Grupo_TARIFA],99) -> -49870.38496 | M90: =L90/Financeiros!$D$5 -> -1.876793339e-05
B91: ='Votos e NTs'!K91 -> Financeiro CDE Eletrobras | E91: -2823210.084 | G91: -0.001062470619 | I91: 1 | K91: Financeiro CDE Eletrobras | L91: =SUMIFS(Financeiros[Valor],Financeiros[idDet1],22,Financeiros[idDet2],60, Financeiros[idDet3],512,Financeiros[id_Detalhe_Grupo_TARIFA],28) -> -2823210.084 | M91: =L91/Financeiros!$D$5 -> -0.001062470619
B92: ='Votos e NTs'!K92 -> Restituição de encargo do ONS | E92: 57000000 | G92: 0.02145105164 | I92: 1 | K92: Restituição de encargo do ONS | L92: =SUMIFS(Financeiros[Valor],Financeiros[idDet1],22,Financeiros[idDet2],60, Financeiros[idDet3],123,Financeiros[id_Grupo_TARIFA],4) -> 57000000 | M92: =L92/Financeiros!$D$5 -> 0.02145105164
B93: ='Votos e NTs'!K93 -> Financeiros residuais do encargo de ONS | E93: 0 | G93: 0 | I93: 0 | K93: Financeiros residuais do encargo de ONS | L93: =SUMIFS(Financeiros[Valor],Financeiros[idDet1],22,Financeiros[idDet2],60, Financeiros[idDet3],513,Financeiros[id_Grupo_TARIFA],4) -> 0 | M93: =L93/Financeiros!$D$5 -> 0
B94: ='Votos e NTs'!K94 -> Neutralidade de Fin. Parcela B - Conta Covid | E94: 0 | G94: 0 | I94: 0 | K94: Neutralidade de Fin. Parcela B - Conta Covid | L94: =SUMIFS(Financeiros[Valor],Financeiros[idDet1],20,Financeiros[id_Grupo_TARIFA],4,Financeiros[idDet2],60, Financeiros[idDet3],999) -> 0 | M94: =L94/Financeiros!$D$5 -> 0
B95: ='Votos e NTs'!K95 -> Sobrecontratação | E95: 5092943.414 | G95: 0.001916648986 | I95: 1 | K95: Sobrecontratação | L95: =SUMIFS(Financeiros[Valor],Financeiros[idDet1],22,Financeiros[idDet2],60,Financeiros[idDet3],106) -> 5092943.414 | M95: =L95/Financeiros!$D$5 -> 0.001916648986
B96: ='Votos e NTs'!K96 -> Garantias financeiras na contratação regulada de energia (CCEAR) | E96: 331409.6001 | G96: 0.0001247207798 | I96: 1 | K96: Garantias financeiras na contratação regulada de energia (CCEAR) | L96: =SUMIFS(Financeiros[Valor],Financeiros[idDet1],22,Financeiros[idDet2],60,Financeiros[idDet3],102) -> 331409.6001 | M96: =L96/Financeiros!$D$5 -> 0.0001247207798
B97: ='Votos e NTs'!K97 -> Reversão Sobrecontratação | E97: 0 | G97: 0 | I97: 0 | K97: Reversão Sobrecontratação | L97: =SUMIFS(Financeiros[Valor],Financeiros[idDet1],22,Financeiros[idDet2],62,Financeiros[idDet3],106) -> 0 | M97: =L97/Financeiros!$D$5 -> 0
B98: ='Votos e NTs'!K98 -> Recálculo Exposição CCEAR entre Submercados | E98: 0 | G98: 0 | I98: 0 | K98: Recálculo Exposição CCEAR entre Submercados | L98: =SUMIFS(Financeiros[Valor],Financeiros[idDet1],22,Financeiros[idDet2],60,Financeiros[idDet3],101) -> 0 | M98: =L98/Financeiros!$D$5 -> 0
B99: ='Votos e NTs'!K99 -> Compensação ref. acordos bilaterais de CCEAR | E99: 0 | G99: 0 | I99: 0 | K99: Compensação ref. acordos bilaterais de CCEAR | L99: =SUMIFS(Financeiros[Valor],Financeiros[idDet1],22,Financeiros[idDet2],60,Financeiros[idDet3],230) -> 0 | M99: =L99/Financeiros!$D$5 -> 0
B100: ='Votos e NTs'!K100 -> Reversão de Risco Hidrológico | E100: -72831784.9 | G100: -0.02740909437 | I100: 1 | K100: Reversão de Risco Hidrológico | L100: =SUMIFS(Financeiros[Valor],Financeiros[idDet1],22,Financeiros[idDet2],62,Financeiros[idDet3],220) -> -72831784.9 | M100: =L100/Financeiros!$D$5 -> -0.02740909437
B101: ='Votos e NTs'!K101 -> Risco Hidrológico | E101: 60127453.9 | G101: 0.02262801963 | I101: 1 | K101: Risco Hidrológico | L101: =SUMIFS(Financeiros[Valor],Financeiros[idDet1],22,Financeiros[idDet2],60,Financeiros[idDet3],220) -> 60127453.9 | M101: =L101/Financeiros!$D$5 -> 0.02262801963
B102: ='Votos e NTs'!K102 -> Repasse de ultrapassagem de Supridas/Permissionárias | E102: 0 | G102: 0 | I102: 0 | K102: Repasse de ultrapassagem de Supridas/Permissionárias | L102: =SUMIFS(Financeiros[Valor],Financeiros[idDet1],22,Financeiros[idDet2],60,Financeiros[idDet3],187) -> 0 | M102: =L102/Financeiros!$D$5 -> 0
B103: ='Votos e NTs'!K103 -> Ajuste CUSD | E103: 0 | G103: 0 | I103: 0 | K103: Ajuste CUSD | L103: =SUMIFS(Financeiros[Valor],Financeiros[idDet1],22,Financeiros[idDet2],60,Financeiros[idDet3],119) -> 0 | M103: =L103/Financeiros!$D$5 -> 0
B104: ='Votos e NTs'!K104 -> Conselho de Consumidores | E104: 0 | G104: 0 | I104: 0 | K104: Conselho de Consumidores | L104: =SUMIFS(Financeiros[Valor],Financeiros[idDet1],22,Financeiros[idDet2],60,Financeiros[idDet3],188) -> 0 | M104: =L104/Financeiros!$D$5 -> 0
B105: ='Votos e NTs'!K105 -> Ajuste TUSDg | E105: 0 | G105: 0 | I105: 0 | K105: Ajuste TUSDg | L105: =SUMIFS(Financeiros[Valor],Financeiros[idDet1],22,Financeiros[idDet2],60,Financeiros[idDet3],136) -> 0 | M105: =L105/Financeiros!$D$5 -> 0
B106: ='Votos e NTs'!K106 -> Repasse de compensação DIC/FIC | E106: 0 | G106: 0 | I106: 0 | K106: Repasse de compensação DIC/FIC | L106: =SUMIFS(Financeiros[Valor],Financeiros[idDet1],22,Financeiros[idDet2],60,Financeiros[idDet3],178) -> 0 | M106: =L106/Financeiros!$D$5 -> 0
B107: ='Votos e NTs'!K107 -> Acordo REN 824/2018 | E107: 0 | G107: 0 | I107: 0 | K107: Acordo REN 824/2018 | L107: =SUMIFS(Financeiros[Valor],Financeiros[idDet1],22,Financeiros[idDet2],60,Financeiros[idDet3],232) -> 0 | M107: =L107/Financeiros!$D$5 -> 0
B108: ='Votos e NTs'!K108 -> Custo Distribuidora - Conta Covid - Art 4º - REN 952/2021 - Tusd | E108: 0 | G108: 0 | I108: 0 | K108: Custo Distribuidora - Conta Covid - Art 4º - REN 952/2021 - Tusd | L108: =SUMIFS(Financeiros[Valor],Financeiros[idDet1],22,Financeiros[idDet2],60,Financeiros[idDet3],518) -> 0 | M108: =L108/Financeiros!$D$5 -> 0
B109: ='Votos e NTs'!K109 -> Custo Distribuidora - Conta Covid - Art 4º - REN 952/2021 - TE | E109: 0 | G109: 0 | I109: 0 | K109: Custo Distribuidora - Conta Covid - Art 4º - REN 952/2021 - TE | L109: =SUMIFS(Financeiros[Valor],Financeiros[idDet1],22,Financeiros[idDet2],60,Financeiros[idDet3],519) -> 0 | M109: =L109/Financeiros!$D$5 -> 0
B110: ='Votos e NTs'!K110 -> Diferimento Parcela B | E110: 0 | G110: 0 | I110: 0 | K110: Diferimento Parcela B | L110: =SUMIFS(Financeiros[Valor],Financeiros[idDet1],22,Financeiros[idDet2],60,Financeiros[idDet3],501) -> 0 | M110: =L110/Financeiros!$D$5 -> 0
B111: ='Votos e NTs'!K111 -> Recomposição à conta de comercialização de Itaipu - Reversão Bônus Itaipu | E111: 0 | G111: 0 | I111: 0 | K111: Recomposição à conta de comercialização de Itaipu - Reversão Bônus Itaipu | L111: =SUMIFS(Financeiros[Valor],Financeiros[idDet1],22,Financeiros[idDet2],62,Financeiros[idDet3],507) -> 0 | M111: =L111/Financeiros!$D$5 -> 0
B112: ='Votos e NTs'!K112 -> Neutralidade Mitigação Itaipu - Energia de Revenda | E112: 0 | G112: 0 | I112: 0 | K112: Neutralidade Mitigação Itaipu - Energia de Revenda | L112: =SUMIFS(Financeiros[Valor],Financeiros[idDet1],22,Financeiros[idDet2],60,Financeiros[idDet3],509) -> 0 | M112: =L112/Financeiros!$D$5 -> 0
B113: ='Votos e NTs'!K113 -> Frustração de repasse Decreto 10.665/2021 - Ajuste Bônus Itaipu | E113: 0 | G113: 0 | I113: 0 | K113: Frustração de repasse Decreto 10.665/2021 - Ajuste Bônus Itaipu | L113: =SUMIFS(Financeiros[Valor],Financeiros[idDet1],22,Financeiros[idDet2],60,Financeiros[idDet3],508) -> 0 | M113: =L113/Financeiros!$D$5 -> 0
B114: ='Votos e NTs'!K114 -> Financeiro referente ajuste encargo conexão | E114: 0 | G114: 0 | I114: =IF(SUM(C114:E114)<>0,1,0) -> 0 | K114: Financeiro referente ajuste encargo conexão | L114: =SUMIFS(Financeiros[Valor],Financeiros[idDet1],22,Financeiros[idDet2],60,Financeiros[idDet3],516,Financeiros[id_Detalhe_Grupo_TARIFA],1) -> 0 | M114: =L114/Financeiros!$D$5 -> 0
B115: ='Votos e NTs'!K115 -> Reversão diferimento Rede Básica | E115: 0 | G115: 0 | I115: 0 | K115: Reversão diferimento Rede Básica | L115: =SUMIFS(Financeiros[Valor],Financeiros[idDet1],22,Financeiros[idDet2],62,Financeiros[idDet3],501,Financeiros[id_Detalhe_Grupo_TARIFA],1) -> 0 | M115: =L115/Financeiros!$D$5 -> 0
B116: ='Votos e NTs'!K116 -> Spread sobre a antecipação de créditos de UDER | E116: 0 | G116: 0 | I116: 0 | K116: Spread sobre a antecipação de créditos de UDER | L116: =SUMIFS(Financeiros[Valor],Financeiros[idDet1],22,Financeiros[idDet2],60,Financeiros[idDet3],517) -> 0 | M116: =L116/Financeiros!$D$5 -> 0
B117: ='Votos e NTs'!K117 -> Reversão da antecipação de créditos de UDER | E117: 0 | G117: 0 | I117: 0 | K117: Reversão da antecipação de créditos de UDER | L117: =SUMIFS(Financeiros[Valor],Financeiros[idDet1],22,Financeiros[idDet2],62,Financeiros[idDet3],504) -> 0 | M117: =L117/Financeiros!$D$5 -> 0
B118: ='Votos e NTs'!K118 -> Spread Empr. Escassez Hídrica Encargo | E118: 0 | G118: 0 | I118: 0 | K118: Spread Empr. Escassez Hídrica Encargo | L118: =SUMIFS(Financeiros[Valor],Financeiros[idDet1],22,Financeiros[idDet2],60,Financeiros[idDet3],522,Financeiros[id_Grupo_TARIFA],3) -> 0 | M118: =L118/Financeiros!$D$5 -> 0
B119: ='Votos e NTs'!K119 -> Spread Empr. Escassez Hídrica Energia | E119: 0 | G119: 0 | I119: 0 | K119: Spread Empr. Escassez Hídrica Energia | L119: =SUMIFS(Financeiros[Valor],Financeiros[idDet1],22,Financeiros[idDet2],60,Financeiros[idDet3],522,Financeiros[id_Grupo_TARIFA],2) -> 0 | M119: =L119/Financeiros!$D$5 -> 0
B120: ='Votos e NTs'!K120 -> Spread Empr. Escassez Hídrica Transporte | E120: 0 | G120: 0 | I120: 0 | K120: Spread Empr. Escassez Hídrica Transporte | L120: =SUMIFS(Financeiros[Valor],Financeiros[idDet1],22,Financeiros[idDet2],60,Financeiros[idDet3],522,Financeiros[id_Grupo_TARIFA],1) -> 0 | M120: =L120/Financeiros!$D$5 -> 0
B121: ='Votos e NTs'!K121 -> Reversão de Financeiro de Bandeira de Escassez Hídrica | E121: 0 | G121: 0 | I121: 0 | K121: Reversão de Financeiro de Bandeira de Escassez Hídrica | L121: =SUMIFS(Financeiros[Valor],Financeiros[idDet1],22,Financeiros[idDet2],62,Financeiros[idDet3],506) -> 0 | M121: =L121/Financeiros!$D$5 -> 0
B122: ='Votos e NTs'!K122 -> Financeiro de Postergação Encargo | E122: 0 | G122: 0 | I122: 0 | K122: Financeiro de Postergação Encargo | L122: =SUMIFS(Financeiros[Valor],Financeiros[idDet1],22,Financeiros[idDet2],60,Financeiros[idDet3],502,Financeiros[id_Grupo_TARIFA],3) -> 0 | M122: =L122/Financeiros!$D$5 -> 0
B123: ='Votos e NTs'!K123 -> Financeiro de Postergação Energia | E123: 0 | G123: 0 | I123: 0 | K123: Financeiro de Postergação Energia | L123: =SUMIFS(Financeiros[Valor],Financeiros[idDet1],22,Financeiros[idDet2],60,Financeiros[idDet3],502,Financeiros[id_Grupo_TARIFA],2) -> 0 | M123: =L123/Financeiros!$D$5 -> 0
B124: ='Votos e NTs'!K124 -> Financeiro de Postergação Transporte | E124: 0 | G124: 0 | I124: 0 | K124: Financeiro de Postergação Transporte | L124: =SUMIFS(Financeiros[Valor],Financeiros[idDet1],22,Financeiros[idDet2],60,Financeiros[idDet3],502,Financeiros[id_Grupo_TARIFA],1) -> 0 | M124: =L124/Financeiros!$D$5 -> 0
B125: ='Votos e NTs'!K125 -> Financeiro de Postergação Parcela B | E125: 0 | G125: 0 | I125: 0 | K125: Financeiro de Postergação Parcela B | L125: =SUMIFS(Financeiros[Valor],Financeiros[idDet1],22,Financeiros[idDet2],60,Financeiros[idDet3],502,Financeiros[id_Grupo_TARIFA],4) -> 0 | M125: =L125/Financeiros!$D$5 -> 0
B126: ='Votos e NTs'!K126 -> Itens de modicidade da REN 1.000/2021 | E126: 5598201.135 | G126: 0.002106794766 | I126: 1 | K126: Itens de modicidade da REN 1.000/2021 | L126: =SUMIFS(Financeiros[Valor],Financeiros[idDet1],22,Financeiros[idDet2],60,Financeiros[idDet3],510) -> 5598201.135 | M126: =L126/Financeiros!$D$5 -> 0.002106794766
B127: ='Votos e NTs'!K127 -> Arrecadação de CDE Covid de migrantes (REN 885/2020) | E127: -6589225.356 | G127: -0.002479751112 | I127: 1 | K127: Arrecadação de CDE Covid de migrantes (REN 885/2020) | L127: =SUMIFS(Financeiros[Valor],Financeiros[idDet1],22,Financeiros[idDet2],60,Financeiros[idDet3],505) -> -6589225.356 | M127: =L127/Financeiros!$D$5 -> -0.002479751112
B128: ='Votos e NTs'!K128 -> Arrecadação de CDE Escassez de migrantes (REN 1.008/2022). | E128: -1109224.878 | G128: -0.0004174393009 | I128: 1 | K128: Arrecadação de CDE Escassez de migrantes (REN 1.008/2022). | L128: =SUMIFS(Financeiros[Valor],Financeiros[idDet1],22,Financeiros[idDet2],60,Financeiros[idDet3],527) -> -1109224.878 | M128: =L128/Financeiros!$D$5 -> -0.0004174393009
B129: ='Votos e NTs'!K129 -> Crédito de PIS/COFINS | E129: 686.4743534 | G129: 2.583438036e-07 | I129: 1 | K129: Crédito de PIS/COFINS | L129: =SUMIFS(Financeiros[Valor],Financeiros[idDet1],22,Financeiros[idDet2],60, Financeiros[idDet3],503,Financeiros[id_Grupo_TARIFA],99) -> 686.4743534 | M129: =L129/Financeiros!$D$5 -> 2.583438036e-07
B130: ='Votos e NTs'!K130 -> Quitação cta. Escassez Hídrica - Reversão de componente econômico | E130: -13615352.44 | G130: -0.005123923304 | I130: 1 | K130: Quitação cta. Escassez Hídrica - Reversão de componente econômico | L130: =SUMIFS(Financeiros[Valor],Financeiros[idDet1],22,Financeiros[id_Detalhe_Grupo_TARIFA],25,Financeiros[idDet3],531) -> -13615352.44 | M130: =L130/Financeiros!$D$5 -> -0.005123923304
B131: ='Votos e NTs'!K131 -> Reversão de cobertura excedente Conta Escassez Hídrica (a partir 09/2024) | E131: 0 | G131: 0 | I131: 0 | K131: Reversão de cobertura excedente Conta Escassez Hídrica (a partir 09/2024) | L131: =SUMIFS(Financeiros[Valor],Financeiros[idDet1],22,Financeiros[id_Detalhe_Grupo_TARIFA],25,Financeiros[idDet3],533) -> 0 | M131: =L131/Financeiros!$D$5 -> 0
B132: ='Votos e NTs'!K132 -> Penalidade por descumprimento de metas PLPT (2019-2022) - 1ª Parcela de 5 | E132: -7613018.967 | G132: -0.002865039702 | I132: 1 | K132: Penalidade por descumprimento de metas PLPT (2019-2022) - 1ª Parcela de 5 | L132: =Financeiros!D263 -> -7613018.967 | M132: =L132/Financeiros!$D$5 -> -0.002865039702
B133: ='Votos e NTs'!K133 -> Aplicação do Art. 2º-G da Lei 13.203/2015 (alterada pela Lei 15.269/25) | E133: -321474070.7 | G133: -0.1209816999 | I133: 1 | K133: =Financeiros!C265 -> Aplicação do Art. 2º-G da Lei 13.203/2015 (alterada pela Lei 15.269/25) | L133: =Financeiros!D265 -> -321474070.7 | M133: =L133/Financeiros!$D$5 -> -0.1209816999
B134: ='Votos e NTs'!K134 -> 0 | E134: 0 | G134: 0 | I134: 0 | M134: =L134/Financeiros!$D$5 -> 0
B135: ='Votos e NTs'!K135 -> 0 | E135: 0 | G135: 0 | I135: 0 | M135: =L135/Financeiros!$D$5 -> 0
B136: ='Votos e NTs'!K136 -> 0 | E136: 0 | G136: =M136 -> 0 | I136: 0 | M136: =L136/Financeiros!$D$5 -> 0
B137: Efeito da retirada dos Componentes Financeiros do Processo Anterior | G137: =ROUND(G139-G78-G80-G138,4) -> 0.036 | I137: 1 | K137: Total | L137: =SUM(L81:L136) -> 8264991.295 | M137: =SUM(M81:M136) -> 0.003110399212
B138: Efeito de variação dos subsídios da Lei 14.299/2022 | D138: =Resultado!M22 -> 0 | E138: =Resultado!L22 -> 0 | G138: =(E138-D138)/D78 -> 0 | I138: 0
B139: Efeito Médio a ser percebido pelos Consumidores | G139: =Resultado!L10 -> 0.1572115071 | I139: 1
G141: =LnkTxtAvalEfeitoFinanceiro+LnkTxtReposicionamentoTarifario -> 0.1211839941
O144: TabCons | R144: Voltar
O145: Classe de Consumo | P145: Nº de Unidades Consumidoras* | Q145: Consumo de Energia (MWh) | R145: Participação no Consumo (%)
G146: ÍNDICE DE REAJUSTE TARIFÁRIO | O146: Residencial | P146: =Mercado!E30 -> 564547 | Q146: =Mercado!F30 -> 170999.028 | R146: =Q146/$Q$154 -> 0.4667780338
G147: IRT Anexo II | H147: =LnkTxtReposicionamentoTarifario -> 0.1180735948 | O147: Industrial | P147: =Mercado!E31 -> 2615 | Q147: =Mercado!F31 -> 70707.045 | R147: 0.1930098424
G148: Fin (%) | H148: =LnkTxtAvalEfeitoFinanceiro -> 0.003110399212 | O148: Comercial | P148: =Mercado!E32 -> 45720 | Q148: =Mercado!F32 -> 48128.089 | R148: 0.1313758038
G149: Fin (R$) | H149: =E80 -> 8264991.295 | O149: Rural | P149: =Mercado!E33 -> 110134 | Q149: =Mercado!F33 -> 35041.341 | R149: 0.09565275572
G150: IRT Anexo I | H150: =LnkTxtReposicionamentoTarifario+LnkTxtAvalEfeitoFinanceiro -> 0.1211839941 | O150: Iluminação Pública | P150: =Mercado!E34 -> 343 | Q150: =Mercado!F34 -> 9596.338 | R150: 0.02619523535
O151: Poder Público | P151: =Mercado!E35 -> 5008 | Q151: =Mercado!F35 -> 25541.847 | R151: 0.06972187656
G152: Reajuste anterior anexo ii | H152: 0.03875151363 | O152: Serviço Público | P152: =Mercado!E36 -> 375 | Q152: =Mercado!F36 -> 4687.18 | R152: 0.01279464971
G153: Reajuste anterior anexo i | H153: 0.008696740072 | O153: Demais classes | P153: =Mercado!E37 -> 323 | Q153: =Mercado!F37 -> 1638.196 | R153: 0.004471802658
G154: Efeito consumidor | H154: =(1+H150)*(1+H152)/(1+H153)-1 -> 0.1545903983 | I154: =H154-H150 -> 0.03340640424 | O154: Total | P154: =SUM(P146:P153) -> 729065 | Q154: =SUM(Q146:Q153) -> 366339.064 | R154: =SUM(R146:R153) -> 1
O155: * Nota: dados do último mês informado pela empresa
G157: Índice de Reposição/Reajuste | I157: 0.03875151363
G158: Componentes Financeiros | I158: -0.03005477355 | T158: TabMercado | V158: Voltar
G159: Índice de Reposição/Reajuste com Financeiros | I159: 0.008696740072 | T159: Subgrupos | U159: Mercado (MWh) | V159: Receita (R$) | W159: Colunas1
T160: Fornecimento | U160: =SUM(U161:U167) -> 3378759.789 | V160: =SUM(V161:V167) -> 2400755995 | W160: =IF(ABS(U160)+ABS(V160)>0,1,0) -> 1
T161: A1 (230 kV ou mais) | U161: =Mercado!C10 -> 0 | V161: =Mercado!D10 -> 0 | W161: 0
T162: A2 (88 a 138 kV) | U162: =Mercado!C11 -> 0 | V162: =Mercado!D11 -> 0 | W162: 0
T163: A3 (69 kV) | U163: =Mercado!C12 -> 0 | V163: =Mercado!D12 -> 0 | W163: 0
T164: A3a (30 kV a 44 kV) | U164: =Mercado!C13 -> 21388.369 | V164: =Mercado!D13 -> 12132263.88 | W164: 1
T165: A4 (2,3 kV a 25 kV) | U165: =Mercado!C14 -> 425951 | V165: =Mercado!D14 -> 307221773.7 | W165: 1
T166: As | U166: =Mercado!C15 -> 0 | V166: =Mercado!D15 -> 0 | W166: 0
T167: BT (menor que 2,3 kV) | U167: =Mercado!C16 -> 2931420.42 | V167: =Mercado!D16 -> 2081401958 | W167: 1
T168: Suprimento | U168: =Mercado!C17 -> 0 | V168: =Mercado!D17 -> 0 | W168: 0
T169: Livres A1 | U169: =Mercado!C18 -> 0 | V169: =Mercado!D18 -> 0 | W169: 0
T170: Demais Livres | U170: =Mercado!C19 -> 662868.628 | V170: =Mercado!D19 -> 211782992.5 | W170: 1
T171: Distribuição | U171: =Mercado!C20 -> 11770.929 | V171: =Mercado!D20 -> 1148997.108 | W171: 1
T172: Geração | U172: =Mercado!C21 -> 0 | V172: =Mercado!D21 -> 43524395.6 | W172: 1
T173: Total | U173: =SUM(U161:U172) -> 4053399.346 | V173: =SUM(V161:V172) -> 2657212380
Y177: TabEnc | AB177: Voltar
Y178: Encargos Setoriais | Z178: Processo Anterior (R$) | AA178: Processo Atual (R$) | AB178: Dispositivo Legal | AC178: Colunas1
Y179: Taxa de Fisc. de Serviços de E.E. – TFSEE | Z179: =D49 -> 4152512.575 | AA179: =Resultado!D22 -> 4358672.202 | AB179: =Encargos!D17 -> Submódulo 5.5 do PRORET | AC179: =IF(ABS(Z179)+ABS(AA179)>0,1,0) -> 1
Y180: CDE Uso | Z180: 149993048 | AA180: =Resultado!D23 -> 284933593.6 | AB180: =VLOOKUP("CDE",EncargoDRP[],3,FALSE) -> REH 3.484/2025 | AC180: =IF(ABS(Z180)+ABS(AA180)>0,1,0) -> 1
Y181: CDE Conta-Covid | Z181: 64724483.25 | AA181: =Resultado!D24 -> 0 | AB181: =VLOOKUP("CDE Covid",EncargoDRP[],3,FALSE) -> Quitação | AC181: =IF(ABS(Z181)+ABS(AA181)>0,1,0) -> 1
Y182: CDE Eletrobrás | Z182: -12735381.72 | AA182: =Resultado!D25 -> 88798674.03 | AB182: =VLOOKUP("CDE Eletrobras",EncargoDRP[],3,FALSE) -> DSP 1.536/2025 | AC182: =IF(ABS(Z182)+ABS(AA182)>0,1,0) -> 1
Y183: CDE Conta Escassez Hídrica | Z183: 12854843.78 | AA183: =Resultado!D26 -> 47322328.99 | AB183: =VLOOKUP("CDE Escassez Hidrica",EncargoDRP[],3,FALSE) -> DSP 510/2023 | AC183: =IF(ABS(Z183)+ABS(AA183)>0,1,0) -> 1
Y184: CDE GD | Z184: 11759497.29 | AA184: =Resultado!D27 -> 26107770.54 | AB184: =VLOOKUP("CDE GD",EncargoDRP[],3,FALSE) -> REH 3.484/2025 | AC184: =IF(ABS(Z184)+ABS(AA184)>0,1,0) -> 1
Y185: Compensação financeira - CFURH | Z185: 0 | AA185: =Resultado!D28 -> 0 | AB185: Submódulo 3.4 do Proret | AC185: 0
Y186: ESS / ERR / ERCAP | Z186: =Resultado!C25 -> 75883234.05 | AA186: =Resultado!D29 -> 246300879.6 | AB186: =Encargos!D12 -> DSP 2.566/2025 | AC186: 1
Y187: PROINFA | Z187: =Resultado!C26 -> 36773102.56 | AA187: =Resultado!D30 -> 198946076.9 | AB187: =Encargos!$D$13 -> REH 3.422/2024 | AC187: 1
Y188: P&D e Eficiência Energética | Z188: =Resultado!C27 -> 24678984 | AA188: =Resultado!D31 -> 38221429.4 | AB188: Submódulo 5.6 do PRORET | AC188: 1
Y189: Contribuição ONS | Z189: =Resultado!C28 -> 0 | AA189: =Resultado!D32 -> 240746.34 | AB189: 0 | AC189: 1
Y190: Total de Encargos Tarifários | Z190: =SUM(Z179:Z189) -> 368084323.7 | AA190: =SUM(AA179:AA189) -> 935230171.7
AD193: TabTrans | AF193: Voltar
AD194: Componente | AE194: Processo Anterior (R$) | AF194: Processo Atual (R$) | AG194: Colunas1
AD195: Rede Básica | AE195: =+Resultado!C30 -> 140381445.9 | AF195: =+Resultado!D30 -> 198946076.9 | AG195: =IF(ABS(AE195)+ABS(AF195)>0,1,0) -> 1
AD196: Rede Básica Fronteira | AE196: =+Resultado!C31 -> 34732173.61 | AF196: =+Resultado!D31 -> 38221429.4 | AG196: 1
AD197: Rede Básica ONS (A2) | AE197: =+Resultado!C32 -> 238770.9293 | AF197: =+Resultado!D32 -> 240746.34 | AG197: 1
AD198: Rede Básica Export. (A2) | AE198: =+Resultado!C33 -> 5101511.456 | AF198: =+Resultado!D33 -> 5169431.95 | AG198: 1
AD199: MUST Itaipu | AE199: =+Resultado!C34 -> 0 | AF199: =+Resultado!D34 -> 0 | AG199: 0
AD200: Transporte de Itaipu | AE200: =+Resultado!C35 -> 0 | AF200: =+Resultado!D35 -> 0 | AG200: 0
AD201: Conexão | AE201: =+Resultado!C36 -> 3551890.372 | AF201: =+Resultado!D36 -> 3723195.015 | AG201: 1
AD202: Uso do sistema de distribuição | AE202: =+Resultado!C37 -> 0 | AF202: =+Resultado!D37 -> 0 | AG202: 0
AD203: Total dos Custos de Transporte | AE203: =SUM(AE195:AE202) -> 184005792.3 | AF203: =SUM(AF195:AF202) -> 246300879.6
AH207: TabPerdas | AK207: Voltar
AH208: Perdas | AI208: Processo anterior | AJ208: Processo atual | AK208: Referência
Z209: =Energia!H7 -> 676718.332 | AA209: =Z209 -> 676718.332 | AH209: Não Técnica (s/ Baixa Tensão) | AI209: =Neutralidade!H15 -> 0.16642 | AJ209: =Energia!H14 -> 0.1720928485 | AK209: REH 3.301/2023 e DSP. 1.220
AH210: Técnica (s/ Energia injetada) | AI210: =Neutralidade!H16 -> 0.101338 | AJ210: =Energia!H15 -> 0.101338 | AK210: REH 3.301/2023
AH211: Rede Básica (s/ merc. Injetado) | AI211: =Neutralidade!H17 -> 0.02192323828 | AJ211: =Energia!H16 -> 0.02212363636 | AK211: CCEE (últimos 12 meses)
AH212: Mercado Baixa Tensão (MWh) | AI212: =Mercado!$C$16 -> 2931420.42 | AJ212: =Energia!H10 -> 3101719.836 | AK212: SAMP
AH213: Energia Injetada (MWh) | AI213: =SUM(Energia!$J$5:$J$8,-Energia!$J$9,Neutralidade!H18,Neutralidade!I15)/(1-Neutralidade!H16)+SUMIFS(TabPerdaDIT[Valor],TabPerdaDIT[Dados de perda],"Perdas DITs") -> 5353403.052 | AJ213: =SUM(Energia!$H$5:$H$8,-Energia!$H$9,Energia!H17)/(1-Energia!H15) -> 5920919.96 | AK213: SAMP
AM215: TabEnergia | AO215: Voltar
AM216: Descrição | AN216: Processo Anterior (MWh) | AO216: Processo Atual (MWh)
AM217: (i) - Mercado cativo total (fornecimento + suprimento - GD) | AN217: =SUM(AN218:AN221) -> 3105906.947 | AO217: =SUM(AO218:AO221) -> 2946334.857 | AP217: Colunas1 | AQ217: Colunas2
... 197 more rows

Sheet NT Revisao (hidden)
B2: Tabelas
B4: Custo Operacional
B5: Remuneração do Capital e Quota de Reintegração
B6: CAIMI
B7: Parcela B Ajustada
B8: Outras Receitas
B9: Cálculo das Perdas
B10: Energia Requerida
B11: Transmissão
B12: Encargos Setoriais
B16: Custo Operacional | E16: Voltar
B17: Descrição | C17: Limite Inferior | D17: Centro | E17: Limite Superior
B18: 1. Eficiência | C18: ='VPB e Fator X'!C139 -> 0.4581 | D18: ='VPB e Fator X'!C137 -> 0.4765 | E18: ='VPB e Fator X'!C138 -> 0.4993
B19: 2. OPEX Benchmarking (Atualizado) - R$ | C19: ='VPB e Fator X'!C142 -> 206609066.8 | D19: =(E19+C19)/2 -> 215899935.2 | E19: ='VPB e Fator X'!C141 -> 225190803.5
B21: Comparação com intervalo de CO eficientes
B22: Descrição | E22: Valor
B23: 3. OPEX nas tarifas - R$ | E23: ='VPB e Fator X'!C111 -> 
B24: 4. Meta estudo de eficiência - R$ | E24: ='VPB e Fator X'!C114 -> 
B25: 5. Número de anos no ciclo | E25: ='VPB e Fator X'!C11 -> 
B26: 6. Variação anual necessária para a meta (%) | E26: ='VPB e Fator X'!C115 -> 
B27: 7. Meta do estudo de eficiência aplicada variação anual máxima de 5% a.a. | E27: ='VPB e Fator X'!C117 -> 
B29: Avaliação do compartilhamento de eficiência (aplicável se Meta OPEX / OPEX Real > 120%)
B30: Descrição | E30: Valor
B31: 8. OPEX Real (R$) | E31: ='VPB e Fator X'!C118 -> 443964462.6
B32: 9. Meta OPEX (R$) | E32: ='VPB e Fator X'!C114 -> 
B33: 10. Relação Meta OPEX/ OPEX Real | E33: ='VPB e Fator X'!C119 -> 
B34: 11. Meta OPEX aplicada a regra de compartilhamento (R$) | E34: ='VPB e Fator X'!C120 -> 
B36: Limitação do repasse dos Custos Operacionais
B37: Descrição | E37: Reais
B38: 12. Limite minimo para Meta e Ano Teste (60% do OPEX Real) | E38: ='VPB e Fator X'!C121 -> 266378677.5
B39: 13. Limite máximo para a Meta e Ano Teste (140% do OPEX Real) | E39: ='VPB e Fator X'!C122 -> 621550247.6 | G39: Remuneração do Capital e Quota de Reintegração | H39: Voltar
B40: 14. Meta OPEX Regulatórios aplicados os limites mínimo e máximo (R$) | E40: ='VPB e Fator X'!C123 ->  | G40: Descrição | I40: Colunas1
G41: (1) Ativo Imobilizado em Serviço (Valor Novo de Reposição) | H41: =Entrada!G7 ->  | I41: =IF(H41=0,0,1) -> 
B42: Verificação de repasse de 5% na revisão | G42: (2) Índice de Aproveitamento Integral | H42: =Entrada!G8 -> 
B43: Descrição | E43: Valor | G43: (3) Obrigações Especiais Bruta | H43: =Entrada!G9 -> 
B44: 15. Variação no ciclo entre meta e custo operacinal ano teste | E44: ='VPB e Fator X'!C124 ->  | G44: (4) Bens Totalmente Depreciados | H44: =Entrada!G10 -> 
B45: 16. Variação anual no ciclo entre meta e custo operacional ano teste | E45: ='VPB e Fator X'!C125 ->  | G45: (5) Base de Remuneração Bruta = (1)-(2)-(3)-(4) | H45: =Entrada!G11 -> 
B46: 17. Limite de Custos Operacionais Regulatórios considerando variação de 5% na RTP (R$) | E46: ='VPB e Fator X'!C126 ->  | G46: (6) Depreciação Acumulada | H46: =Entrada!G12 -> 
B47: 18. Partida OPEX Regulatório considerando variação inicial de até 5% | E47: ='VPB e Fator X'!C127 ->  | G47: (7) AIS Líquido (Valor de Mercado em Uso) | H47: =Entrada!G13 -> 
G48: (8) Índice de Aproveitamento Depreciado | H48: =Entrada!G14 -> 
G49: (9) Valor da Base de Remuneração (VBR) = (1)-(6)-(8) | H49: =Entrada!G15 -> 
G50: (10) Almoxarifado em Operação | H50: =Entrada!G16 -> 
G51: (11) Ativo Diferido | H51: =Entrada!G17 -> 
G52: (12) Obrigações Especiais Líquida | H52: =Entrada!G18 -> 
G53: (13) Terrenos e Servidões | H53: =Entrada!G19 -> 
G54: (14) Base de Remuneração Líquida Total = (9)+(10)+(11)-(12)+(13) | H54: =Entrada!G20 -> 
G55: (15) Base de Remuneração Ativos Concessionária | H55: =H54-H61-H64 ->  | I55: =IF(H55=0,0,1) -> 
G56: (16) WACC antes de impostos | H56: ='VPB e Fator X'!F81 -> 0.112503 | I56: 1
G57: (17) Remuneração Ativos Concessionária | H57: =H55*H56 -> 
G58: (18) Base Obrigações Especiais | H58: ='VPB e Fator X'!G91 ->  | I58: =IF(H58=0,0,1) -> 
G59: (19) Taxa de Remuneração das Obrigações Especiais | H59: =H60/H58 ->  | I59: =IF(H58=0,0,1) -> 
G60: (20) Remuneração de Obrigações Especiais | H60: ='VPB e Fator X'!G95 ->  | I60: =IF(H60=0,0,1) -> 
G61: (21) Saldo RGR/PLPT | H61: ='VPB e Fator X'!C91 -> 
G62: (22) Taxa RGR/PLPT | H62: ='VPB e Fator X'!F82 -> 0.000797 | I62: =IF(H61=0,0,1) -> 
G63: (23) Remuneração RGR/PLPT | H63: =H61*H62 -> 
G64: (24) Saldo RGR/Demais Investimentos | H64: ='VPB e Fator X'!C92 ->  | I64: =IF(H64=0,0,1) -> 
G65: (25) Saldo RGR/Demais Investimentos | H65: ='VPB e Fator X'!F83 -> 0.000797 | I65: =IF(H64=0,0,1) -> 
G66: (23) Remuneração RGR Demais Investimentos | H66: =H64*H65 -> 
G67: (24) Remuneração do Capital = (17)+(20)+(23) | H67: =H57+H60+H63+H66 ->  | I67: =IF(H67=0,0,1) -> 
G68: (25) Taxa de Depreciação | H68: ='VPB e Fator X'!C76 -> 0 | I68: 0
G69: (29) Quota de Reintegração Regulatória = (5) * (25) | H69: =H45*H68 ->  | I69: =IF(H69=0,0,1) -> 
J71: CAIMI | K71: Voltar
J72: Descrição | K72: Valores (R$)
J73: ='VPB e Fator X'!B60 -> (1) Base de Anuidade Regulatória (BAR) | K73: ='VPB e Fator X'!C60 -> 
J74: ='VPB e Fator X'!B61 -> (2) Base de Anuidade - Infraestrutura de imóveis e móveis administrativos (BARA) | K74: ='VPB e Fator X'!C61 -> 
J75: ='VPB e Fator X'!B62 -> (3) Base de Anuidade - Veículos (BARV) | K75: ='VPB e Fator X'!C62 -> 
J76: ='VPB e Fator X'!B63 -> (4) Base de Anuidade - Sistemas de Informática (BARI) | K76: ='VPB e Fator X'!C63 -> 
J77: ='VPB e Fator X'!B64 -> (5) Anuidade - Infraestrutura de imóveis e móveis administrativos (CAL) | K77: ='VPB e Fator X'!C64 -> 
J78: ='VPB e Fator X'!B65 -> (6) Anuidade - Veículos (CAV) | K78: ='VPB e Fator X'!C65 -> 
J79: ='VPB e Fator X'!B66 -> (7) Anuidade - Sistemas de Informática (CAI) | K79: ='VPB e Fator X'!C66 -> 
J80: ='VPB e Fator X'!B67 -> (8) CAIMI = (5)+(6)+(7) | K80: ='VPB e Fator X'!C67 -> 
M82: Parcela B ajustada | N82: Voltar
M83: Descrição | N83: Valores
M84: Custo de Administração, Operação e Manutenção (CAOM) | N84: =Resultado!G19 -> 
M85: Custos Operacionais (CO) | N85: =Resultado!G20 -> 
M86: Custo Anual dos Ativos (CAA) | N86: =Resultado!G21 -> 
M87: Remuneração do Capital (RC) | N87: =Resultado!G22 -> 
M88: Quota de Reintegração Regulatória (QRR) | N88: =Resultado!G23 -> 
M89: Custo anual das instalações móveis e imóveis (CAIMI) | N89: =Resultado!G24 -> 
M90: Parcela B (VPB) | N90: =Resultado!G25 -> 
M91: Índice de Produtividade da Parcela B | N91: =Resultado!G26 -> 0.01271180625
M92: Mecanismo de Incentivo à Qualidade | N92: =Resultado!G27 -> -0.001626941449
M93: Parcela B com ajustes PM e MIQ | N93: =N90*(1-LnkTxtFatorAjusteMercado-N92) -> 
M94: Outras Receitas (OR) | N94: =Resultado!G29 -> 19694305.46
M95: Excedente de Reativos (ER) | N95: =Resultado!G30 -> 9536354.117
M96: Ultrapassagem de Demanda (UD) | N96: =Resultado!G31 -> 7254188.347
M97: Parcela B deduzido UDEROR | N97: =N93-SUM(N94:N96) -> 
P99: Outras Receitas | R99: Voltar
P100: Descrição das atividades | Q100: Compartilhamento | R100: Receita Regulatória | S100: Colunas1
P101: Serviços Cobráveis | Q101: 0.6 | R101: =UDEROR!D14 -> 4424813.819 | S101: =IF(R101=0,0,1) -> 1
P102: =UDEROR!B15 -> Arrecadação de convênios ou valores pela fatura | Q102: 0.6 | R102: =UDEROR!D15 -> 2795274.388 | S102: 1
P103: =UDEROR!B16 -> Arrecadação de faturas de terceiros por estrutura própria | Q103: 0.5 | R103: =UDEROR!D16 -> 0 | S103: 0
P104: =UDEROR!B17 -> Veiculação de publicidade | Q104: 0.6 | R104: =UDEROR!D17 -> 0 | S104: 0
P105: =UDEROR!B18 -> Aluguel ou cessão onerosa de imóveis e espaços físicos | Q105: 0.6 | R105: =UDEROR!D18 -> 0 | S105: 0
P106: =UDEROR!B19 -> Compartilhamento de infraestrutura | Q106: 0.6 | R106: =UDEROR!D19 -> 12474217.25 | S106: 1
P107: =UDEROR!B20 -> Serviços de avaliação técnica e aferição de medidores. | Q107: 0.6 | R107: =UDEROR!D20 -> 0 | S107: 0
P108: =UDEROR!B21 -> Operacionalização de serviço de créditos tributários | Q108: 0.6 | R108: =UDEROR!D21 -> 0 | S108: 0
P109: Elaboração de projeto, construção, operação, manutenção ou reforma de: | S109: =MAX(S110:S118) -> 0
P110: (1) redes de distribuição de energia elétrica destinadas à regularização fundiária de interesse específico e ao atendimento dos empreendimentos de múltiplas unidades consumidoras; | Q110: 0.6 | R110: =UDEROR!D23 -> 0 | S110: 0
P111: (2) redes de energia elétrica destinadas ao acesso dos sistemas de distribuição ou transmissão; | Q111: 0.6 | R111: =UDEROR!D24 -> 0 | S111: 0
P112: (3) subestações de energia; | Q112: 0.6 | R112: =UDEROR!D25 -> 0 | S112: 0
P113: (4) instalações elétricas internas de unidades consumidoras; | Q113: 0.6 | R113: =UDEROR!D26 -> 0 | S113: 0
P114: (5) banco de capacitores: | Q114: 0.6 | R114: =UDEROR!D27 -> 0 | S114: 0
P115: (6) padrões de entrada de unidades consumidoras atendidas em baixa tensão; | Q115: 0.6 | R115: =UDEROR!D28 -> 0 | S115: 0
P116: (7) sistemas de medição de energia elétrica; | Q116: 0.6 | R116: =UDEROR!D29 -> 0 | S116: 0
P117: (8) geradores, incluindo-se unidades de microgeração e minigeração distribuída; | Q117: 0.3 | R117: =UDEROR!D30 -> 0 | S117: 0
P118: (9) sistemas de iluminação pública. | Q118: 0.6 | R118: =UDEROR!D31 -> 0 | S118: 0
P119: Eficientização do consumo de energia elétrica e instalação de cogeração qualificada, desde que não enquadráveis nos projetos de Pesquisa e Desenvolvimento (P&D) ou de Eficiência Energética estabelecidos em lei | Q119: 0.3 | R119: =UDEROR!D33 -> 0 | S119: 0
P120: Serviços de comunicação de dados | Q120: 0.3 | R120: =UDEROR!D34 -> 0 | S120: 0
P121: Serviços de consultoria | Q121: 0.6 | R121: =UDEROR!D35 -> 0 | S121: 0
P122: Total | R122: =SUM(R101:R121) -> 19694305.46 | S122: 1
T124: Calculo das Perdas | U124: Voltar
T125: Cálculo do Ponto de Partida
T126: Descrição | U126: PNT
T127: a. Meta Ciclo Anterior Faturada
T128: b. Diferença entre Medido e Faturado
T129: c. Meta Ciclo Anterior Medida [a + b]
T130: d. Média Histórico Medida
T131: e. Ponto de Partida Medido
T132: f. Ponto de Partida Faturado [e - b]
T134: Cálculo do Ponto de Chegada
T135: Descrição | U135: Benchmark
T136: g. Empresa Benchmark
T137: h. Perda Benchmark (PNT/BT)
T138: ="i. Perda "&LnkTxtNomeResumido&" (PNT/BT)" -> i. Perda ERO (PNT/BT)
T139: j. Probabilidade de Comparação
T140: k. Meta
T141: l. Meta Benchmarks
T142: m. Meta utilizada Medida
T143: n. Ponto de Partida (PNT/BT)
T144: o. Meta Ciclo Atual Faturada
T146: Trajetória
T147: Descrição | U147: Ponto Partida | V147: =YEAR(LnkTxtDRPData) -> 2025 | W147: =V147+1 -> 2026 | X147: =W147+1 -> 2027 | Y147: 2028 | Z147: 2029
T148: Trajetória PNT/BT
T149: Velocidade de Redução (a.a)
T150: Limite de Redução (a.a)
T151: PNT/BT Medido Regulatório
T152: Diferença entre Medido e Faturado
T153: PNT/BT Faturado Regulatório
T154: PT/ Einjetada Regulatório
T157: E injetada RTP Anterior | W157: Mercado BT RTP Anterior
U159: =V147-'VPB e Fator X'!C7 ->  | V159: =U159+1 ->  | W159: =V159+1 -> 
T160: PNT/BT última RTP
T161: PNT/Einjetada última RTP | U161: =U160*$Y$157/$U$157 ->  | V161: =V160*$Y$157/$U$157 ->  | W161: =W160*$Y$157/$U$157 ->  | X161: =X160*$Y$157/$U$157 ->  | Y161: =Y160*$Y$157/$U$157 -> 
T162: PT/Einjetada última RTP
U164: =V147 -> 2025 | V164: =W147 -> 2026 | W164: 2027 | X164: 2028 | Y164: 2029
T165: PNT/Einjetada | U165: =V153*Energia!$I$14/Energia!$H$14 -> 0 | V165: =W153*Energia!$I$14/Energia!$H$14 -> 0 | W165: =X153*Energia!$I$14/Energia!$H$14 -> 0 | X165: =Y153*Energia!$I$14/Energia!$H$14 -> 0 | Y165: =Z153*Energia!$I$14/Energia!$H$14 -> 0
AB167: Energia Requerida | AC167: Voltar
AB168: Descrição | AC168: Energia (MWh)
AB169: Perdas na Rede Básica | AC169: =Energia!H19+Energia!H20 -> 90267.3754
AB170: Perdas na Distribuição | AC170: =AC171+AC172 -> 1133797.989
AB171: Perdas Técnicas | AC171: =Energia!H18 -> 600014.1869
AB172: Perdas Não Técnicas | AC172: =Energia!H17 -> 533783.8019
AB173: Energia Vendida | AC173: =Energia!D6 -> 2946334.857
AB174: Energia Requerida | AC174: =SUM(AC169:AC170,AC173) -> 4170400.221
AE176: Transmissão | AF176: Voltar
AE177: Descrição | AF177: Valor (R$) | AG177: Colunas1
T178: PT/Einjetada | U178: =V154 -> 0 | V178: =W154 -> 0 | W178: 0 | X178: 0 | Y178: 0 | AE178: Rede Básica | AF178: =Resultado!D30 -> 198946076.9 | AG178: =IF(AF178=0,0,1) -> 1
AE179: Rede Básica Fronteira | AF179: =Resultado!D31 -> 38221429.4 | AG179: =IF(AF179=0,0,1) -> 1
AE180: Rede Básica ONS (A2) | AF180: =Resultado!D32 -> 240746.34 | AG180: 1
AE181: Rede Básica Export. (A2) | AF181: =Resultado!D33 -> 5169431.95 | AG181: 1
AE182: MUST Itaipu | AF182: =Resultado!D34 -> 0 | AG182: 0
AE183: Transporte de Itaipu | AF183: =Resultado!D35 -> 0 | AG183: 0
AE184: Conexão | AF184: =Resultado!D36 -> 3723195.015 | AG184: 1
AE185: Uso do sistema de distribuição | AF185: =Resultado!D37 -> 0 | AG185: 0
AE186: Total | AF186: =SUM(AF178:AF185) -> 246300879.6
AH188: Encargos Setoriais | AI188: Voltar
AH189: Descrição | AI189: Valor (R$) | AJ189: Dispositivo Legal | AK189: Colunas1
AH190: Taxa de Fisc. de Serviços de E.E. – TFSEE | AI190: =Resultado!D22 -> 4358672.202 | AJ190: =Encargos!D17 -> Submódulo 5.5 do PRORET | AK190: =IF(AI190=0,0,1) -> 1
AH191: Conta de Desenvolvimento Energético – CDE | AI191: =Resultado!D23 -> 284933593.6 | AJ191: =Encargos!D10 -> REH 3.484/2025 e Quitação e DSP 510/2023 e REH 3.484/2025 | AK191: =IF(AI191=0,0,1) -> 1
AH192: Compensação financeira - CFURH | AI192: =Resultado!D24 -> 0 | AJ192: =Encargos!D11 -> 0 | AK192: 0
AH193: Encargos Serv. Sist. - ESS/Energ. Reserv. - EER/ERCAP | AI193: =Resultado!D25 -> 88798674.03 | AJ193: =Encargos!D12 -> DSP 2.566/2025 | AK193: 1
AH194: PROINFA | AI194: =Resultado!D26 -> 47322328.99 | AJ194: =Encargos!D13 -> REH 3.422/2024 | AK194: 1
AH195: P&D, Efic.Energ e Ressarc.ICMS Sist.Isol. | AI195: =Resultado!D27 -> 26107770.54 | AJ195: Res. Normativa nº 316/2008 | AK195: =IF(AI195=0,0,1) -> 1
AH196: ONS | AI196: =Resultado!D28 -> 0 | AJ196: =Encargos!D14 -> 0 | AK196: 0
AH197: Total | AI197: =SUM(AI190:AI196) -> 451521039.4
AD265: Total de Encargos Tarifários | AE265: =SUM(AI190:AI196) -> 451521039.4
AT296: Tabela Reposicionamento Tarifário Médio
AT297: Descrição | AU297: Valores (R$)
AT298: VPA+VPB | AU298: ='Votos e NTs'!E78 -> 2970958998
AT299: Receita Verificada | AU299: ='Votos e NTs'!D78 -> 2657212380
AT300: Reposicionamento Tarifário Médio | AU300: =AU298/AU299-1 -> 0.1180735948
AT301: Delta (Adicional RTE) | AU301: -116205572.2
AW303: Descrição | AX303: total
AW304: Ultrapassagem de Demanda | AX304: =Resultado!G30 -> 9536354.117
AW305: Excedente Reativo | AX305: =Resultado!G31 -> 7254188.347
AW306: Total | AX306: =AX304+AX305 -> 16790542.46

Sheet Previsão N+1
D1: Anual | E1: mensal | F1: 6 meses
C2: Variação de mercado TE | D2: 0 | E2: =(1+D2)^(1/12)-1 -> 0 | F2: =(1+E2)^6-1 -> 0
C3: Variação de mercado TUSD | D3: 0 | E3: =(1+D3)^(1/12)-1 -> 0 | F3: =(1+E3)^6-1 -> 0
C4: Variação mercado GD II e GD-III | D4: 0.2 | E4: 0.0153094705 | F4: 0.09544511501
C5: IPCA futuro 12 meses | D5: =VLOOKUP(EDATE(CAPA!C15,12),Índices!$B$10:$F$500,3)/VLOOKUP(EDATE(CAPA!C15,0),Índices!$B$10:$F$500,3)-1 -> 0.04183199199 | E5: 0.003420895807 | F5: 0.02070171548
C6: IGP-M futuro | D6: =VLOOKUP(EDATE(CAPA!C15,12),Índices!$B$10:$F$500,2)/VLOOKUP(EDATE(CAPA!C15,0),Índices!$B$10:$F$500,2)-1 -> 0.04233471113 | E6: 0.003461235593 | F6: 0.02094794732
C7: Dolar futuro | E7: 0 | F7: 0
C8: Selic Atual | D8: =VLOOKUP(EDATE(CAPA!C15,0),Índices!$B$10:$F$500,5)/VLOOKUP(EDATE(CAPA!C15,-12),Índices!$B$10:$F$500,5)-1 -> 0.1399837904 | E8: 0.01097765402 | F8: 0.06770023432
C9: Selic 12 meses
C11: Próximo processo tarifário (RTA ou RTP) | E11: RTA
D12: =YEAR(LnkTxtDRPData) -> 2025 | E12: =D12+1 -> 2026 | K12: Tabela auxiliar - cálculo de CVA M2 de encargos e Transporte
D13: Processo Atual (R$) | E13: Projeção para próximo processo (R$) | F13: ='Votos e NTs'!F46 -> Variação | G13: ='Votos e NTs'!G46 -> Participação no Efeito | H13: ='Votos e NTs'!H46 -> Participação na Receita | I13: 1 | K13: Descasamento CVA (meses) | L13: Delta total para estimativa de CVA M2 | M13: Fator de cálculo da CVA M2
C14: ='Votos e NTs'!B47 -> PARCELA A [Encargos+Transmissão+Energia+RI] | D14: ='Votos e NTs'!E47 -> 1772498469 | E14: =E15+E27+E36+E37 -> 1871505505 | F14: =IFERROR(E14/D14-1,0) -> 0.05585733248 | G14: =IFERROR((E14-D14)/$D$39,0) -> 0.03332494199 | H14: =E14/$E$39 -> 0.599822278 | I14: =IF(AND(E14=0,D14=0),0,1) -> 1
C15: ='Votos e NTs'!B48 -> Encargos Setoriais | D15: ='Votos e NTs'!E48 -> 451521039.4 | E15: =SUM(E16:E26) -> 485024559.1 | F15: =IFERROR(E15/D15-1,0) -> 0.07420145851 | G15: =IFERROR((E15-D15)/$D$39,0) -> 0.01127700506 | H15: =E15/$E$39 -> 0.1554516057 | I15: 1
C16: ='Votos e NTs'!B49 -> Taxa de Fisc. de Serviços de E.E. – TFSEE | D16: ='Votos e NTs'!E49 -> 4358672.202 | E16: =D16*E38/D38 -> 4541004.142 | F16: 0.04183199199 | G16: 6.137140928e-05 | H16: 0.001455403386 | I16: 1 | K16: 0 | L16: =E16-D16 -> 182331.9406 | M16: =IFERROR(VLOOKUP(K16,$AF$103:$AJ$114,5),0) -> 0
C17: ='Votos e NTs'!B50 -> Conta de Desenv. Energético – CDE (USO) | D17: ='Votos e NTs'!E50 -> 232998420.1 | E17: =D17*(1+D5) -> 242745208.1 | F17: 0.04183199199 | G17: 0.003280687498 | H17: 0.07780045708 | I17: =IF(AND(E17=0,D17=0),0,1) -> 1 | K17: =MONTH(LnkTxtDRPData)-1 -> 11 | L17: 9746788.044 | M17: 1.050585242
C18: ='Votos e NTs'!B51 -> Conta de Desenv. Energético – CDE Conta-Covid (TE) | D18: ='Votos e NTs'!E51 -> 0 | E18: 0 | F18: 0 | G18: 0 | H18: 0 | I18: =IF(AND(E18=0,D18=0),0,1) -> 0 | K18: 0 | L18: 0 | M18: 0
C19: ='Votos e NTs'!B52 -> Conta de Desenv. Energético – CDE Eletrobrás | D19: ='Votos e NTs'!E52 -> -2187109.36 | E19: =D19*(1+D5) -> -2278600.501 | F19: 0.04183199199 | G19: -3.079515445e-05 | H19: -0.0007302972604 | I19: 1 | K19: 0 | L19: -91491.14123 | M19: 0
C20: ='Votos e NTs'!B53 -> Conta de Desenv. Energético – CDE Conta-Escassez Hídrica (TE) | D20: ='Votos e NTs'!E53 -> 13615352.44 | E20: =D20 -> 13615352.44 | F20: 0 | G20: 0 | H20: 0.004363755112 | I20: 1 | K20: 0 | L20: 0 | M20: 0
C21: ='Votos e NTs'!B54 -> Conta de Desenv. Energético – CDE GD | D21: ='Votos e NTs'!E54 -> 40506930.45 | E21: =D21*(1+D5)*(1+D4) -> 50641699.25 | F21: 0.2501983904 | G21: 0.003411278582 | H21: 0.01623079351 | I21: 1 | K21: 0 | L21: 10134768.8 | M21: 0
C22: ='Votos e NTs'!B55 -> Compensação financeira - CFURH | D22: ='Votos e NTs'!E55 -> 0 | E22: =D22*(1+D4) -> 0 | F22: 0 | G22: 0 | H22: 0 | I22: 0 | K22: 0 | L22: 0 | M22: 0
C23: ='Votos e NTs'!B56 -> Encargos Serv. Sist. - ESS/Energ. Reserv. - EER/ERCAP | D23: ='Votos e NTs'!E56 -> 88798674.03 | E23: =D23*(1+D5) -> 92513299.45 | F23: 0.04183199199 | G23: 0.00125031191 | H23: 0.02965074795 | I23: 1 | K23: 0 | L23: 3714625.421 | M23: 0
C24: ='Votos e NTs'!B57 -> PROINFA | D24: ='Votos e NTs'!E57 -> 47322328.99 | E24: =D24*(1+D5) -> 49301916.28 | F24: 0.04183199199 | G24: 0.0006663125571 | H24: 0.01580138966 | I24: 1 | K24: =MONTH(LnkTxtDRPData)-1 -> 11 | L24: 1979587.287 | M24: 1.050585242
C25: ='Votos e NTs'!B58 -> P&D, Efic.Energ e Ressarc.ICMS Sist.Isol. | D25: =IFERROR(1%*(D16+D24+D23+D27+D36+D38+D37)+1%*(Encargos!G15-SUMIFS(Financeiros[Valor],Financeiros[idDet3],501)),0) -> 26107770.54 | E25: =IFERROR(1%*(E16+E24+E23+E27+E36+E38+E37)+1%*E41,0) -> 33944679.86 | F25: 0.3001753561 | G25: 0.002637838262 | H25: 0.0108793563 | I25: 1 | K25: 0 | L25: =E25-D25 -> 7836909.32 | M25: 0
C26: ='Votos e NTs'!B59 -> ONS | D26: ='Votos e NTs'!E59 -> 0 | E26: =D26*(1+D5) -> 0 | F26: 0 | G26: 0 | H26: 0 | I26: 0 | K26: 0 | L26: =E26-D26 -> 0 | M26: 0
C27: ='Votos e NTs'!B60 -> Custos de Transmissão | D27: ='Votos e NTs'!E60 -> 246300879.6 | E27: =SUM(E28:E35) -> 256604136.1 | F27: 0.04183199199 | G27: 0.00346799011 | H27: 0.08224227875 | I27: 1
C28: ='Votos e NTs'!B61 -> Rede Básica | D28: ='Votos e NTs'!E61 -> 198946076.9 | E28: =D28*(1+$D$5) -> 207268387.6 | F28: 0.04183199199 | G28: 0.002801220313 | H28: 0.0664300458 | I28: 1 | K28: =MONTH(LnkTxtDRPData)-1+12-7 -> 16 | L28: =E28-D28 -> 8322310.697 | M28: =IFERROR(VLOOKUP(K28,$AF$103:$AJ$114,5),0) -> 1.050585242
C29: ='Votos e NTs'!B62 -> Rede Básica Fronteira | D29: ='Votos e NTs'!E62 -> 38221429.4 | E29: =D29*(1+$D$5) -> 39820307.93 | F29: 0.04183199199 | G29: 0.0005381691667 | H29: 0.01276251005 | I29: 1 | K29: =K28 -> 16 | L29: 1598878.529 | M29: 1.050585242 | W29: Bandeira | X29: Verde | Z29: Amarela | AB29: Vermelha 1 | AD29: Vermelha 2 | AG29: PLDmin | AH29: 61.07
C30: ='Votos e NTs'!B63 -> Rede Básica ONS (A2) | D30: ='Votos e NTs'!E63 -> 240746.34 | E30: =D30*(1+$D$5) -> 250817.239 | F30: 0.04183199199 | G30: 3.389780529e-06 | H30: 8.03875635e-05 | I30: 1 | K30: =K29 -> 16 | L30: 10070.89897 | M30: 1.050585242 | W30: Valor | X30: =AH36 -> 31.92797 | Z30: =AH37 -> 69.05913 | AB30: =AH38 -> 92.46868 | AD30: =AH39 -> 136.4595 | AG30: PLDmax | AH30: 716.8
